Workbook

Sheet User Guide
C3: Bridgelux® Product Simulator
C4: User Guide
C6: What does it do?
C8: Use this tool to select the most suitable Bridgelux® LED Array for an application. You can choose the array based on either the DRIVE CURRENT you want to use or the LUMEN OUTPUT you require.
C10: What products are supported?
C12: This tool will help you select Bridgelux® Gen. 6 Vero® Series and V Series™ arrays.
C14: How do I use the Product Simulator?
C16: 1. Enter basic information about your application in Section 1 of the Simulator
C17: · Select the required CCT and CRI from the drop down menu:
C18: · Enter the operating Case Temperature in degrees Celsius:
C24: 2. If you are designing to a fixed DRIVE CURRENT go to Section 2 and enter the required drive
D25: current
C31: · The Simulator will show product options for Gen. 6 Vero and V Series products
C48: 3. If you are designing to meet a required LUMEN target, use Section 3 of the Simulator and
D49: enter required lumen value:
C55: · The Simulator will show product options and required drive currents for Gen. 7 Vero and V Series products
C56: · The Simulator will show product options for Gen. 6 Vero and V Series products
C73: Note: typical lumen tested under pulsed condition (10ms pulse width) at nominal test current where Tj (junction temperature) = Tc (case temperature) = 25°C
C76: How do I read the Part Number?
C78: For product nomenclature refer to product datasheets.
C80: As an example, the part number designation for Bridgelux Gen. 6 Vero LED arrays is explained as follows:
C82: BXRC – AB C DEFG – H – IJ
C84: Where:
C86: BXRC – Designates product family
C87: AB – Designates the nominal color temperature; 27 = 2700K, 30 = 3000K, etc.
C88: C – Designates minimum CRI; H = 97 typical
C89: DEFG – Designates nominal flux; 2000 = 2,000lm, 4000 = 4,000 lm, 10K0 = 10,000 lm, etc.
C90: H – Designates array configuration
C91: IJ – Designates CCT Bin options
D92: 22 = 2 SDCM
D93: 23 = 3 SDCM
C95: Disclaimer
C96: Please note that the Product Simulator is solely intended to help ease your selection of Bridgelux LED array products based upon your selection of attribute options for each of the criteria provided in the Product Simulator. The Product Simulator is NOT intended as a design tool for luminaire or fixture products nor intended for the selection of LED array products to be used as a component in a particular luminaire or fixture application. Bridgelux disclaims all liability for the results of any product selection through the use of the Product Simulator.
C98: 1. Calculated values in the Product Simulator are measured under stabilized direct current conditions to more accurately represent the COB performance in a typical fixture application. Please refer to the appropriate COB Datasheet and Product Selection Guide for pulsed measurement specifications.

Sheet Simulator
E1: Bridgelux Product Simulator | O1: 1.01.1
P2: Rev 3
N3: Valid Until | P3: 2020-12-01
D4: Enter color and temperature values: | O4: Section 1
H6: Color Temperature and CRI: | I6: 4000K, 90 CRI | K6: =IFERROR(INDEX(CCT_CRI32354[],MATCH(I6,CCT_CRI32354[CCT/CRI],0),2),"-") -> 40G
H8: Case Temperature (°C): | I8: 25 | K8: of the | L8: Case
D11: Lumen Output at Required Drive Current | O11: Section 2
D12: Calculate lumens for selected drive current | N12: ENTER DRIVE CURRENT in mA: | O12: 200
D13: V Series & Vero Series
D14: Product | E14: Part Number | F14: Config | G14: Drive Current (mA) | H14: Voltage (V) | I14: Power (W) | J14: ="Lumen @ "&$L$8&" = "&$I$8&"°C" -> Lumen @ Case = 25°C | K14: ="Efficacy @ "&$L$8&" = "&$I$8&"°C" -> Efficacy @ Case = 25°C | L14: Max Drive Current (mA) | M14: Typical Current (mA) | N14: Typical Lumens | O14: ="Tj"&" " &"(°C)" -> Tj (°C) | R14: Efficacy (lm/W)
A15: =D15&"-"&F15&"-"&K$6 -> V6-AF-40G | D15: V6 | E15: =IFERROR(INDEX(MasterTable[],MATCH(A15,MasterTable[PF+CR],0),7),"-") -> - | F15: AF | G15: =IF(E15="-","-",(IF(L15<O$12,"-",O$12))) -> - | H15: =IFERROR(IF(G15,Calculations!AX6,"-"),"-") -> - | I15: =IFERROR(G15*H15/1000,"-") -> - | J15: =IFERROR(MROUND(IF(G15=$O$12,Calculations!AD6,"-"),5),"-") -> - | K15: =IFERROR(J15/I15,"-") -> - | L15: =IFERROR(INDEX(MasterTable[],MATCH(A15,MasterTable[PF+CR],0),COLUMN(MasterTable[Max Current])),"-") -> - | M15: =IFERROR(INDEX(MasterTable[],MATCH(Simulator!E15,MasterTable[P/N],0),COLUMN(MasterTable[Typical Current])),"-") -> - | N15: =IFERROR(INDEX(MasterTable[],MATCH(Simulator!E15,MasterTable[P/N],0),COLUMN(MasterTable[Typical Lumens])),"-") -> - | O15: =IFERROR(IF(G15,Calculations!F6,"-"),"-") -> - | R15: Efficacy (lm/W) | S15: Efficacy (lm/W) | T15: Efficacy (lm/W) | U15: Efficacy (lm/W)
A16: =D16&"-"&F16&"-"&K$6 -> V6-BC-40G | D16: V6 | E16: =IFERROR(INDEX(MasterTable[],MATCH(A16,MasterTable[PF+CR],0),7),"-") -> - | F16: BC | G16: =IF(E16="-","-",(IF(L16<O$12,"-",O$12))) -> - | H16: =IFERROR(IF(G16,Calculations!AX7,"-"),"-") -> - | I16: =IFERROR(G16*H16/1000,"-") -> - | J16: =IFERROR(MROUND(IF(G16=$O$12,Calculations!AD7,"-"),5),"-") -> - | K16: =IFERROR(J16/I16,"-") -> - | L16: =IFERROR(INDEX(MasterTable[],MATCH(A16,MasterTable[PF+CR],0),COLUMN(MasterTable[Max Current])),"-") -> - | M16: =IFERROR(INDEX(MasterTable[],MATCH(Simulator!E16,MasterTable[P/N],0),COLUMN(MasterTable[Typical Current])),"-") -> - | N16: =IFERROR(INDEX(MasterTable[],MATCH(Simulator!E16,MasterTable[P/N],0),COLUMN(MasterTable[Typical Lumens])),"-") -> - | O16: =IFERROR(IF(G16,Calculations!F7,"-"),"-") -> -
A17: V8-AH-40G | D17: V8 | E17: =IFERROR(INDEX(MasterTable[],MATCH(A17,MasterTable[PF+CR],0),7),"-") -> - | F17: AH | G17: - | H17: =IFERROR(IF(G17,Calculations!AX8,"-"),"-") -> - | I17: - | J17: =IFERROR(MROUND(IF(G17=$O$12,Calculations!AD8,"-"),5),"-") -> - | K17: - | L17: =IFERROR(INDEX(MasterTable[],MATCH(A17,MasterTable[PF+CR],0),COLUMN(MasterTable[Max Current])),"-") -> - | M17: =IFERROR(INDEX(MasterTable[],MATCH(Simulator!E17,MasterTable[P/N],0),COLUMN(MasterTable[Typical Current])),"-") -> - | N17: =IFERROR(INDEX(MasterTable[],MATCH(Simulator!E17,MasterTable[P/N],0),COLUMN(MasterTable[Typical Lumens])),"-") -> - | O17: =IFERROR(IF(G17,Calculations!F8,"-"),"-") -> -
A18: V8-AL-40G | D18: V8 | E18: =IFERROR(INDEX(MasterTable[],MATCH(A18,MasterTable[PF+CR],0),7),"-") -> BXRE-40G0800-A-2x | F18: AL | G18: 200 | H18: =IFERROR(IF(G18,Calculations!AX9,"-"),"-") -> 36.068 | I18: 7.2136 | J18: =IFERROR(MROUND(IF(G18=$O$12,Calculations!AD9,"-"),5),"-") -> 800 | K18: 110.9016303 | L18: =IFERROR(INDEX(MasterTable[],MATCH(A18,MasterTable[PF+CR],0),COLUMN(MasterTable[Max Current])),"-") -> 350 | M18: =IFERROR(INDEX(MasterTable[],MATCH(Simulator!E18,MasterTable[P/N],0),COLUMN(MasterTable[Typical Current])),"-") -> 175 | N18: =IFERROR(INDEX(MasterTable[],MATCH(Simulator!E18,MasterTable[P/N],0),COLUMN(MasterTable[Typical Lumens])),"-") -> 716 | O18: =IFERROR(IF(G18,Calculations!F9,"-"),"-") -> 30.121656
A19: V8-BF-40G | D19: V8 | E19: =IFERROR(INDEX(MasterTable[],MATCH(A19,MasterTable[PF+CR],0),7),"-") -> BXRE-40G0800-B-2x | F19: BF | G19: 200 | H19: =IFERROR(IF(G19,Calculations!AX10,"-"),"-") -> 17.03482241 | I19: 3.406964482 | J19: =IFERROR(MROUND(IF(G19=$O$12,Calculations!AD10,"-"),5),"-") -> 430 | K19: 126.2120584 | L19: =IFERROR(INDEX(MasterTable[],MATCH(A19,MasterTable[PF+CR],0),COLUMN(MasterTable[Max Current])),"-") -> 700 | M19: =IFERROR(INDEX(MasterTable[],MATCH(Simulator!E19,MasterTable[P/N],0),COLUMN(MasterTable[Typical Current])),"-") -> 350 | N19: =IFERROR(INDEX(MasterTable[],MATCH(Simulator!E19,MasterTable[P/N],0),COLUMN(MasterTable[Typical Lumens])),"-") -> 716 | O19: =IFERROR(IF(G19,Calculations!F10,"-"),"-") -> 27.41894478
A20: V10-BI-40G | D20: V10 | E20: =IFERROR(INDEX(MasterTable[],MATCH(A20,MasterTable[PF+CR],0),7),"-") -> BXRE-40G1000-B-2x | F20: BI | G20: 200 | H20: =IFERROR(IF(G20,Calculations!AX11,"-"),"-") -> 25.23904 | I20: 5.047808 | J20: =IFERROR(MROUND(IF(G20=$O$12,Calculations!AD11,"-"),5),"-") -> 645 | K20: 127.7782356 | L20: =IFERROR(INDEX(MasterTable[],MATCH(A20,MasterTable[PF+CR],0),COLUMN(MasterTable[Max Current])),"-") -> 700 | M20: =IFERROR(INDEX(MasterTable[],MATCH(Simulator!E20,MasterTable[P/N],0),COLUMN(MasterTable[Typical Current])),"-") -> 350 | N20: =IFERROR(INDEX(MasterTable[],MATCH(Simulator!E20,MasterTable[P/N],0),COLUMN(MasterTable[Typical Lumens])),"-") -> 1076 | O20: =IFERROR(IF(G20,Calculations!F11,"-"),"-") -> 27.37246976
A21: V13-C-40G | D21: V13 | E21: =IFERROR(INDEX(MasterTable[],MATCH(A21,MasterTable[PF+CR],0),7),"-") -> BXRE-40G2000-C-2x | F21: C | G21: =IF(E21="-","-",(IF(L21<O$12,"-",O$12))) -> 200 | H21: =IFERROR(IF(G21,Calculations!AX12,"-"),"-") -> 30.36421229 | I21: =IFERROR(G21*H21/1000,"-") -> 6.072842458 | J21: =IFERROR(MROUND(IF(G21=$O$12,Calculations!AD12,"-"),5),"-") -> 820 | K21: =IFERROR(J21/I21,"-") -> 135.027379 | L21: =IFERROR(INDEX(MasterTable[],MATCH(A21,MasterTable[PF+CR],0),COLUMN(MasterTable[Max Current])),"-") -> 1050 | M21: =IFERROR(INDEX(MasterTable[],MATCH(Simulator!E21,MasterTable[P/N],0),COLUMN(MasterTable[Typical Current])),"-") -> 500 | N21: =IFERROR(INDEX(MasterTable[],MATCH(Simulator!E21,MasterTable[P/N],0),COLUMN(MasterTable[Typical Lumens])),"-") -> 1900 | O21: =IFERROR(IF(G21,Calculations!F12,"-"),"-") -> 26.33602534
A22: V15-DL-40G | D22: V15 | E22: =IFERROR(INDEX(MasterTable[],MATCH(A22,MasterTable[PF+CR],0),7),"-") -> BXRE-40G3001-D-2x | F22: DL | G22: 200 | H22: =IFERROR(IF(G22,Calculations!AX13,"-"),"-") -> 33.152 | I22: 6.6304 | J22: =IFERROR(MROUND(IF(G22=$O$12,Calculations!AD13,"-"),5),"-") -> 885 | K22: 133.47611 | L22: =IFERROR(INDEX(MasterTable[],MATCH(A22,MasterTable[PF+CR],0),COLUMN(MasterTable[Max Current])),"-") -> 1400 | M22: =IFERROR(INDEX(MasterTable[],MATCH(Simulator!E22,MasterTable[P/N],0),COLUMN(MasterTable[Typical Current])),"-") -> 700 | N22: =IFERROR(INDEX(MasterTable[],MATCH(Simulator!E22,MasterTable[P/N],0),COLUMN(MasterTable[Typical Lumens])),"-") -> 2822 | O22: =IFERROR(IF(G22,Calculations!F13,"-"),"-") -> 26.060864
A23: V18-F-40G | D23: V18 | E23: =IFERROR(INDEX(MasterTable[],MATCH(A23,MasterTable[PF+CR],0),7),"-") -> BXRE-40G4000-F-2x | F23: F | G23: 200 | H23: =IFERROR(IF(G23,Calculations!AX14,"-"),"-") -> 26.71837726 | I23: =IFERROR(G23*H23/1000,"-") -> 5.343675452 | J23: =IFERROR(MROUND(IF(G23=$O$12,Calculations!AD14,"-"),5),"-") -> 795 | K23: =IFERROR(J23/I23,"-") -> 148.7740053 | L23: =IFERROR(INDEX(MasterTable[],MATCH(A23,MasterTable[PF+CR],0),COLUMN(MasterTable[Max Current])),"-") -> 2100 | M23: =IFERROR(INDEX(MasterTable[],MATCH(Simulator!E23,MasterTable[P/N],0),COLUMN(MasterTable[Typical Current])),"-") -> 1050 | N23: =IFERROR(INDEX(MasterTable[],MATCH(Simulator!E23,MasterTable[P/N],0),COLUMN(MasterTable[Typical Lumens])),"-") -> 3670 | O23: =IFERROR(IF(G23,Calculations!F14,"-"),"-") -> 25.69467781
A24: =D24&"-"&F24&"-"&K$6 -> V22-G-40G | D24: V22 | E24: =IFERROR(INDEX(MasterTable[],MATCH(A24,MasterTable[PF+CR],0),7),"-") -> - | F24: G | G24: =IF(E24="-","-",(IF(L24<O$12,"-",O$12))) -> - | H24: =IFERROR(IF(G24,Calculations!AX15,"-"),"-") -> - | I24: - | J24: =IFERROR(MROUND(IF(G24=$O$12,Calculations!AD15,"-"),5),"-") -> - | K24: - | L24: =IFERROR(INDEX(MasterTable[],MATCH(A24,MasterTable[PF+CR],0),COLUMN(MasterTable[Max Current])),"-") -> - | M24: =IFERROR(INDEX(MasterTable[],MATCH(Simulator!E24,MasterTable[P/N],0),COLUMN(MasterTable[Typical Current])),"-") -> - | N24: =IFERROR(INDEX(MasterTable[],MATCH(Simulator!E24,MasterTable[P/N],0),COLUMN(MasterTable[Typical Lumens])),"-") -> - | O24: =IFERROR(IF(G24,Calculations!F15,"-"),"-") -> -
A26: =D26&C26&"-"&K$6&F26 -> Vero 10-40GB | D26: Vero 10 | E26: =IFERROR(INDEX(MasterTable[],MATCH(A26,MasterTable[PF+CR],0),7),"-") -> BXRC-40G1000-B-2x | F26: B | G26: =IF(E26="-","-",(IF(L26<O$12,"-",O$12))) -> 200 | H26: =IFERROR(IF(G26,Calculations!AX20,"-"),"-") -> 25.23904 | I26: =IFERROR(G26*H26/1000,"-") -> 5.047808 | J26: =IFERROR(MROUND(IF(G26=$O$12,Calculations!AD20,"-"),5),"-") -> 645 | K26: =IFERROR(J26/I26,"-") -> 127.7782356 | L26: =IFERROR(INDEX(MasterTable[],MATCH(A26,MasterTable[PF+CR],0),COLUMN(MasterTable[Max Current])),"-") -> 700 | M26: =IFERROR(INDEX(MasterTable[],MATCH(Simulator!E26,MasterTable[P/N],0),COLUMN(MasterTable[Typical Current])),"-") -> 350 | N26: =IFERROR(INDEX(MasterTable[],MATCH(Simulator!E26,MasterTable[P/N],0),COLUMN(MasterTable[Typical Lumens])),"-") -> 1076 | O26: =IFERROR(IF(G26,Calculations!F20,"-"),"-") -> 27.37246976
A27: =D27&C27&"-"&K$6&F27 -> Vero 13-40GC | D27: Vero 13 | E27: =IFERROR(INDEX(MasterTable[],MATCH(A27,MasterTable[PF+CR],0),7),"-") -> BXRC-40G2000-C-2x | F27: C | G27: =IF(E27="-","-",(IF(L27<O$12,"-",O$12))) -> 200 | H27: =IFERROR(IF(G27,Calculations!AX21,"-"),"-") -> 30.36421229 | I27: =IFERROR(G27*H27/1000,"-") -> 6.072842458 | J27: =IFERROR(MROUND(IF(G27=$O$12,Calculations!AD21,"-"),5),"-") -> 820 | K27: =IFERROR(J27/I27,"-") -> 135.027379 | L27: =IFERROR(INDEX(MasterTable[],MATCH(A27,MasterTable[PF+CR],0),COLUMN(MasterTable[Max Current])),"-") -> 1050 | M27: =IFERROR(INDEX(MasterTable[],MATCH(Simulator!E27,MasterTable[P/N],0),COLUMN(MasterTable[Typical Current])),"-") -> 500 | N27: =IFERROR(INDEX(MasterTable[],MATCH(Simulator!E27,MasterTable[P/N],0),COLUMN(MasterTable[Typical Lumens])),"-") -> 1900 | O27: =IFERROR(IF(G27,Calculations!F21,"-"),"-") -> 26.33602534
A28: =D28&C28&"-"&K$6&F28 -> Vero 18-40GF | D28: Vero 18 | E28: =IFERROR(INDEX(MasterTable[],MATCH(A28,MasterTable[PF+CR],0),7),"-") -> BXRC-40G4000-F-2x | F28: F | G28: =IF(E28="-","-",(IF(L28<O$12,"-",O$12))) -> 200 | H28: =IFERROR(IF(G28,Calculations!AX22,"-"),"-") -> 26.71837726 | I28: =IFERROR(G28*H28/1000,"-") -> 5.343675452 | J28: =IFERROR(MROUND(IF(G28=$O$12,Calculations!AD22,"-"),5),"-") -> 795 | K28: =IFERROR(J28/I28,"-") -> 148.7740053 | L28: =IFERROR(INDEX(MasterTable[],MATCH(A28,MasterTable[PF+CR],0),COLUMN(MasterTable[Max Current])),"-") -> 2100 | M28: =IFERROR(INDEX(MasterTable[],MATCH(Simulator!E28,MasterTable[P/N],0),COLUMN(MasterTable[Typical Current])),"-") -> 1050 | N28: =IFERROR(INDEX(MasterTable[],MATCH(Simulator!E28,MasterTable[P/N],0),COLUMN(MasterTable[Typical Lumens])),"-") -> 3670 | O28: =IFERROR(IF(G28,Calculations!F22,"-"),"-") -> 25.69467781
A29: =D29&C29&"-"&K$6&F29 -> Vero 29-40GL | D29: Vero 29 | E29: =IFERROR(INDEX(MasterTable[],MATCH(A29,MasterTable[PF+CR],0),7),"-") -> BXRC-40G10K0-L-2x | F29: L | G29: =IF(E29="-","-",(IF(L29<O$12,"-",O$12))) -> 200 | H29: =IFERROR(IF(G29,Calculations!AX23,"-"),"-") -> 33.66243269 | I29: =IFERROR(G29*H29/1000,"-") -> 6.732486538 | J29: =IFERROR(MROUND(IF(G29=$O$12,Calculations!AD23,"-"),5),"-") -> 1040 | K29: =IFERROR(J29/I29,"-") -> 154.4748726 | L29: =IFERROR(INDEX(MasterTable[],MATCH(A29,MasterTable[PF+CR],0),COLUMN(MasterTable[Max Current])),"-") -> 4200 | M29: =IFERROR(INDEX(MasterTable[],MATCH(Simulator!E29,MasterTable[P/N],0),COLUMN(MasterTable[Typical Current])),"-") -> 2100 | N29: =IFERROR(INDEX(MasterTable[],MATCH(Simulator!E29,MasterTable[P/N],0),COLUMN(MasterTable[Typical Lumens])),"-") -> 9415 | O29: =IFERROR(IF(G29,Calculations!F23,"-"),"-") -> 25.40394919
A31: =D31&C31&"-"&K$6&F31 -> H6-40GC | D31: H6 | E31: =IFERROR(INDEX(MasterTable[],MATCH(A31,MasterTable[PF+CR],0),7),"-") -> - | F31: C | G31: =IF(E31="-","-",(IF(L31<O$12,"-",O$12))) -> - | H31: =IFERROR(IF(G31,Calculations!AX28,"-"),"-") -> - | I31: =IFERROR(G31*H31/1000,"-") -> - | J31: =IFERROR(MROUND(IF(G31=$O$12,Calculations!AD28,"-"),5),"-") -> - | K31: =IFERROR(J31/I31,"-") -> - | L31: =IFERROR(INDEX(MasterTable[],MATCH(A31,MasterTable[PF+CR],0),COLUMN(MasterTable[Max Current])),"-") -> - | M31: =IFERROR(INDEX(MasterTable[],MATCH(Simulator!E31,MasterTable[P/N],0),COLUMN(MasterTable[Typical Current])),"-") -> - | N31: =IFERROR(INDEX(MasterTable[],MATCH(Simulator!E31,MasterTable[P/N],0),COLUMN(MasterTable[Typical Lumens])),"-") -> - | O31: =IFERROR(IF(G31,Calculations!F28,"-"),"-") -> -
A32: =D32&C32&"-"&K$6&F32 -> H9-40GD | D32: H9 | E32: =IFERROR(INDEX(MasterTable[],MATCH(A32,MasterTable[PF+CR],0),7),"-") -> - | F32: D | G32: =IF(E32="-","-",(IF(L32<O$12,"-",O$12))) -> - | H32: =IFERROR(IF(G32,Calculations!AX29,"-"),"-") -> - | I32: =IFERROR(G32*H32/1000,"-") -> - | J32: =IFERROR(MROUND(IF(G32=$O$12,Calculations!AD29,"-"),5),"-") -> - | K32: =IFERROR(J32/I32,"-") -> - | L32: =IFERROR(INDEX(MasterTable[],MATCH(A32,MasterTable[PF+CR],0),COLUMN(MasterTable[Max Current])),"-") -> - | M32: =IFERROR(INDEX(MasterTable[],MATCH(Simulator!E32,MasterTable[P/N],0),COLUMN(MasterTable[Typical Current])),"-") -> - | N32: =IFERROR(INDEX(MasterTable[],MATCH(Simulator!E32,MasterTable[P/N],0),COLUMN(MasterTable[Typical Lumens])),"-") -> - | O32: =IFERROR(IF(G32,Calculations!F29,"-"),"-") -> -
A33: H12-40GG | D33: H12 | E33: =IFERROR(INDEX(MasterTable[],MATCH(A33,MasterTable[PF+CR],0),7),"-") -> - | F33: G | G33: =IF(E33="-","-",(IF(L33<O$12,"-",O$12))) -> - | H33: =IFERROR(IF(G33,Calculations!AX30,"-"),"-") -> - | I33: =IFERROR(G33*H33/1000,"-") -> - | J33: =IFERROR(MROUND(IF(G33=$O$12,Calculations!AD30,"-"),5),"-") -> - | K33: =IFERROR(J33/I33,"-") -> - | L33: =IFERROR(INDEX(MasterTable[],MATCH(A33,MasterTable[PF+CR],0),COLUMN(MasterTable[Max Current])),"-") -> - | M33: =IFERROR(INDEX(MasterTable[],MATCH(Simulator!E33,MasterTable[P/N],0),COLUMN(MasterTable[Typical Current])),"-") -> - | N33: =IFERROR(INDEX(MasterTable[],MATCH(Simulator!E33,MasterTable[P/N],0),COLUMN(MasterTable[Typical Lumens])),"-") -> - | O33: =IFERROR(IF(G33,Calculations!F30,"-"),"-") -> -
A34: H15-40GJ | D34: H15 | E34: =IFERROR(INDEX(MasterTable[],MATCH(A34,MasterTable[PF+CR],0),7),"-") -> - | F34: J | G34: - | H34: =IFERROR(IF(G34,Calculations!AX31,"-"),"-") -> - | I34: - | J34: =IFERROR(MROUND(IF(G34=$O$12,Calculations!AD31,"-"),5),"-") -> - | K34: - | L34: =IFERROR(INDEX(MasterTable[],MATCH(A34,MasterTable[PF+CR],0),COLUMN(MasterTable[Max Current])),"-") -> - | M34: =IFERROR(INDEX(MasterTable[],MATCH(Simulator!E34,MasterTable[P/N],0),COLUMN(MasterTable[Typical Current])),"-") -> - | N34: =IFERROR(INDEX(MasterTable[],MATCH(Simulator!E34,MasterTable[P/N],0),COLUMN(MasterTable[Typical Lumens])),"-") -> - | O34: =IFERROR(IF(G34,Calculations!F31,"-"),"-") -> -
D37: Drive Current Needed for Required Lumens | O37: Section 3
D38: Calculate drive current required for chosen lumen output | N38: ENTER REQUIRED LUMENS: | O38: 40
D39: V Series & Vero Series | R39: Efficacy (lm/W)
D40: Use this table for new projects
D41: =D14 -> Product | E41: =E14 -> Part Number | F41: Config | G41: =G14 -> Drive Current (mA) | H41: Voltage (V) | I41: Power (W) | J41: Lumen @ Case = 25°C | K41: Efficacy @ Case = 25°C | L41: Max Drive Current (mA) | M41: Typical Current (mA) | N41: Typical Lumens | O41: Tj (°C)
A42: =D42&"-"&F42&"-"&K$6 -> V6-AF-40G | D42: V6 | E42: =IFERROR(INDEX(MasterTable[],MATCH(A42,MasterTable[PF+CR],0),7),"-") -> - | F42: AF | G42: =IFERROR(MROUND(IF(OR(E42="-",Calculations!V36>(L42+1)),"-",Calculations!V36),5),"-") -> - | H42: =IFERROR(IF(G42,Calculations!AX36,"-"),"-") -> - | I42: =IFERROR(G42*H42/1000,"-") -> - | J42: =IFERROR(MROUND(IF(G42,Calculations!AC36*N42,"-"),5),"-") -> - | K42: =IFERROR(J42/I42,"-") -> - | L42: =IFERROR(INDEX(MasterTable[],MATCH(A42,MasterTable[PF+CR],0),COLUMN(MasterTable[Max Current])),"-") -> - | M42: =IFERROR(INDEX(MasterTable[],MATCH(Simulator!E42,MasterTable[P/N],0),COLUMN(MasterTable[Typical Current])),"-") -> - | N42: =IFERROR(INDEX(MasterTable[],MATCH(Simulator!E42,MasterTable[P/N],0),COLUMN(MasterTable[Typical Lumens])),"-") -> - | O42: =IFERROR(IF(G42,Calculations!F36,"-"),"-") -> -
A43: =D43&"-"&F43&"-"&K$6 -> V6-BC-40G | D43: V6 | E43: =IFERROR(INDEX(MasterTable[],MATCH(A43,MasterTable[PF+CR],0),7),"-") -> - | F43: BC | G43: =IFERROR(MROUND(IF(OR(E43="-",Calculations!V37>(L43+1)),"-",Calculations!V37),5),"-") -> - | H43: =IFERROR(IF(G43,Calculations!AX37,"-"),"-") -> - | I43: =IFERROR(G43*H43/1000,"-") -> - | J43: =IFERROR(MROUND(IF(G43,Calculations!AC37*N43,"-"),5),"-") -> - | K43: =IFERROR(J43/I43,"-") -> - | L43: =IFERROR(INDEX(MasterTable[],MATCH(A43,MasterTable[PF+CR],0),COLUMN(MasterTable[Max Current])),"-") -> - | M43: =IFERROR(INDEX(MasterTable[],MATCH(Simulator!E43,MasterTable[P/N],0),COLUMN(MasterTable[Typical Current])),"-") -> - | N43: =IFERROR(INDEX(MasterTable[],MATCH(Simulator!E43,MasterTable[P/N],0),COLUMN(MasterTable[Typical Lumens])),"-") -> - | O43: =IFERROR(IF(G43,Calculations!F37,"-"),"-") -> -
A44: V8-AH-40G | D44: V8 | E44: =IFERROR(INDEX(MasterTable[],MATCH(A44,MasterTable[PF+CR],0),7),"-") -> - | F44: AH | G44: =IFERROR(MROUND(IF(OR(E44="-",Calculations!V38>(L44+1)),"-",Calculations!V38),5),"-") -> - | H44: =IFERROR(IF(G44,Calculations!AX38,"-"),"-") -> - | I44: - | J44: =IFERROR(MROUND(IF(G44,Calculations!AC38*N44,"-"),5),"-") -> - | K44: - | L44: =IFERROR(INDEX(MasterTable[],MATCH(A44,MasterTable[PF+CR],0),COLUMN(MasterTable[Max Current])),"-") -> - | M44: =IFERROR(INDEX(MasterTable[],MATCH(Simulator!E44,MasterTable[P/N],0),COLUMN(MasterTable[Typical Current])),"-") -> - | N44: =IFERROR(INDEX(MasterTable[],MATCH(Simulator!E44,MasterTable[P/N],0),COLUMN(MasterTable[Typical Lumens])),"-") -> - | O44: =IFERROR(IF(G44,Calculations!F38,"-"),"-") -> -
A45: V8-AL-40G | D45: V8 | E45: =IFERROR(INDEX(MasterTable[],MATCH(A45,MasterTable[PF+CR],0),7),"-") -> BXRE-40G0800-A-2x | F45: AL | G45: =IFERROR(MROUND(IF(OR(E45="-",Calculations!V39>(L45+1)),"-",Calculations!V39),5),"-") -> 10 | H45: =IFERROR(IF(G45,Calculations!AX39,"-"),"-") -> 35.6 | I45: 0.356 | J45: =IFERROR(MROUND(IF(G45,Calculations!AC39*N45,"-"),5),"-") -> 40 | K45: 112.3595506 | L45: =IFERROR(INDEX(MasterTable[],MATCH(A45,MasterTable[PF+CR],0),COLUMN(MasterTable[Max Current])),"-") -> 350 | M45: =IFERROR(INDEX(MasterTable[],MATCH(Simulator!E45,MasterTable[P/N],0),COLUMN(MasterTable[Typical Current])),"-") -> 175 | N45: =IFERROR(INDEX(MasterTable[],MATCH(Simulator!E45,MasterTable[P/N],0),COLUMN(MasterTable[Typical Lumens])),"-") -> 716 | O45: =IFERROR(IF(G45,Calculations!F39,"-"),"-") -> 25.22014012
A46: V8-BF-40G | D46: V8 | E46: =IFERROR(INDEX(MasterTable[],MATCH(A46,MasterTable[PF+CR],0),7),"-") -> BXRE-40G0800-B-2x | F46: BF | G46: =IFERROR(MROUND(IF(OR(E46="-",Calculations!V40>(L46+1)),"-",Calculations!V40),5),"-") -> 15 | H46: =IFERROR(IF(G46,Calculations!AX40,"-"),"-") -> 17.8 | I46: 0.267 | J46: =IFERROR(MROUND(IF(G46,Calculations!AC40*N46,"-"),5),"-") -> 40 | K46: 149.8127341 | L46: =IFERROR(INDEX(MasterTable[],MATCH(A46,MasterTable[PF+CR],0),COLUMN(MasterTable[Max Current])),"-") -> 700 | M46: =IFERROR(INDEX(MasterTable[],MATCH(Simulator!E46,MasterTable[P/N],0),COLUMN(MasterTable[Typical Current])),"-") -> 350 | N46: =IFERROR(INDEX(MasterTable[],MATCH(Simulator!E46,MasterTable[P/N],0),COLUMN(MasterTable[Typical Lumens])),"-") -> 716 | O46: =IFERROR(IF(G46,Calculations!F40,"-"),"-") -> 25.16542535
A47: V10-BI-40G | D47: V10 | E47: =IFERROR(INDEX(MasterTable[],MATCH(A47,MasterTable[PF+CR],0),7),"-") -> BXRE-40G1000-B-2x | F47: BI | G47: =IFERROR(MROUND(IF(OR(E47="-",Calculations!V41>(L47+1)),"-",Calculations!V41),5),"-") -> 10 | H47: =IFERROR(IF(G47,Calculations!AX41,"-"),"-") -> 26.5 | I47: 0.265 | J47: =IFERROR(MROUND(IF(G47,Calculations!AC41*N47,"-"),5),"-") -> 40 | K47: 150.9433962 | L47: =IFERROR(INDEX(MasterTable[],MATCH(A47,MasterTable[PF+CR],0),COLUMN(MasterTable[Max Current])),"-") -> 700 | M47: =IFERROR(INDEX(MasterTable[],MATCH(Simulator!E47,MasterTable[P/N],0),COLUMN(MasterTable[Typical Current])),"-") -> 350 | N47: =IFERROR(INDEX(MasterTable[],MATCH(Simulator!E47,MasterTable[P/N],0),COLUMN(MasterTable[Typical Lumens])),"-") -> 1076 | O47: =IFERROR(IF(G47,Calculations!F41,"-"),"-") -> 25.10765671
A48: V13-C-40G | D48: V13 | E48: =IFERROR(INDEX(MasterTable[],MATCH(A48,MasterTable[PF+CR],0),7),"-") -> BXRE-40G2000-C-2x | F48: C | G48: =IFERROR(MROUND(IF(OR(E48="-",Calculations!V42>(L48+1)),"-",Calculations!V42),5),"-") -> 5 | H48: =IFERROR(IF(G48,Calculations!AX42,"-"),"-") -> 32.3 | I48: =IFERROR(G48*H48/1000,"-") -> 0.1615 | J48: =IFERROR(MROUND(IF(G48,Calculations!AC42*N48,"-"),5),"-") -> 40 | K48: =IFERROR(J48/I48,"-") -> 247.6780186 | L48: =IFERROR(INDEX(MasterTable[],MATCH(A48,MasterTable[PF+CR],0),COLUMN(MasterTable[Max Current])),"-") -> 1050 | M48: =IFERROR(INDEX(MasterTable[],MATCH(Simulator!E48,MasterTable[P/N],0),COLUMN(MasterTable[Typical Current])),"-") -> 500 | N48: =IFERROR(INDEX(MasterTable[],MATCH(Simulator!E48,MasterTable[P/N],0),COLUMN(MasterTable[Typical Lumens])),"-") -> 1900 | O48: =IFERROR(IF(G48,Calculations!F42,"-"),"-") -> 25.03104642
A49: V15-DL-40G | D49: V15 | E49: =IFERROR(INDEX(MasterTable[],MATCH(A49,MasterTable[PF+CR],0),7),"-") -> BXRE-40G3001-D-2x | F49: DL | G49: =IFERROR(MROUND(IF(OR(E49="-",Calculations!V43>(L49+1)),"-",Calculations!V43),5),"-") -> 10 | H49: =IFERROR(IF(G49,Calculations!AX43,"-"),"-") -> 36 | I49: 0.36 | J49: =IFERROR(MROUND(IF(G49,Calculations!AC43*N49,"-"),5),"-") -> 40 | K49: 111.1111111 | L49: =IFERROR(INDEX(MasterTable[],MATCH(A49,MasterTable[PF+CR],0),COLUMN(MasterTable[Max Current])),"-") -> 1400 | M49: =IFERROR(INDEX(MasterTable[],MATCH(Simulator!E49,MasterTable[P/N],0),COLUMN(MasterTable[Typical Current])),"-") -> 700 | N49: =IFERROR(INDEX(MasterTable[],MATCH(Simulator!E49,MasterTable[P/N],0),COLUMN(MasterTable[Typical Lumens])),"-") -> 2822 | O49: =IFERROR(IF(G49,Calculations!F43,"-"),"-") -> 25.05008471
A50: V18-F-40G | D50: V18 | E50: =IFERROR(INDEX(MasterTable[],MATCH(A50,MasterTable[PF+CR],0),7),"-") -> BXRE-40G4000-F-2x | F50: F | G50: =IFERROR(MROUND(IF(OR(E50="-",Calculations!V44>(L50+1)),"-",Calculations!V44),5),"-") -> 5 | H50: =IFERROR(IF(G50,Calculations!AX44,"-"),"-") -> 29.5 | I50: 0.1475 | J50: =IFERROR(MROUND(IF(G50,Calculations!AC44*N50,"-"),5),"-") -> 40 | K50: 271.1864407 | L50: =IFERROR(INDEX(MasterTable[],MATCH(A50,MasterTable[PF+CR],0),COLUMN(MasterTable[Max Current])),"-") -> 2100 | M50: =IFERROR(INDEX(MasterTable[],MATCH(Simulator!E50,MasterTable[P/N],0),COLUMN(MasterTable[Typical Current])),"-") -> 1050 | N50: =IFERROR(INDEX(MasterTable[],MATCH(Simulator!E50,MasterTable[P/N],0),COLUMN(MasterTable[Typical Lumens])),"-") -> 3670 | O50: =IFERROR(IF(G50,Calculations!F44,"-"),"-") -> 25.01661724
A51: =D51&"-"&F51&"-"&K$6 -> V22-G-40G | D51: V22 | E51: =IFERROR(INDEX(MasterTable[],MATCH(A51,MasterTable[PF+CR],0),7),"-") -> - | F51: G | G51: =IFERROR(MROUND(IF(OR(E51="-",Calculations!V45>(L51+1)),"-",Calculations!V45),5),"-") -> - | H51: =IFERROR(IF(G51,Calculations!AX45,"-"),"-") -> - | I51: =IFERROR(G51*H51/1000,"-") -> - | J51: =IFERROR(MROUND(IF(G51,Calculations!AC45*N51,"-"),5),"-") -> - | K51: =IFERROR(J51/I51,"-") -> - | L51: =IFERROR(INDEX(MasterTable[],MATCH(A51,MasterTable[PF+CR],0),COLUMN(MasterTable[Max Current])),"-") -> - | M51: =IFERROR(INDEX(MasterTable[],MATCH(Simulator!E51,MasterTable[P/N],0),COLUMN(MasterTable[Typical Current])),"-") -> - | N51: =IFERROR(INDEX(MasterTable[],MATCH(Simulator!E51,MasterTable[P/N],0),COLUMN(MasterTable[Typical Lumens])),"-") -> - | O51: =IFERROR(IF(G51,Calculations!F45,"-"),"-") -> -
A53: =A26 -> Vero 10-40GB | D53: Vero 10 | E53: =IFERROR(INDEX(MasterTable[],MATCH(A53,MasterTable[PF+CR],0),7),"-") -> BXRC-40G1000-B-2x | F53: B | G53: =IFERROR(MROUND(IF(Calculations!V50>(L53+1),"-",Calculations!V50),5),"-") -> 10 | H53: =IFERROR(IF(G53,Calculations!AX50,"-"),"-") -> 26.5 | I53: =IFERROR(G53*H53/1000,"-") -> 0.265 | J53: =IFERROR(MROUND(IF(G53,Calculations!AC50*N53,"-"),5),"-") -> 40 | K53: =IFERROR(J53/I53,"-") -> 150.9433962 | L53: =IFERROR(INDEX(MasterTable[],MATCH(A53,MasterTable[PF+CR],0),COLUMN(MasterTable[Max Current])),"-") -> 700 | M53: =IFERROR(INDEX(MasterTable[],MATCH(Simulator!E53,MasterTable[P/N],0),COLUMN(MasterTable[Typical Current])),"-") -> 350 | N53: =IFERROR(INDEX(MasterTable[],MATCH(Simulator!E53,MasterTable[P/N],0),COLUMN(MasterTable[Typical Lumens])),"-") -> 1076 | O53: =IFERROR(IF(G53,Calculations!F50,"-"),"-") -> 25.10764953
A54: =A27 -> Vero 13-40GC | D54: Vero 13 | E54: =IFERROR(INDEX(MasterTable[],MATCH(A54,MasterTable[PF+CR],0),7),"-") -> BXRC-40G2000-C-2x | F54: C | G54: =IFERROR(MROUND(IF(Calculations!V51>(L54+1),"-",Calculations!V51),5),"-") -> 5 | H54: =IFERROR(IF(G54,Calculations!AX51,"-"),"-") -> 32.3 | I54: =IFERROR(G54*H54/1000,"-") -> 0.1615 | J54: =IFERROR(MROUND(IF(G54,Calculations!AC51*N54,"-"),5),"-") -> 40 | K54: =IFERROR(J54/I54,"-") -> 247.6780186 | L54: =IFERROR(INDEX(MasterTable[],MATCH(A54,MasterTable[PF+CR],0),COLUMN(MasterTable[Max Current])),"-") -> 1050 | M54: =IFERROR(INDEX(MasterTable[],MATCH(Simulator!E54,MasterTable[P/N],0),COLUMN(MasterTable[Typical Current])),"-") -> 500 | N54: =IFERROR(INDEX(MasterTable[],MATCH(Simulator!E54,MasterTable[P/N],0),COLUMN(MasterTable[Typical Lumens])),"-") -> 1900 | O54: =IFERROR(IF(G54,Calculations!F51,"-"),"-") -> 25.03104642
A55: =A28 -> Vero 18-40GF | D55: Vero 18 | E55: =IFERROR(INDEX(MasterTable[],MATCH(A55,MasterTable[PF+CR],0),7),"-") -> BXRC-40G4000-F-2x | F55: F | G55: =IFERROR(MROUND(IF(Calculations!V52>(L55+1),"-",Calculations!V52),5),"-") -> 5 | H55: =IFERROR(IF(G55,Calculations!AX52,"-"),"-") -> 29.5 | I55: =IFERROR(G55*H55/1000,"-") -> 0.1475 | J55: =IFERROR(MROUND(IF(G55,Calculations!AC52*N55,"-"),5),"-") -> 40 | K55: =IFERROR(J55/I55,"-") -> 271.1864407 | L55: =IFERROR(INDEX(MasterTable[],MATCH(A55,MasterTable[PF+CR],0),COLUMN(MasterTable[Max Current])),"-") -> 2100 | M55: =IFERROR(INDEX(MasterTable[],MATCH(Simulator!E55,MasterTable[P/N],0),COLUMN(MasterTable[Typical Current])),"-") -> 1050 | N55: =IFERROR(INDEX(MasterTable[],MATCH(Simulator!E55,MasterTable[P/N],0),COLUMN(MasterTable[Typical Lumens])),"-") -> 3670 | O55: =IFERROR(IF(G55,Calculations!F52,"-"),"-") -> 25.01661724
A56: =A29 -> Vero 29-40GL | D56: Vero 29 | E56: =IFERROR(INDEX(MasterTable[],MATCH(A56,MasterTable[PF+CR],0),7),"-") -> BXRC-40G10K0-L-2x | F56: L | G56: =IFERROR(MROUND(IF(Calculations!V53>(L56+1),"-",Calculations!V53),5),"-") -> 10 | H56: =IFERROR(IF(G56,Calculations!AX53,"-"),"-") -> 38 | I56: =IFERROR(G56*H56/1000,"-") -> 0.38 | J56: =IFERROR(MROUND(IF(G56,Calculations!AC53*N56,"-"),5),"-") -> 40 | K56: =IFERROR(J56/I56,"-") -> 105.2631579 | L56: =IFERROR(INDEX(MasterTable[],MATCH(A56,MasterTable[PF+CR],0),COLUMN(MasterTable[Max Current])),"-") -> 4200 | M56: =IFERROR(INDEX(MasterTable[],MATCH(Simulator!E56,MasterTable[P/N],0),COLUMN(MasterTable[Typical Current])),"-") -> 2100 | N56: =IFERROR(INDEX(MasterTable[],MATCH(Simulator!E56,MasterTable[P/N],0),COLUMN(MasterTable[Typical Lumens])),"-") -> 9415 | O56: =IFERROR(IF(G56,Calculations!F53,"-"),"-") -> 25.01970308
A58: =A31 -> H6-40GC | D58: H6 | E58: =IFERROR(INDEX(MasterTable[],MATCH(A58,MasterTable[PF+CR],0),7),"-") -> - | F58: C | G58: =IFERROR(MROUND(IF(Calculations!V58>(L58+1),"-",Calculations!V58),5),"-") -> - | H58: =IFERROR(IF(G58,Calculations!AX58,"-"),"-") -> - | I58: =IFERROR(G58*H58/1000,"-") -> - | J58: =IFERROR(MROUND(IF(G58,Calculations!AC58*N58,"-"),5),"-") -> - | K58: =IFERROR(J58/I58,"-") -> - | L58: =IFERROR(INDEX(MasterTable[],MATCH(A58,MasterTable[PF+CR],0),COLUMN(MasterTable[Max Current])),"-") -> - | M58: =IFERROR(INDEX(MasterTable[],MATCH(Simulator!E58,MasterTable[P/N],0),COLUMN(MasterTable[Typical Current])),"-") -> - | N58: =IFERROR(INDEX(MasterTable[],MATCH(Simulator!E58,MasterTable[P/N],0),COLUMN(MasterTable[Typical Lumens])),"-") -> - | O58: =IFERROR(IF(G58,Calculations!F58,"-"),"-") -> -
A59: =A32 -> H9-40GD | D59: H9 | E59: =IFERROR(INDEX(MasterTable[],MATCH(A59,MasterTable[PF+CR],0),7),"-") -> - | F59: D | G59: =IFERROR(MROUND(IF(Calculations!V59>(L59+1),"-",Calculations!V59),5),"-") -> - | H59: =IFERROR(IF(G59,Calculations!AX59,"-"),"-") -> - | I59: - | J59: =IFERROR(MROUND(IF(G59,Calculations!AC59*N59,"-"),5),"-") -> - | K59: - | L59: =IFERROR(INDEX(MasterTable[],MATCH(A59,MasterTable[PF+CR],0),COLUMN(MasterTable[Max Current])),"-") -> - | M59: =IFERROR(INDEX(MasterTable[],MATCH(Simulator!E59,MasterTable[P/N],0),COLUMN(MasterTable[Typical Current])),"-") -> - | N59: =IFERROR(INDEX(MasterTable[],MATCH(Simulator!E59,MasterTable[P/N],0),COLUMN(MasterTable[Typical Lumens])),"-") -> - | O59: =IFERROR(IF(G59,Calculations!F59,"-"),"-") -> -
A60: =A33 -> H12-40GG | D60: H12 | E60: =IFERROR(INDEX(MasterTable[],MATCH(A60,MasterTable[PF+CR],0),7),"-") -> - | F60: G | G60: =IFERROR(MROUND(IF(Calculations!V60>(L60+1),"-",Calculations!V60),5),"-") -> - | H60: =IFERROR(IF(G60,Calculations!AX60,"-"),"-") -> - | I60: =IFERROR(G60*H60/1000,"-") -> - | J60: =IFERROR(MROUND(IF(G60,Calculations!AC60*N60,"-"),5),"-") -> - | K60: =IFERROR(J60/I60,"-") -> - | L60: =IFERROR(INDEX(MasterTable[],MATCH(A60,MasterTable[PF+CR],0),COLUMN(MasterTable[Max Current])),"-") -> - | M60: =IFERROR(INDEX(MasterTable[],MATCH(Simulator!E60,MasterTable[P/N],0),COLUMN(MasterTable[Typical Current])),"-") -> - | N60: =IFERROR(INDEX(MasterTable[],MATCH(Simulator!E60,MasterTable[P/N],0),COLUMN(MasterTable[Typical Lumens])),"-") -> - | O60: =IFERROR(IF(G60,Calculations!F60,"-"),"-") -> -
A61: H15-40GJ | D61: H15 | E61: =IFERROR(INDEX(MasterTable[],MATCH(A61,MasterTable[PF+CR],0),7),"-") -> - | F61: J | G61: =IFERROR(MROUND(IF(Calculations!V61>(L61+1),"-",Calculations!V61),5),"-") -> - | H61: =IFERROR(IF(G61,Calculations!AX61,"-"),"-") -> - | I61: - | J61: =IFERROR(MROUND(IF(G61,Calculations!AC61*N61,"-"),5),"-") -> - | K61: - | L61: =IFERROR(INDEX(MasterTable[],MATCH(A61,MasterTable[PF+CR],0),COLUMN(MasterTable[Max Current])),"-") -> - | M61: =IFERROR(INDEX(MasterTable[],MATCH(Simulator!E61,MasterTable[P/N],0),COLUMN(MasterTable[Typical Current])),"-") -> - | N61: =IFERROR(INDEX(MasterTable[],MATCH(Simulator!E61,MasterTable[P/N],0),COLUMN(MasterTable[Typical Lumens])),"-") -> - | O61: =IFERROR(IF(G61,Calculations!F61,"-"),"-") -> -
C64: © 2014 Bridgelux, Inc.

Sheet Calculations (hidden)
A3: Calculations using Current Input | C3: Converting Tc to Tj | H3: Converting Tj to Tc | Q3: Calculating Flux | AF3: Calculating Voltage w/ Tc | AU3: Calculating Voltage w/ Tj
C4: Tj = Tc + Power*Thermal Resistance | H4: Tc = Tj - Power*Thermal Resistance | Q4: F@Tc&I = Ft*Fr@I*Fr@Tc | AF4: Vf@Tc&I = Vf@I + Vf@Tc-Vft | AU4: Vf@Tj&I = Vf@I + Vf@Tj Modifier
C5: Tc | D5: Power | E5: Thermal Resistance | F5: Tc>>Tj | H5: Tj | I5: Power | J5: Thermal Resistance | K5: Tj>>Tc | M5: Tc | N5: Tj | O5: =IF(Simulator!$L$8="Case","Tj","Tc") -> Tj | Q5: Ft | R5: Fr@I Eqn | V5: Fr@I | X5: Fr@Tc Eqn | AB5: Fr@Tc | AC5: F@Tc&I | AE5: 85 DC Factor | AF5: Vft | AH5: Vf@I Eqn | AL5: Vf@I | AM5: Vf@Tc Eqn | AQ5: Vf@Tc | AR5: Vf@Tc&I | AT5: # of Die | AU5: Vf@I | AV5: Vf@Tj Modifier, per Die | AW5: Vf@Tj&I | AX5: Voltage Report
B6: V6 | C6: =IF(Simulator!$L$8="Case",Simulator!$I$8,M6) -> 25 | D6: =Simulator!$O$12*AR6/1000 ->  | E6: =INDEX(MasterTable[],MATCH(Simulator!E15,MasterTable[P/N],0),COLUMN(MasterTable[Thermal Resistance])) ->  | F6: =C6+D6*E6 ->  | H6: =IF(Simulator!$L$8="Case",F6,Simulator!$I$8) ->  | I6: =Simulator!$O$12*AW6/1000 ->  | J6: =E6 ->  | K6: =H6-I6*J6 ->  | M6: =IF(Simulator!$L$8="Case",Simulator!$I$8,K6) -> 25 | N6: =IF(Simulator!$L$8="Case",H6,Simulator!$I$8) ->  | O6: =IF(#REF!="Tj",N6,M6) ->  | Q6: =INDEX(MasterTable[],MATCH(Simulator!E15,MasterTable[P/N],0),COLUMN(MasterTable[Typical Lumens])) ->  | R6: =INDEX(MasterTable[],MATCH(Simulator!$E15,MasterTable[P/N],0),COLUMN(MasterTable[I^3])) ->  | S6: =INDEX(MasterTable[],MATCH(Simulator!$E15,MasterTable[P/N],0),COLUMN(MasterTable[I^2])) ->  | T6: =INDEX(MasterTable[],MATCH(Simulator!$E15,MasterTable[P/N],0),COLUMN(MasterTable[I])) ->  | U6: =INDEX(MasterTable[],MATCH(Simulator!$E15,MasterTable[P/N],0),COLUMN(MasterTable[I0])) ->  | V6: =IF(Simulator!$O$12=Simulator!M15,1,R6*Simulator!$O$12^3+S6*Simulator!$O$12^2+T6*Simulator!$O$12+U6) ->  | W6: =INDEX(MasterTable[],MATCH(Simulator!$E15,MasterTable[P/N],0),COLUMN(MasterTable[F^4])) ->  | X6: =INDEX(MasterTable[],MATCH(Simulator!$E15,MasterTable[P/N],0),COLUMN(MasterTable[F^3])) ->  | Y6: =INDEX(MasterTable[],MATCH(Simulator!$E15,MasterTable[P/N],0),COLUMN(MasterTable[F^2])) ->  | Z6: =INDEX(MasterTable[],MATCH(Simulator!$E15,MasterTable[P/N],0),COLUMN(MasterTable[F])) ->  | AA6: =INDEX(MasterTable[],MATCH(Simulator!$E15,MasterTable[P/N],0),COLUMN(MasterTable[F0])) ->  | AB6: =IF(Simulator!$I$8=85,AE6,W6*M6^4+X6*M6^3+Y6*M6^2+Z6*M6+AA6) ->  | AC6: =Q6*V6*AB6 ->  | AD6: =IF(AND(Simulator!$I$8=85,Simulator!$O$12=Simulator!M15),Q6*AE6,AC6) ->  | AE6: =VLOOKUP(MID(Simulator!E15,6,3),V_6_85DC_Factor,2,FALSE) ->  | AF6: =INDEX(MasterTable[],MATCH(Simulator!$E15,MasterTable[P/N],0),COLUMN(MasterTable[Typical Voltage])) ->  | AG6: =INDEX(MasterTable[],MATCH(Simulator!$E15,MasterTable[P/N],0),COLUMN(MasterTable[V^4])) ->  | AH6: =INDEX(MasterTable[],MATCH(Simulator!$E15,MasterTable[P/N],0),COLUMN(MasterTable[V^3])) ->  | AI6: =INDEX(MasterTable[],MATCH(Simulator!$E15,MasterTable[P/N],0),COLUMN(MasterTable[V^2])) ->  | AJ6: =INDEX(MasterTable[],MATCH(Simulator!$E15,MasterTable[P/N],0),COLUMN(MasterTable[V])) ->  | AK6: =INDEX(MasterTable[],MATCH(Simulator!$E15,MasterTable[P/N],0),COLUMN(MasterTable[V0])) ->  | AL6: =AG6*Simulator!$O$12^4+AH6*Simulator!$O$12^3+AI6*Simulator!$O$12^2+AJ6*Simulator!$O$12+AK6 ->  | AM6: =INDEX(MasterTable[],MATCH(Simulator!$E15,MasterTable[P/N],0),COLUMN(MasterTable[T^3])) ->  | AN6: =INDEX(MasterTable[],MATCH(Simulator!$E15,MasterTable[P/N],0),COLUMN(MasterTable[T^2])) ->  | AO6: =INDEX(MasterTable[],MATCH(Simulator!$E15,MasterTable[P/N],0),COLUMN(MasterTable[T])) ->  | AP6: =INDEX(MasterTable[],MATCH(Simulator!$E15,MasterTable[P/N],0),COLUMN(MasterTable[T0])) ->  | AQ6: =AM6*M6^3+AN6*M6^2+AO6*M6+AP6 ->  | AR6: =AL6+AQ6-AF6 ->  | AT6: =INDEX(MasterTable[],MATCH(Simulator!$E15,MasterTable[P/N],0),COLUMN(MasterTable['# of Die])) ->  | AU6: =AL6 ->  | AV6: =INDEX(Tj_to_Vf6[],MATCH(Simulator!$I$8,Tj_to_Vf6[Vf],1),COLUMN(Tj_to_Vf6[Vf])) -> -0.5 | AW6: =AU6+AV6*AT6 ->  | AX6: =IF(AND(Simulator!$I$8=25,Simulator!$O$12=Simulator!M15),AF6,AR6) -> 
B7: V6 | C7: =IF(Simulator!$L$8="Case",Simulator!$I$8,M7) -> 25 | D7: =Simulator!$O$12*AR7/1000 ->  | E7: =INDEX(MasterTable[],MATCH(Simulator!E16,MasterTable[P/N],0),COLUMN(MasterTable[Thermal Resistance])) ->  | F7: =C7+D7*E7 ->  | H7: =IF(Simulator!$L$8="Case",F7,Simulator!$I$8) ->  | I7: =Simulator!$O$12*AW7/1000 ->  | J7: =E7 ->  | K7: =H7-I7*J7 ->  | M7: =IF(Simulator!$L$8="Case",Simulator!$I$8,K7) -> 25 | N7: =IF(Simulator!$L$8="Case",H7,Simulator!$I$8) ->  | O7: =IF(#REF!="Tj",N7,M7) ->  | Q7: =INDEX(MasterTable[],MATCH(Simulator!E16,MasterTable[P/N],0),COLUMN(MasterTable[Typical Lumens])) ->  | R7: =INDEX(MasterTable[],MATCH(Simulator!$E16,MasterTable[P/N],0),COLUMN(MasterTable[I^3])) ->  | S7: =INDEX(MasterTable[],MATCH(Simulator!$E16,MasterTable[P/N],0),COLUMN(MasterTable[I^2])) ->  | T7: =INDEX(MasterTable[],MATCH(Simulator!$E16,MasterTable[P/N],0),COLUMN(MasterTable[I])) ->  | U7: =INDEX(MasterTable[],MATCH(Simulator!$E16,MasterTable[P/N],0),COLUMN(MasterTable[I0])) ->  | V7: =IF(Simulator!$O$12=Simulator!M16,1,R7*Simulator!$O$12^3+S7*Simulator!$O$12^2+T7*Simulator!$O$12+U7) ->  | W7: =INDEX(MasterTable[],MATCH(Simulator!$E16,MasterTable[P/N],0),COLUMN(MasterTable[F^4])) ->  | X7: =INDEX(MasterTable[],MATCH(Simulator!$E16,MasterTable[P/N],0),COLUMN(MasterTable[F^3])) ->  | Y7: =INDEX(MasterTable[],MATCH(Simulator!$E16,MasterTable[P/N],0),COLUMN(MasterTable[F^2])) ->  | Z7: =INDEX(MasterTable[],MATCH(Simulator!$E16,MasterTable[P/N],0),COLUMN(MasterTable[F])) ->  | AA7: =INDEX(MasterTable[],MATCH(Simulator!$E16,MasterTable[P/N],0),COLUMN(MasterTable[F0])) ->  | AB7: =IF(Simulator!$I$8=85,AE7,W7*M7^4+X7*M7^3+Y7*M7^2+Z7*M7+AA7) ->  | AC7: =Q7*V7*AB7 ->  | AD7: =IF(AND(Simulator!$I$8=85,Simulator!$O$12=Simulator!M16),Q7*AE7,AC7) ->  | AE7: =VLOOKUP(MID(Simulator!E16,6,3),V_6_85DC_Factor,2,FALSE) ->  | AF7: =INDEX(MasterTable[],MATCH(Simulator!$E16,MasterTable[P/N],0),COLUMN(MasterTable[Typical Voltage])) ->  | AG7: =INDEX(MasterTable[],MATCH(Simulator!$E16,MasterTable[P/N],0),COLUMN(MasterTable[V^4])) ->  | AH7: =INDEX(MasterTable[],MATCH(Simulator!$E16,MasterTable[P/N],0),COLUMN(MasterTable[V^3])) ->  | AI7: =INDEX(MasterTable[],MATCH(Simulator!$E16,MasterTable[P/N],0),COLUMN(MasterTable[V^2])) ->  | AJ7: =INDEX(MasterTable[],MATCH(Simulator!$E16,MasterTable[P/N],0),COLUMN(MasterTable[V])) ->  | AK7: =INDEX(MasterTable[],MATCH(Simulator!$E16,MasterTable[P/N],0),COLUMN(MasterTable[V0])) ->  | AL7: =AG7*Simulator!$O$12^4+AH7*Simulator!$O$12^3+AI7*Simulator!$O$12^2+AJ7*Simulator!$O$12+AK7 ->  | AM7: =INDEX(MasterTable[],MATCH(Simulator!$E16,MasterTable[P/N],0),COLUMN(MasterTable[T^3])) ->  | AN7: =INDEX(MasterTable[],MATCH(Simulator!$E16,MasterTable[P/N],0),COLUMN(MasterTable[T^2])) ->  | AO7: =INDEX(MasterTable[],MATCH(Simulator!$E16,MasterTable[P/N],0),COLUMN(MasterTable[T])) ->  | AP7: =INDEX(MasterTable[],MATCH(Simulator!$E16,MasterTable[P/N],0),COLUMN(MasterTable[T0])) ->  | AQ7: =AM7*M7^3+AN7*M7^2+AO7*M7+AP7 ->  | AR7: =AL7+AQ7-AF7 ->  | AT7: =INDEX(MasterTable[],MATCH(Simulator!$E16,MasterTable[P/N],0),COLUMN(MasterTable['# of Die])) ->  | AU7: =AL7 ->  | AV7: =INDEX(Tj_to_Vf6[],MATCH(Simulator!$I$8,Tj_to_Vf6[Vf],1),COLUMN(Tj_to_Vf6[Vf])) -> -0.5 | AW7: =AU7+AV7*AT7 ->  | AX7: =IF(AND(Simulator!$I$8=25,Simulator!$O$12=Simulator!M16),AF7,AR7) -> 
B8: V8 | C8: =IF(Simulator!$L$8="Case",Simulator!$I$8,M8) -> 25 | D8: =Simulator!$O$12*AR8/1000 ->  | E8: =INDEX(MasterTable[],MATCH(Simulator!E17,MasterTable[P/N],0),COLUMN(MasterTable[Thermal Resistance])) ->  | F8: =C8+D8*E8 ->  | H8: =IF(Simulator!$L$8="Case",F8,Simulator!$I$8) ->  | I8: =Simulator!$O$12*AW8/1000 ->  | J8: =E8 ->  | K8: =H8-I8*J8 ->  | M8: =IF(Simulator!$L$8="Case",Simulator!$I$8,K8) -> 25 | N8: =IF(Simulator!$L$8="Case",H8,Simulator!$I$8) ->  | O8: =IF(#REF!="Tj",N8,M8) ->  | Q8: =INDEX(MasterTable[],MATCH(Simulator!E17,MasterTable[P/N],0),COLUMN(MasterTable[Typical Lumens])) ->  | R8: =INDEX(MasterTable[],MATCH(Simulator!$E17,MasterTable[P/N],0),COLUMN(MasterTable[I^3])) ->  | S8: =INDEX(MasterTable[],MATCH(Simulator!$E17,MasterTable[P/N],0),COLUMN(MasterTable[I^2])) ->  | T8: =INDEX(MasterTable[],MATCH(Simulator!$E17,MasterTable[P/N],0),COLUMN(MasterTable[I])) ->  | U8: =INDEX(MasterTable[],MATCH(Simulator!$E17,MasterTable[P/N],0),COLUMN(MasterTable[I0])) ->  | V8: =IF(Simulator!$O$12=Simulator!M17,1,R8*Simulator!$O$12^3+S8*Simulator!$O$12^2+T8*Simulator!$O$12+U8) ->  | W8: =INDEX(MasterTable[],MATCH(Simulator!$E17,MasterTable[P/N],0),COLUMN(MasterTable[F^4])) ->  | X8: =INDEX(MasterTable[],MATCH(Simulator!$E17,MasterTable[P/N],0),COLUMN(MasterTable[F^3])) ->  | Y8: =INDEX(MasterTable[],MATCH(Simulator!$E17,MasterTable[P/N],0),COLUMN(MasterTable[F^2])) ->  | Z8: =INDEX(MasterTable[],MATCH(Simulator!$E17,MasterTable[P/N],0),COLUMN(MasterTable[F])) ->  | AA8: =INDEX(MasterTable[],MATCH(Simulator!$E17,MasterTable[P/N],0),COLUMN(MasterTable[F0])) ->  | AB8: =IF(Simulator!$I$8=85,AE8,W8*M8^4+X8*M8^3+Y8*M8^2+Z8*M8+AA8) ->  | AD8: =IF(AND(Simulator!O17=85,Simulator!$O$12=Simulator!M17),Q8*$AE$13,AC8) ->  | AF8: =INDEX(MasterTable[],MATCH(Simulator!$E17,MasterTable[P/N],0),COLUMN(MasterTable[Typical Voltage])) ->  | AG8: =INDEX(MasterTable[],MATCH(Simulator!$E17,MasterTable[P/N],0),COLUMN(MasterTable[V^4])) ->  | AH8: =INDEX(MasterTable[],MATCH(Simulator!$E17,MasterTable[P/N],0),COLUMN(MasterTable[V^3])) ->  | AI8: =INDEX(MasterTable[],MATCH(Simulator!$E17,MasterTable[P/N],0),COLUMN(MasterTable[V^2])) ->  | AJ8: =INDEX(MasterTable[],MATCH(Simulator!$E17,MasterTable[P/N],0),COLUMN(MasterTable[V])) ->  | AK8: =INDEX(MasterTable[],MATCH(Simulator!$E17,MasterTable[P/N],0),COLUMN(MasterTable[V0])) ->  | AL8: =AG8*Simulator!$O$12^4+AH8*Simulator!$O$12^3+AI8*Simulator!$O$12^2+AJ8*Simulator!$O$12+AK8 ->  | AM8: =INDEX(MasterTable[],MATCH(Simulator!$E17,MasterTable[P/N],0),COLUMN(MasterTable[T^3])) ->  | AN8: =INDEX(MasterTable[],MATCH(Simulator!$E17,MasterTable[P/N],0),COLUMN(MasterTable[T^2])) ->  | AO8: =INDEX(MasterTable[],MATCH(Simulator!$E17,MasterTable[P/N],0),COLUMN(MasterTable[T])) ->  | AP8: =INDEX(MasterTable[],MATCH(Simulator!$E17,MasterTable[P/N],0),COLUMN(MasterTable[T0])) ->  | AT8: =INDEX(MasterTable[],MATCH(Simulator!$E17,MasterTable[P/N],0),COLUMN(MasterTable['# of Die])) ->  | AV8: =INDEX(Tj_to_Vf6[],MATCH(Simulator!$I$8,Tj_to_Vf6[Vf],1),COLUMN(Tj_to_Vf6[Vf])) -> -0.5 | AX8: =IF(AND(Simulator!$I$8=25,Simulator!$O$12=Simulator!M17),AF8,AR8) -> 
B9: V8 | C9: =IF(Simulator!$L$8="Case",Simulator!$I$8,M9) -> 25 | D9: =Simulator!$O$12*AR9/1000 -> 7.2136 | E9: =INDEX(MasterTable[],MATCH(Simulator!E18,MasterTable[P/N],0),COLUMN(MasterTable[Thermal Resistance])) -> 0.71 | F9: =C9+D9*E9 -> 30.121656 | H9: =IF(Simulator!$L$8="Case",F9,Simulator!$I$8) -> 30.121656 | I9: =Simulator!$O$12*AW9/1000 -> 6.0136 | J9: =E9 -> 0.71 | K9: =H9-I9*J9 -> 25.852 | M9: =IF(Simulator!$L$8="Case",Simulator!$I$8,K9) -> 25 | N9: =IF(Simulator!$L$8="Case",H9,Simulator!$I$8) -> 30.121656 | O9: =IF(#REF!="Tj",N9,M9) ->  | Q9: =INDEX(MasterTable[],MATCH(Simulator!E18,MasterTable[P/N],0),COLUMN(MasterTable[Typical Lumens])) -> 716 | R9: =INDEX(MasterTable[],MATCH(Simulator!$E18,MasterTable[P/N],0),COLUMN(MasterTable[I^3])) -> 0 | S9: =INDEX(MasterTable[],MATCH(Simulator!$E18,MasterTable[P/N],0),COLUMN(MasterTable[I^2])) -> -4.104724498e-06 | T9: =INDEX(MasterTable[],MATCH(Simulator!$E18,MasterTable[P/N],0),COLUMN(MasterTable[I])) -> 0.006375931247 | U9: =INDEX(MasterTable[],MATCH(Simulator!$E18,MasterTable[P/N],0),COLUMN(MasterTable[I0])) -> 0.007264776006 | V9: =IF(Simulator!$O$12=Simulator!M18,1,R9*Simulator!$O$12^3+S9*Simulator!$O$12^2+T9*Simulator!$O$12+U9) -> 1.118262046 | W9: =INDEX(MasterTable[],MATCH(Simulator!$E18,MasterTable[P/N],0),COLUMN(MasterTable[F^4])) -> 0 | X9: =INDEX(MasterTable[],MATCH(Simulator!$E18,MasterTable[P/N],0),COLUMN(MasterTable[F^3])) -> 0 | Y9: =INDEX(MasterTable[],MATCH(Simulator!$E18,MasterTable[P/N],0),COLUMN(MasterTable[F^2])) -> -6.624324439e-06 | Z9: =INDEX(MasterTable[],MATCH(Simulator!$E18,MasterTable[P/N],0),COLUMN(MasterTable[F])) -> -0.001127836986 | AA9: =INDEX(MasterTable[],MATCH(Simulator!$E18,MasterTable[P/N],0),COLUMN(MasterTable[F0])) -> 1.030977057 | AB9: =IF(Simulator!$I$8=85,AE9,W9*M9^4+X9*M9^3+Y9*M9^2+Z9*M9+AA9) -> 0.9986409292 | AC9: 799.5874497 | AD9: =IF(AND(Simulator!$I$8=85,Simulator!$O$12=Simulator!M18),Q9*AE9,AC9) -> 799.5874497 | AE9: =VLOOKUP(MID(Simulator!E18,6,3),V_8_85DC_Factor,2,FALSE) -> 0.88 | AF9: =INDEX(MasterTable[],MATCH(Simulator!$E18,MasterTable[P/N],0),COLUMN(MasterTable[Typical Voltage])) -> 35.6 | AG9: =INDEX(MasterTable[],MATCH(Simulator!$E18,MasterTable[P/N],0),COLUMN(MasterTable[V^4])) -> -1e-09 | AH9: =INDEX(MasterTable[],MATCH(Simulator!$E18,MasterTable[P/N],0),COLUMN(MasterTable[V^3])) -> 8.66e-07 | AI9: =INDEX(MasterTable[],MATCH(Simulator!$E18,MasterTable[P/N],0),COLUMN(MasterTable[V^2])) -> -0.000271 | AJ9: =INDEX(MasterTable[],MATCH(Simulator!$E18,MasterTable[P/N],0),COLUMN(MasterTable[V])) -> 0.0549 | AK9: =INDEX(MasterTable[],MATCH(Simulator!$E18,MasterTable[P/N],0),COLUMN(MasterTable[V0])) -> 30.6 | AL9: =AG9*Simulator!$O$12^4+AH9*Simulator!$O$12^3+AI9*Simulator!$O$12^2+AJ9*Simulator!$O$12+AK9 -> 36.068 | AM9: =INDEX(MasterTable[],MATCH(Simulator!$E18,MasterTable[P/N],0),COLUMN(MasterTable[T^3])) -> 0 | AN9: =INDEX(MasterTable[],MATCH(Simulator!$E18,MasterTable[P/N],0),COLUMN(MasterTable[T^2])) -> 0 | AO9: =INDEX(MasterTable[],MATCH(Simulator!$E18,MasterTable[P/N],0),COLUMN(MasterTable[T])) -> -0.017 | AP9: =INDEX(MasterTable[],MATCH(Simulator!$E18,MasterTable[P/N],0),COLUMN(MasterTable[T0])) -> 36.025 | AQ9: 35.6 | AR9: 36.068 | AT9: =INDEX(MasterTable[],MATCH(Simulator!$E18,MasterTable[P/N],0),COLUMN(MasterTable['# of Die])) -> 12 | AU9: 36.068 | AV9: =INDEX(Tj_to_Vf6[],MATCH(Simulator!$I$8,Tj_to_Vf6[Vf],1),COLUMN(Tj_to_Vf6[Vf])) -> -0.5 | AW9: 30.068 | AX9: =IF(AND(Simulator!$I$8=25,Simulator!$O$12=Simulator!M18),AF9,AR9) -> 36.068
B10: V8 | C10: =IF(Simulator!$L$8="Case",Simulator!$I$8,M10) -> 25 | D10: =Simulator!$O$12*AR10/1000 -> 3.406964482 | E10: =INDEX(MasterTable[],MATCH(Simulator!E19,MasterTable[P/N],0),COLUMN(MasterTable[Thermal Resistance])) -> 0.71 | F10: =C10+D10*E10 -> 27.41894478 | H10: =IF(Simulator!$L$8="Case",F10,Simulator!$I$8) -> 27.41894478 | I10: =Simulator!$O$12*AW10/1000 -> 2.206964482 | J10: =E10 -> 0.71 | K10: =H10-I10*J10 -> 25.852 | M10: =IF(Simulator!$L$8="Case",Simulator!$I$8,K10) -> 25 | N10: =IF(Simulator!$L$8="Case",H10,Simulator!$I$8) -> 27.41894478 | O10: =IF(#REF!="Tj",N10,M10) ->  | Q10: =INDEX(MasterTable[],MATCH(Simulator!E19,MasterTable[P/N],0),COLUMN(MasterTable[Typical Lumens])) -> 716 | R10: =INDEX(MasterTable[],MATCH(Simulator!$E19,MasterTable[P/N],0),COLUMN(MasterTable[I^3])) -> 0 | S10: =INDEX(MasterTable[],MATCH(Simulator!$E19,MasterTable[P/N],0),COLUMN(MasterTable[I^2])) -> -1.026181124e-06 | T10: =INDEX(MasterTable[],MATCH(Simulator!$E19,MasterTable[P/N],0),COLUMN(MasterTable[I])) -> 0.003187965624 | U10: =INDEX(MasterTable[],MATCH(Simulator!$E19,MasterTable[P/N],0),COLUMN(MasterTable[I0])) -> 0.007264776006 | V10: =IF(Simulator!$O$12=Simulator!M19,1,R10*Simulator!$O$12^3+S10*Simulator!$O$12^2+T10*Simulator!$O$12+U10) -> 0.6038106557 | W10: =INDEX(MasterTable[],MATCH(Simulator!$E19,MasterTable[P/N],0),COLUMN(MasterTable[F^4])) -> 0 | X10: =INDEX(MasterTable[],MATCH(Simulator!$E19,MasterTable[P/N],0),COLUMN(MasterTable[F^3])) -> 0 | Y10: =INDEX(MasterTable[],MATCH(Simulator!$E19,MasterTable[P/N],0),COLUMN(MasterTable[F^2])) -> -6.624324439e-06 | Z10: =INDEX(MasterTable[],MATCH(Simulator!$E19,MasterTable[P/N],0),COLUMN(MasterTable[F])) -> -0.001127836986 | AA10: =INDEX(MasterTable[],MATCH(Simulator!$E19,MasterTable[P/N],0),COLUMN(MasterTable[F0])) -> 1.030977057 | AB10: =IF(Simulator!$I$8=85,AE10,W10*M10^4+X10*M10^3+Y10*M10^2+Z10*M10+AA10) -> 0.9986409292 | AC10: 431.7408646 | AD10: =IF(AND(Simulator!$I$8=85,Simulator!$O$12=Simulator!M19),Q10*AE10,AC10) -> 431.7408646 | AE10: =VLOOKUP(MID(Simulator!E19,6,3),V_8_85DC_Factor,2,FALSE) -> 0.88 | AF10: =INDEX(MasterTable[],MATCH(Simulator!$E19,MasterTable[P/N],0),COLUMN(MasterTable[Typical Voltage])) -> 17.8 | AG10: =INDEX(MasterTable[],MATCH(Simulator!$E19,MasterTable[P/N],0),COLUMN(MasterTable[V^4])) -> -7.438265024e-11 | AH10: =INDEX(MasterTable[],MATCH(Simulator!$E19,MasterTable[P/N],0),COLUMN(MasterTable[V^3])) -> 9.436062914e-08 | AI10: =INDEX(MasterTable[],MATCH(Simulator!$E19,MasterTable[P/N],0),COLUMN(MasterTable[V^2])) -> -4.439420342e-05 | AJ10: =INDEX(MasterTable[],MATCH(Simulator!$E19,MasterTable[P/N],0),COLUMN(MasterTable[V])) -> 0.01425199524 | AK10: =INDEX(MasterTable[],MATCH(Simulator!$E19,MasterTable[P/N],0),COLUMN(MasterTable[V0])) -> 15.3243187 | AL10: =AG10*Simulator!$O$12^4+AH10*Simulator!$O$12^3+AI10*Simulator!$O$12^2+AJ10*Simulator!$O$12+AK10 -> 17.03482241 | AM10: =INDEX(MasterTable[],MATCH(Simulator!$E19,MasterTable[P/N],0),COLUMN(MasterTable[T^3])) -> 0 | AN10: =INDEX(MasterTable[],MATCH(Simulator!$E19,MasterTable[P/N],0),COLUMN(MasterTable[T^2])) -> 0 | AO10: =INDEX(MasterTable[],MATCH(Simulator!$E19,MasterTable[P/N],0),COLUMN(MasterTable[T])) -> -0.007 | AP10: =INDEX(MasterTable[],MATCH(Simulator!$E19,MasterTable[P/N],0),COLUMN(MasterTable[T0])) -> 17.975 | AQ10: 17.8 | AR10: 17.03482241 | AT10: =INDEX(MasterTable[],MATCH(Simulator!$E19,MasterTable[P/N],0),COLUMN(MasterTable['# of Die])) -> 12 | AU10: 17.03482241 | AV10: =INDEX(Tj_to_Vf6[],MATCH(Simulator!$I$8,Tj_to_Vf6[Vf],1),COLUMN(Tj_to_Vf6[Vf])) -> -0.5 | AW10: 11.03482241 | AX10: =IF(AND(Simulator!$I$8=25,Simulator!$O$12=Simulator!M19),AF10,AR10) -> 17.03482241
B11: V10 | C11: =IF(Simulator!$L$8="Case",Simulator!$I$8,M11) -> 25 | D11: =Simulator!$O$12*AR11/1000 -> 5.047808 | E11: =INDEX(MasterTable[],MATCH(Simulator!E20,MasterTable[P/N],0),COLUMN(MasterTable[Thermal Resistance])) -> 0.47 | F11: 27.37246976 | H11: =IF(Simulator!$L$8="Case",F11,Simulator!$I$8) -> 27.37246976 | I11: =Simulator!$O$12*AW11/1000 -> 3.247808 | J11: 0.47 | K11: 25.846 | M11: =IF(Simulator!$L$8="Case",Simulator!$I$8,K11) -> 25 | N11: =IF(Simulator!$L$8="Case",H11,Simulator!$I$8) -> 27.37246976 | O11: =IF(#REF!="Tj",N11,M11) ->  | Q11: =INDEX(MasterTable[],MATCH(Simulator!E20,MasterTable[P/N],0),COLUMN(MasterTable[Typical Lumens])) -> 1076 | R11: =INDEX(MasterTable[],MATCH(Simulator!$E20,MasterTable[P/N],0),COLUMN(MasterTable[I^3])) -> 0 | S11: =INDEX(MasterTable[],MATCH(Simulator!$E20,MasterTable[P/N],0),COLUMN(MasterTable[I^2])) -> -8.239e-07 | T11: =INDEX(MasterTable[],MATCH(Simulator!$E20,MasterTable[P/N],0),COLUMN(MasterTable[I])) -> 0.003154621 | U11: =INDEX(MasterTable[],MATCH(Simulator!$E20,MasterTable[P/N],0),COLUMN(MasterTable[I0])) -> 0 | V11: =IF(Simulator!$O$12=Simulator!M20,1,R11*Simulator!$O$12^3+S11*Simulator!$O$12^2+T11*Simulator!$O$12+U11) -> 0.5979682 | W11: =INDEX(MasterTable[],MATCH(Simulator!$E20,MasterTable[P/N],0),COLUMN(MasterTable[F^4])) -> 0 | X11: =INDEX(MasterTable[],MATCH(Simulator!$E20,MasterTable[P/N],0),COLUMN(MasterTable[F^3])) -> 0 | Y11: =INDEX(MasterTable[],MATCH(Simulator!$E20,MasterTable[P/N],0),COLUMN(MasterTable[F^2])) -> -4.8575e-06 | Z11: =INDEX(MasterTable[],MATCH(Simulator!$E20,MasterTable[P/N],0),COLUMN(MasterTable[F])) -> -0.0011899887 | AA11: =INDEX(MasterTable[],MATCH(Simulator!$E20,MasterTable[P/N],0),COLUMN(MasterTable[F0])) -> 1.032271572 | AB11: =IF(Simulator!$I$8=85,AE11,W11*M11^4+X11*M11^3+Y11*M11^2+Z11*M11+AA11) -> 0.9994859173 | AC11: 643.0830153 | AD11: =IF(AND(Simulator!$I$8=85,Simulator!$O$12=Simulator!M20),Q11*AE11,AC11) -> 643.0830153 | AE11: =VLOOKUP(MID(Simulator!E20,6,3),V_10_85DC_Factor,2,FALSE) -> 0.896027095 | AF11: =INDEX(MasterTable[],MATCH(Simulator!$E20,MasterTable[P/N],0),COLUMN(MasterTable[Typical Voltage])) -> 26.5 | AG11: =INDEX(MasterTable[],MATCH(Simulator!$E20,MasterTable[P/N],0),COLUMN(MasterTable[V^4])) -> -3.21e-11 | AH11: =INDEX(MasterTable[],MATCH(Simulator!$E20,MasterTable[P/N],0),COLUMN(MasterTable[V^3])) -> 5.48e-08 | AI11: =INDEX(MasterTable[],MATCH(Simulator!$E20,MasterTable[P/N],0),COLUMN(MasterTable[V^2])) -> -3.52e-05 | AJ11: =INDEX(MasterTable[],MATCH(Simulator!$E20,MasterTable[P/N],0),COLUMN(MasterTable[V])) -> 0.0178 | AK11: =INDEX(MasterTable[],MATCH(Simulator!$E20,MasterTable[P/N],0),COLUMN(MasterTable[V0])) -> 22.7 | AL11: =AG11*Simulator!$O$12^4+AH11*Simulator!$O$12^3+AI11*Simulator!$O$12^2+AJ11*Simulator!$O$12+AK11 -> 25.23904 | AM11: =INDEX(MasterTable[],MATCH(Simulator!$E20,MasterTable[P/N],0),COLUMN(MasterTable[T^3])) -> 0 | AN11: =INDEX(MasterTable[],MATCH(Simulator!$E20,MasterTable[P/N],0),COLUMN(MasterTable[T^2])) -> 0 | AO11: =INDEX(MasterTable[],MATCH(Simulator!$E20,MasterTable[P/N],0),COLUMN(MasterTable[T])) -> -0.014 | AP11: =INDEX(MasterTable[],MATCH(Simulator!$E20,MasterTable[P/N],0),COLUMN(MasterTable[T0])) -> 26.85 | AQ11: 26.5 | AR11: 25.23904 | AT11: =INDEX(MasterTable[],MATCH(Simulator!$E20,MasterTable[P/N],0),COLUMN(MasterTable['# of Die])) -> 18 | AU11: 25.23904 | AV11: =INDEX(Tj_to_Vf6[],MATCH(Simulator!$I$8,Tj_to_Vf6[Vf],1),COLUMN(Tj_to_Vf6[Vf])) -> -0.5 | AW11: 16.23904 | AX11: =IF(AND(Simulator!$I$8=25,Simulator!$O$12=Simulator!M20),AF11,AR11) -> 25.23904
B12: V13 | C12: =IF(Simulator!$L$8="Case",Simulator!$I$8,M12) -> 25 | D12: =Simulator!$O$12*AR12/1000 -> 6.072842458 | E12: =INDEX(MasterTable[],MATCH(Simulator!E21,MasterTable[P/N],0),COLUMN(MasterTable[Thermal Resistance])) -> 0.22 | F12: =C12+D12*E12 -> 26.33602534 | H12: =IF(Simulator!$L$8="Case",F12,Simulator!$I$8) -> 26.33602534 | I12: =Simulator!$O$12*AW12/1000 -> 2.772842458 | J12: =E12 -> 0.22 | K12: =H12-I12*J12 -> 25.726 | M12: =IF(Simulator!$L$8="Case",Simulator!$I$8,K12) -> 25 | N12: =IF(Simulator!$L$8="Case",H12,Simulator!$I$8) -> 26.33602534 | O12: =IF(#REF!="Tj",N12,M12) ->  | Q12: =INDEX(MasterTable[],MATCH(Simulator!E21,MasterTable[P/N],0),COLUMN(MasterTable[Typical Lumens])) -> 1900 | R12: =INDEX(MasterTable[],MATCH(Simulator!$E21,MasterTable[P/N],0),COLUMN(MasterTable[I^3])) -> 0 | S12: =INDEX(MasterTable[],MATCH(Simulator!$E21,MasterTable[P/N],0),COLUMN(MasterTable[I^2])) -> -5.205657701e-07 | T12: =INDEX(MasterTable[],MATCH(Simulator!$E21,MasterTable[P/N],0),COLUMN(MasterTable[I])) -> 0.002252976347 | U12: =INDEX(MasterTable[],MATCH(Simulator!$E21,MasterTable[P/N],0),COLUMN(MasterTable[I0])) -> 0.004831192823 | V12: =IF(Simulator!$O$12=Simulator!M21,1,R12*Simulator!$O$12^3+S12*Simulator!$O$12^2+T12*Simulator!$O$12+U12) -> 0.4346038314 | W12: =INDEX(MasterTable[],MATCH(Simulator!$E21,MasterTable[P/N],0),COLUMN(MasterTable[F^4])) -> 0 | X12: =INDEX(MasterTable[],MATCH(Simulator!$E21,MasterTable[P/N],0),COLUMN(MasterTable[F^3])) -> -1.02e-07 | Y12: =INDEX(MasterTable[],MATCH(Simulator!$E21,MasterTable[P/N],0),COLUMN(MasterTable[F^2])) -> 1.27e-05 | Z12: =INDEX(MasterTable[],MATCH(Simulator!$E21,MasterTable[P/N],0),COLUMN(MasterTable[F])) -> -0.00202 | AA12: =INDEX(MasterTable[],MATCH(Simulator!$E21,MasterTable[P/N],0),COLUMN(MasterTable[F0])) -> 1.04 | AB12: =W12*M12^4+X12*M12^3+Y12*M12^2+Z12*M12+AA12 -> 0.99584375 | AC12: =Q12*V12*AB12 -> 822.3152675 | AD12: =AC12 -> 822.3152675 | AE12: =VLOOKUP(MID(Simulator!E21,6,3),Vero13_85DC_Factor,2,FALSE) -> 0.88 | AF12: =INDEX(MasterTable[],MATCH(Simulator!$E21,MasterTable[P/N],0),COLUMN(MasterTable[Typical Voltage])) -> 32.3 | AG12: =INDEX(MasterTable[],MATCH(Simulator!$E21,MasterTable[P/N],0),COLUMN(MasterTable[V^4])) -> -9.507660402e-12 | AH12: =INDEX(MasterTable[],MATCH(Simulator!$E21,MasterTable[P/N],0),COLUMN(MasterTable[V^3])) -> 2.442828661e-08 | AI12: =INDEX(MasterTable[],MATCH(Simulator!$E21,MasterTable[P/N],0),COLUMN(MasterTable[V^2])) -> -2.316924658e-05 | AJ12: =INDEX(MasterTable[],MATCH(Simulator!$E21,MasterTable[P/N],0),COLUMN(MasterTable[V])) -> 0.01497049422 | AK12: =INDEX(MasterTable[],MATCH(Simulator!$E21,MasterTable[P/N],0),COLUMN(MasterTable[V0])) -> 28.11666927 | AL12: =AG12*Simulator!$O$12^4+AH12*Simulator!$O$12^3+AI12*Simulator!$O$12^2+AJ12*Simulator!$O$12+AK12 -> 30.36421229 | AM12: =INDEX(MasterTable[],MATCH(Simulator!$E21,MasterTable[P/N],0),COLUMN(MasterTable[T^3])) -> 0 | AN12: =INDEX(MasterTable[],MATCH(Simulator!$E21,MasterTable[P/N],0),COLUMN(MasterTable[T^2])) -> 0 | AO12: =INDEX(MasterTable[],MATCH(Simulator!$E21,MasterTable[P/N],0),COLUMN(MasterTable[T])) -> -0.017 | AP12: =INDEX(MasterTable[],MATCH(Simulator!$E21,MasterTable[P/N],0),COLUMN(MasterTable[T0])) -> 32.725 | AQ12: =AM12*M12^3+AN12*M12^2+AO12*M12+AP12 -> 32.3 | AR12: =AL12+AQ12-AF12 -> 30.36421229 | AT12: =INDEX(MasterTable[],MATCH(Simulator!$E21,MasterTable[P/N],0),COLUMN(MasterTable['# of Die])) -> 33 | AU12: =AL12 -> 30.36421229 | AV12: =INDEX(Tj_to_Vf6[],MATCH(Simulator!$I$8,Tj_to_Vf6[Vf],1),COLUMN(Tj_to_Vf6[Vf])) -> -0.5 | AW12: =AU12+AV12*AT12 -> 13.86421229 | AX12: =IF(AND(Simulator!$I$8=25,Simulator!$O$12=Simulator!M21),AF12,AR12) -> 30.36421229
B13: V15 | C13: =IF(Simulator!$L$8="Case",Simulator!$I$8,M13) -> 25 | D13: =Simulator!$O$12*AR13/1000 -> 6.6304 | E13: =INDEX(MasterTable[],MATCH(Simulator!E22,MasterTable[P/N],0),COLUMN(MasterTable[Thermal Resistance])) -> 0.16 | F13: =C13+D13*E13 -> 26.060864 | H13: =IF(Simulator!$L$8="Case",F13,Simulator!$I$8) -> 26.060864 | I13: =Simulator!$O$12*AW13/1000 -> 1.8304 | J13: =E13 -> 0.16 | K13: =H13-I13*J13 -> 25.768 | M13: =IF(Simulator!$L$8="Case",Simulator!$I$8,K13) -> 25 | N13: =IF(Simulator!$L$8="Case",H13,Simulator!$I$8) -> 26.060864 | O13: =IF(#REF!="Tj",N13,M13) ->  | Q13: =INDEX(MasterTable[],MATCH(Simulator!E22,MasterTable[P/N],0),COLUMN(MasterTable[Typical Lumens])) -> 2822 | R13: =INDEX(MasterTable[],MATCH(Simulator!$E22,MasterTable[P/N],0),COLUMN(MasterTable[I^3])) -> 0 | S13: =INDEX(MasterTable[],MATCH(Simulator!$E22,MasterTable[P/N],0),COLUMN(MasterTable[I^2])) -> -2.826e-07 | T13: =INDEX(MasterTable[],MATCH(Simulator!$E22,MasterTable[P/N],0),COLUMN(MasterTable[I])) -> 0.0016303876 | U13: =INDEX(MasterTable[],MATCH(Simulator!$E22,MasterTable[P/N],0),COLUMN(MasterTable[I0])) -> 0 | V13: =IF(Simulator!$O$12=Simulator!M22,1,R13*Simulator!$O$12^3+S13*Simulator!$O$12^2+T13*Simulator!$O$12+U13) -> 0.31477352 | W13: =INDEX(MasterTable[],MATCH(Simulator!$E22,MasterTable[P/N],0),COLUMN(MasterTable[F^4])) -> 0 | X13: =INDEX(MasterTable[],MATCH(Simulator!$E22,MasterTable[P/N],0),COLUMN(MasterTable[F^3])) -> 0 | Y13: =INDEX(MasterTable[],MATCH(Simulator!$E22,MasterTable[P/N],0),COLUMN(MasterTable[F^2])) -> -5.261e-06 | Z13: =INDEX(MasterTable[],MATCH(Simulator!$E22,MasterTable[P/N],0),COLUMN(MasterTable[F])) -> -0.0011508107 | AA13: =INDEX(MasterTable[],MATCH(Simulator!$E22,MasterTable[P/N],0),COLUMN(MasterTable[F0])) -> 1.029404649 | AB13: =IF(Simulator!$I$8=85,AE13,W13*M13^4+X13*M13^3+Y13*M13^2+Z13*M13+AA13) -> 0.9973462564 | AC13: =Q13*V13*AB13 -> 885.9335772 | AD13: =IF(AND(Simulator!$I$8=85,Simulator!$O$12=Simulator!M22),Q13*AE13,AC13) -> 885.9335772 | AE13: =VLOOKUP(MID(Simulator!E22,6,3),V_15_85DC_Factor,2,FALSE) -> 0.893575014 | AF13: =INDEX(MasterTable[],MATCH(Simulator!$E22,MasterTable[P/N],0),COLUMN(MasterTable[Typical Voltage])) -> 36 | AG13: =INDEX(MasterTable[],MATCH(Simulator!$E22,MasterTable[P/N],0),COLUMN(MasterTable[V^4])) -> -2.7e-12 | AH13: =INDEX(MasterTable[],MATCH(Simulator!$E22,MasterTable[P/N],0),COLUMN(MasterTable[V^3])) -> 9.54e-09 | AI13: =INDEX(MasterTable[],MATCH(Simulator!$E22,MasterTable[P/N],0),COLUMN(MasterTable[V^2])) -> -1.25e-05 | AJ13: =INDEX(MasterTable[],MATCH(Simulator!$E22,MasterTable[P/N],0),COLUMN(MasterTable[V])) -> 0.0119 | AK13: =INDEX(MasterTable[],MATCH(Simulator!$E22,MasterTable[P/N],0),COLUMN(MasterTable[V0])) -> 31.2 | AL13: =AG13*Simulator!$O$12^4+AH13*Simulator!$O$12^3+AI13*Simulator!$O$12^2+AJ13*Simulator!$O$12+AK13 -> 33.152 | AM13: =INDEX(MasterTable[],MATCH(Simulator!$E22,MasterTable[P/N],0),COLUMN(MasterTable[T^3])) -> 0 | AN13: =INDEX(MasterTable[],MATCH(Simulator!$E22,MasterTable[P/N],0),COLUMN(MasterTable[T^2])) -> 0 | AO13: =INDEX(MasterTable[],MATCH(Simulator!$E22,MasterTable[P/N],0),COLUMN(MasterTable[T])) -> -0.017 | AP13: =INDEX(MasterTable[],MATCH(Simulator!$E22,MasterTable[P/N],0),COLUMN(MasterTable[T0])) -> 36.425 | AQ13: =AM13*M13^3+AN13*M13^2+AO13*M13+AP13 -> 36 | AR13: =AL13+AQ13-AF13 -> 33.152 | AT13: =INDEX(MasterTable[],MATCH(Simulator!$E22,MasterTable[P/N],0),COLUMN(MasterTable['# of Die])) -> 48 | AU13: =AL13 -> 33.152 | AV13: =INDEX(Tj_to_Vf6[],MATCH(Simulator!$I$8,Tj_to_Vf6[Vf],1),COLUMN(Tj_to_Vf6[Vf])) -> -0.5 | AW13: =AU13+AV13*AT13 -> 9.152 | AX13: =IF(AND(Simulator!$I$8=25,Simulator!$O$12=Simulator!M22),AF13,AR13) -> 33.152
B14: V18 | C14: =IF(Simulator!$L$8="Case",Simulator!$I$8,M14) -> 25 | D14: =Simulator!$O$12*AR14/1000 -> 5.343675452 | E14: =INDEX(MasterTable[],MATCH(Simulator!E23,MasterTable[P/N],0),COLUMN(MasterTable[Thermal Resistance])) -> 0.13 | F14: =C14+D14*E14 -> 25.69467781 | H14: =IF(Simulator!$L$8="Case",F14,Simulator!$I$8) -> 25.69467781 | I14: =Simulator!$O$12*AW14/1000 -> -0.6563245479 | J14: =E14 -> 0.13 | K14: =H14-I14*J14 -> 25.78 | M14: =IF(Simulator!$L$8="Case",Simulator!$I$8,K14) -> 25 | N14: =IF(Simulator!$L$8="Case",H14,Simulator!$I$8) -> 25.69467781 | O14: =IF(#REF!="Tj",N14,M14) ->  | Q14: =INDEX(MasterTable[],MATCH(Simulator!E23,MasterTable[P/N],0),COLUMN(MasterTable[Typical Lumens])) -> 3670 | R14: =INDEX(MasterTable[],MATCH(Simulator!$E23,MasterTable[P/N],0),COLUMN(MasterTable[I^3])) -> 0 | S14: =INDEX(MasterTable[],MATCH(Simulator!$E23,MasterTable[P/N],0),COLUMN(MasterTable[I^2])) -> -1.310602506e-07 | T14: =INDEX(MasterTable[],MATCH(Simulator!$E23,MasterTable[P/N],0),COLUMN(MasterTable[I])) -> 0.001087869998 | U14: =INDEX(MasterTable[],MATCH(Simulator!$E23,MasterTable[P/N],0),COLUMN(MasterTable[I0])) -> 0.004288345554 | V14: =IF(Simulator!$O$12=Simulator!M23,1,R14*Simulator!$O$12^3+S14*Simulator!$O$12^2+T14*Simulator!$O$12+U14) -> 0.2166199352 | W14: =INDEX(MasterTable[],MATCH(Simulator!$E23,MasterTable[P/N],0),COLUMN(MasterTable[F^4])) -> 0 | X14: =INDEX(MasterTable[],MATCH(Simulator!$E23,MasterTable[P/N],0),COLUMN(MasterTable[F^3])) -> -1.84258e-07 | Y14: =INDEX(MasterTable[],MATCH(Simulator!$E23,MasterTable[P/N],0),COLUMN(MasterTable[F^2])) -> 2.50682e-05 | Z14: =INDEX(MasterTable[],MATCH(Simulator!$E23,MasterTable[P/N],0),COLUMN(MasterTable[F])) -> -0.00259015 | AA14: =INDEX(MasterTable[],MATCH(Simulator!$E23,MasterTable[P/N],0),COLUMN(MasterTable[F0])) -> 1.05063 | AB14: =W14*M14^4+X14*M14^3+Y14*M14^2+Z14*M14+AA14 -> 0.9986648437 | AC14: =Q14*V14*AB14 -> 793.9337195 | AD14: =AC14 -> 793.9337195 | AE14: =VLOOKUP(MID(Simulator!E23,6,3),Vero18_85DC_Factor,2,FALSE) -> 0.88 | AF14: =INDEX(MasterTable[],MATCH(Simulator!$E23,MasterTable[P/N],0),COLUMN(MasterTable[Typical Voltage])) -> 29.5 | AG14: =INDEX(MasterTable[],MATCH(Simulator!$E23,MasterTable[P/N],0),COLUMN(MasterTable[V^4])) -> -4.329614168e-13 | AH14: =INDEX(MasterTable[],MATCH(Simulator!$E23,MasterTable[P/N],0),COLUMN(MasterTable[V^3])) -> 2.421013102e-09 | AI14: =INDEX(MasterTable[],MATCH(Simulator!$E23,MasterTable[P/N],0),COLUMN(MasterTable[V^2])) -> -5.02931617e-06 | AJ14: =INDEX(MasterTable[],MATCH(Simulator!$E23,MasterTable[P/N],0),COLUMN(MasterTable[V])) -> 0.006888452614 | AK14: =INDEX(MasterTable[],MATCH(Simulator!$E23,MasterTable[P/N],0),COLUMN(MasterTable[V0])) -> 25.52318402 | AL14: =AG14*Simulator!$O$12^4+AH14*Simulator!$O$12^3+AI14*Simulator!$O$12^2+AJ14*Simulator!$O$12+AK14 -> 26.71837726 | AM14: =INDEX(MasterTable[],MATCH(Simulator!$E23,MasterTable[P/N],0),COLUMN(MasterTable[T^3])) -> 0 | AN14: =INDEX(MasterTable[],MATCH(Simulator!$E23,MasterTable[P/N],0),COLUMN(MasterTable[T^2])) -> 0 | AO14: =INDEX(MasterTable[],MATCH(Simulator!$E23,MasterTable[P/N],0),COLUMN(MasterTable[T])) -> -0.015 | AP14: =INDEX(MasterTable[],MATCH(Simulator!$E23,MasterTable[P/N],0),COLUMN(MasterTable[T0])) -> 29.875 | AQ14: =AM14*M14^3+AN14*M14^2+AO14*M14+AP14 -> 29.5 | AR14: =AL14+AQ14-AF14 -> 26.71837726 | AT14: =INDEX(MasterTable[],MATCH(Simulator!$E23,MasterTable[P/N],0),COLUMN(MasterTable['# of Die])) -> 60 | AU14: =AL14 -> 26.71837726 | AV14: =INDEX(Tj_to_Vf6[],MATCH(Simulator!$I$8,Tj_to_Vf6[Vf],1),COLUMN(Tj_to_Vf6[Vf])) -> -0.5 | AW14: =AU14+AV14*AT14 -> -3.281622739 | AX14: =IF(AND(Simulator!$I$8=25,Simulator!$O$12=Simulator!M23),AF14,AR14) -> 26.71837726
B15: V22 | C15: =IF(Simulator!$L$8="Case",Simulator!$I$8,M15) -> 25 | D15: =Simulator!$O$12*AR15/1000 ->  | E15: =INDEX(MasterTable[],MATCH(Simulator!E24,MasterTable[P/N],0),COLUMN(MasterTable[Thermal Resistance])) ->  | F15: =C15+D15*E15 ->  | H15: =IF(Simulator!$L$8="Case",F15,Simulator!$I$8) ->  | I15: =Simulator!$O$12*AW15/1000 ->  | J15: =E15 ->  | K15: =H15-I15*J15 ->  | M15: =IF(Simulator!$L$8="Case",Simulator!$I$8,K15) -> 25 | N15: =IF(Simulator!$L$8="Case",H15,Simulator!$I$8) ->  | O15: =IF(#REF!="Tj",N15,M15) ->  | Q15: =INDEX(MasterTable[],MATCH(Simulator!E24,MasterTable[P/N],0),COLUMN(MasterTable[Typical Lumens])) ->  | R15: =INDEX(MasterTable[],MATCH(Simulator!$E24,MasterTable[P/N],0),COLUMN(MasterTable[I^3])) ->  | S15: =INDEX(MasterTable[],MATCH(Simulator!$E24,MasterTable[P/N],0),COLUMN(MasterTable[I^2])) ->  | T15: =INDEX(MasterTable[],MATCH(Simulator!$E24,MasterTable[P/N],0),COLUMN(MasterTable[I])) ->  | U15: =INDEX(MasterTable[],MATCH(Simulator!$E24,MasterTable[P/N],0),COLUMN(MasterTable[I0])) ->  | V15: =IF(Simulator!$O$12=Simulator!M24,1,R15*Simulator!$O$12^3+S15*Simulator!$O$12^2+T15*Simulator!$O$12+U15) ->  | W15: =INDEX(MasterTable[],MATCH(Simulator!$E24,MasterTable[P/N],0),COLUMN(MasterTable[F^4])) ->  | X15: =INDEX(MasterTable[],MATCH(Simulator!$E24,MasterTable[P/N],0),COLUMN(MasterTable[F^3])) ->  | Y15: =INDEX(MasterTable[],MATCH(Simulator!$E24,MasterTable[P/N],0),COLUMN(MasterTable[F^2])) ->  | Z15: =INDEX(MasterTable[],MATCH(Simulator!$E24,MasterTable[P/N],0),COLUMN(MasterTable[F])) ->  | AA15: =INDEX(MasterTable[],MATCH(Simulator!$E24,MasterTable[P/N],0),COLUMN(MasterTable[F0])) ->  | AB15: =W15*M15^4+X15*M15^3+Y15*M15^2+Z15*M15+AA15 ->  | AC15: =Q15*V15*AB15 ->  | AD15: =AC15 ->  | AE15: =VLOOKUP(MID(Simulator!E24,6,3),V22_85DC_Factor,2,FALSE) ->  | AF15: =INDEX(MasterTable[],MATCH(Simulator!$E24,MasterTable[P/N],0),COLUMN(MasterTable[Typical Voltage])) ->  | AG15: =INDEX(MasterTable[],MATCH(Simulator!$E24,MasterTable[P/N],0),COLUMN(MasterTable[V^4])) ->  | AH15: =INDEX(MasterTable[],MATCH(Simulator!$E24,MasterTable[P/N],0),COLUMN(MasterTable[V^3])) ->  | AI15: =INDEX(MasterTable[],MATCH(Simulator!$E24,MasterTable[P/N],0),COLUMN(MasterTable[V^2])) ->  | AJ15: =INDEX(MasterTable[],MATCH(Simulator!$E24,MasterTable[P/N],0),COLUMN(MasterTable[V])) ->  | AK15: =INDEX(MasterTable[],MATCH(Simulator!$E24,MasterTable[P/N],0),COLUMN(MasterTable[V0])) ->  | AL15: =AG15*Simulator!$O$12^4+AH15*Simulator!$O$12^3+AI15*Simulator!$O$12^2+AJ15*Simulator!$O$12+AK15 ->  | AM15: =INDEX(MasterTable[],MATCH(Simulator!$E24,MasterTable[P/N],0),COLUMN(MasterTable[T^3])) ->  | AN15: =INDEX(MasterTable[],MATCH(Simulator!$E24,MasterTable[P/N],0),COLUMN(MasterTable[T^2])) ->  | AO15: =INDEX(MasterTable[],MATCH(Simulator!$E24,MasterTable[P/N],0),COLUMN(MasterTable[T])) ->  | AP15: =INDEX(MasterTable[],MATCH(Simulator!$E24,MasterTable[P/N],0),COLUMN(MasterTable[T0])) ->  | AQ15: =AM15*M15^3+AN15*M15^2+AO15*M15+AP15 ->  | AR15: =AL15+AQ15-AF15 ->  | AT15: =INDEX(MasterTable[],MATCH(Simulator!$E24,MasterTable[P/N],0),COLUMN(MasterTable['# of Die])) ->  | AU15: =AL15 ->  | AV15: =INDEX(Tj_to_Vf6[],MATCH(Simulator!$I$8,Tj_to_Vf6[Vf],1),COLUMN(Tj_to_Vf6[Vf])) -> -0.5 | AW15: =AU15+AV15*AT15 ->  | AX15: =IF(AND(Simulator!$I$8=25,Simulator!$O$12=Simulator!M24),AF15,AR15) -> 
A17: Calculations using Current Input | C17: Converting Tc to Tj | H17: Converting Tj to Tc | Q17: Calculating Flux | AF17: Calculating Voltage w/ Tc | AU17: Calculating Voltage w/ Tj
C18: Tj = Tc + Power*Thermal Resistance | H18: Tc = Tj - Power*Thermal Resistance | Q18: F@Tc&I = Ft*Fr@I*Fr@Tc | AF18: Vf@Tc&I = Vf@I + Vf@Tc-Vft | AU18: Vf@Tj&I = Vf@I + Vf@Tj Modifier
C19: Tc | D19: Power | E19: Thermal Resistance | F19: Tc>>Tj | H19: Tj | I19: Power | J19: Thermal Resistance | K19: Tj>>Tc | M19: Tc | N19: Tj | O19: =IF(Simulator!$L$8="Case","Tj","Tc") -> Tj | Q19: Ft | R19: Fr@I Eqn | V19: Fr@I | X19: Fr@Tc Eqn | AB19: Fr@Tc | AC19: F@Tc&I | AE19: 85 DC Factor | AF19: Vft | AH19: Vf@I Eqn | AL19: Vf@I | AM19: Vf@Tc Eqn | AQ19: Vf@Tc | AR19: Vf@Tc&I | AT19: # of Die | AU19: Vf@I | AV19: Vf@Tj Modifier, per Die | AW19: Vf@Tj&I | AX19: Voltage Report
B20: Vero 10 | C20: =IF(Simulator!$L$8="Case",Simulator!$I$8,M20) -> 25 | D20: =Simulator!$O$12*AR20/1000 -> 5.047808 | E20: =INDEX(MasterTable[],MATCH(Simulator!E26,MasterTable[P/N],0),COLUMN(MasterTable[Thermal Resistance])) -> 0.47 | F20: =C20+D20*E20 -> 27.37246976 | H20: =IF(Simulator!$L$8="Case",F20,Simulator!$I$8) -> 27.37246976 | I20: =Simulator!$O$12*AW20/1000 -> 3.847808 | J20: =E20 -> 0.47 | K20: =H20-I20*J20 -> 25.564 | M20: =IF(Simulator!$L$8="Case",Simulator!$I$8,K20) -> 25 | N20: =IF(Simulator!$L$8="Case",H20,Simulator!$I$8) -> 27.37246976 | O20: =IF(#REF!="Tj",N20,M20) ->  | Q20: =INDEX(MasterTable[],MATCH(Simulator!E26,MasterTable[P/N],0),COLUMN(MasterTable[Typical Lumens])) -> 1076 | R20: =INDEX(MasterTable[],MATCH(Simulator!$E26,MasterTable[P/N],0),COLUMN(MasterTable[I^3])) -> 0 | S20: =INDEX(MasterTable[],MATCH(Simulator!$E26,MasterTable[P/N],0),COLUMN(MasterTable[I^2])) -> -9.024e-07 | T20: =INDEX(MasterTable[],MATCH(Simulator!$E26,MasterTable[P/N],0),COLUMN(MasterTable[I])) -> 0.003184179 | U20: =INDEX(MasterTable[],MATCH(Simulator!$E26,MasterTable[P/N],0),COLUMN(MasterTable[I0])) -> 0 | V20: =IF(Simulator!$O$12=Simulator!M26,1,S20*Simulator!$O$12^2+T20*Simulator!$O$12+U20) -> 0.6007398 | W20: =INDEX(MasterTable[],MATCH(Simulator!$E26,MasterTable[P/N],0),COLUMN(MasterTable[F^4])) -> 0 | X20: =INDEX(MasterTable[],MATCH(Simulator!$E26,MasterTable[P/N],0),COLUMN(MasterTable[F^3])) -> 0 | Y20: =INDEX(MasterTable[],MATCH(Simulator!$E26,MasterTable[P/N],0),COLUMN(MasterTable[F^2])) -> -6.2594e-06 | Z20: =INDEX(MasterTable[],MATCH(Simulator!$E26,MasterTable[P/N],0),COLUMN(MasterTable[F])) -> -0.001184453 | AA20: =INDEX(MasterTable[],MATCH(Simulator!$E26,MasterTable[P/N],0),COLUMN(MasterTable[F0])) -> 1.031552371 | AB20: =IF(Simulator!$I$8=85,Calculations!AE20,W20*M20^4+X20*M20^3+Y20*M20^2+Z20*M20+AA20) -> 0.9980289211 | AC20: =Q20*V20*AB20 -> 645.1219272 | AD20: =IF(AND(Simulator!$I$8=85,Simulator!$O$12=Simulator!M26),Q20*AE20,AC20) -> 645.1219272 | AE20: =VLOOKUP(MID(Simulator!E26,6,3),Vero10_85DC_Factor,2,FALSE) -> 0.88565 | AF20: =INDEX(MasterTable[],MATCH(Simulator!$E26,MasterTable[P/N],0),COLUMN(MasterTable[Typical Voltage])) -> 26.5 | AG20: =INDEX(MasterTable[],MATCH(Simulator!$E26,MasterTable[P/N],0),COLUMN(MasterTable[V^4])) -> -3.21e-11 | AH20: =INDEX(MasterTable[],MATCH(Simulator!$E26,MasterTable[P/N],0),COLUMN(MasterTable[V^3])) -> 5.48e-08 | AI20: =INDEX(MasterTable[],MATCH(Simulator!$E26,MasterTable[P/N],0),COLUMN(MasterTable[V^2])) -> -3.52e-05 | AJ20: =INDEX(MasterTable[],MATCH(Simulator!$E26,MasterTable[P/N],0),COLUMN(MasterTable[V])) -> 0.0178 | AK20: =INDEX(MasterTable[],MATCH(Simulator!$E26,MasterTable[P/N],0),COLUMN(MasterTable[V0])) -> 22.7 | AL20: =AG20*Simulator!$O$12^4+AH20*Simulator!$O$12^3+AI20*Simulator!$O$12^2+AJ20*Simulator!$O$12+AK20 -> 25.23904 | AM20: =INDEX(MasterTable[],MATCH(Simulator!$E26,MasterTable[P/N],0),COLUMN(MasterTable[T^3])) -> 0 | AN20: =INDEX(MasterTable[],MATCH(Simulator!$E26,MasterTable[P/N],0),COLUMN(MasterTable[T^2])) -> 0 | AO20: =INDEX(MasterTable[],MATCH(Simulator!$E26,MasterTable[P/N],0),COLUMN(MasterTable[T])) -> -0.014 | AP20: =INDEX(MasterTable[],MATCH(Simulator!$E26,MasterTable[P/N],0),COLUMN(MasterTable[T0])) -> 26.85 | AQ20: =AM20*M20^3+AN20*M20^2+AO20*M20+AP20 -> 26.5 | AR20: =AL20+AQ20-AF20 -> 25.23904 | AT20: =INDEX(MasterTable[],MATCH(Simulator!$E26,MasterTable[P/N],0),COLUMN(MasterTable['# of Die])) -> 12 | AU20: =AL20 -> 25.23904 | AV20: =INDEX(Tj_to_Vf6[],MATCH(Simulator!$I$8,Tj_to_Vf6[Vf],1),COLUMN(Tj_to_Vf6[Vf])) -> -0.5 | AW20: =AU20+AV20*AT20 -> 19.23904 | AX20: =IF(AND(Simulator!$I$8=25,Simulator!$O$12=Simulator!M26),AF20,AR20) -> 25.23904
B21: Vero 13 | C21: =IF(Simulator!$L$8="Case",Simulator!$I$8,M21) -> 25 | D21: =Simulator!$O$12*AR21/1000 -> 6.072842458 | E21: =INDEX(MasterTable[],MATCH(Simulator!E27,MasterTable[P/N],0),COLUMN(MasterTable[Thermal Resistance])) -> 0.22 | F21: =C21+D21*E21 -> 26.33602534 | H21: =IF(Simulator!$L$8="Case",F21,Simulator!$I$8) -> 26.33602534 | I21: =Simulator!$O$12*AW21/1000 -> 2.772842458 | J21: =E21 -> 0.22 | K21: =H21-I21*J21 -> 25.726 | M21: =IF(Simulator!$L$8="Case",Simulator!$I$8,K21) -> 25 | N21: =IF(Simulator!$L$8="Case",H21,Simulator!$I$8) -> 26.33602534 | O21: =IF(#REF!="Tj",N21,M21) ->  | Q21: =INDEX(MasterTable[],MATCH(Simulator!E27,MasterTable[P/N],0),COLUMN(MasterTable[Typical Lumens])) -> 1900 | R21: =INDEX(MasterTable[],MATCH(Simulator!$E27,MasterTable[P/N],0),COLUMN(MasterTable[I^3])) -> 0 | S21: =INDEX(MasterTable[],MATCH(Simulator!$E27,MasterTable[P/N],0),COLUMN(MasterTable[I^2])) -> -5.205657701e-07 | T21: =INDEX(MasterTable[],MATCH(Simulator!$E27,MasterTable[P/N],0),COLUMN(MasterTable[I])) -> 0.002252976347 | U21: =INDEX(MasterTable[],MATCH(Simulator!$E27,MasterTable[P/N],0),COLUMN(MasterTable[I0])) -> 0.004831192823 | V21: =IF(Simulator!$O$12=Simulator!M27,1,S21*Simulator!$O$12^2+T21*Simulator!$O$12+U21) -> 0.4346038314 | W21: =INDEX(MasterTable[],MATCH(Simulator!$E27,MasterTable[P/N],0),COLUMN(MasterTable[F^4])) -> 0 | X21: =INDEX(MasterTable[],MATCH(Simulator!$E27,MasterTable[P/N],0),COLUMN(MasterTable[F^3])) -> -1.02e-07 | Y21: =INDEX(MasterTable[],MATCH(Simulator!$E27,MasterTable[P/N],0),COLUMN(MasterTable[F^2])) -> 1.27e-05 | Z21: =INDEX(MasterTable[],MATCH(Simulator!$E27,MasterTable[P/N],0),COLUMN(MasterTable[F])) -> -0.00202 | AA21: =INDEX(MasterTable[],MATCH(Simulator!$E27,MasterTable[P/N],0),COLUMN(MasterTable[F0])) -> 1.04 | AB21: =W21*M21^4+X21*M21^3+Y21*M21^2+Z21*M21+AA21 -> 0.99584375 | AC21: =Q21*V21*AB21 -> 822.3152675 | AD21: =AC21 -> 822.3152675 | AE21: =VLOOKUP(MID(Simulator!E27,6,3),Vero13_85DC_Factor,2,FALSE) -> 0.88 | AF21: =INDEX(MasterTable[],MATCH(Simulator!$E27,MasterTable[P/N],0),COLUMN(MasterTable[Typical Voltage])) -> 32.3 | AG21: =INDEX(MasterTable[],MATCH(Simulator!$E27,MasterTable[P/N],0),COLUMN(MasterTable[V^4])) -> -9.507660402e-12 | AH21: =INDEX(MasterTable[],MATCH(Simulator!$E27,MasterTable[P/N],0),COLUMN(MasterTable[V^3])) -> 2.442828661e-08 | AI21: =INDEX(MasterTable[],MATCH(Simulator!$E27,MasterTable[P/N],0),COLUMN(MasterTable[V^2])) -> -2.316924658e-05 | AJ21: =INDEX(MasterTable[],MATCH(Simulator!$E27,MasterTable[P/N],0),COLUMN(MasterTable[V])) -> 0.01497049422 | AK21: =INDEX(MasterTable[],MATCH(Simulator!$E27,MasterTable[P/N],0),COLUMN(MasterTable[V0])) -> 28.11666927 | AL21: =AG21*Simulator!$O$12^4+AH21*Simulator!$O$12^3+AI21*Simulator!$O$12^2+AJ21*Simulator!$O$12+AK21 -> 30.36421229 | AM21: =INDEX(MasterTable[],MATCH(Simulator!$E27,MasterTable[P/N],0),COLUMN(MasterTable[T^3])) -> 0 | AN21: =INDEX(MasterTable[],MATCH(Simulator!$E27,MasterTable[P/N],0),COLUMN(MasterTable[T^2])) -> 0 | AO21: =INDEX(MasterTable[],MATCH(Simulator!$E27,MasterTable[P/N],0),COLUMN(MasterTable[T])) -> -0.017 | AP21: =INDEX(MasterTable[],MATCH(Simulator!$E27,MasterTable[P/N],0),COLUMN(MasterTable[T0])) -> 32.725 | AQ21: 32.3 | AR21: =AL21+AQ21-AF21 -> 30.36421229 | AT21: =INDEX(MasterTable[],MATCH(Simulator!$E27,MasterTable[P/N],0),COLUMN(MasterTable['# of Die])) -> 33 | AU21: =AL21 -> 30.36421229 | AV21: =INDEX(Tj_to_Vf6[],MATCH(Simulator!$I$8,Tj_to_Vf6[Vf],1),COLUMN(Tj_to_Vf6[Vf])) -> -0.5 | AW21: =AU21+AV21*AT21 -> 13.86421229 | AX21: =IF(AND(Simulator!$I$8=25,Simulator!$O$12=Simulator!M27),AF21,AR21) -> 30.36421229
B22: Vero 18 | C22: =IF(Simulator!$L$8="Case",Simulator!$I$8,M22) -> 25 | D22: =Simulator!$O$12*AR22/1000 -> 5.343675452 | E22: =INDEX(MasterTable[],MATCH(Simulator!E28,MasterTable[P/N],0),COLUMN(MasterTable[Thermal Resistance])) -> 0.13 | F22: =C22+D22*E22 -> 25.69467781 | H22: =IF(Simulator!$L$8="Case",F22,Simulator!$I$8) -> 25.69467781 | I22: =Simulator!$O$12*AW22/1000 -> -0.6563245479 | J22: =E22 -> 0.13 | K22: =H22-I22*J22 -> 25.78 | M22: =IF(Simulator!$L$8="Case",Simulator!$I$8,K22) -> 25 | N22: =IF(Simulator!$L$8="Case",H22,Simulator!$I$8) -> 25.69467781 | O22: =IF(#REF!="Tj",N22,M22) ->  | Q22: =INDEX(MasterTable[],MATCH(Simulator!E28,MasterTable[P/N],0),COLUMN(MasterTable[Typical Lumens])) -> 3670 | R22: =INDEX(MasterTable[],MATCH(Simulator!$E28,MasterTable[P/N],0),COLUMN(MasterTable[I^3])) -> 0 | S22: =INDEX(MasterTable[],MATCH(Simulator!$E28,MasterTable[P/N],0),COLUMN(MasterTable[I^2])) -> -1.310602506e-07 | T22: =INDEX(MasterTable[],MATCH(Simulator!$E28,MasterTable[P/N],0),COLUMN(MasterTable[I])) -> 0.001087869998 | U22: =INDEX(MasterTable[],MATCH(Simulator!$E28,MasterTable[P/N],0),COLUMN(MasterTable[I0])) -> 0.004288345554 | V22: =IF(Simulator!$O$12=Simulator!M28,1,S22*Simulator!$O$12^2+T22*Simulator!$O$12+U22) -> 0.2166199352 | W22: =INDEX(MasterTable[],MATCH(Simulator!$E28,MasterTable[P/N],0),COLUMN(MasterTable[F^4])) -> 0 | X22: =INDEX(MasterTable[],MATCH(Simulator!$E28,MasterTable[P/N],0),COLUMN(MasterTable[F^3])) -> -1.84258e-07 | Y22: =INDEX(MasterTable[],MATCH(Simulator!$E28,MasterTable[P/N],0),COLUMN(MasterTable[F^2])) -> 2.50682e-05 | Z22: =INDEX(MasterTable[],MATCH(Simulator!$E28,MasterTable[P/N],0),COLUMN(MasterTable[F])) -> -0.00259015 | AA22: =INDEX(MasterTable[],MATCH(Simulator!$E28,MasterTable[P/N],0),COLUMN(MasterTable[F0])) -> 1.05063 | AB22: =W22*M22^4+X22*M22^3+Y22*M22^2+Z22*M22+AA22 -> 0.9986648437 | AC22: 793.9337195 | AD22: =AC22 -> 793.9337195 | AE22: =VLOOKUP(MID(Simulator!E28,6,3),Vero18_85DC_Factor,2,FALSE) -> 0.88 | AF22: =INDEX(MasterTable[],MATCH(Simulator!$E28,MasterTable[P/N],0),COLUMN(MasterTable[Typical Voltage])) -> 29.5 | AG22: =INDEX(MasterTable[],MATCH(Simulator!$E28,MasterTable[P/N],0),COLUMN(MasterTable[V^4])) -> -4.329614168e-13 | AH22: =INDEX(MasterTable[],MATCH(Simulator!$E28,MasterTable[P/N],0),COLUMN(MasterTable[V^3])) -> 2.421013102e-09 | AI22: =INDEX(MasterTable[],MATCH(Simulator!$E28,MasterTable[P/N],0),COLUMN(MasterTable[V^2])) -> -5.02931617e-06 | AJ22: =INDEX(MasterTable[],MATCH(Simulator!$E28,MasterTable[P/N],0),COLUMN(MasterTable[V])) -> 0.006888452614 | AK22: =INDEX(MasterTable[],MATCH(Simulator!$E28,MasterTable[P/N],0),COLUMN(MasterTable[V0])) -> 25.52318402 | AL22: =AG22*Simulator!$O$12^4+AH22*Simulator!$O$12^3+AI22*Simulator!$O$12^2+AJ22*Simulator!$O$12+AK22 -> 26.71837726 | AM22: =INDEX(MasterTable[],MATCH(Simulator!$E28,MasterTable[P/N],0),COLUMN(MasterTable[T^3])) -> 0 | AN22: =INDEX(MasterTable[],MATCH(Simulator!$E28,MasterTable[P/N],0),COLUMN(MasterTable[T^2])) -> 0 | AO22: =INDEX(MasterTable[],MATCH(Simulator!$E28,MasterTable[P/N],0),COLUMN(MasterTable[T])) -> -0.015 | AP22: =INDEX(MasterTable[],MATCH(Simulator!$E28,MasterTable[P/N],0),COLUMN(MasterTable[T0])) -> 29.875 | AQ22: =AM22*M22^3+AN22*M22^2+AO22*M22+AP22 -> 29.5 | AR22: 26.71837726 | AT22: =INDEX(MasterTable[],MATCH(Simulator!$E28,MasterTable[P/N],0),COLUMN(MasterTable['# of Die])) -> 60 | AU22: =AL22 -> 26.71837726 | AV22: =INDEX(Tj_to_Vf6[],MATCH(Simulator!$I$8,Tj_to_Vf6[Vf],1),COLUMN(Tj_to_Vf6[Vf])) -> -0.5 | AW22: =AU22+AV22*AT22 -> -3.281622739 | AX22: =IF(AND(Simulator!$I$8=25,Simulator!$O$12=Simulator!M28),AF22,AR22) -> 26.71837726
B23: Vero 29 | C23: =IF(Simulator!$L$8="Case",Simulator!$I$8,M23) -> 25 | D23: =Simulator!$O$12*AR23/1000 -> 6.732486538 | E23: =INDEX(MasterTable[],MATCH(Simulator!E29,MasterTable[P/N],0),COLUMN(MasterTable[Thermal Resistance])) -> 0.06 | F23: =C23+D23*E23 -> 25.40394919 | H23: =IF(Simulator!$L$8="Case",F23,Simulator!$I$8) -> 25.40394919 | I23: =Simulator!$O$12*AW23/1000 -> -8.867513462 | J23: =E23 -> 0.06 | K23: =H23-I23*J23 -> 25.936 | M23: =IF(Simulator!$L$8="Case",Simulator!$I$8,K23) -> 25 | N23: =IF(Simulator!$L$8="Case",H23,Simulator!$I$8) -> 25.40394919 | O23: =IF(#REF!="Tj",N23,M23) ->  | Q23: =INDEX(MasterTable[],MATCH(Simulator!E29,MasterTable[P/N],0),COLUMN(MasterTable[Typical Lumens])) -> 9415 | R23: =INDEX(MasterTable[],MATCH(Simulator!$E29,MasterTable[P/N],0),COLUMN(MasterTable[I^3])) -> 0 | S23: =INDEX(MasterTable[],MATCH(Simulator!$E29,MasterTable[P/N],0),COLUMN(MasterTable[I^2])) -> -3.668394766e-08 | T23: =INDEX(MasterTable[],MATCH(Simulator!$E29,MasterTable[P/N],0),COLUMN(MasterTable[I])) -> 0.0005593658125 | U23: =INDEX(MasterTable[],MATCH(Simulator!$E29,MasterTable[P/N],0),COLUMN(MasterTable[I0])) -> 0 | V23: =IF(Simulator!$O$12=Simulator!M29,1,S23*Simulator!$O$12^2+T23*Simulator!$O$12+U23) -> 0.1104058046 | W23: =INDEX(MasterTable[],MATCH(Simulator!$E29,MasterTable[P/N],0),COLUMN(MasterTable[F^4])) -> -4.03802e-09 | X23: =INDEX(MasterTable[],MATCH(Simulator!$E29,MasterTable[P/N],0),COLUMN(MasterTable[F^3])) -> 6.48277e-07 | Y23: =INDEX(MasterTable[],MATCH(Simulator!$E29,MasterTable[P/N],0),COLUMN(MasterTable[F^2])) -> -3.18284e-05 | Z23: =INDEX(MasterTable[],MATCH(Simulator!$E29,MasterTable[P/N],0),COLUMN(MasterTable[F])) -> -0.00116937 | AA23: =INDEX(MasterTable[],MATCH(Simulator!$E29,MasterTable[P/N],0),COLUMN(MasterTable[F0])) -> 1.04079 | AB23: 1.000214977 | AC23: 1039.694112 | AD23: 1039.694112 | AE23: =VLOOKUP(MID(Simulator!E29,6,3),Vero29_85DC_Factor,2,FALSE) -> 0.88 | AF23: =INDEX(MasterTable[],MATCH(Simulator!$E29,MasterTable[P/N],0),COLUMN(MasterTable[Typical Voltage])) -> 38 | AG23: =INDEX(MasterTable[],MATCH(Simulator!$E29,MasterTable[P/N],0),COLUMN(MasterTable[V^4])) -> -5.069636004e-14 | AH23: =INDEX(MasterTable[],MATCH(Simulator!$E29,MasterTable[P/N],0),COLUMN(MasterTable[V^3])) -> 5.0223241e-10 | AI23: =INDEX(MasterTable[],MATCH(Simulator!$E29,MasterTable[P/N],0),COLUMN(MasterTable[V^2])) -> -1.857052826e-06 | AJ23: =INDEX(MasterTable[],MATCH(Simulator!$E29,MasterTable[P/N],0),COLUMN(MasterTable[V])) -> 0.004647597856 | AK23: =INDEX(MasterTable[],MATCH(Simulator!$E29,MasterTable[P/N],0),COLUMN(MasterTable[V0])) -> 32.80325849 | AL23: =AG23*Simulator!$O$12^4+AH23*Simulator!$O$12^3+AI23*Simulator!$O$12^2+AJ23*Simulator!$O$12+AK23 -> 33.66243269 | AM23: =INDEX(MasterTable[],MATCH(Simulator!$E29,MasterTable[P/N],0),COLUMN(MasterTable[T^3])) -> 0 | AN23: =INDEX(MasterTable[],MATCH(Simulator!$E29,MasterTable[P/N],0),COLUMN(MasterTable[T^2])) -> 0 | AO23: =INDEX(MasterTable[],MATCH(Simulator!$E29,MasterTable[P/N],0),COLUMN(MasterTable[T])) -> -0.02 | AP23: =INDEX(MasterTable[],MATCH(Simulator!$E29,MasterTable[P/N],0),COLUMN(MasterTable[T0])) -> 38.5 | AQ23: 38 | AR23: 33.66243269 | AT23: =INDEX(MasterTable[],MATCH(Simulator!$E29,MasterTable[P/N],0),COLUMN(MasterTable['# of Die])) -> 156 | AU23: =AL23 -> 33.66243269 | AV23: =INDEX(Tj_to_Vf6[],MATCH(Simulator!$I$8,Tj_to_Vf6[Vf],1),COLUMN(Tj_to_Vf6[Vf])) -> -0.5 | AW23: =AU23+AV23*AT23 -> -44.33756731 | AX23: =IF(AND(Simulator!$I$8=25,Simulator!$O$12=Simulator!M29),AF23,AR23) -> 33.66243269
A25: Calculations using Current Input | C25: Converting Tc to Tj | H25: Converting Tj to Tc | Q25: Calculating Flux | AF25: Calculating Voltage w/ Tc | AU25: Calculating Voltage w/ Tj
C26: Tj = Tc + Power*Thermal Resistance | H26: Tc = Tj - Power*Thermal Resistance | Q26: F@Tc&I = Ft*Fr@I*Fr@Tc | AF26: Vf@Tc&I = Vf@I + Vf@Tc-Vft | AU26: Vf@Tj&I = Vf@I + Vf@Tj Modifier
C27: Tc | D27: Power | E27: Thermal Resistance | F27: Tc>>Tj | H27: Tj | I27: Power | J27: Thermal Resistance | K27: Tj>>Tc | M27: Tc | N27: Tj | O27: =IF(Simulator!$L$8="Case","Tj","Tc") -> Tj | Q27: Ft | R27: Fr@I Eqn | V27: Fr@I | X27: Fr@Tc Eqn | AB27: Fr@Tc | AC27: F@Tc&I | AE27: 85 DC Factor | AF27: Vft | AH27: Vf@I Eqn | AL27: Vf@I | AM27: Vf@Tc Eqn | AQ27: Vf@Tc | AR27: Vf@Tc&I | AT27: # of Die | AU27: Vf@I | AV27: Vf@Tj Modifier, per Die | AW27: Vf@Tj&I | AX27: Voltage Report
B28: H6 | C28: =IF(Simulator!$L$8="Case",Simulator!$I$8,M28) -> 25 | D28: =Simulator!$O$12*AR28/1000 ->  | E28: =INDEX(MasterTable[],MATCH(Simulator!E31,MasterTable[P/N],0),COLUMN(MasterTable[Thermal Resistance])) ->  | F28: =C28+D28*E28 ->  | H28: =IF(Simulator!$L$8="Case",F28,Simulator!$I$8) ->  | I28: =Simulator!$O$12*AW28/1000 ->  | J28: =E28 ->  | K28: =H28-I28*J28 ->  | M28: =IF(Simulator!$L$8="Case",Simulator!$I$8,K28) -> 25 | N28: =IF(Simulator!$L$8="Case",H28,Simulator!$I$8) ->  | O28: =IF(#REF!="Tj",N28,M28) ->  | Q28: =INDEX(MasterTable[],MATCH(Simulator!E31,MasterTable[P/N],0),COLUMN(MasterTable[Typical Lumens])) ->  | R28: =INDEX(MasterTable[],MATCH(Simulator!$E31,MasterTable[P/N],0),COLUMN(MasterTable[I^3])) ->  | S28: =INDEX(MasterTable[],MATCH(Simulator!$E31,MasterTable[P/N],0),COLUMN(MasterTable[I^2])) ->  | T28: =INDEX(MasterTable[],MATCH(Simulator!$E31,MasterTable[P/N],0),COLUMN(MasterTable[I])) ->  | U28: =INDEX(MasterTable[],MATCH(Simulator!$E31,MasterTable[P/N],0),COLUMN(MasterTable[I0])) ->  | V28: =IF(Simulator!$O$12=Simulator!M31,1,S28*Simulator!$O$12^2+T28*Simulator!$O$12+U28) ->  | W28: =INDEX(MasterTable[],MATCH(Simulator!$E31,MasterTable[P/N],0),COLUMN(MasterTable[F^4])) ->  | X28: =INDEX(MasterTable[],MATCH(Simulator!$E31,MasterTable[P/N],0),COLUMN(MasterTable[F^3])) ->  | Y28: =INDEX(MasterTable[],MATCH(Simulator!$E31,MasterTable[P/N],0),COLUMN(MasterTable[F^2])) ->  | Z28: =INDEX(MasterTable[],MATCH(Simulator!$E31,MasterTable[P/N],0),COLUMN(MasterTable[F])) ->  | AA28: =INDEX(MasterTable[],MATCH(Simulator!$E31,MasterTable[P/N],0),COLUMN(MasterTable[F0])) ->  | AB28: =IF(Simulator!$I$8=85,Calculations!AE28,W28*M28^4+X28*M28^3+Y28*M28^2+Z28*M28+AA28) ->  | AC28: =Q28*V28*AB28 ->  | AD28: =IF(AND(Simulator!$I$8=85,Simulator!$O$12=Simulator!M40),Q28*AE28,AC28) ->  | AE28: =VLOOKUP(MID(Simulator!E31,6,3),Data!$G$61:$H$65,2,FALSE) ->  | AF28: =INDEX(MasterTable[],MATCH(Simulator!$E31,MasterTable[P/N],0),COLUMN(MasterTable[Typical Voltage])) ->  | AG28: =INDEX(MasterTable[],MATCH(Simulator!$E31,MasterTable[P/N],0),COLUMN(MasterTable[V^4])) ->  | AH28: =INDEX(MasterTable[],MATCH(Simulator!$E31,MasterTable[P/N],0),COLUMN(MasterTable[V^3])) ->  | AI28: =INDEX(MasterTable[],MATCH(Simulator!$E31,MasterTable[P/N],0),COLUMN(MasterTable[V^2])) ->  | AJ28: =INDEX(MasterTable[],MATCH(Simulator!$E31,MasterTable[P/N],0),COLUMN(MasterTable[V])) ->  | AK28: =INDEX(MasterTable[],MATCH(Simulator!$E31,MasterTable[P/N],0),COLUMN(MasterTable[V0])) ->  | AL28: =AG28*Simulator!$O$12^4+AH28*Simulator!$O$12^3+AI28*Simulator!$O$12^2+AJ28*Simulator!$O$12+AK28 ->  | AM28: =INDEX(MasterTable[],MATCH(Simulator!$E31,MasterTable[P/N],0),COLUMN(MasterTable[T^3])) ->  | AN28: =INDEX(MasterTable[],MATCH(Simulator!$E31,MasterTable[P/N],0),COLUMN(MasterTable[T^2])) ->  | AO28: =INDEX(MasterTable[],MATCH(Simulator!$E31,MasterTable[P/N],0),COLUMN(MasterTable[T])) ->  | AP28: =INDEX(MasterTable[],MATCH(Simulator!$E31,MasterTable[P/N],0),COLUMN(MasterTable[T0])) ->  | AQ28: =AM28*M28^3+AN28*M28^2+AO28*M28+AP28 ->  | AR28: =AL28+AQ28-AF28 ->  | AT28: =INDEX(MasterTable[],MATCH(Simulator!$E31,MasterTable[P/N],0),COLUMN(MasterTable['# of Die])) ->  | AU28: =AL28 ->  | AV28: =INDEX(Tj_to_Vf6[],MATCH(Simulator!$I$8,Tj_to_Vf6[Vf],1),COLUMN(Tj_to_Vf6[Vf])) -> -0.5 | AW28: =AU28+AV28*AT28 ->  | AX28: =IF(AND(Simulator!$I$8=25,Simulator!$O$12=Simulator!M40),AF28,AR28) -> 
B29: H9 | C29: =IF(Simulator!$L$8="Case",Simulator!$I$8,M29) -> 25 | D29: =Simulator!$O$12*AR29/1000 ->  | E29: =INDEX(MasterTable[],MATCH(Simulator!E32,MasterTable[P/N],0),COLUMN(MasterTable[Thermal Resistance])) ->  | F29: =C29+D29*E29 ->  | H29: =IF(Simulator!$L$8="Case",F29,Simulator!$I$8) ->  | I29: =Simulator!$O$12*AW29/1000 ->  | J29: =E29 ->  | K29: =H29-I29*J29 ->  | M29: =IF(Simulator!$L$8="Case",Simulator!$I$8,K29) -> 25 | N29: =IF(Simulator!$L$8="Case",H29,Simulator!$I$8) ->  | O29: =IF(#REF!="Tj",N29,M29) ->  | Q29: =INDEX(MasterTable[],MATCH(Simulator!E32,MasterTable[P/N],0),COLUMN(MasterTable[Typical Lumens])) ->  | R29: =INDEX(MasterTable[],MATCH(Simulator!$E32,MasterTable[P/N],0),COLUMN(MasterTable[I^3])) ->  | S29: =INDEX(MasterTable[],MATCH(Simulator!$E32,MasterTable[P/N],0),COLUMN(MasterTable[I^2])) ->  | T29: =INDEX(MasterTable[],MATCH(Simulator!$E32,MasterTable[P/N],0),COLUMN(MasterTable[I])) ->  | U29: =INDEX(MasterTable[],MATCH(Simulator!$E32,MasterTable[P/N],0),COLUMN(MasterTable[I0])) ->  | V29: =IF(Simulator!$O$12=Simulator!M32,1,S29*Simulator!$O$12^2+T29*Simulator!$O$12+U29) ->  | W29: =INDEX(MasterTable[],MATCH(Simulator!$E32,MasterTable[P/N],0),COLUMN(MasterTable[F^4])) ->  | X29: =INDEX(MasterTable[],MATCH(Simulator!$E32,MasterTable[P/N],0),COLUMN(MasterTable[F^3])) ->  | Y29: =INDEX(MasterTable[],MATCH(Simulator!$E32,MasterTable[P/N],0),COLUMN(MasterTable[F^2])) ->  | Z29: =INDEX(MasterTable[],MATCH(Simulator!$E32,MasterTable[P/N],0),COLUMN(MasterTable[F])) ->  | AA29: =INDEX(MasterTable[],MATCH(Simulator!$E32,MasterTable[P/N],0),COLUMN(MasterTable[F0])) ->  | AB29: =IF(Simulator!$I$8=85,Calculations!AE29,W29*M29^4+X29*M29^3+Y29*M29^2+Z29*M29+AA29) ->  | AC29: =Q29*V29*AB29 ->  | AD29: =IF(AND(Simulator!$I$8=85,Simulator!$O$12=Simulator!M41),Q29*AE29,AC29) ->  | AE29: =VLOOKUP(MID(Simulator!E32,6,3),Data!$J$61:$K$65,2,FALSE) ->  | AF29: =INDEX(MasterTable[],MATCH(Simulator!$E32,MasterTable[P/N],0),COLUMN(MasterTable[Typical Voltage])) ->  | AG29: =INDEX(MasterTable[],MATCH(Simulator!$E32,MasterTable[P/N],0),COLUMN(MasterTable[V^4])) ->  | AH29: =INDEX(MasterTable[],MATCH(Simulator!$E32,MasterTable[P/N],0),COLUMN(MasterTable[V^3])) ->  | AI29: =INDEX(MasterTable[],MATCH(Simulator!$E32,MasterTable[P/N],0),COLUMN(MasterTable[V^2])) ->  | AJ29: =INDEX(MasterTable[],MATCH(Simulator!$E32,MasterTable[P/N],0),COLUMN(MasterTable[V])) ->  | AK29: =INDEX(MasterTable[],MATCH(Simulator!$E32,MasterTable[P/N],0),COLUMN(MasterTable[V0])) ->  | AL29: =AG29*Simulator!$O$12^4+AH29*Simulator!$O$12^3+AI29*Simulator!$O$12^2+AJ29*Simulator!$O$12+AK29 ->  | AM29: =INDEX(MasterTable[],MATCH(Simulator!$E32,MasterTable[P/N],0),COLUMN(MasterTable[T^3])) ->  | AN29: =INDEX(MasterTable[],MATCH(Simulator!$E32,MasterTable[P/N],0),COLUMN(MasterTable[T^2])) ->  | AO29: =INDEX(MasterTable[],MATCH(Simulator!$E32,MasterTable[P/N],0),COLUMN(MasterTable[T])) ->  | AP29: =INDEX(MasterTable[],MATCH(Simulator!$E32,MasterTable[P/N],0),COLUMN(MasterTable[T0])) ->  | AQ29: =AM29*M29^3+AN29*M29^2+AO29*M29+AP29 ->  | AR29: =AL29+AQ29-AF29 ->  | AT29: =INDEX(MasterTable[],MATCH(Simulator!$E32,MasterTable[P/N],0),COLUMN(MasterTable['# of Die])) ->  | AU29: =AL29 ->  | AV29: =INDEX(Tj_to_Vf6[],MATCH(Simulator!$I$8,Tj_to_Vf6[Vf],1),COLUMN(Tj_to_Vf6[Vf])) -> -0.5 | AW29: =AU29+AV29*AT29 ->  | AX29: =IF(AND(Simulator!$I$8=25,Simulator!$O$12=Simulator!M41),AF29,AR29) -> 
B30: H12 | C30: =IF(Simulator!$L$8="Case",Simulator!$I$8,M30) -> 25 | D30: =Simulator!$O$12*AR30/1000 ->  | E30: =INDEX(MasterTable[],MATCH(Simulator!E33,MasterTable[P/N],0),COLUMN(MasterTable[Thermal Resistance])) ->  | F30: =C30+D30*E30 ->  | H30: =IF(Simulator!$L$8="Case",F30,Simulator!$I$8) ->  | I30: =Simulator!$O$12*AW30/1000 ->  | J30: =E30 ->  | M30: =IF(Simulator!$L$8="Case",Simulator!$I$8,K30) -> 25 | N30: =IF(Simulator!$L$8="Case",H30,Simulator!$I$8) ->  | O30: =IF(#REF!="Tj",N30,M30) ->  | Q30: =INDEX(MasterTable[],MATCH(Simulator!E33,MasterTable[P/N],0),COLUMN(MasterTable[Typical Lumens])) ->  | R30: =INDEX(MasterTable[],MATCH(Simulator!$E33,MasterTable[P/N],0),COLUMN(MasterTable[I^3])) ->  | S30: =INDEX(MasterTable[],MATCH(Simulator!$E33,MasterTable[P/N],0),COLUMN(MasterTable[I^2])) ->  | T30: =INDEX(MasterTable[],MATCH(Simulator!$E33,MasterTable[P/N],0),COLUMN(MasterTable[I])) ->  | U30: =INDEX(MasterTable[],MATCH(Simulator!$E33,MasterTable[P/N],0),COLUMN(MasterTable[I0])) ->  | V30: =IF(Simulator!$O$12=Simulator!M33,1,S30*Simulator!$O$12^2+T30*Simulator!$O$12+U30) ->  | W30: =INDEX(MasterTable[],MATCH(Simulator!$E33,MasterTable[P/N],0),COLUMN(MasterTable[F^4])) ->  | X30: =INDEX(MasterTable[],MATCH(Simulator!$E33,MasterTable[P/N],0),COLUMN(MasterTable[F^3])) ->  | Y30: =INDEX(MasterTable[],MATCH(Simulator!$E33,MasterTable[P/N],0),COLUMN(MasterTable[F^2])) ->  | Z30: =INDEX(MasterTable[],MATCH(Simulator!$E33,MasterTable[P/N],0),COLUMN(MasterTable[F])) ->  | AA30: =INDEX(MasterTable[],MATCH(Simulator!$E33,MasterTable[P/N],0),COLUMN(MasterTable[F0])) ->  | AB30: =IF(Simulator!$I$8=85,Calculations!AE30,W30*M30^4+X30*M30^3+Y30*M30^2+Z30*M30+AA30) ->  | AC30: =Q30*V30*AB30 ->  | AD30: =IF(AND(Simulator!$I$8=85,Simulator!$O$12=Simulator!M42),Q30*AE30,AC30) ->  | AE30: =VLOOKUP(MID(Simulator!E33,6,3),Data!$M$61:$N$65,2,FALSE) ->  | AF30: =INDEX(MasterTable[],MATCH(Simulator!$E33,MasterTable[P/N],0),COLUMN(MasterTable[Typical Voltage])) ->  | AG30: =INDEX(MasterTable[],MATCH(Simulator!$E33,MasterTable[P/N],0),COLUMN(MasterTable[V^4])) ->  | AH30: =INDEX(MasterTable[],MATCH(Simulator!$E33,MasterTable[P/N],0),COLUMN(MasterTable[V^3])) ->  | AI30: =INDEX(MasterTable[],MATCH(Simulator!$E33,MasterTable[P/N],0),COLUMN(MasterTable[V^2])) ->  | AJ30: =INDEX(MasterTable[],MATCH(Simulator!$E33,MasterTable[P/N],0),COLUMN(MasterTable[V])) ->  | AK30: =INDEX(MasterTable[],MATCH(Simulator!$E33,MasterTable[P/N],0),COLUMN(MasterTable[V0])) ->  | AL30: =AG30*Simulator!$O$12^4+AH30*Simulator!$O$12^3+AI30*Simulator!$O$12^2+AJ30*Simulator!$O$12+AK30 ->  | AM30: =INDEX(MasterTable[],MATCH(Simulator!$E33,MasterTable[P/N],0),COLUMN(MasterTable[T^3])) ->  | AN30: =INDEX(MasterTable[],MATCH(Simulator!$E33,MasterTable[P/N],0),COLUMN(MasterTable[T^2])) ->  | AO30: =INDEX(MasterTable[],MATCH(Simulator!$E33,MasterTable[P/N],0),COLUMN(MasterTable[T])) ->  | AP30: =INDEX(MasterTable[],MATCH(Simulator!$E33,MasterTable[P/N],0),COLUMN(MasterTable[T0])) ->  | AR30: =AL30+AQ30-AF30 ->  | AT30: =INDEX(MasterTable[],MATCH(Simulator!$E33,MasterTable[P/N],0),COLUMN(MasterTable['# of Die])) ->  | AV30: =INDEX(Tj_to_Vf6[],MATCH(Simulator!$I$8,Tj_to_Vf6[Vf],1),COLUMN(Tj_to_Vf6[Vf])) -> -0.5 | AX30: =IF(AND(Simulator!$I$8=25,Simulator!$O$12=Simulator!M42),AF30,AR30) -> 
B31: H15 | C31: =IF(Simulator!$L$8="Case",Simulator!$I$8,M31) -> 25 | D31: =Simulator!$O$12*AR31/1000 ->  | E31: =INDEX(MasterTable[],MATCH(Simulator!E34,MasterTable[P/N],0),COLUMN(MasterTable[Thermal Resistance])) ->  | F31: =C31+D31*E31 ->  | H31: =IF(Simulator!$L$8="Case",F31,Simulator!$I$8) ->  | I31: =Simulator!$O$12*AW31/1000 ->  | J31: =E31 ->  | M31: =IF(Simulator!$L$8="Case",Simulator!$I$8,K31) -> 25 | N31: =IF(Simulator!$L$8="Case",H31,Simulator!$I$8) ->  | O31: =IF(#REF!="Tj",N31,M31) ->  | Q31: =INDEX(MasterTable[],MATCH(Simulator!E34,MasterTable[P/N],0),COLUMN(MasterTable[Typical Lumens])) ->  | R31: =INDEX(MasterTable[],MATCH(Simulator!$E34,MasterTable[P/N],0),COLUMN(MasterTable[I^3])) ->  | S31: =INDEX(MasterTable[],MATCH(Simulator!$E34,MasterTable[P/N],0),COLUMN(MasterTable[I^2])) ->  | T31: =INDEX(MasterTable[],MATCH(Simulator!$E34,MasterTable[P/N],0),COLUMN(MasterTable[I])) ->  | U31: =INDEX(MasterTable[],MATCH(Simulator!$E34,MasterTable[P/N],0),COLUMN(MasterTable[I0])) ->  | V31: =IF(Simulator!$O$12=Simulator!M34,1,S31*Simulator!$O$12^2+T31*Simulator!$O$12+U31) ->  | W31: =INDEX(MasterTable[],MATCH(Simulator!$E34,MasterTable[P/N],0),COLUMN(MasterTable[F^4])) ->  | X31: =INDEX(MasterTable[],MATCH(Simulator!$E34,MasterTable[P/N],0),COLUMN(MasterTable[F^3])) ->  | Y31: =INDEX(MasterTable[],MATCH(Simulator!$E34,MasterTable[P/N],0),COLUMN(MasterTable[F^2])) ->  | Z31: =INDEX(MasterTable[],MATCH(Simulator!$E34,MasterTable[P/N],0),COLUMN(MasterTable[F])) ->  | AA31: =INDEX(MasterTable[],MATCH(Simulator!$E34,MasterTable[P/N],0),COLUMN(MasterTable[F0])) ->  | AB31: =IF(Simulator!$I$8=85,Calculations!AE31,W31*M31^4+X31*M31^3+Y31*M31^2+Z31*M31+AA31) ->  | AD31: =IF(AND(Simulator!$I$8=85,Simulator!$O$12=Simulator!M43),Q31*AE31,AC31) ->  | AE31: =VLOOKUP(MID(Simulator!E34,6,3),Data!$P$61:$Q$65,2,FALSE) ->  | AF31: =INDEX(MasterTable[],MATCH(Simulator!$E34,MasterTable[P/N],0),COLUMN(MasterTable[Typical Voltage])) ->  | AG31: =INDEX(MasterTable[],MATCH(Simulator!$E34,MasterTable[P/N],0),COLUMN(MasterTable[V^4])) ->  | AH31: =INDEX(MasterTable[],MATCH(Simulator!$E34,MasterTable[P/N],0),COLUMN(MasterTable[V^3])) ->  | AI31: =INDEX(MasterTable[],MATCH(Simulator!$E34,MasterTable[P/N],0),COLUMN(MasterTable[V^2])) ->  | AJ31: =INDEX(MasterTable[],MATCH(Simulator!$E34,MasterTable[P/N],0),COLUMN(MasterTable[V])) ->  | AK31: =INDEX(MasterTable[],MATCH(Simulator!$E34,MasterTable[P/N],0),COLUMN(MasterTable[V0])) ->  | AL31: =AG31*Simulator!$O$12^4+AH31*Simulator!$O$12^3+AI31*Simulator!$O$12^2+AJ31*Simulator!$O$12+AK31 ->  | AM31: =INDEX(MasterTable[],MATCH(Simulator!$E34,MasterTable[P/N],0),COLUMN(MasterTable[T^3])) ->  | AN31: =INDEX(MasterTable[],MATCH(Simulator!$E34,MasterTable[P/N],0),COLUMN(MasterTable[T^2])) ->  | AO31: =INDEX(MasterTable[],MATCH(Simulator!$E34,MasterTable[P/N],0),COLUMN(MasterTable[T])) ->  | AP31: =INDEX(MasterTable[],MATCH(Simulator!$E34,MasterTable[P/N],0),COLUMN(MasterTable[T0])) ->  | AT31: =INDEX(MasterTable[],MATCH(Simulator!$E34,MasterTable[P/N],0),COLUMN(MasterTable['# of Die])) ->  | AV31: =INDEX(Tj_to_Vf6[],MATCH(Simulator!$I$8,Tj_to_Vf6[Vf],1),COLUMN(Tj_to_Vf6[Vf])) -> -0.5 | AX31: =IF(AND(Simulator!$I$8=25,Simulator!$O$12=Simulator!M43),AF31,AR31) -> 
Z32: =INDEX(MasterTable[],MATCH(Simulator!$E35,MasterTable[P/N],0),COLUMN(MasterTable[F])) -> 
A33: Calculations using Lumen Input | C33: Converting Tc to Tj | H33: Converting Tj to Tc | Q33: Calculating Current | AF33: Calculating Voltage w/ Tc | AU33: Calculating Voltage w/ Tj
C34: Tj = Tc + Power*Thermal Resistance | H34: Tc = Tj - Power*Thermal Resistance | Q34: I=Fr@I*Eqn; Fr@I=Fro/Fr@T | AF34: Vf@Tc&I = Vf@I + Vf@Tc-Vft | AU34: Vf@Tj&I = Vf@I + Vf@Tj Modifier
C35: Tc | D35: Power | E35: Thermal Resistance | F35: Tc>>Tj | H35: Tj | I35: Power | J35: Thermal Resistance | K35: Tj>>Tc | M35: Tc | N35: Tj | O35: =IF(Simulator!$L$8="Case","Tj","Tc") -> Tj | Q35: Ft | R35: Fr@I Eqn | V35: Req'd I | X35: Fr@Tc Eqn | AB35: Fr@Tc | AC35: Fro | AE35: Fr@I | AF35: Vft | AH35: Vf@I Eqn | AL35: Vf@I | AM35: Vf@Tc Eqn | AQ35: Vf@Tc | AR35: Vf@Tc&I | AT35: # of Die | AU35: Vf@I | AV35: Vf@Tj Modifier, per Die | AW35: Vf@Tj&I | AX35: Voltage Report
B36: V6 | C36: =IF(Simulator!$L$8="Case",Simulator!$I$8,M36) -> 25 | D36: =Simulator!G42*AR36/1000 ->  | E36: =INDEX(MasterTable[],MATCH(Simulator!E42,MasterTable[P/N],0),COLUMN(MasterTable[Thermal Resistance])) ->  | F36: =C36+D36*E36 ->  | H36: =IF(Simulator!$L$8="Case",F36,Simulator!$I$8) ->  | I36: =Simulator!G42*AW36/1000 ->  | J36: =E36 ->  | K36: =H36-I36*J36 ->  | M36: =IF(Simulator!$L$8="Case",Simulator!$I$8,K36) -> 25 | N36: =IF(Simulator!$L$8="Case",H36,Simulator!$I$8) ->  | O36: =IF(#REF!="Tj",N36,M36) ->  | Q36: =INDEX(MasterTable[],MATCH(Simulator!E42,MasterTable[P/N],0),COLUMN(MasterTable[Typical Lumens])) ->  | R36: =INDEX(MasterTable[],MATCH(Simulator!$E42,MasterTable[P/N],0),COLUMN(MasterTable[I^3])) ->  | S36: =INDEX(MasterTable[],MATCH(Simulator!$E42,MasterTable[P/N],0),COLUMN(MasterTable[I^2])) ->  | T36: =INDEX(MasterTable[],MATCH(Simulator!$E42,MasterTable[P/N],0),COLUMN(MasterTable[I])) ->  | U36: =INDEX(MasterTable[],MATCH(Simulator!$E42,MasterTable[P/N],0),COLUMN(MasterTable[I0])) ->  | V36: =(-T36+SQRT(T36^2-4*S36*(U36-AE36)))/(2*S36) ->  | W36: =INDEX(MasterTable[],MATCH(Simulator!$E42,MasterTable[P/N],0),COLUMN(MasterTable[F^4])) ->  | X36: =INDEX(MasterTable[],MATCH(Simulator!$E42,MasterTable[P/N],0),COLUMN(MasterTable[F^3])) ->  | Y36: =INDEX(MasterTable[],MATCH(Simulator!$E42,MasterTable[P/N],0),COLUMN(MasterTable[F^2])) ->  | Z36: =INDEX(MasterTable[],MATCH(Simulator!$E42,MasterTable[P/N],0),COLUMN(MasterTable[F])) ->  | AA36: =INDEX(MasterTable[],MATCH(Simulator!$E42,MasterTable[P/N],0),COLUMN(MasterTable[F0])) ->  | AB36: =IF(Simulator!$I$8=85,Calculations!AE6,W36*M36^4+X36*M36^3+Y36*M36^2+Z36*M36+AA36) ->  | AC36: =Simulator!$O$38/Q36 ->  | AE36: =AC36/AB36 ->  | AF36: =INDEX(MasterTable[],MATCH(Simulator!$E42,MasterTable[P/N],0),COLUMN(MasterTable[Typical Voltage])) ->  | AG36: =INDEX(MasterTable[],MATCH(Simulator!$E42,MasterTable[P/N],0),COLUMN(MasterTable[V^4])) ->  | AH36: =INDEX(MasterTable[],MATCH(Simulator!$E42,MasterTable[P/N],0),COLUMN(MasterTable[V^3])) ->  | AI36: =INDEX(MasterTable[],MATCH(Simulator!$E42,MasterTable[P/N],0),COLUMN(MasterTable[V^2])) ->  | AJ36: =INDEX(MasterTable[],MATCH(Simulator!$E42,MasterTable[P/N],0),COLUMN(MasterTable[V])) ->  | AK36: =INDEX(MasterTable[],MATCH(Simulator!$E42,MasterTable[P/N],0),COLUMN(MasterTable[V0])) ->  | AL36: =AG36*V36^4+AH36*V36^3+AI36*V36^2+AJ36*V36+AK36 ->  | AM36: =INDEX(MasterTable[],MATCH(Simulator!$E42,MasterTable[P/N],0),COLUMN(MasterTable[T^3])) ->  | AN36: =INDEX(MasterTable[],MATCH(Simulator!$E42,MasterTable[P/N],0),COLUMN(MasterTable[T^2])) ->  | AO36: =INDEX(MasterTable[],MATCH(Simulator!$E42,MasterTable[P/N],0),COLUMN(MasterTable[T])) ->  | AP36: =INDEX(MasterTable[],MATCH(Simulator!$E42,MasterTable[P/N],0),COLUMN(MasterTable[T0])) ->  | AQ36: =AM36*M36^3+AN36*M36^2+AO36*M36+AP36 ->  | AR36: =AL36+AQ36-AF36 ->  | AT36: =INDEX(MasterTable[],MATCH(Simulator!$E42,MasterTable[P/N],0),COLUMN(MasterTable['# of Die])) ->  | AU36: =AL36 ->  | AV36: =INDEX(Tj_to_Vf6[],MATCH(Simulator!$I$8,Tj_to_Vf6[Vf],1),COLUMN(Tj_to_Vf6[Vf])) -> -0.5 | AW36: =AU36+AV36*AT36 ->  | AX36: =IF(Simulator!$I$8=25,AQ36,AR36) -> 
B37: V6 | C37: =IF(Simulator!$L$8="Case",Simulator!$I$8,M37) -> 25 | D37: =Simulator!G43*AR37/1000 ->  | E37: =INDEX(MasterTable[],MATCH(Simulator!E43,MasterTable[P/N],0),COLUMN(MasterTable[Thermal Resistance])) ->  | F37: =C37+D37*E37 ->  | H37: =IF(Simulator!$L$8="Case",F37,Simulator!$I$8) ->  | I37: =Simulator!G43*AW37/1000 ->  | J37: =E37 ->  | K37: =H37-I37*J37 ->  | M37: =IF(Simulator!$L$8="Case",Simulator!$I$8,K37) -> 25 | N37: =IF(Simulator!$L$8="Case",H37,Simulator!$I$8) ->  | O37: =IF(#REF!="Tj",N37,M37) ->  | Q37: =INDEX(MasterTable[],MATCH(Simulator!E43,MasterTable[P/N],0),COLUMN(MasterTable[Typical Lumens])) ->  | R37: =INDEX(MasterTable[],MATCH(Simulator!$E43,MasterTable[P/N],0),COLUMN(MasterTable[I^3])) ->  | S37: =INDEX(MasterTable[],MATCH(Simulator!$E43,MasterTable[P/N],0),COLUMN(MasterTable[I^2])) ->  | T37: =INDEX(MasterTable[],MATCH(Simulator!$E43,MasterTable[P/N],0),COLUMN(MasterTable[I])) ->  | U37: =INDEX(MasterTable[],MATCH(Simulator!$E43,MasterTable[P/N],0),COLUMN(MasterTable[I0])) ->  | V37: =(-T37+SQRT(T37^2-4*S37*(U37-AE37)))/(2*S37) ->  | W37: =INDEX(MasterTable[],MATCH(Simulator!$E43,MasterTable[P/N],0),COLUMN(MasterTable[F^4])) ->  | X37: =INDEX(MasterTable[],MATCH(Simulator!$E43,MasterTable[P/N],0),COLUMN(MasterTable[F^3])) ->  | Y37: =INDEX(MasterTable[],MATCH(Simulator!$E43,MasterTable[P/N],0),COLUMN(MasterTable[F^2])) ->  | Z37: =INDEX(MasterTable[],MATCH(Simulator!$E43,MasterTable[P/N],0),COLUMN(MasterTable[F])) ->  | AA37: =INDEX(MasterTable[],MATCH(Simulator!$E43,MasterTable[P/N],0),COLUMN(MasterTable[F0])) ->  | AB37: =IF(Simulator!$I$8=85,Calculations!AE7,W37*M37^4+X37*M37^3+Y37*M37^2+Z37*M37+AA37) ->  | AC37: =Simulator!$O$38/Q37 ->  | AE37: =AC37/AB37 ->  | AF37: =INDEX(MasterTable[],MATCH(Simulator!$E43,MasterTable[P/N],0),COLUMN(MasterTable[Typical Voltage])) ->  | AG37: =INDEX(MasterTable[],MATCH(Simulator!$E43,MasterTable[P/N],0),COLUMN(MasterTable[V^4])) ->  | AH37: =INDEX(MasterTable[],MATCH(Simulator!$E43,MasterTable[P/N],0),COLUMN(MasterTable[V^3])) ->  | AI37: =INDEX(MasterTable[],MATCH(Simulator!$E43,MasterTable[P/N],0),COLUMN(MasterTable[V^2])) ->  | AJ37: =INDEX(MasterTable[],MATCH(Simulator!$E43,MasterTable[P/N],0),COLUMN(MasterTable[V])) ->  | AK37: =INDEX(MasterTable[],MATCH(Simulator!$E43,MasterTable[P/N],0),COLUMN(MasterTable[V0])) ->  | AL37: =AG37*V37^4+AH37*V37^3+AI37*V37^2+AJ37*V37+AK37 ->  | AM37: =INDEX(MasterTable[],MATCH(Simulator!$E43,MasterTable[P/N],0),COLUMN(MasterTable[T^3])) ->  | AN37: =INDEX(MasterTable[],MATCH(Simulator!$E43,MasterTable[P/N],0),COLUMN(MasterTable[T^2])) ->  | AO37: =INDEX(MasterTable[],MATCH(Simulator!$E43,MasterTable[P/N],0),COLUMN(MasterTable[T])) ->  | AP37: =INDEX(MasterTable[],MATCH(Simulator!$E43,MasterTable[P/N],0),COLUMN(MasterTable[T0])) ->  | AQ37: =AM37*M37^3+AN37*M37^2+AO37*M37+AP37 ->  | AR37: =AL37+AQ37-AF37 ->  | AT37: =INDEX(MasterTable[],MATCH(Simulator!$E43,MasterTable[P/N],0),COLUMN(MasterTable['# of Die])) ->  | AU37: =AL37 ->  | AV37: =INDEX(Tj_to_Vf6[],MATCH(Simulator!$I$8,Tj_to_Vf6[Vf],1),COLUMN(Tj_to_Vf6[Vf])) -> -0.5 | AW37: =AU37+AV37*AT37 ->  | AX37: =IF(Simulator!$I$8=25,AQ37,AR37) -> 
B38: V8 | C38: =IF(Simulator!$L$8="Case",Simulator!$I$8,M38) -> 25 | D38: =Simulator!G44*AR38/1000 ->  | E38: =INDEX(MasterTable[],MATCH(Simulator!E44,MasterTable[P/N],0),COLUMN(MasterTable[Thermal Resistance])) ->  | F38: =C38+D38*E38 ->  | H38: =IF(Simulator!$L$8="Case",F38,Simulator!$I$8) ->  | I38: =Simulator!G44*AW38/1000 ->  | J38: =E38 ->  | K38: =H38-I38*J38 ->  | M38: =IF(Simulator!$L$8="Case",Simulator!$I$8,K38) -> 25 | N38: =IF(Simulator!$L$8="Case",H38,Simulator!$I$8) ->  | O38: =IF(#REF!="Tj",N38,M38) ->  | Q38: =INDEX(MasterTable[],MATCH(Simulator!E44,MasterTable[P/N],0),COLUMN(MasterTable[Typical Lumens])) ->  | R38: =INDEX(MasterTable[],MATCH(Simulator!$E44,MasterTable[P/N],0),COLUMN(MasterTable[I^3])) ->  | S38: =INDEX(MasterTable[],MATCH(Simulator!$E44,MasterTable[P/N],0),COLUMN(MasterTable[I^2])) ->  | T38: =INDEX(MasterTable[],MATCH(Simulator!$E44,MasterTable[P/N],0),COLUMN(MasterTable[I])) ->  | U38: =INDEX(MasterTable[],MATCH(Simulator!$E44,MasterTable[P/N],0),COLUMN(MasterTable[I0])) ->  | V38: =(-T38+SQRT(T38^2-4*S38*(U38-AE38)))/(2*S38) ->  | W38: =INDEX(MasterTable[],MATCH(Simulator!$E44,MasterTable[P/N],0),COLUMN(MasterTable[F^4])) ->  | X38: =INDEX(MasterTable[],MATCH(Simulator!$E44,MasterTable[P/N],0),COLUMN(MasterTable[F^3])) ->  | Y38: =INDEX(MasterTable[],MATCH(Simulator!$E44,MasterTable[P/N],0),COLUMN(MasterTable[F^2])) ->  | Z38: =INDEX(MasterTable[],MATCH(Simulator!$E44,MasterTable[P/N],0),COLUMN(MasterTable[F])) ->  | AA38: =INDEX(MasterTable[],MATCH(Simulator!$E44,MasterTable[P/N],0),COLUMN(MasterTable[F0])) ->  | AB38: =IF(Simulator!$I$8=85,Calculations!AE8,W38*M38^4+X38*M38^3+Y38*M38^2+Z38*M38+AA38) ->  | AC38: =Simulator!$O$38/Q38 ->  | AE38: =AC38/AB38 ->  | AF38: =INDEX(MasterTable[],MATCH(Simulator!$E44,MasterTable[P/N],0),COLUMN(MasterTable[Typical Voltage])) ->  | AG38: =INDEX(MasterTable[],MATCH(Simulator!$E44,MasterTable[P/N],0),COLUMN(MasterTable[V^4])) ->  | AH38: =INDEX(MasterTable[],MATCH(Simulator!$E44,MasterTable[P/N],0),COLUMN(MasterTable[V^3])) ->  | AI38: =INDEX(MasterTable[],MATCH(Simulator!$E44,MasterTable[P/N],0),COLUMN(MasterTable[V^2])) ->  | AJ38: =INDEX(MasterTable[],MATCH(Simulator!$E44,MasterTable[P/N],0),COLUMN(MasterTable[V])) ->  | AK38: =INDEX(MasterTable[],MATCH(Simulator!$E44,MasterTable[P/N],0),COLUMN(MasterTable[V0])) ->  | AM38: =INDEX(MasterTable[],MATCH(Simulator!$E44,MasterTable[P/N],0),COLUMN(MasterTable[T^3])) ->  | AN38: =INDEX(MasterTable[],MATCH(Simulator!$E44,MasterTable[P/N],0),COLUMN(MasterTable[T^2])) ->  | AO38: =INDEX(MasterTable[],MATCH(Simulator!$E44,MasterTable[P/N],0),COLUMN(MasterTable[T])) ->  | AP38: =INDEX(MasterTable[],MATCH(Simulator!$E44,MasterTable[P/N],0),COLUMN(MasterTable[T0])) ->  | AT38: =INDEX(MasterTable[],MATCH(Simulator!$E44,MasterTable[P/N],0),COLUMN(MasterTable['# of Die])) ->  | AU38: =AL38 ->  | AV38: =INDEX(Tj_to_Vf6[],MATCH(Simulator!$I$8,Tj_to_Vf6[Vf],1),COLUMN(Tj_to_Vf6[Vf])) -> -0.5 | AW38: =AU38+AV38*AT38 ->  | AX38: =IF(Simulator!$I$8=25,AQ38,AR38) -> 
B39: V8 | C39: =IF(Simulator!$L$8="Case",Simulator!$I$8,M39) -> 25 | D39: =Simulator!G45*AR39/1000 -> 0.3100565067 | E39: =INDEX(MasterTable[],MATCH(Simulator!E45,MasterTable[P/N],0),COLUMN(MasterTable[Thermal Resistance])) -> 0.71 | F39: =C39+D39*E39 -> 25.22014012 | H39: =IF(Simulator!$L$8="Case",F39,Simulator!$I$8) -> 25.22014012 | I39: =Simulator!G45*AW39/1000 -> 0.2500565067 | J39: =E39 -> 0.71 | K39: =H39-I39*J39 -> 25.0426 | M39: =IF(Simulator!$L$8="Case",Simulator!$I$8,K39) -> 25 | N39: =IF(Simulator!$L$8="Case",H39,Simulator!$I$8) -> 25.22014012 | O39: =IF(#REF!="Tj",N39,M39) ->  | Q39: =INDEX(MasterTable[],MATCH(Simulator!E45,MasterTable[P/N],0),COLUMN(MasterTable[Typical Lumens])) -> 716 | R39: =INDEX(MasterTable[],MATCH(Simulator!$E45,MasterTable[P/N],0),COLUMN(MasterTable[I^3])) -> 0 | S39: =INDEX(MasterTable[],MATCH(Simulator!$E45,MasterTable[P/N],0),COLUMN(MasterTable[I^2])) -> -4.104724498e-06 | T39: =INDEX(MasterTable[],MATCH(Simulator!$E45,MasterTable[P/N],0),COLUMN(MasterTable[I])) -> 0.006375931247 | U39: =INDEX(MasterTable[],MATCH(Simulator!$E45,MasterTable[P/N],0),COLUMN(MasterTable[I0])) -> 0.007264776006 | V39: =(-T39+SQRT(T39^2-4*S39*(U39-AE39)))/(2*S39) -> 7.672417033 | W39: =INDEX(MasterTable[],MATCH(Simulator!$E45,MasterTable[P/N],0),COLUMN(MasterTable[F^4])) -> 0 | X39: =INDEX(MasterTable[],MATCH(Simulator!$E45,MasterTable[P/N],0),COLUMN(MasterTable[F^3])) -> 0 | Y39: =INDEX(MasterTable[],MATCH(Simulator!$E45,MasterTable[P/N],0),COLUMN(MasterTable[F^2])) -> -6.624324439e-06 | Z39: =INDEX(MasterTable[],MATCH(Simulator!$E45,MasterTable[P/N],0),COLUMN(MasterTable[F])) -> -0.001127836986 | AA39: =INDEX(MasterTable[],MATCH(Simulator!$E45,MasterTable[P/N],0),COLUMN(MasterTable[F0])) -> 1.030977057 | AB39: =IF(Simulator!$I$8=85,Calculations!AE9,W39*M39^4+X39*M39^3+Y39*M39^2+Z39*M39+AA39) -> 0.9986409292 | AC39: =Simulator!$O$38/Q39 -> 0.05586592179 | AE39: =AC39/AB39 -> 0.05594195086 | AF39: =INDEX(MasterTable[],MATCH(Simulator!$E45,MasterTable[P/N],0),COLUMN(MasterTable[Typical Voltage])) -> 35.6 | AG39: =INDEX(MasterTable[],MATCH(Simulator!$E45,MasterTable[P/N],0),COLUMN(MasterTable[V^4])) -> -1e-09 | AH39: =INDEX(MasterTable[],MATCH(Simulator!$E45,MasterTable[P/N],0),COLUMN(MasterTable[V^3])) -> 8.66e-07 | AI39: =INDEX(MasterTable[],MATCH(Simulator!$E45,MasterTable[P/N],0),COLUMN(MasterTable[V^2])) -> -0.000271 | AJ39: =INDEX(MasterTable[],MATCH(Simulator!$E45,MasterTable[P/N],0),COLUMN(MasterTable[V])) -> 0.0549 | AK39: =INDEX(MasterTable[],MATCH(Simulator!$E45,MasterTable[P/N],0),COLUMN(MasterTable[V0])) -> 30.6 | AL39: 31.00565067 | AM39: =INDEX(MasterTable[],MATCH(Simulator!$E45,MasterTable[P/N],0),COLUMN(MasterTable[T^3])) -> 0 | AN39: =INDEX(MasterTable[],MATCH(Simulator!$E45,MasterTable[P/N],0),COLUMN(MasterTable[T^2])) -> 0 | AO39: =INDEX(MasterTable[],MATCH(Simulator!$E45,MasterTable[P/N],0),COLUMN(MasterTable[T])) -> -0.017 | AP39: =INDEX(MasterTable[],MATCH(Simulator!$E45,MasterTable[P/N],0),COLUMN(MasterTable[T0])) -> 36.025 | AQ39: 35.6 | AR39: 31.00565067 | AT39: =INDEX(MasterTable[],MATCH(Simulator!$E45,MasterTable[P/N],0),COLUMN(MasterTable['# of Die])) -> 12 | AU39: =AL39 -> 31.00565067 | AV39: =INDEX(Tj_to_Vf6[],MATCH(Simulator!$I$8,Tj_to_Vf6[Vf],1),COLUMN(Tj_to_Vf6[Vf])) -> -0.5 | AW39: =AU39+AV39*AT39 -> 25.00565067 | AX39: =IF(Simulator!$I$8=25,AQ39,AR39) -> 35.6
B40: V8 | C40: =IF(Simulator!$L$8="Case",Simulator!$I$8,M40) -> 25 | D40: =Simulator!G46*AR40/1000 -> 0.2329934518 | E40: =INDEX(MasterTable[],MATCH(Simulator!E46,MasterTable[P/N],0),COLUMN(MasterTable[Thermal Resistance])) -> 0.71 | F40: =C40+D40*E40 -> 25.16542535 | H40: =IF(Simulator!$L$8="Case",F40,Simulator!$I$8) -> 25.16542535 | I40: =Simulator!G46*AW40/1000 -> 0.1429934518 | J40: =E40 -> 0.71 | K40: =H40-I40*J40 -> 25.0639 | M40: =IF(Simulator!$L$8="Case",Simulator!$I$8,K40) -> 25 | N40: =IF(Simulator!$L$8="Case",H40,Simulator!$I$8) -> 25.16542535 | O40: =IF(#REF!="Tj",N40,M40) ->  | Q40: =INDEX(MasterTable[],MATCH(Simulator!E46,MasterTable[P/N],0),COLUMN(MasterTable[Typical Lumens])) -> 716 | R40: =INDEX(MasterTable[],MATCH(Simulator!$E46,MasterTable[P/N],0),COLUMN(MasterTable[I^3])) -> 0 | S40: =INDEX(MasterTable[],MATCH(Simulator!$E46,MasterTable[P/N],0),COLUMN(MasterTable[I^2])) -> -1.026181124e-06 | T40: =INDEX(MasterTable[],MATCH(Simulator!$E46,MasterTable[P/N],0),COLUMN(MasterTable[I])) -> 0.003187965624 | U40: =INDEX(MasterTable[],MATCH(Simulator!$E46,MasterTable[P/N],0),COLUMN(MasterTable[I0])) -> 0.007264776006 | V40: =(-T40+SQRT(T40^2-4*S40*(U40-AE40)))/(2*S40) -> 15.34483406 | W40: =INDEX(MasterTable[],MATCH(Simulator!$E46,MasterTable[P/N],0),COLUMN(MasterTable[F^4])) -> 0 | X40: =INDEX(MasterTable[],MATCH(Simulator!$E46,MasterTable[P/N],0),COLUMN(MasterTable[F^3])) -> 0 | Y40: =INDEX(MasterTable[],MATCH(Simulator!$E46,MasterTable[P/N],0),COLUMN(MasterTable[F^2])) -> -6.624324439e-06 | Z40: =INDEX(MasterTable[],MATCH(Simulator!$E46,MasterTable[P/N],0),COLUMN(MasterTable[F])) -> -0.001127836986 | AA40: =INDEX(MasterTable[],MATCH(Simulator!$E46,MasterTable[P/N],0),COLUMN(MasterTable[F0])) -> 1.030977057 | AB40: =IF(Simulator!$I$8=85,Calculations!AE10,W40*M40^4+X40*M40^3+Y40*M40^2+Z40*M40+AA40) -> 0.9986409292 | AC40: =Simulator!$O$38/Q40 -> 0.05586592179 | AE40: =AC40/AB40 -> 0.05594195086 | AF40: =INDEX(MasterTable[],MATCH(Simulator!$E46,MasterTable[P/N],0),COLUMN(MasterTable[Typical Voltage])) -> 17.8 | AG40: =INDEX(MasterTable[],MATCH(Simulator!$E46,MasterTable[P/N],0),COLUMN(MasterTable[V^4])) -> -7.438265024e-11 | AH40: =INDEX(MasterTable[],MATCH(Simulator!$E46,MasterTable[P/N],0),COLUMN(MasterTable[V^3])) -> 9.436062914e-08 | AI40: =INDEX(MasterTable[],MATCH(Simulator!$E46,MasterTable[P/N],0),COLUMN(MasterTable[V^2])) -> -4.439420342e-05 | AJ40: =INDEX(MasterTable[],MATCH(Simulator!$E46,MasterTable[P/N],0),COLUMN(MasterTable[V])) -> 0.01425199524 | AK40: =INDEX(MasterTable[],MATCH(Simulator!$E46,MasterTable[P/N],0),COLUMN(MasterTable[V0])) -> 15.3243187 | AL40: 15.53289679 | AM40: =INDEX(MasterTable[],MATCH(Simulator!$E46,MasterTable[P/N],0),COLUMN(MasterTable[T^3])) -> 0 | AN40: =INDEX(MasterTable[],MATCH(Simulator!$E46,MasterTable[P/N],0),COLUMN(MasterTable[T^2])) -> 0 | AO40: =INDEX(MasterTable[],MATCH(Simulator!$E46,MasterTable[P/N],0),COLUMN(MasterTable[T])) -> -0.007 | AP40: =INDEX(MasterTable[],MATCH(Simulator!$E46,MasterTable[P/N],0),COLUMN(MasterTable[T0])) -> 17.975 | AQ40: 17.8 | AR40: 15.53289679 | AT40: =INDEX(MasterTable[],MATCH(Simulator!$E46,MasterTable[P/N],0),COLUMN(MasterTable['# of Die])) -> 12 | AU40: =AL40 -> 15.53289679 | AV40: =INDEX(Tj_to_Vf6[],MATCH(Simulator!$I$8,Tj_to_Vf6[Vf],1),COLUMN(Tj_to_Vf6[Vf])) -> -0.5 | AW40: =AU40+AV40*AT40 -> 9.532896789 | AX40: =IF(Simulator!$I$8=25,AQ40,AR40) -> 17.8
B41: V10 | C41: =IF(Simulator!$L$8="Case",Simulator!$I$8,M41) -> 25 | D41: =Simulator!G47*AR41/1000 -> 0.2290568359 | E41: =INDEX(MasterTable[],MATCH(Simulator!E47,MasterTable[P/N],0),COLUMN(MasterTable[Thermal Resistance])) -> 0.47 | F41: 25.10765671 | H41: =IF(Simulator!$L$8="Case",F41,Simulator!$I$8) -> 25.10765671 | I41: =Simulator!G47*AW41/1000 -> 0.1390568359 | J41: 0.47 | K41: 25.0423 | M41: =IF(Simulator!$L$8="Case",Simulator!$I$8,K41) -> 25 | N41: =IF(Simulator!$L$8="Case",H41,Simulator!$I$8) -> 25.10765671 | O41: =IF(#REF!="Tj",N41,M41) ->  | Q41: =INDEX(MasterTable[],MATCH(Simulator!E47,MasterTable[P/N],0),COLUMN(MasterTable[Typical Lumens])) -> 1076 | R41: =INDEX(MasterTable[],MATCH(Simulator!$E47,MasterTable[P/N],0),COLUMN(MasterTable[I^3])) -> 0 | S41: =INDEX(MasterTable[],MATCH(Simulator!$E47,MasterTable[P/N],0),COLUMN(MasterTable[I^2])) -> -8.239e-07 | T41: =INDEX(MasterTable[],MATCH(Simulator!$E47,MasterTable[P/N],0),COLUMN(MasterTable[I])) -> 0.003154621 | U41: =INDEX(MasterTable[],MATCH(Simulator!$E47,MasterTable[P/N],0),COLUMN(MasterTable[I0])) -> 0 | V41: 11.82680376 | W41: =INDEX(MasterTable[],MATCH(Simulator!$E47,MasterTable[P/N],0),COLUMN(MasterTable[F^4])) -> 0 | X41: =INDEX(MasterTable[],MATCH(Simulator!$E47,MasterTable[P/N],0),COLUMN(MasterTable[F^3])) -> 0 | Y41: =INDEX(MasterTable[],MATCH(Simulator!$E47,MasterTable[P/N],0),COLUMN(MasterTable[F^2])) -> -4.8575e-06 | Z41: =INDEX(MasterTable[],MATCH(Simulator!$E47,MasterTable[P/N],0),COLUMN(MasterTable[F])) -> -0.0011899887 | AA41: =INDEX(MasterTable[],MATCH(Simulator!$E47,MasterTable[P/N],0),COLUMN(MasterTable[F0])) -> 1.032271572 | AB41: =IF(Simulator!$I$8=85,Calculations!AE11,W41*M41^4+X41*M41^3+Y41*M41^2+Z41*M41+AA41) -> 0.9994859173 | AC41: =Simulator!$O$38/Q41 -> 0.03717472119 | AE41: 0.0371938419 | AF41: =INDEX(MasterTable[],MATCH(Simulator!$E47,MasterTable[P/N],0),COLUMN(MasterTable[Typical Voltage])) -> 26.5 | AG41: =INDEX(MasterTable[],MATCH(Simulator!$E47,MasterTable[P/N],0),COLUMN(MasterTable[V^4])) -> -3.21e-11 | AH41: =INDEX(MasterTable[],MATCH(Simulator!$E47,MasterTable[P/N],0),COLUMN(MasterTable[V^3])) -> 5.48e-08 | AI41: =INDEX(MasterTable[],MATCH(Simulator!$E47,MasterTable[P/N],0),COLUMN(MasterTable[V^2])) -> -3.52e-05 | AJ41: =INDEX(MasterTable[],MATCH(Simulator!$E47,MasterTable[P/N],0),COLUMN(MasterTable[V])) -> 0.0178 | AK41: =INDEX(MasterTable[],MATCH(Simulator!$E47,MasterTable[P/N],0),COLUMN(MasterTable[V0])) -> 22.7 | AL41: 22.90568359 | AM41: =INDEX(MasterTable[],MATCH(Simulator!$E47,MasterTable[P/N],0),COLUMN(MasterTable[T^3])) -> 0 | AN41: =INDEX(MasterTable[],MATCH(Simulator!$E47,MasterTable[P/N],0),COLUMN(MasterTable[T^2])) -> 0 | AO41: =INDEX(MasterTable[],MATCH(Simulator!$E47,MasterTable[P/N],0),COLUMN(MasterTable[T])) -> -0.014 | AP41: =INDEX(MasterTable[],MATCH(Simulator!$E47,MasterTable[P/N],0),COLUMN(MasterTable[T0])) -> 26.85 | AQ41: 26.5 | AR41: 22.90568359 | AT41: =INDEX(MasterTable[],MATCH(Simulator!$E47,MasterTable[P/N],0),COLUMN(MasterTable['# of Die])) -> 18 | AU41: 22.90568359 | AV41: =INDEX(Tj_to_Vf6[],MATCH(Simulator!$I$8,Tj_to_Vf6[Vf],1),COLUMN(Tj_to_Vf6[Vf])) -> -0.5 | AW41: 13.90568359 | AX41: =IF(Simulator!$I$8=25,AQ41,AR41) -> 26.5
B42: V13 | C42: =IF(Simulator!$L$8="Case",Simulator!$I$8,M42) -> 25 | D42: =Simulator!G48*AR42/1000 -> 0.1411200684 | E42: =INDEX(MasterTable[],MATCH(Simulator!E48,MasterTable[P/N],0),COLUMN(MasterTable[Thermal Resistance])) -> 0.22 | F42: =C42+D42*E42 -> 25.03104642 | H42: =IF(Simulator!$L$8="Case",F42,Simulator!$I$8) -> 25.03104642 | I42: =Simulator!G48*AW42/1000 -> 0.05862006838 | J42: =E42 -> 0.22 | K42: =H42-I42*J42 -> 25.01815 | M42: =IF(Simulator!$L$8="Case",Simulator!$I$8,K42) -> 25 | N42: =IF(Simulator!$L$8="Case",H42,Simulator!$I$8) -> 25.03104642 | O42: =IF(#REF!="Tj",N42,M42) ->  | Q42: =INDEX(MasterTable[],MATCH(Simulator!E48,MasterTable[P/N],0),COLUMN(MasterTable[Typical Lumens])) -> 1900 | R42: =INDEX(MasterTable[],MATCH(Simulator!$E48,MasterTable[P/N],0),COLUMN(MasterTable[I^3])) -> 0 | S42: =INDEX(MasterTable[],MATCH(Simulator!$E48,MasterTable[P/N],0),COLUMN(MasterTable[I^2])) -> -5.205657701e-07 | T42: =INDEX(MasterTable[],MATCH(Simulator!$E48,MasterTable[P/N],0),COLUMN(MasterTable[I])) -> 0.002252976347 | U42: =INDEX(MasterTable[],MATCH(Simulator!$E48,MasterTable[P/N],0),COLUMN(MasterTable[I0])) -> 0.004831192823 | V42: =(-T42+SQRT(T42^2-4*S42*(U42-AE42)))/(2*S42) -> 7.251152418 | W42: =INDEX(MasterTable[],MATCH(Simulator!$E48,MasterTable[P/N],0),COLUMN(MasterTable[F^4])) -> 0 | X42: =INDEX(MasterTable[],MATCH(Simulator!$E48,MasterTable[P/N],0),COLUMN(MasterTable[F^3])) -> -1.02e-07 | Y42: =INDEX(MasterTable[],MATCH(Simulator!$E48,MasterTable[P/N],0),COLUMN(MasterTable[F^2])) -> 1.27e-05 | Z42: =INDEX(MasterTable[],MATCH(Simulator!$E48,MasterTable[P/N],0),COLUMN(MasterTable[F])) -> -0.00202 | AA42: =INDEX(MasterTable[],MATCH(Simulator!$E48,MasterTable[P/N],0),COLUMN(MasterTable[F0])) -> 1.04 | AB42: =IF(Simulator!$I$8=85,Calculations!AE12,W42*M42^4+X42*M42^3+Y42*M42^2+Z42*M42+AA42) -> 0.99584375 | AC42: =Simulator!$O$38/Q42 -> 0.02105263158 | AE42: 0.02114049677 | AF42: =INDEX(MasterTable[],MATCH(Simulator!$E48,MasterTable[P/N],0),COLUMN(MasterTable[Typical Voltage])) -> 32.3 | AG42: =INDEX(MasterTable[],MATCH(Simulator!$E48,MasterTable[P/N],0),COLUMN(MasterTable[V^4])) -> -9.507660402e-12 | AH42: =INDEX(MasterTable[],MATCH(Simulator!$E48,MasterTable[P/N],0),COLUMN(MasterTable[V^3])) -> 2.442828661e-08 | AI42: =INDEX(MasterTable[],MATCH(Simulator!$E48,MasterTable[P/N],0),COLUMN(MasterTable[V^2])) -> -2.316924658e-05 | AJ42: =INDEX(MasterTable[],MATCH(Simulator!$E48,MasterTable[P/N],0),COLUMN(MasterTable[V])) -> 0.01497049422 | AK42: =INDEX(MasterTable[],MATCH(Simulator!$E48,MasterTable[P/N],0),COLUMN(MasterTable[V0])) -> 28.11666927 | AL42: =AG42*V42^4+AH42*V42^3+AI42*V42^2+AJ42*V42+AK42 -> 28.22401368 | AM42: =INDEX(MasterTable[],MATCH(Simulator!$E48,MasterTable[P/N],0),COLUMN(MasterTable[T^3])) -> 0 | AN42: =INDEX(MasterTable[],MATCH(Simulator!$E48,MasterTable[P/N],0),COLUMN(MasterTable[T^2])) -> 0 | AO42: =INDEX(MasterTable[],MATCH(Simulator!$E48,MasterTable[P/N],0),COLUMN(MasterTable[T])) -> -0.017 | AP42: =INDEX(MasterTable[],MATCH(Simulator!$E48,MasterTable[P/N],0),COLUMN(MasterTable[T0])) -> 32.725 | AQ42: =AM42*M42^3+AN42*M42^2+AO42*M42+AP42 -> 32.3 | AR42: =AL42+AQ42-AF42 -> 28.22401368 | AT42: =INDEX(MasterTable[],MATCH(Simulator!$E48,MasterTable[P/N],0),COLUMN(MasterTable['# of Die])) -> 33 | AU42: =AL42 -> 28.22401368 | AV42: =INDEX(Tj_to_Vf6[],MATCH(Simulator!$I$8,Tj_to_Vf6[Vf],1),COLUMN(Tj_to_Vf6[Vf])) -> -0.5 | AW42: =AU42+AV42*AT42 -> 11.72401368 | AX42: =IF(Simulator!$I$8=25,AQ42,AR42) -> 32.3
B43: V15 | C43: =IF(Simulator!$L$8="Case",Simulator!$I$8,M43) -> 25 | D43: =Simulator!G49*AR43/1000 -> 0.3130294292 | E43: =INDEX(MasterTable[],MATCH(Simulator!E49,MasterTable[P/N],0),COLUMN(MasterTable[Thermal Resistance])) -> 0.16 | F43: 25.05008471 | H43: =IF(Simulator!$L$8="Case",F43,Simulator!$I$8) -> 25.05008471 | I43: =Simulator!G49*AW43/1000 -> 0.07302942925 | J43: 0.16 | K43: 25.0384 | M43: =IF(Simulator!$L$8="Case",Simulator!$I$8,K43) -> 25 | N43: =IF(Simulator!$L$8="Case",H43,Simulator!$I$8) -> 25.05008471 | O43: =IF(#REF!="Tj",N43,M43) ->  | Q43: =INDEX(MasterTable[],MATCH(Simulator!E49,MasterTable[P/N],0),COLUMN(MasterTable[Typical Lumens])) -> 2822 | R43: =INDEX(MasterTable[],MATCH(Simulator!$E49,MasterTable[P/N],0),COLUMN(MasterTable[I^3])) -> 0 | S43: =INDEX(MasterTable[],MATCH(Simulator!$E49,MasterTable[P/N],0),COLUMN(MasterTable[I^2])) -> -2.826e-07 | T43: =INDEX(MasterTable[],MATCH(Simulator!$E49,MasterTable[P/N],0),COLUMN(MasterTable[I])) -> 0.0016303876 | U43: =INDEX(MasterTable[],MATCH(Simulator!$E49,MasterTable[P/N],0),COLUMN(MasterTable[I0])) -> 0 | V43: =(-T43+SQRT(T43^2-4*S43*(U43-AE43)))/(2*S43) -> 8.730192941 | W43: =INDEX(MasterTable[],MATCH(Simulator!$E49,MasterTable[P/N],0),COLUMN(MasterTable[F^4])) -> 0 | X43: =INDEX(MasterTable[],MATCH(Simulator!$E49,MasterTable[P/N],0),COLUMN(MasterTable[F^3])) -> 0 | Y43: =INDEX(MasterTable[],MATCH(Simulator!$E49,MasterTable[P/N],0),COLUMN(MasterTable[F^2])) -> -5.261e-06 | Z43: =INDEX(MasterTable[],MATCH(Simulator!$E49,MasterTable[P/N],0),COLUMN(MasterTable[F])) -> -0.0011508107 | AA43: =INDEX(MasterTable[],MATCH(Simulator!$E49,MasterTable[P/N],0),COLUMN(MasterTable[F0])) -> 1.029404649 | AB43: =IF(Simulator!$I$8=85,Calculations!AE13,W43*M43^4+X43*M43^3+Y43*M43^2+Z43*M43+AA43) -> 0.9973462564 | AC43: =Simulator!$O$38/Q43 -> 0.01417434444 | AE43: =AC43/AB43 -> 0.0142120596 | AF43: =INDEX(MasterTable[],MATCH(Simulator!$E49,MasterTable[P/N],0),COLUMN(MasterTable[Typical Voltage])) -> 36 | AG43: =INDEX(MasterTable[],MATCH(Simulator!$E49,MasterTable[P/N],0),COLUMN(MasterTable[V^4])) -> -2.7e-12 | AH43: =INDEX(MasterTable[],MATCH(Simulator!$E49,MasterTable[P/N],0),COLUMN(MasterTable[V^3])) -> 9.54e-09 | AI43: =INDEX(MasterTable[],MATCH(Simulator!$E49,MasterTable[P/N],0),COLUMN(MasterTable[V^2])) -> -1.25e-05 | AJ43: =INDEX(MasterTable[],MATCH(Simulator!$E49,MasterTable[P/N],0),COLUMN(MasterTable[V])) -> 0.0119 | AK43: =INDEX(MasterTable[],MATCH(Simulator!$E49,MasterTable[P/N],0),COLUMN(MasterTable[V0])) -> 31.2 | AL43: =AG43*V43^4+AH43*V43^3+AI43*V43^2+AJ43*V43+AK43 -> 31.30294292 | AM43: =INDEX(MasterTable[],MATCH(Simulator!$E49,MasterTable[P/N],0),COLUMN(MasterTable[T^3])) -> 0 | AN43: =INDEX(MasterTable[],MATCH(Simulator!$E49,MasterTable[P/N],0),COLUMN(MasterTable[T^2])) -> 0 | AO43: =INDEX(MasterTable[],MATCH(Simulator!$E49,MasterTable[P/N],0),COLUMN(MasterTable[T])) -> -0.017 | AP43: =INDEX(MasterTable[],MATCH(Simulator!$E49,MasterTable[P/N],0),COLUMN(MasterTable[T0])) -> 36.425 | AQ43: =AM43*M43^3+AN43*M43^2+AO43*M43+AP43 -> 36 | AR43: =AL43+AQ43-AF43 -> 31.30294292 | AT43: =INDEX(MasterTable[],MATCH(Simulator!$E49,MasterTable[P/N],0),COLUMN(MasterTable['# of Die])) -> 48 | AU43: =AL43 -> 31.30294292 | AV43: =INDEX(Tj_to_Vf6[],MATCH(Simulator!$I$8,Tj_to_Vf6[Vf],1),COLUMN(Tj_to_Vf6[Vf])) -> -0.5 | AW43: =AU43+AV43*AT43 -> 7.302942925 | AX43: =IF(Simulator!$I$8=25,AQ43,AR43) -> 36
B44: V18 | C44: =IF(Simulator!$L$8="Case",Simulator!$I$8,M44) -> 25 | D44: =Simulator!G50*AR44/1000 -> 0.1278249051 | E44: =INDEX(MasterTable[],MATCH(Simulator!E50,MasterTable[P/N],0),COLUMN(MasterTable[Thermal Resistance])) -> 0.13 | F44: =C44+D44*E44 -> 25.01661724 | H44: =IF(Simulator!$L$8="Case",F44,Simulator!$I$8) -> 25.01661724 | I44: =Simulator!G50*AW44/1000 -> -0.02217509487 | J44: =E44 -> 0.13 | K44: =H44-I44*J44 -> 25.0195 | M44: =IF(Simulator!$L$8="Case",Simulator!$I$8,K44) -> 25 | N44: =IF(Simulator!$L$8="Case",H44,Simulator!$I$8) -> 25.01661724 | O44: =IF(#REF!="Tj",N44,M44) ->  | Q44: =INDEX(MasterTable[],MATCH(Simulator!E50,MasterTable[P/N],0),COLUMN(MasterTable[Typical Lumens])) -> 3670 | R44: =INDEX(MasterTable[],MATCH(Simulator!$E50,MasterTable[P/N],0),COLUMN(MasterTable[I^3])) -> 0 | S44: =INDEX(MasterTable[],MATCH(Simulator!$E50,MasterTable[P/N],0),COLUMN(MasterTable[I^2])) -> -1.310602506e-07 | T44: =INDEX(MasterTable[],MATCH(Simulator!$E50,MasterTable[P/N],0),COLUMN(MasterTable[I])) -> 0.001087869998 | U44: =INDEX(MasterTable[],MATCH(Simulator!$E50,MasterTable[P/N],0),COLUMN(MasterTable[I0])) -> 0.004288345554 | V44: 6.094732751 | W44: =INDEX(MasterTable[],MATCH(Simulator!$E50,MasterTable[P/N],0),COLUMN(MasterTable[F^4])) -> 0 | X44: =INDEX(MasterTable[],MATCH(Simulator!$E50,MasterTable[P/N],0),COLUMN(MasterTable[F^3])) -> -1.84258e-07 | Y44: =INDEX(MasterTable[],MATCH(Simulator!$E50,MasterTable[P/N],0),COLUMN(MasterTable[F^2])) -> 2.50682e-05 | Z44: =INDEX(MasterTable[],MATCH(Simulator!$E50,MasterTable[P/N],0),COLUMN(MasterTable[F])) -> -0.00259015 | AA44: =INDEX(MasterTable[],MATCH(Simulator!$E50,MasterTable[P/N],0),COLUMN(MasterTable[F0])) -> 1.05063 | AB44: =IF(Simulator!$I$8=85,Calculations!AE14,W44*M44^4+X44*M44^3+Y44*M44^2+Z44*M44+AA44) -> 0.9986648437 | AC44: =Simulator!$O$38/Q44 -> 0.01089918256 | AE44: 0.01091375413 | AF44: =INDEX(MasterTable[],MATCH(Simulator!$E50,MasterTable[P/N],0),COLUMN(MasterTable[Typical Voltage])) -> 29.5 | AG44: =INDEX(MasterTable[],MATCH(Simulator!$E50,MasterTable[P/N],0),COLUMN(MasterTable[V^4])) -> -4.329614168e-13 | AH44: =INDEX(MasterTable[],MATCH(Simulator!$E50,MasterTable[P/N],0),COLUMN(MasterTable[V^3])) -> 2.421013102e-09 | AI44: =INDEX(MasterTable[],MATCH(Simulator!$E50,MasterTable[P/N],0),COLUMN(MasterTable[V^2])) -> -5.02931617e-06 | AJ44: =INDEX(MasterTable[],MATCH(Simulator!$E50,MasterTable[P/N],0),COLUMN(MasterTable[V])) -> 0.006888452614 | AK44: =INDEX(MasterTable[],MATCH(Simulator!$E50,MasterTable[P/N],0),COLUMN(MasterTable[V0])) -> 25.52318402 | AL44: 25.56498103 | AM44: =INDEX(MasterTable[],MATCH(Simulator!$E50,MasterTable[P/N],0),COLUMN(MasterTable[T^3])) -> 0 | AN44: =INDEX(MasterTable[],MATCH(Simulator!$E50,MasterTable[P/N],0),COLUMN(MasterTable[T^2])) -> 0 | AO44: =INDEX(MasterTable[],MATCH(Simulator!$E50,MasterTable[P/N],0),COLUMN(MasterTable[T])) -> -0.015 | AP44: =INDEX(MasterTable[],MATCH(Simulator!$E50,MasterTable[P/N],0),COLUMN(MasterTable[T0])) -> 29.875 | AQ44: 29.5 | AR44: 25.56498103 | AT44: =INDEX(MasterTable[],MATCH(Simulator!$E50,MasterTable[P/N],0),COLUMN(MasterTable['# of Die])) -> 60 | AU44: 25.56498103 | AV44: =INDEX(Tj_to_Vf6[],MATCH(Simulator!$I$8,Tj_to_Vf6[Vf],1),COLUMN(Tj_to_Vf6[Vf])) -> -0.5 | AW44: -4.435018975 | AX44: =IF(Simulator!$I$8=25,AQ44,AR44) -> 29.5
B45: V22 | C45: =IF(Simulator!$L$8="Case",Simulator!$I$8,M45) -> 25 | D45: =Simulator!G51*AR45/1000 ->  | E45: =INDEX(MasterTable[],MATCH(Simulator!E51,MasterTable[P/N],0),COLUMN(MasterTable[Thermal Resistance])) ->  | F45: =C45+D45*E45 ->  | H45: =IF(Simulator!$L$8="Case",F45,Simulator!$I$8) ->  | I45: =Simulator!G51*AW45/1000 ->  | J45: =E45 ->  | K45: =H45-I45*J45 ->  | M45: =IF(Simulator!$L$8="Case",Simulator!$I$8,K45) -> 25 | N45: =IF(Simulator!$L$8="Case",H45,Simulator!$I$8) ->  | O45: =IF(#REF!="Tj",N45,M45) ->  | Q45: =INDEX(MasterTable[],MATCH(Simulator!E51,MasterTable[P/N],0),COLUMN(MasterTable[Typical Lumens])) ->  | R45: =INDEX(MasterTable[],MATCH(Simulator!$E51,MasterTable[P/N],0),COLUMN(MasterTable[I^3])) ->  | S45: =INDEX(MasterTable[],MATCH(Simulator!$E51,MasterTable[P/N],0),COLUMN(MasterTable[I^2])) ->  | T45: =INDEX(MasterTable[],MATCH(Simulator!$E51,MasterTable[P/N],0),COLUMN(MasterTable[I])) ->  | U45: =INDEX(MasterTable[],MATCH(Simulator!$E51,MasterTable[P/N],0),COLUMN(MasterTable[I0])) ->  | V45: =(-T45+SQRT(T45^2-4*S45*(U45-AE45)))/(2*S45) ->  | W45: =INDEX(MasterTable[],MATCH(Simulator!$E51,MasterTable[P/N],0),COLUMN(MasterTable[F^4])) ->  | X45: =INDEX(MasterTable[],MATCH(Simulator!$E51,MasterTable[P/N],0),COLUMN(MasterTable[F^3])) ->  | Y45: =INDEX(MasterTable[],MATCH(Simulator!$E51,MasterTable[P/N],0),COLUMN(MasterTable[F^2])) ->  | Z45: =INDEX(MasterTable[],MATCH(Simulator!$E51,MasterTable[P/N],0),COLUMN(MasterTable[F])) ->  | AA45: =INDEX(MasterTable[],MATCH(Simulator!$E51,MasterTable[P/N],0),COLUMN(MasterTable[F0])) ->  | AB45: =IF(Simulator!$I$8=85,Calculations!AE15,W45*M45^4+X45*M45^3+Y45*M45^2+Z45*M45+AA45) ->  | AC45: =Simulator!$O$38/Q45 ->  | AE45: =AC45/AB45 ->  | AF45: =INDEX(MasterTable[],MATCH(Simulator!$E51,MasterTable[P/N],0),COLUMN(MasterTable[Typical Voltage])) ->  | AG45: =INDEX(MasterTable[],MATCH(Simulator!$E51,MasterTable[P/N],0),COLUMN(MasterTable[V^4])) ->  | AH45: =INDEX(MasterTable[],MATCH(Simulator!$E51,MasterTable[P/N],0),COLUMN(MasterTable[V^3])) ->  | AI45: =INDEX(MasterTable[],MATCH(Simulator!$E51,MasterTable[P/N],0),COLUMN(MasterTable[V^2])) ->  | AJ45: =INDEX(MasterTable[],MATCH(Simulator!$E51,MasterTable[P/N],0),COLUMN(MasterTable[V])) ->  | AK45: =INDEX(MasterTable[],MATCH(Simulator!$E51,MasterTable[P/N],0),COLUMN(MasterTable[V0])) ->  | AL45: =AG45*V45^4+AH45*V45^3+AI45*V45^2+AJ45*V45+AK45 ->  | AM45: =INDEX(MasterTable[],MATCH(Simulator!$E51,MasterTable[P/N],0),COLUMN(MasterTable[T^3])) ->  | AN45: =INDEX(MasterTable[],MATCH(Simulator!$E51,MasterTable[P/N],0),COLUMN(MasterTable[T^2])) ->  | AO45: =INDEX(MasterTable[],MATCH(Simulator!$E51,MasterTable[P/N],0),COLUMN(MasterTable[T])) ->  | AP45: =INDEX(MasterTable[],MATCH(Simulator!$E51,MasterTable[P/N],0),COLUMN(MasterTable[T0])) ->  | AQ45: =AM45*M45^3+AN45*M45^2+AO45*M45+AP45 ->  | AR45: =AL45+AQ45-AF45 ->  | AT45: =INDEX(MasterTable[],MATCH(Simulator!$E51,MasterTable[P/N],0),COLUMN(MasterTable['# of Die])) ->  | AU45: =AL45 ->  | AV45: =INDEX(Tj_to_Vf6[],MATCH(Simulator!$I$8,Tj_to_Vf6[Vf],1),COLUMN(Tj_to_Vf6[Vf])) -> -0.5 | AW45: =AU45+AV45*AT45 ->  | AX45: =IF(Simulator!$I$8=25,AQ45,AR45) -> 
A47: Calculations using Lumen Input | C47: Converting Tc to Tj | H47: Converting Tj to Tc | Q47: Calculating Current | AF47: Calculating Voltage w/ Tc | AU47: Calculating Voltage w/ Tj
C48: Tj = Tc + Power*Thermal Resistance | H48: Tc = Tj - Power*Thermal Resistance | Q48: I=Fr@I*Eqn; Fr@I=Fro/Fr@T | AF48: Vf@Tc&I = Vf@I + Vf@Tc-Vft | AU48: Vf@Tj&I = Vf@I + Vf@Tj Modifier
C49: Tc | D49: Power | E49: Thermal Resistance | F49: Tc>>Tj | H49: Tj | I49: Power | J49: Thermal Resistance | K49: Tj>>Tc | M49: Tc | N49: Tj | O49: =IF(Simulator!$L$8="Case","Tj","Tc") -> Tj | Q49: Ft | R49: Fr@I Eqn | V49: Req'd I | X49: Fr@Tc Eqn | AB49: Fr@Tc | AC49: Fro | AE49: Fr@I | AF49: Vft | AH49: Vf@I Eqn | AL49: Vf@I | AM49: Vf@Tc Eqn | AQ49: Vf@Tc | AR49: Vf@Tc&I | AT49: # of Die | AU49: Vf@I | AV49: Vf@Tj Modifier, per Die | AW49: Vf@Tj&I | AX49: Voltage Report
B50: Vero 10 | C50: =IF(Simulator!$L$8="Case",Simulator!$I$8,M50) -> 25 | D50: =Simulator!G53*AR50/1000 -> 0.2290415616 | E50: =INDEX(MasterTable[],MATCH(Simulator!E53,MasterTable[P/N],0),COLUMN(MasterTable[Thermal Resistance])) -> 0.47 | F50: =C50+D50*E50 -> 25.10764953 | H50: =IF(Simulator!$L$8="Case",F50,Simulator!$I$8) -> 25.10764953 | I50: =Simulator!G53*AW50/1000 -> 0.1690415616 | J50: =E50 -> 0.47 | K50: =H50-I50*J50 -> 25.0282 | M50: =IF(Simulator!$L$8="Case",Simulator!$I$8,K50) -> 25 | N50: =IF(Simulator!$L$8="Case",H50,Simulator!$I$8) -> 25.10764953 | O50: =IF(#REF!="Tj",N50,M50) ->  | Q50: =INDEX(MasterTable[],MATCH(Simulator!E53,MasterTable[P/N],0),COLUMN(MasterTable[Typical Lumens])) -> 1076 | S50: =INDEX(MasterTable[],MATCH(Simulator!$E53,MasterTable[P/N],0),COLUMN(MasterTable[I^2])) -> -9.024e-07 | T50: =INDEX(MasterTable[],MATCH(Simulator!$E53,MasterTable[P/N],0),COLUMN(MasterTable[I])) -> 0.003184179 | U50: =INDEX(MasterTable[],MATCH(Simulator!$E53,MasterTable[P/N],0),COLUMN(MasterTable[I0])) -> 0 | V50: =(-T50+SQRT(T50^2-4*S50*(U50-AE50)))/(2*S50) -> 11.73691886 | W50: =INDEX(MasterTable[],MATCH(Simulator!$E53,MasterTable[P/N],0),COLUMN(MasterTable[F^4])) -> 0 | X50: =INDEX(MasterTable[],MATCH(Simulator!$E53,MasterTable[P/N],0),COLUMN(MasterTable[F^3])) -> 0 | Y50: =INDEX(MasterTable[],MATCH(Simulator!$E53,MasterTable[P/N],0),COLUMN(MasterTable[F^2])) -> -6.2594e-06 | Z50: =INDEX(MasterTable[],MATCH(Simulator!$E53,MasterTable[P/N],0),COLUMN(MasterTable[F])) -> -0.001184453 | AA50: =INDEX(MasterTable[],MATCH(Simulator!$E53,MasterTable[P/N],0),COLUMN(MasterTable[F0])) -> 1.031552371 | AB50: =IF(Simulator!$I$8=85,AE20,W50*M50^4+X50*M50^3+Y50*M50^2+Z50*M50+AA50) -> 0.9980289211 | AC50: =Simulator!$O$38/Q50 -> 0.03717472119 | AE50: =AC50/AB50 -> 0.03724814021 | AF50: =INDEX(MasterTable[],MATCH(Simulator!$E53,MasterTable[P/N],0),COLUMN(MasterTable[Typical Voltage])) -> 26.5 | AG50: =INDEX(MasterTable[],MATCH(Simulator!$E53,MasterTable[P/N],0),COLUMN(MasterTable[V^4])) -> -3.21e-11 | AH50: =INDEX(MasterTable[],MATCH(Simulator!$E53,MasterTable[P/N],0),COLUMN(MasterTable[V^3])) -> 5.48e-08 | AI50: =INDEX(MasterTable[],MATCH(Simulator!$E53,MasterTable[P/N],0),COLUMN(MasterTable[V^2])) -> -3.52e-05 | AJ50: =INDEX(MasterTable[],MATCH(Simulator!$E53,MasterTable[P/N],0),COLUMN(MasterTable[V])) -> 0.0178 | AK50: =INDEX(MasterTable[],MATCH(Simulator!$E53,MasterTable[P/N],0),COLUMN(MasterTable[V0])) -> 22.7 | AL50: =AG50*V50^4+AH50*V50^3+AI50*V50^2+AJ50*V50+AK50 -> 22.90415616 | AM50: =INDEX(MasterTable[],MATCH(Simulator!$E53,MasterTable[P/N],0),COLUMN(MasterTable[T^3])) -> 0 | AN50: =INDEX(MasterTable[],MATCH(Simulator!$E53,MasterTable[P/N],0),COLUMN(MasterTable[T^2])) -> 0 | AO50: =INDEX(MasterTable[],MATCH(Simulator!$E53,MasterTable[P/N],0),COLUMN(MasterTable[T])) -> -0.014 | AP50: =INDEX(MasterTable[],MATCH(Simulator!$E53,MasterTable[P/N],0),COLUMN(MasterTable[T0])) -> 26.85 | AQ50: =AM50*M50^3+AN50*M50^2+AO50*M50+AP50 -> 26.5 | AR50: =AL50+AQ50-AF50 -> 22.90415616 | AT50: =INDEX(MasterTable[],MATCH(Simulator!$E53,MasterTable[P/N],0),COLUMN(MasterTable['# of Die])) -> 12 | AU50: =AL50 -> 22.90415616 | AV50: =INDEX(Tj_to_Vf6[],MATCH(Simulator!$I$8,Tj_to_Vf6[Vf],1),COLUMN(Tj_to_Vf6[Vf])) -> -0.5 | AW50: =AU50+AV50*AT50 -> 16.90415616 | AX50: =IF(Simulator!$I$8=25,AQ50,AR50) -> 26.5
B51: Vero 13 | C51: =IF(Simulator!$L$8="Case",Simulator!$I$8,M51) -> 25 | D51: =Simulator!G54*AR51/1000 -> 0.1411200684 | E51: =INDEX(MasterTable[],MATCH(Simulator!E54,MasterTable[P/N],0),COLUMN(MasterTable[Thermal Resistance])) -> 0.22 | F51: =C51+D51*E51 -> 25.03104642 | H51: =IF(Simulator!$L$8="Case",F51,Simulator!$I$8) -> 25.03104642 | I51: =Simulator!G54*AW51/1000 -> 0.05862006838 | J51: =E51 -> 0.22 | K51: =H51-I51*J51 -> 25.01815 | M51: =IF(Simulator!$L$8="Case",Simulator!$I$8,K51) -> 25 | N51: =IF(Simulator!$L$8="Case",H51,Simulator!$I$8) -> 25.03104642 | O51: =IF(#REF!="Tj",N51,M51) ->  | Q51: =INDEX(MasterTable[],MATCH(Simulator!E54,MasterTable[P/N],0),COLUMN(MasterTable[Typical Lumens])) -> 1900 | S51: =INDEX(MasterTable[],MATCH(Simulator!$E54,MasterTable[P/N],0),COLUMN(MasterTable[I^2])) -> -5.205657701e-07 | T51: =INDEX(MasterTable[],MATCH(Simulator!$E54,MasterTable[P/N],0),COLUMN(MasterTable[I])) -> 0.002252976347 | U51: =INDEX(MasterTable[],MATCH(Simulator!$E54,MasterTable[P/N],0),COLUMN(MasterTable[I0])) -> 0.004831192823 | V51: =(-T51+SQRT(T51^2-4*S51*(U51-AE51)))/(2*S51) -> 7.251152418 | W51: =INDEX(MasterTable[],MATCH(Simulator!$E54,MasterTable[P/N],0),COLUMN(MasterTable[F^4])) -> 0 | X51: =INDEX(MasterTable[],MATCH(Simulator!$E54,MasterTable[P/N],0),COLUMN(MasterTable[F^3])) -> -1.02e-07 | Y51: =INDEX(MasterTable[],MATCH(Simulator!$E54,MasterTable[P/N],0),COLUMN(MasterTable[F^2])) -> 1.27e-05 | Z51: =INDEX(MasterTable[],MATCH(Simulator!$E54,MasterTable[P/N],0),COLUMN(MasterTable[F])) -> -0.00202 | AA51: =INDEX(MasterTable[],MATCH(Simulator!$E54,MasterTable[P/N],0),COLUMN(MasterTable[F0])) -> 1.04 | AB51: =IF(Simulator!$I$8=85,AE21,W51*M51^4+X51*M51^3+Y51*M51^2+Z51*M51+AA51) -> 0.99584375 | AC51: =Simulator!$O$38/Q51 -> 0.02105263158 | AE51: =AC51/AB51 -> 0.02114049677 | AF51: =INDEX(MasterTable[],MATCH(Simulator!$E54,MasterTable[P/N],0),COLUMN(MasterTable[Typical Voltage])) -> 32.3 | AG51: =INDEX(MasterTable[],MATCH(Simulator!$E54,MasterTable[P/N],0),COLUMN(MasterTable[V^4])) -> -9.507660402e-12 | AH51: =INDEX(MasterTable[],MATCH(Simulator!$E54,MasterTable[P/N],0),COLUMN(MasterTable[V^3])) -> 2.442828661e-08 | AI51: =INDEX(MasterTable[],MATCH(Simulator!$E54,MasterTable[P/N],0),COLUMN(MasterTable[V^2])) -> -2.316924658e-05 | AJ51: =INDEX(MasterTable[],MATCH(Simulator!$E54,MasterTable[P/N],0),COLUMN(MasterTable[V])) -> 0.01497049422 | AK51: =INDEX(MasterTable[],MATCH(Simulator!$E54,MasterTable[P/N],0),COLUMN(MasterTable[V0])) -> 28.11666927 | AL51: =AG51*V51^4+AH51*V51^3+AI51*V51^2+AJ51*V51+AK51 -> 28.22401368 | AM51: =INDEX(MasterTable[],MATCH(Simulator!$E54,MasterTable[P/N],0),COLUMN(MasterTable[T^3])) -> 0 | AN51: =INDEX(MasterTable[],MATCH(Simulator!$E54,MasterTable[P/N],0),COLUMN(MasterTable[T^2])) -> 0 | AO51: =INDEX(MasterTable[],MATCH(Simulator!$E54,MasterTable[P/N],0),COLUMN(MasterTable[T])) -> -0.017 | AP51: =INDEX(MasterTable[],MATCH(Simulator!$E54,MasterTable[P/N],0),COLUMN(MasterTable[T0])) -> 32.725 | AQ51: 32.3 | AR51: =AL51+AQ51-AF51 -> 28.22401368 | AT51: =INDEX(MasterTable[],MATCH(Simulator!$E54,MasterTable[P/N],0),COLUMN(MasterTable['# of Die])) -> 33 | AU51: =AL51 -> 28.22401368 | AV51: =INDEX(Tj_to_Vf6[],MATCH(Simulator!$I$8,Tj_to_Vf6[Vf],1),COLUMN(Tj_to_Vf6[Vf])) -> -0.5 | AW51: =AU51+AV51*AT51 -> 11.72401368 | AX51: =IF(Simulator!$I$8=25,AQ51,AR51) -> 32.3
B52: Vero 18 | C52: =IF(Simulator!$L$8="Case",Simulator!$I$8,M52) -> 25 | D52: =Simulator!G55*AR52/1000 -> 0.1278249051 | E52: =INDEX(MasterTable[],MATCH(Simulator!E55,MasterTable[P/N],0),COLUMN(MasterTable[Thermal Resistance])) -> 0.13 | F52: =C52+D52*E52 -> 25.01661724 | H52: =IF(Simulator!$L$8="Case",F52,Simulator!$I$8) -> 25.01661724 | I52: =Simulator!G55*AW52/1000 -> -0.02217509487 | J52: =E52 -> 0.13 | K52: =H52-I52*J52 -> 25.0195 | M52: =IF(Simulator!$L$8="Case",Simulator!$I$8,K52) -> 25 | N52: =IF(Simulator!$L$8="Case",H52,Simulator!$I$8) -> 25.01661724 | O52: =IF(#REF!="Tj",N52,M52) ->  | Q52: =INDEX(MasterTable[],MATCH(Simulator!E55,MasterTable[P/N],0),COLUMN(MasterTable[Typical Lumens])) -> 3670 | S52: =INDEX(MasterTable[],MATCH(Simulator!$E55,MasterTable[P/N],0),COLUMN(MasterTable[I^2])) -> -1.310602506e-07 | T52: =INDEX(MasterTable[],MATCH(Simulator!$E55,MasterTable[P/N],0),COLUMN(MasterTable[I])) -> 0.001087869998 | U52: =INDEX(MasterTable[],MATCH(Simulator!$E55,MasterTable[P/N],0),COLUMN(MasterTable[I0])) -> 0.004288345554 | V52: =(-T52+SQRT(T52^2-4*S52*(U52-AE52)))/(2*S52) -> 6.094732751 | W52: =INDEX(MasterTable[],MATCH(Simulator!$E55,MasterTable[P/N],0),COLUMN(MasterTable[F^4])) -> 0 | X52: =INDEX(MasterTable[],MATCH(Simulator!$E55,MasterTable[P/N],0),COLUMN(MasterTable[F^3])) -> -1.84258e-07 | Y52: =INDEX(MasterTable[],MATCH(Simulator!$E55,MasterTable[P/N],0),COLUMN(MasterTable[F^2])) -> 2.50682e-05 | Z52: =INDEX(MasterTable[],MATCH(Simulator!$E55,MasterTable[P/N],0),COLUMN(MasterTable[F])) -> -0.00259015 | AA52: =INDEX(MasterTable[],MATCH(Simulator!$E55,MasterTable[P/N],0),COLUMN(MasterTable[F0])) -> 1.05063 | AB52: =IF(Simulator!$I$8=85,AE22,W52*M52^4+X52*M52^3+Y52*M52^2+Z52*M52+AA52) -> 0.9986648437 | AC52: =Simulator!$O$38/Q52 -> 0.01089918256 | AE52: =AC52/AB52 -> 0.01091375413 | AF52: =INDEX(MasterTable[],MATCH(Simulator!$E55,MasterTable[P/N],0),COLUMN(MasterTable[Typical Voltage])) -> 29.5 | AG52: =INDEX(MasterTable[],MATCH(Simulator!$E55,MasterTable[P/N],0),COLUMN(MasterTable[V^4])) -> -4.329614168e-13 | AH52: =INDEX(MasterTable[],MATCH(Simulator!$E55,MasterTable[P/N],0),COLUMN(MasterTable[V^3])) -> 2.421013102e-09 | AI52: =INDEX(MasterTable[],MATCH(Simulator!$E55,MasterTable[P/N],0),COLUMN(MasterTable[V^2])) -> -5.02931617e-06 | AJ52: =INDEX(MasterTable[],MATCH(Simulator!$E55,MasterTable[P/N],0),COLUMN(MasterTable[V])) -> 0.006888452614 | AK52: =INDEX(MasterTable[],MATCH(Simulator!$E55,MasterTable[P/N],0),COLUMN(MasterTable[V0])) -> 25.52318402 | AL52: 25.56498103 | AM52: =INDEX(MasterTable[],MATCH(Simulator!$E55,MasterTable[P/N],0),COLUMN(MasterTable[T^3])) -> 0 | AN52: =INDEX(MasterTable[],MATCH(Simulator!$E55,MasterTable[P/N],0),COLUMN(MasterTable[T^2])) -> 0 | AO52: =INDEX(MasterTable[],MATCH(Simulator!$E55,MasterTable[P/N],0),COLUMN(MasterTable[T])) -> -0.015 | AP52: =INDEX(MasterTable[],MATCH(Simulator!$E55,MasterTable[P/N],0),COLUMN(MasterTable[T0])) -> 29.875 | AQ52: =AM52*M52^3+AN52*M52^2+AO52*M52+AP52 -> 29.5 | AR52: 25.56498103 | AT52: =INDEX(MasterTable[],MATCH(Simulator!$E55,MasterTable[P/N],0),COLUMN(MasterTable['# of Die])) -> 60 | AU52: =AL52 -> 25.56498103 | AV52: =INDEX(Tj_to_Vf6[],MATCH(Simulator!$I$8,Tj_to_Vf6[Vf],1),COLUMN(Tj_to_Vf6[Vf])) -> -0.5 | AW52: =AU52+AV52*AT52 -> -4.435018975 | AX52: =IF(Simulator!$I$8=25,AQ52,AR52) -> 29.5
B53: Vero 29 | C53: =IF(Simulator!$L$8="Case",Simulator!$I$8,M53) -> 25 | D53: =Simulator!G56*AR53/1000 -> 0.3283846132 | E53: =INDEX(MasterTable[],MATCH(Simulator!E56,MasterTable[P/N],0),COLUMN(MasterTable[Thermal Resistance])) -> 0.06 | F53: =C53+D53*E53 -> 25.01970308 | H53: =IF(Simulator!$L$8="Case",F53,Simulator!$I$8) -> 25.01970308 | I53: =Simulator!G56*AW53/1000 -> -0.4516153868 | J53: =E53 -> 0.06 | K53: =H53-I53*J53 -> 25.0468 | M53: =IF(Simulator!$L$8="Case",Simulator!$I$8,K53) -> 25 | N53: =IF(Simulator!$L$8="Case",H53,Simulator!$I$8) -> 25.01970308 | O53: =IF(#REF!="Tj",N53,M53) ->  | Q53: =INDEX(MasterTable[],MATCH(Simulator!E56,MasterTable[P/N],0),COLUMN(MasterTable[Typical Lumens])) -> 9415 | S53: =INDEX(MasterTable[],MATCH(Simulator!$E56,MasterTable[P/N],0),COLUMN(MasterTable[I^2])) -> -3.668394766e-08 | T53: =INDEX(MasterTable[],MATCH(Simulator!$E56,MasterTable[P/N],0),COLUMN(MasterTable[I])) -> 0.0005593658125 | U53: =INDEX(MasterTable[],MATCH(Simulator!$E56,MasterTable[P/N],0),COLUMN(MasterTable[I0])) -> 0 | V53: =(-T53+SQRT(T53^2-4*S53*(U53-AE53)))/(2*S53) -> 7.597432239 | W53: =INDEX(MasterTable[],MATCH(Simulator!$E56,MasterTable[P/N],0),COLUMN(MasterTable[F^4])) -> -4.03802e-09 | X53: =INDEX(MasterTable[],MATCH(Simulator!$E56,MasterTable[P/N],0),COLUMN(MasterTable[F^3])) -> 6.48277e-07 | Y53: =INDEX(MasterTable[],MATCH(Simulator!$E56,MasterTable[P/N],0),COLUMN(MasterTable[F^2])) -> -3.18284e-05 | Z53: =INDEX(MasterTable[],MATCH(Simulator!$E56,MasterTable[P/N],0),COLUMN(MasterTable[F])) -> -0.00116937 | AA53: =INDEX(MasterTable[],MATCH(Simulator!$E56,MasterTable[P/N],0),COLUMN(MasterTable[F0])) -> 1.04079 | AB53: =IF(Simulator!$I$8=85,AE23,W53*M53^4+X53*M53^3+Y53*M53^2+Z53*M53+AA53) -> 1.000214977 | AC53: =Simulator!$O$38/Q53 -> 0.004248539565 | AE53: =AC53/AB53 -> 0.004247626424 | AF53: =INDEX(MasterTable[],MATCH(Simulator!$E56,MasterTable[P/N],0),COLUMN(MasterTable[Typical Voltage])) -> 38 | AG53: =INDEX(MasterTable[],MATCH(Simulator!$E56,MasterTable[P/N],0),COLUMN(MasterTable[V^4])) -> -5.069636004e-14 | AH53: =INDEX(MasterTable[],MATCH(Simulator!$E56,MasterTable[P/N],0),COLUMN(MasterTable[V^3])) -> 5.0223241e-10 | AI53: =INDEX(MasterTable[],MATCH(Simulator!$E56,MasterTable[P/N],0),COLUMN(MasterTable[V^2])) -> -1.857052826e-06 | AJ53: =INDEX(MasterTable[],MATCH(Simulator!$E56,MasterTable[P/N],0),COLUMN(MasterTable[V])) -> 0.004647597856 | AK53: =INDEX(MasterTable[],MATCH(Simulator!$E56,MasterTable[P/N],0),COLUMN(MasterTable[V0])) -> 32.80325849 | AL53: 32.83846132 | AM53: =INDEX(MasterTable[],MATCH(Simulator!$E56,MasterTable[P/N],0),COLUMN(MasterTable[T^3])) -> 0 | AN53: =INDEX(MasterTable[],MATCH(Simulator!$E56,MasterTable[P/N],0),COLUMN(MasterTable[T^2])) -> 0 | AO53: =INDEX(MasterTable[],MATCH(Simulator!$E56,MasterTable[P/N],0),COLUMN(MasterTable[T])) -> -0.02 | AP53: =INDEX(MasterTable[],MATCH(Simulator!$E56,MasterTable[P/N],0),COLUMN(MasterTable[T0])) -> 38.5 | AQ53: 38 | AR53: 32.83846132 | AT53: =INDEX(MasterTable[],MATCH(Simulator!$E56,MasterTable[P/N],0),COLUMN(MasterTable['# of Die])) -> 156 | AU53: =AL53 -> 32.83846132 | AV53: =INDEX(Tj_to_Vf6[],MATCH(Simulator!$I$8,Tj_to_Vf6[Vf],1),COLUMN(Tj_to_Vf6[Vf])) -> -0.5 | AW53: =AU53+AV53*AT53 -> -45.16153868 | AX53: =IF(Simulator!$I$8=25,AQ53,AR53) -> 38
A55: Calculations using Lumen Input | C55: Converting Tc to Tj | H55: Converting Tj to Tc | Q55: Calculating Current | AF55: Calculating Voltage w/ Tc | AU55: Calculating Voltage w/ Tj
C56: Tj = Tc + Power*Thermal Resistance | H56: Tc = Tj - Power*Thermal Resistance | Q56: I=Fr@I*Eqn; Fr@I=Fro/Fr@T | AF56: Vf@Tc&I = Vf@I + Vf@Tc-Vft | AU56: Vf@Tj&I = Vf@I + Vf@Tj Modifier
C57: Tc | D57: Power | E57: Thermal Resistance | F57: Tc>>Tj | H57: Tj | I57: Power | J57: Thermal Resistance | K57: Tj>>Tc | M57: Tc | N57: Tj | O57: =IF(Simulator!$L$8="Case","Tj","Tc") -> Tj | Q57: Ft | R57: Fr@I Eqn | V57: Req'd I | X57: Fr@Tc Eqn | AB57: Fr@Tc | AC57: Fro | AE57: Fr@I | AF57: Vft | AH57: Vf@I Eqn | AL57: Vf@I | AM57: Vf@Tc Eqn | AQ57: Vf@Tc | AR57: Vf@Tc&I | AT57: # of Die | AU57: Vf@I | AV57: Vf@Tj Modifier, per Die | AW57: Vf@Tj&I | AX57: Voltage Report
B58: H6 | C58: =IF(Simulator!$L$8="Case",Simulator!$I$8,M58) -> 25 | D58: =Simulator!G58*AR58/1000 ->  | E58: =INDEX(MasterTable[],MATCH(Simulator!E58,MasterTable[P/N],0),COLUMN(MasterTable[Thermal Resistance])) ->  | F58: =C58+D58*E58 ->  | H58: =IF(Simulator!$L$8="Case",F58,Simulator!$I$8) ->  | I58: =Simulator!G58*AW58/1000 ->  | J58: =E58 ->  | K58: =H58-I58*J58 ->  | M58: =IF(Simulator!$L$8="Case",Simulator!$I$8,K58) -> 25 | N58: =IF(Simulator!$L$8="Case",H58,Simulator!$I$8) ->  | O58: =IF(#REF!="Tj",N58,M58) ->  | Q58: =INDEX(MasterTable[],MATCH(Simulator!E58,MasterTable[P/N],0),COLUMN(MasterTable[Typical Lumens])) ->  | S58: =INDEX(MasterTable[],MATCH(Simulator!$E58,MasterTable[P/N],0),COLUMN(MasterTable[I^2])) ->  | T58: =INDEX(MasterTable[],MATCH(Simulator!$E58,MasterTable[P/N],0),COLUMN(MasterTable[I])) ->  | U58: =INDEX(MasterTable[],MATCH(Simulator!$E58,MasterTable[P/N],0),COLUMN(MasterTable[I0])) ->  | V58: =(-T58+SQRT(T58^2-4*S58*(U58-AE58)))/(2*S58) ->  | W58: =INDEX(MasterTable[],MATCH(Simulator!$E58,MasterTable[P/N],0),COLUMN(MasterTable[F^4])) ->  | X58: =INDEX(MasterTable[],MATCH(Simulator!$E58,MasterTable[P/N],0),COLUMN(MasterTable[F^3])) ->  | Y58: =INDEX(MasterTable[],MATCH(Simulator!$E58,MasterTable[P/N],0),COLUMN(MasterTable[F^2])) ->  | Z58: =INDEX(MasterTable[],MATCH(Simulator!$E58,MasterTable[P/N],0),COLUMN(MasterTable[F])) ->  | AA58: =INDEX(MasterTable[],MATCH(Simulator!$E58,MasterTable[P/N],0),COLUMN(MasterTable[F0])) ->  | AB58: =IF(Simulator!$I$8=85,AE28,W58*M58^4+X58*M58^3+Y58*M58^2+Z58*M58+AA58) ->  | AC58: =Simulator!$O$38/Q58 ->  | AE58: =AC58/AB58 ->  | AF58: =INDEX(MasterTable[],MATCH(Simulator!$E58,MasterTable[P/N],0),COLUMN(MasterTable[Typical Voltage])) ->  | AG58: =INDEX(MasterTable[],MATCH(Simulator!$E58,MasterTable[P/N],0),COLUMN(MasterTable[V^4])) ->  | AH58: =INDEX(MasterTable[],MATCH(Simulator!$E58,MasterTable[P/N],0),COLUMN(MasterTable[V^3])) ->  | AI58: =INDEX(MasterTable[],MATCH(Simulator!$E58,MasterTable[P/N],0),COLUMN(MasterTable[V^2])) ->  | AJ58: =INDEX(MasterTable[],MATCH(Simulator!$E58,MasterTable[P/N],0),COLUMN(MasterTable[V])) ->  | AK58: =INDEX(MasterTable[],MATCH(Simulator!$E58,MasterTable[P/N],0),COLUMN(MasterTable[V0])) ->  | AL58: =AG58*V58^4+AH58*V58^3+AI58*V58^2+AJ58*V58+AK58 ->  | AM58: =INDEX(MasterTable[],MATCH(Simulator!$E58,MasterTable[P/N],0),COLUMN(MasterTable[T^3])) ->  | AN58: =INDEX(MasterTable[],MATCH(Simulator!$E58,MasterTable[P/N],0),COLUMN(MasterTable[T^2])) ->  | AO58: =INDEX(MasterTable[],MATCH(Simulator!$E58,MasterTable[P/N],0),COLUMN(MasterTable[T])) ->  | AP58: =INDEX(MasterTable[],MATCH(Simulator!$E58,MasterTable[P/N],0),COLUMN(MasterTable[T0])) ->  | AQ58: =AM58*M58^3+AN58*M58^2+AO58*M58+AP58 ->  | AR58: =AL58+AQ58-AF58 ->  | AT58: =INDEX(MasterTable[],MATCH(Simulator!$E58,MasterTable[P/N],0),COLUMN(MasterTable['# of Die])) ->  | AU58: =AL58 ->  | AV58: =INDEX(Tj_to_Vf6[],MATCH(Simulator!$I$8,Tj_to_Vf6[Vf],1),COLUMN(Tj_to_Vf6[Vf])) -> -0.5 | AW58: =AU58+AV58*AT58 ->  | AX58: =IF(Simulator!$I$8=25,AQ58,AR58) -> 
B59: H9 | C59: =IF(Simulator!$L$8="Case",Simulator!$I$8,M59) -> 25 | D59: =Simulator!G59*AR59/1000 ->  | E59: =INDEX(MasterTable[],MATCH(Simulator!E59,MasterTable[P/N],0),COLUMN(MasterTable[Thermal Resistance])) ->  | H59: =IF(Simulator!$L$8="Case",F59,Simulator!$I$8) ->  | I59: =Simulator!G59*AW59/1000 ->  | M59: =IF(Simulator!$L$8="Case",Simulator!$I$8,K59) -> 25 | N59: =IF(Simulator!$L$8="Case",H59,Simulator!$I$8) ->  | O59: =IF(#REF!="Tj",N59,M59) ->  | Q59: =INDEX(MasterTable[],MATCH(Simulator!E59,MasterTable[P/N],0),COLUMN(MasterTable[Typical Lumens])) ->  | S59: =INDEX(MasterTable[],MATCH(Simulator!$E59,MasterTable[P/N],0),COLUMN(MasterTable[I^2])) ->  | T59: =INDEX(MasterTable[],MATCH(Simulator!$E59,MasterTable[P/N],0),COLUMN(MasterTable[I])) ->  | U59: =INDEX(MasterTable[],MATCH(Simulator!$E59,MasterTable[P/N],0),COLUMN(MasterTable[I0])) ->  | V59: =(-T59+SQRT(T59^2-4*S59*(U59-AE59)))/(2*S59) ->  | W59: =INDEX(MasterTable[],MATCH(Simulator!$E59,MasterTable[P/N],0),COLUMN(MasterTable[F^4])) ->  | X59: =INDEX(MasterTable[],MATCH(Simulator!$E59,MasterTable[P/N],0),COLUMN(MasterTable[F^3])) ->  | Y59: =INDEX(MasterTable[],MATCH(Simulator!$E59,MasterTable[P/N],0),COLUMN(MasterTable[F^2])) ->  | Z59: =INDEX(MasterTable[],MATCH(Simulator!$E59,MasterTable[P/N],0),COLUMN(MasterTable[F])) ->  | AA59: =INDEX(MasterTable[],MATCH(Simulator!$E59,MasterTable[P/N],0),COLUMN(MasterTable[F0])) ->  | AB59: =IF(Simulator!$I$8=85,AE29,W59*M59^4+X59*M59^3+Y59*M59^2+Z59*M59+AA59) ->  | AC59: =Simulator!$O$38/Q59 ->  | AE59: =AC59/AB59 ->  | AF59: =INDEX(MasterTable[],MATCH(Simulator!$E59,MasterTable[P/N],0),COLUMN(MasterTable[Typical Voltage])) ->  | AG59: =INDEX(MasterTable[],MATCH(Simulator!$E59,MasterTable[P/N],0),COLUMN(MasterTable[V^4])) ->  | AH59: =INDEX(MasterTable[],MATCH(Simulator!$E59,MasterTable[P/N],0),COLUMN(MasterTable[V^3])) ->  | AI59: =INDEX(MasterTable[],MATCH(Simulator!$E59,MasterTable[P/N],0),COLUMN(MasterTable[V^2])) ->  | AJ59: =INDEX(MasterTable[],MATCH(Simulator!$E59,MasterTable[P/N],0),COLUMN(MasterTable[V])) ->  | AK59: =INDEX(MasterTable[],MATCH(Simulator!$E59,MasterTable[P/N],0),COLUMN(MasterTable[V0])) ->  | AL59: =AG59*V59^4+AH59*V59^3+AI59*V59^2+AJ59*V59+AK59 ->  | AM59: =INDEX(MasterTable[],MATCH(Simulator!$E59,MasterTable[P/N],0),COLUMN(MasterTable[T^3])) ->  | AN59: =INDEX(MasterTable[],MATCH(Simulator!$E59,MasterTable[P/N],0),COLUMN(MasterTable[T^2])) ->  | AO59: =INDEX(MasterTable[],MATCH(Simulator!$E59,MasterTable[P/N],0),COLUMN(MasterTable[T])) ->  | AP59: =INDEX(MasterTable[],MATCH(Simulator!$E59,MasterTable[P/N],0),COLUMN(MasterTable[T0])) ->  | AQ59: =AM59*M59^3+AN59*M59^2+AO59*M59+AP59 ->  | AR59: =AL59+AQ59-AF59 ->  | AT59: =INDEX(MasterTable[],MATCH(Simulator!$E59,MasterTable[P/N],0),COLUMN(MasterTable['# of Die])) ->  | AV59: =INDEX(Tj_to_Vf6[],MATCH(Simulator!$I$8,Tj_to_Vf6[Vf],1),COLUMN(Tj_to_Vf6[Vf])) -> -0.5 | AX59: =IF(Simulator!$I$8=25,AQ59,AR59) -> 
B60: H12 | C60: =IF(Simulator!$L$8="Case",Simulator!$I$8,M60) -> 25 | D60: =Simulator!G60*AR60/1000 ->  | E60: =INDEX(MasterTable[],MATCH(Simulator!E60,MasterTable[P/N],0),COLUMN(MasterTable[Thermal Resistance])) ->  | H60: =IF(Simulator!$L$8="Case",F60,Simulator!$I$8) ->  | I60: =Simulator!G60*AW60/1000 ->  | M60: =IF(Simulator!$L$8="Case",Simulator!$I$8,K60) -> 25 | N60: =IF(Simulator!$L$8="Case",H60,Simulator!$I$8) ->  | O60: =IF(#REF!="Tj",N60,M60) ->  | Q60: =INDEX(MasterTable[],MATCH(Simulator!E60,MasterTable[P/N],0),COLUMN(MasterTable[Typical Lumens])) ->  | S60: =INDEX(MasterTable[],MATCH(Simulator!$E60,MasterTable[P/N],0),COLUMN(MasterTable[I^2])) ->  | T60: =INDEX(MasterTable[],MATCH(Simulator!$E60,MasterTable[P/N],0),COLUMN(MasterTable[I])) ->  | U60: =INDEX(MasterTable[],MATCH(Simulator!$E60,MasterTable[P/N],0),COLUMN(MasterTable[I0])) ->  | W60: =INDEX(MasterTable[],MATCH(Simulator!$E60,MasterTable[P/N],0),COLUMN(MasterTable[F^4])) ->  | X60: =INDEX(MasterTable[],MATCH(Simulator!$E60,MasterTable[P/N],0),COLUMN(MasterTable[F^3])) ->  | Y60: =INDEX(MasterTable[],MATCH(Simulator!$E60,MasterTable[P/N],0),COLUMN(MasterTable[F^2])) ->  | Z60: =INDEX(MasterTable[],MATCH(Simulator!$E60,MasterTable[P/N],0),COLUMN(MasterTable[F])) ->  | AA60: =INDEX(MasterTable[],MATCH(Simulator!$E60,MasterTable[P/N],0),COLUMN(MasterTable[F0])) ->  | AB60: =IF(Simulator!$I$8=85,AE30,W60*M60^4+X60*M60^3+Y60*M60^2+Z60*M60+AA60) ->  | AC60: =Simulator!$O$38/Q60 ->  | AF60: =INDEX(MasterTable[],MATCH(Simulator!$E60,MasterTable[P/N],0),COLUMN(MasterTable[Typical Voltage])) ->  | AG60: =INDEX(MasterTable[],MATCH(Simulator!$E60,MasterTable[P/N],0),COLUMN(MasterTable[V^4])) ->  | AH60: =INDEX(MasterTable[],MATCH(Simulator!$E60,MasterTable[P/N],0),COLUMN(MasterTable[V^3])) ->  | AI60: =INDEX(MasterTable[],MATCH(Simulator!$E60,MasterTable[P/N],0),COLUMN(MasterTable[V^2])) ->  | AJ60: =INDEX(MasterTable[],MATCH(Simulator!$E60,MasterTable[P/N],0),COLUMN(MasterTable[V])) ->  | AK60: =INDEX(MasterTable[],MATCH(Simulator!$E60,MasterTable[P/N],0),COLUMN(MasterTable[V0])) ->  | AM60: =INDEX(MasterTable[],MATCH(Simulator!$E60,MasterTable[P/N],0),COLUMN(MasterTable[T^3])) ->  | AN60: =INDEX(MasterTable[],MATCH(Simulator!$E60,MasterTable[P/N],0),COLUMN(MasterTable[T^2])) ->  | AO60: =INDEX(MasterTable[],MATCH(Simulator!$E60,MasterTable[P/N],0),COLUMN(MasterTable[T])) ->  | AP60: =INDEX(MasterTable[],MATCH(Simulator!$E60,MasterTable[P/N],0),COLUMN(MasterTable[T0])) ->  | AT60: =INDEX(MasterTable[],MATCH(Simulator!$E60,MasterTable[P/N],0),COLUMN(MasterTable['# of Die])) ->  | AV60: =INDEX(Tj_to_Vf6[],MATCH(Simulator!$I$8,Tj_to_Vf6[Vf],1),COLUMN(Tj_to_Vf6[Vf])) -> -0.5 | AX60: =IF(Simulator!$I$8=25,AQ60,AR60) -> 
B61: H15 | C61: =IF(Simulator!$L$8="Case",Simulator!$I$8,M61) -> 25 | D61: =Simulator!G61*AR61/1000 ->  | E61: =INDEX(MasterTable[],MATCH(Simulator!E61,MasterTable[P/N],0),COLUMN(MasterTable[Thermal Resistance])) ->  | H61: =IF(Simulator!$L$8="Case",F61,Simulator!$I$8) ->  | I61: =Simulator!G61*AW61/1000 ->  | M61: =IF(Simulator!$L$8="Case",Simulator!$I$8,K61) -> 25 | N61: =IF(Simulator!$L$8="Case",H61,Simulator!$I$8) ->  | O61: =IF(#REF!="Tj",N61,M61) ->  | Q61: =INDEX(MasterTable[],MATCH(Simulator!E61,MasterTable[P/N],0),COLUMN(MasterTable[Typical Lumens])) ->  | S61: =INDEX(MasterTable[],MATCH(Simulator!$E61,MasterTable[P/N],0),COLUMN(MasterTable[I^2])) ->  | T61: =INDEX(MasterTable[],MATCH(Simulator!$E61,MasterTable[P/N],0),COLUMN(MasterTable[I])) ->  | U61: =INDEX(MasterTable[],MATCH(Simulator!$E61,MasterTable[P/N],0),COLUMN(MasterTable[I0])) ->  | W61: =INDEX(MasterTable[],MATCH(Simulator!$E61,MasterTable[P/N],0),COLUMN(MasterTable[F^4])) ->  | X61: =INDEX(MasterTable[],MATCH(Simulator!$E61,MasterTable[P/N],0),COLUMN(MasterTable[F^3])) ->  | Y61: =INDEX(MasterTable[],MATCH(Simulator!$E61,MasterTable[P/N],0),COLUMN(MasterTable[F^2])) ->  | Z61: =INDEX(MasterTable[],MATCH(Simulator!$E61,MasterTable[P/N],0),COLUMN(MasterTable[F])) ->  | AA61: =INDEX(MasterTable[],MATCH(Simulator!$E61,MasterTable[P/N],0),COLUMN(MasterTable[F0])) ->  | AB61: =IF(Simulator!$I$8=85,AE31,W61*M61^4+X61*M61^3+Y61*M61^2+Z61*M61+AA61) ->  | AC61: =Simulator!$O$38/Q61 ->  | AF61: =INDEX(MasterTable[],MATCH(Simulator!$E61,MasterTable[P/N],0),COLUMN(MasterTable[Typical Voltage])) ->  | AG61: =INDEX(MasterTable[],MATCH(Simulator!$E61,MasterTable[P/N],0),COLUMN(MasterTable[V^4])) ->  | AH61: =INDEX(MasterTable[],MATCH(Simulator!$E61,MasterTable[P/N],0),COLUMN(MasterTable[V^3])) ->  | AI61: =INDEX(MasterTable[],MATCH(Simulator!$E61,MasterTable[P/N],0),COLUMN(MasterTable[V^2])) ->  | AJ61: =INDEX(MasterTable[],MATCH(Simulator!$E61,MasterTable[P/N],0),COLUMN(MasterTable[V])) ->  | AK61: =INDEX(MasterTable[],MATCH(Simulator!$E61,MasterTable[P/N],0),COLUMN(MasterTable[V0])) ->  | AM61: =INDEX(MasterTable[],MATCH(Simulator!$E61,MasterTable[P/N],0),COLUMN(MasterTable[T^3])) ->  | AN61: =INDEX(MasterTable[],MATCH(Simulator!$E61,MasterTable[P/N],0),COLUMN(MasterTable[T^2])) ->  | AO61: =INDEX(MasterTable[],MATCH(Simulator!$E61,MasterTable[P/N],0),COLUMN(MasterTable[T])) ->  | AP61: =INDEX(MasterTable[],MATCH(Simulator!$E61,MasterTable[P/N],0),COLUMN(MasterTable[T0])) ->  | AT61: =INDEX(MasterTable[],MATCH(Simulator!$E61,MasterTable[P/N],0),COLUMN(MasterTable['# of Die])) ->  | AV61: =INDEX(Tj_to_Vf6[],MATCH(Simulator!$I$8,Tj_to_Vf6[Vf],1),COLUMN(Tj_to_Vf6[Vf])) -> -0.5 | AX61: =IF(Simulator!$I$8=25,AQ61,AR61) -> 
R63: REV TABLE
R64: Bridgelux Product Simulator EXPIRES 06-30-15 Rev 1.0. | S64: Rev 1.0.1 | T64: Added efficacy graphic to Section 2, updated Vero 10 data
R65: Bridgelux Product Simulator EXPIRES 06-30-15 Rev 1.01 | S65: Rev 1.01 | T65: Updated V6 data to 130 lm/W performance data | AQ65: =AF20+((M20-25)*-11)/1000 -> 26.5
R66: Bridgelux Product Simulator EXPIRES 06-30-15 Rev 1.01 | S66: Rev 1.01.1 | T66: Updated Vero 10 typical lumens value, adjusted flux vs. current equation calculation to be 1 if Tc = 25C for Vero/V 18 and Vero 29
R67: Bridgelux Product Simulator EXPIRES 09-30-15 Rev 2.01 | S67: Rev 2.01 | T67: Added 35E and 35G for all form factors, updated flux vs. temperature equations for Vero 13, 18 & 29 to remove unenven bump | AG67: y = -0.00000000000004773529x4 + 0.00000000039481665238x3 - 0.00000137893876986040x2 + 0.00478211933972296000x + 30.96295733186940000000
R68: Bridgelux Product Simulator EXPIRES 09-30-15 Rev 2.02 | S68: Rev 2.02 | T68: Added 35A SKU's, added data validation to Tc input to limit Tc input to a range of 0-105C.
R69: Bridgelux Product Simulator EXPIRES 09-30-15 Rev 2.03 | S69: Rev 2.03 | T69: fixed V18 max current error that was causing an error for V18 50C parts
R70: Bridgelux Product Simulator EXPIRES 09-30-15 Rev 2.04 | S70: Rev 2.04 | T70: Updated Vero and V Series Specs
R71: Bridgelux Product Simulator EXPIRES 09-30-15 Rev 2.05 | S71: Rev 2.05 | T71: Updated with V22 Specs
R72: Bridgelux Product Simulator EXPIRES 09-30-15 Rev 2.06 | S72: Rev 2.06 | T72: Updated with H6 & H9
R73: Bridgelux Product Simulator EXPIRES 07-01-16 Rev 2.07 | S73: Rev 2.07 | T73: Updated with H6, H9, H12 and H15. Corected Tj calculations.

Sheet Data (hidden)
A1: Thermal Resistance at max drive current | L1: 1 | O1: 2 | P1: 3 | Q1: 4 | R1: 5 | T1: 6 | U1: 7 | V1: 8 | AC1: 10 | AD1: 11 | AE1: 12 | AF1: 13 | AG1: 14 | AH1: 15 | AI1: 16 | AJ1: 17 | AK1: 19 | AL1: 20 | AM1: 21 | AN1: 22 | AO1: 23 | AP1: 24 | AQ1: 25
A2: Form Factor | B2: Max Current | C2: Rth | G2: CCT/ CRI PN Creator
A3: Vero 10 | B3: 700 | C3: 1.49 | G3: CCT/CRI | H3: Code
A4: Vero 13 | B4: 1050 | C4: 0.87 | G4: 1750K, 80 CRI Décor | H4: 17E
A5: Vero 18 | B5: 2100 | C5: 0.55 | G5: 2500K, 80 CRI Décor | H5: 25E
A6: Vero 29 | B6: 3150 | C6: 0.26 | G6: 2700K, 80 CRI | H6: 27E
A7: BXRA3-Star-AF | B7: 500 | C7: 2.6 | G7: 2700K, 90 CRI | H7: 27G
A8: BXRA3-Star-AI | B8: 500 | C8: 1.75 | G8: 2700K, 97 CRI Décor | H8: 27H
A9: BXRA3-Rect-BG | B9: 1000 | C9: 0.95 | G9: 3000K, Class A Décor | H9: 30A
A10: BXRA3-Rect-BJ | B10: 1000 | C10: 0.8 | G10: 3000K, 80 CRI | H10: 30E
A11: BXRA3-Rect-BL | B11: 1000 | C11: 0.65 | G11: 3000K 90 CRI | H11: 30G
A12: BXRA3-Mega-FF | B12: 2250 | C12: 0.46 | G12: 3000K, 97 CRI Décor | H12: 30H
A13: BXRA3-Mega-HH | B13: 3000 | C13: 0.31 | G13: 3500K, Class A Décor | H13: 35A
A14: BXRA3-Mega-JJ | B14: 3750 | C14: 0.26 | G14: 3500K, 80 CRI | H14: 35E
A15: V Series V15 | B15: 2000 | C15: 0.4 | G15: 3500K, 90 CRI | H15: 35G
A16: V Series V6 | C16: 1.5 | G16: 4000K, Class A Décor | H16: 40A
A17: H Series H9 | B17: 2450 | C17: 2450 | G17: 4000K, 80 CRI | H17: 40E
G18: 4000K, 90 CRI | H18: 40G
A19: Tj | B19: Vf | G19: 5000K, 70 CRI | H19: 50C
A20: -40 | B20: 0.26 | G20: 5000K, 80 CRI | H20: 50E
A21: -35 | B21: 0.24 | G21: 5000K, 90 CRI | H21: 50G
A22: -30 | B22: 0.22 | G22: 5600K, 90 CRI Décor | H22: 56G
A23: -25 | B23: 0.2 | G23: Vero 10 | J23: Vero 13 | K23: Data from 130 LPW Mass Production and Engineering Recommended DS Value_01042015_V2 | M23: Vero 18 | N23: Data from 130 LPW Mass Production and Engineering Recommended DS Value_01042015_V2 | P23: Vero 29 | Q23: Data from 130 LPW Mass Production and Engineering Recommended DS Value_01042015_V2
A24: -20 | B24: 0.18 | G24: Code | H24: 85 DC Factor | J24: Code | K24: 85 DC Factor | M24: Code | N24: 85 DC Factor | P24: Code | Q24: 85 DC Factor
A25: -15 | B25: 0.16 | G25: 17E | H25: - | J25: 17E | K25: - | M25: 17E | N25: 0.88 | P25: 17E | Q25: 0.88
A26: -10 | B26: 0.14 | G26: 25E | H26: - | J26: 25E | K26: - | M26: 25E | N26: 0.88 | P26: 25E | Q26: 0.88
A27: -5 | B27: 0.12 | G27: 27E | H27: 0.88899 | J27: 27E | K27: 0.9158 | M27: 27E | N27: 0.9069125245 | P27: 27E | Q27: 0.9053992661
A28: 0 | B28: 0.1 | G28: 27G | H28: 0.88899 | J28: 27G | K28: 0.88 | M28: 27G | N28: 0.88 | P28: 27G | Q28: 0.88
A29: 5 | B29: 0.08 | G29: 27H | H29: 0.82 | J29: 27H | K29: 0.82 | M29: 27H | N29: 0.82 | P29: 27H | Q29: 0.82
A30: 10 | B30: 0.06 | G30: 30A | H30: 0.8881246144 | J30: 30A | K30: 0.8881246144 | M30: 30A | N30: 0.8776974712 | P30: 30A | Q30: 0.8910757937
A31: 15 | B31: 0.04 | G31: 30E | H31: 0.889326 | J31: 30E | K31: 0.900762121 | M31: 30E | N31: 0.904212013 | P31: 30E | Q31: 0.9077408638
A32: 20 | B32: 0.02 | G32: 30G | H32: 0.889326 | J32: 30G | K32: 0.88 | M32: 30G | N32: 0.88 | P32: 30G | Q32: 0.88
A33: 25 | B33: 0 | G33: 30H | H33: 0.82 | J33: 30H | K33: 0.82 | M33: 30H | N33: 0.82 | P33: 30H | Q33: 0.82
A34: 30 | B34: -0.02 | G34: 35E | H34: 0.889326 | J34: 35E | K34: 0.9056633538 | M34: 35E | N34: 0.9084361288 | P34: 35E | Q34: 0.8975048607
A35: 35 | B35: -0.04 | G35: 35G | H35: 0.89 | J35: 35G | K35: 0.89 | M35: 35G | N35: 0.89 | P35: 35G | Q35: 0.89
A36: 40 | B36: -0.06 | G36: 35H | H36: - | J36: 35H | K36: - | M36: 35H | P36: 35H
A37: 45 | B37: -0.08 | G37: 40A | H37: 0.8878704419 | J37: 40A | K37: 0.8878704419 | M37: 40A | N37: 0.8935505009 | P37: 40A | Q37: 0.8906497457
A38: 50 | B38: -0.1 | G38: 40E | H38: 0.88565 | J38: 40E | K38: 0.9019637926 | M38: 40E | N38: 0.9031268143 | P38: 40E | Q38: 0.898176674
A39: 55 | B39: -0.12 | G39: 40G | H39: 0.88565 | J39: 40G | K39: 0.88 | M39: 40G | N39: 0.88 | P39: 40G | Q39: 0.88
A40: 60 | B40: -0.14 | G40: 50C | H40: 0.879185 | J40: 50C | K40: 0.88 | M40: 50C | N40: 0.88 | P40: 50C | Q40: 0.88
A41: 65 | B41: -0.16 | G41: 50E | H41: 0.879185 | J41: 50E | K41: 0.88 | M41: 50E | N41: 0.88 | P41: 50E | Q41: 0.88
A42: 70 | B42: -0.18 | G42: 50G | H42: 0.879185 | J42: 50G | K42: 0.88 | M42: 50G | N42: 0.88 | P42: 50G | Q42: 0.88
A43: 75 | B43: -0.2 | G43: 56G | H43: 0.86 | J43: 56G | K43: 0.86 | M43: 56G | N43: 0.88 | P43: 56G | Q43: 0.88
A44: 80 | B44: -0.22
A45: 85 | B45: -0.24
A46: 90 | B46: -0.26 | G46: V6 | H46: Vseries Mass Production and Engineering Recommended DS Value Current DS Comparison 11-18-14 | J46: V8 | K46: Data from 130 LPW Mass Production and Engineering Recommended DS Value_01042015_V2 | M46: V10 | N46: Data from: DS42 V Series V10 130lm-W Data Sheet Tables | P46: V15 | Q46: Data from: DS43 V Series V15 130lm-W Data Sheet Tables | U46: V22 | V46: Data from: DS43 V Series V15 130lm-W Data Sheet Tables
A47: 95 | B47: -0.28 | G47: Code | H47: 85 DC Factor | J47: Code | K47: 85 DC Factor | M47: Code | N47: 85 DC Factor | P47: Code | Q47: 85 DC Factor | U47: Code | V47: 85 DC Factor
A48: 100 | B48: -0.3 | G48: 27E | H48: 0.9 | J48: 27E | K48: 0.898 | M48: 27E | N48: 0.888732289 | P48: 27E | Q48: 0.892060046 | U48: 27E | V48: 0.8999157866
A49: 105 | B49: -0.32 | G49: 27G | H49: 0.9 | J49: 27G | K49: 0.88 | M49: 27G | N49: 0.888732289 | P49: 27G | Q49: 0.892060046 | U49: 30E | V49: 0.8983190882
A50: 110 | B50: -0.34 | G50: 30E | H50: 0.9 | J50: 30E | K50: 0.896 | M50: 30E | N50: 0.895652751 | P50: 30E | Q50: 0.893709033 | U50: 40E | V50: 0.8901653206
A51: 115 | B51: -0.36 | G51: 30G | H51: 0.9 | J51: 30G | K51: 0.88 | M51: 30G | N51: 0.895652751 | P51: 30G | Q51: 0.893709033 | U51: 50C | V51: 0.8833815393
A52: 120 | B52: -0.38 | G52: 40E | H52: 0.9 | J52: 40E | K52: 0.901 | M52: 40E | N52: 0.896027095 | P52: 40E | Q52: 0.893575014
A53: 125 | B53: -0.4 | G53: 40G | J53: 40G | K53: 0.88 | M53: 40G | N53: 0.896027095 | P53: 40G | Q53: 0.893575014
A54: 130 | B54: -0.42 | G54: 50C | H54: 0.9 | J54: 50C | K54: 0.88 | M54: 50C | N54: 0.867303945 | P54: 50C | Q54: 0.867303945
A55: 135 | B55: -0.44 | G55: 50E | H55: 0.9 | J55: 50E | K55: 0.88 | M55: 50E | N55: 0.867303945 | P55: 50E | Q55: 0.867303945
A56: 140 | B56: -0.46 | G56: 50G | H56: 0.9 | J56: 50G | K56: 0.88 | M56: 50G | N56: 0.867303945 | P56: 50G | Q56: 0.867303945
A57: 145 | B57: -0.48
A58: 150 | B58: -0.5
G59: H6 | J59: H9 | M59: H12 | P59: H15
G60: Code | H60: 85 DC Factor | J60: Code | K60: 85 DC Factor | M60: Code | N60: 85 DC Factor | P60: Code | Q60: 85 DC Factor
G61: 27E | H61: 0.8786931818 | J61: 27E | K61: 0.87 | M61: 27E | N61: 0.8521276596 | P61: 27E | Q61: 0.8521276596
G62: 30E | H62: 0.8806256861 | J62: 30E | K62: 0.88 | M62: 30E | N62: 0.8687855624 | P62: 30E | Q62: 0.8687855624
G63: 30G | H63: 0.8859720251 | J63: 30G | K63: 0.86 | M63: 30G | N63: 0.8452236136 | P63: 30G | Q63: 0.8452236136
G64: 35A | H64: 0.8737680572 | J64: 35A | K64: 0.89 | M64: 35A | N64: 0.8651132963 | P64: 35A | Q64: 0.8651132963
G65: 40E | H65: 0.871627907 | J65: 40E | K65: 0.87 | M65: 40E | N65: 0.8581900643 | P65: 40E | Q65: 0.8581900643
J68: y = -0.00000000000004773529x4 + 0.00000000039481665238x3 - 0.00000137893876986040x2 + 0.00478211933972296000x + 30.96295733186940000000 | S68: 2.73288e-09 | T68: -4.75165e-06 | U68: 0.00646204 | V68: -0.00047533 | AC68: 0.02x + 36.4
A70: Master Table
O71: Voltage | S71: Current vs Relative Flux | W71: Current vs Relative Flux @ 85DC | AC71: Flux vs Temperature | AF71: Voltage vs Temperature
A72: Product Family | B72: CCT/CRI | C72: Arrangement | D72: Lumen Family | E72: Generation | F72: PF+CR | G72: P/N | H72: Typical Lumens | I72: Thermal Resistance | J72: Typical Voltage | K72: Typical Current | L72: Max Current | M72: # of Die | N72: V^4 | O72: V^3 | P72: V^2 | Q72: V | R72: V0 | S72: I^3 | T72: I^2 | U72: I | V72: I0 | W72: I^32 | X72: I^23 | Y72: I4 | Z72: I05 | AA72: F^4 | AB72: F^3 | AC72: F^2 | AD72: F | AE72: F0 | AF72: T^3 | AG72: T^2 | AH72: T | AI72: T0
A73: V6-AF | B73: 27E | C73: A | D73: 400 | E73: BXRE | F73: =MasterTable[[#This Row],[Product Family]]&"-"&MasterTable[[#This Row],[CCT/CRI]] -> V6-AF-27E | G73: =MasterTable[[#This Row],[Generation]]&"-"&MasterTable[[#This Row],[CCT/CRI]]&IF(MasterTable[[#This Row],[Lumen Family]]<999,"0"&MasterTable[[#This Row],[Lumen Family]],MasterTable[[#This Row],[Lumen Family]])&"-"&MasterTable[[#This Row],[Arrangement]]&"-2x" -> BXRE-27E0400-A-2x | H73: 374 | I73: 1.25 | J73: 18 | K73: 175 | L73: 350 | M73: 6 | N73: -2.72766e-10 | O73: 2.48622e-07 | P73: -8.55457e-05 | Q73: 0.0217166 | R73: 15.5409 | S73: 2.97857e-09 | T73: -4.84578e-06 | U73: 0.00647891 | V73: 0.000159468 | AC73: -6.8073e-06 | AD73: -0.00116 | AE73: 1.031808734 | AH73: -0.007 | AI73: 17.975
A74: V6-AF | B74: 27G | C74: A | D74: 400 | E74: BXRE | F74: =MasterTable[[#This Row],[Product Family]]&"-"&MasterTable[[#This Row],[CCT/CRI]] -> V6-AF-27G | G74: =MasterTable[[#This Row],[Generation]]&"-"&MasterTable[[#This Row],[CCT/CRI]]&IF(MasterTable[[#This Row],[Lumen Family]]<999,"0"&MasterTable[[#This Row],[Lumen Family]],MasterTable[[#This Row],[Lumen Family]])&"-"&MasterTable[[#This Row],[Arrangement]]&"-2x" -> BXRE-27G0400-A-2x | H74: 318 | I74: 1.25 | J74: 18 | K74: 175 | L74: 350 | M74: 6 | N74: -2.72766e-10 | O74: 2.48622e-07 | P74: -8.55457e-05 | Q74: 0.0217166 | R74: 15.5409 | S74: 2.97857e-09 | T74: -4.84578e-06 | U74: 0.00647891 | V74: 0.000159468 | AC74: -6.8073e-06 | AD74: -0.00116 | AE74: 1.031808734 | AH74: -0.007 | AI74: 17.975
A75: V6-AF | B75: 30E | C75: A | D75: 400 | E75: BXRE | F75: =MasterTable[[#This Row],[Product Family]]&"-"&MasterTable[[#This Row],[CCT/CRI]] -> V6-AF-30E | G75: =MasterTable[[#This Row],[Generation]]&"-"&MasterTable[[#This Row],[CCT/CRI]]&IF(MasterTable[[#This Row],[Lumen Family]]<999,"0"&MasterTable[[#This Row],[Lumen Family]],MasterTable[[#This Row],[Lumen Family]])&"-"&MasterTable[[#This Row],[Arrangement]]&"-2x" -> BXRE-30E0400-A-2x | H75: 393 | I75: 1.25 | J75: 18 | K75: 175 | L75: 350 | M75: 6 | N75: -2.72766e-10 | O75: 2.48622e-07 | P75: -8.55457e-05 | Q75: 0.0217166 | R75: 15.5409 | S75: 2.97857e-09 | T75: -4.84578e-06 | U75: 0.00647891 | V75: 0.000159468 | AC75: -6.8073e-06 | AD75: -0.00116 | AE75: 1.031808734 | AH75: -0.007 | AI75: 17.975
A76: V6-AF | B76: 30G | C76: A | D76: 400 | E76: BXRE | F76: =MasterTable[[#This Row],[Product Family]]&"-"&MasterTable[[#This Row],[CCT/CRI]] -> V6-AF-30G | G76: =MasterTable[[#This Row],[Generation]]&"-"&MasterTable[[#This Row],[CCT/CRI]]&IF(MasterTable[[#This Row],[Lumen Family]]<999,"0"&MasterTable[[#This Row],[Lumen Family]],MasterTable[[#This Row],[Lumen Family]])&"-"&MasterTable[[#This Row],[Arrangement]]&"-2x" -> BXRE-30G0400-A-2x | H76: 330 | I76: 1.25 | J76: 18 | K76: 175 | L76: 350 | M76: 6 | N76: -2.72766e-10 | O76: 2.48622e-07 | P76: -8.55457e-05 | Q76: 0.0217166 | R76: 15.5409 | S76: 2.97857e-09 | T76: -4.84578e-06 | U76: 0.00647891 | V76: 0.000159468 | AC76: -6.8073e-06 | AD76: -0.00116 | AE76: 1.031808734 | AH76: -0.007 | AI76: 17.975
A77: V6-AF | B77: 35E | C77: A | D77: 400 | E77: BXRE | F77: =MasterTable[[#This Row],[Product Family]]&"-"&MasterTable[[#This Row],[CCT/CRI]] -> V6-AF-35E | G77: =MasterTable[[#This Row],[Generation]]&"-"&MasterTable[[#This Row],[CCT/CRI]]&IF(MasterTable[[#This Row],[Lumen Family]]<999,"0"&MasterTable[[#This Row],[Lumen Family]],MasterTable[[#This Row],[Lumen Family]])&"-"&MasterTable[[#This Row],[Arrangement]]&"-2x" -> BXRE-35E0400-A-2x | H77: 403 | I77: 1.25 | J77: 18 | K77: 175 | L77: 350 | M77: 6 | N77: -2.72766e-10 | O77: 2.48622e-07 | P77: -8.55457e-05 | Q77: 0.0217166 | R77: 15.5409 | S77: 2.97857e-09 | T77: -4.84578e-06 | U77: 0.00647891 | V77: 0.000159468 | AC77: -6.8073e-06 | AD77: -0.00116 | AE77: 1.031808734 | AH77: -0.007 | AI77: 17.975
A78: V6-AF | B78: 35G | C78: A | D78: 400 | E78: BXRE | F78: =MasterTable[[#This Row],[Product Family]]&"-"&MasterTable[[#This Row],[CCT/CRI]] -> V6-AF-35G | G78: =MasterTable[[#This Row],[Generation]]&"-"&MasterTable[[#This Row],[CCT/CRI]]&IF(MasterTable[[#This Row],[Lumen Family]]<999,"0"&MasterTable[[#This Row],[Lumen Family]],MasterTable[[#This Row],[Lumen Family]])&"-"&MasterTable[[#This Row],[Arrangement]]&"-2x" -> BXRE-35G0400-A-2x | H78: 344 | I78: 1.25 | J78: 18 | K78: 175 | L78: 350 | M78: 6 | N78: -2.72766e-10 | O78: 2.48622e-07 | P78: -8.55457e-05 | Q78: 0.0217166 | R78: 15.5409 | S78: 2.97857e-09 | T78: -4.84578e-06 | U78: 0.00647891 | V78: 0.000159468 | AC78: -6.8073e-06 | AD78: -0.00116 | AE78: 1.031808734 | AH78: -0.007 | AI78: 17.975
A79: V6-AF | B79: 40E | C79: A | D79: 400 | E79: BXRE | F79: =MasterTable[[#This Row],[Product Family]]&"-"&MasterTable[[#This Row],[CCT/CRI]] -> V6-AF-40E | G79: =MasterTable[[#This Row],[Generation]]&"-"&MasterTable[[#This Row],[CCT/CRI]]&IF(MasterTable[[#This Row],[Lumen Family]]<999,"0"&MasterTable[[#This Row],[Lumen Family]],MasterTable[[#This Row],[Lumen Family]])&"-"&MasterTable[[#This Row],[Arrangement]]&"-2x" -> BXRE-40E0400-A-2x | H79: 409 | I79: 1.25 | J79: 18 | K79: 175 | L79: 350 | M79: 6 | N79: -2.72766e-10 | O79: 2.48622e-07 | P79: -8.55457e-05 | Q79: 0.0217166 | R79: 15.5409 | S79: 2.97857e-09 | T79: -4.84578e-06 | U79: 0.00647891 | V79: 0.000159468 | AC79: -6.1e-06 | AD79: -0.00112 | AE79: 1.031425 | AH79: -0.007 | AI79: 17.975
A80: V6-AF | B80: 50C | C80: A | D80: 400 | E80: BXRE | F80: =MasterTable[[#This Row],[Product Family]]&"-"&MasterTable[[#This Row],[CCT/CRI]] -> V6-AF-50C | G80: =MasterTable[[#This Row],[Generation]]&"-"&MasterTable[[#This Row],[CCT/CRI]]&IF(MasterTable[[#This Row],[Lumen Family]]<999,"0"&MasterTable[[#This Row],[Lumen Family]],MasterTable[[#This Row],[Lumen Family]])&"-"&MasterTable[[#This Row],[Arrangement]]&"-2x" -> BXRE-50C0400-A-2x | H80: 439 | I80: 1.25 | J80: 18 | K80: 175 | L80: 350 | M80: 6 | N80: -2.72766e-10 | O80: 2.48622e-07 | P80: -8.55457e-05 | Q80: 0.0217166 | R80: 15.5409 | S80: 2.97857e-09 | T80: -4.84578e-06 | U80: 0.00647891 | V80: 0.000159468 | AC80: -3.65e-06 | AD80: -0.00181 | AE80: 1.05 | AH80: -0.007 | AI80: 17.975
A81: V6-AF | B81: 50E | C81: A | D81: 400 | E81: BXRE | F81: =MasterTable[[#This Row],[Product Family]]&"-"&MasterTable[[#This Row],[CCT/CRI]] -> V6-AF-50E | G81: =MasterTable[[#This Row],[Generation]]&"-"&MasterTable[[#This Row],[CCT/CRI]]&IF(MasterTable[[#This Row],[Lumen Family]]<999,"0"&MasterTable[[#This Row],[Lumen Family]],MasterTable[[#This Row],[Lumen Family]])&"-"&MasterTable[[#This Row],[Arrangement]]&"-2x" -> BXRE-50E0400-A-2x | H81: 412 | I81: 1.25 | J81: 18 | K81: 175 | L81: 350 | M81: 6 | N81: -2.72766e-10 | O81: 2.48622e-07 | P81: -8.55457e-05 | Q81: 0.0217166 | R81: 15.5409 | S81: 2.97857e-09 | T81: -4.84578e-06 | U81: 0.00647891 | V81: 0.000159468 | AC81: -3.65e-06 | AD81: -0.00181 | AE81: 1.05 | AH81: -0.007 | AI81: 17.975
A82: V6-BC | B82: 27E | C82: B | D82: 400 | E82: BXRE | F82: =MasterTable[[#This Row],[Product Family]]&"-"&MasterTable[[#This Row],[CCT/CRI]] -> V6-BC-27E | G82: =MasterTable[[#This Row],[Generation]]&"-"&MasterTable[[#This Row],[CCT/CRI]]&IF(MasterTable[[#This Row],[Lumen Family]]<999,"0"&MasterTable[[#This Row],[Lumen Family]],MasterTable[[#This Row],[Lumen Family]])&"-"&MasterTable[[#This Row],[Arrangement]]&"-2x" -> BXRE-27E0400-B-2x | H82: 374 | I82: 1.25 | J82: 9 | K82: 350 | L82: 700 | M82: 6 | N82: -9.38169e-12 | O82: 1.68091e-08 | P82: -1.13906e-05 | Q82: 0.00571627 | R82: 7.71694 | S82: 4.91e-10 | T82: -1.4e-06 | U82: 0.003286 | V82: 0.003589 | AC82: -6.8073e-06 | AD82: -0.00116 | AE82: 1.031808734 | AH82: -0.004 | AI82: 9
A83: V6-BC | B83: 27G | C83: B | D83: 400 | E83: BXRE | F83: =MasterTable[[#This Row],[Product Family]]&"-"&MasterTable[[#This Row],[CCT/CRI]] -> V6-BC-27G | G83: =MasterTable[[#This Row],[Generation]]&"-"&MasterTable[[#This Row],[CCT/CRI]]&IF(MasterTable[[#This Row],[Lumen Family]]<999,"0"&MasterTable[[#This Row],[Lumen Family]],MasterTable[[#This Row],[Lumen Family]])&"-"&MasterTable[[#This Row],[Arrangement]]&"-2x" -> BXRE-27G0400-B-2x | H83: 318 | I83: 1.25 | J83: 9 | K83: 350 | L83: 700 | M83: 6 | N83: -9.38169e-12 | O83: 1.68091e-08 | P83: -1.13906e-05 | Q83: 0.00571627 | R83: 7.71694 | S83: 4.91e-10 | T83: -1.4e-06 | U83: 0.003286 | V83: 0.003589 | AC83: -6.8073e-06 | AD83: -0.00116 | AE83: 1.031808734 | AH83: -0.004 | AI83: 9
A84: V6-BC | B84: 30E | C84: B | D84: 400 | E84: BXRE | F84: =MasterTable[[#This Row],[Product Family]]&"-"&MasterTable[[#This Row],[CCT/CRI]] -> V6-BC-30E | G84: =MasterTable[[#This Row],[Generation]]&"-"&MasterTable[[#This Row],[CCT/CRI]]&IF(MasterTable[[#This Row],[Lumen Family]]<999,"0"&MasterTable[[#This Row],[Lumen Family]],MasterTable[[#This Row],[Lumen Family]])&"-"&MasterTable[[#This Row],[Arrangement]]&"-2x" -> BXRE-30E0400-B-2x | H84: 393 | I84: 1.25 | J84: 9 | K84: 350 | L84: 700 | M84: 6 | N84: -9.38169e-12 | O84: 1.68091e-08 | P84: -1.13906e-05 | Q84: 0.00571627 | R84: 7.71694 | S84: 4.91e-10 | T84: -1.4e-06 | U84: 0.003286 | V84: 0.003589 | AC84: -6.8073e-06 | AD84: -0.00116 | AE84: 1.031808734 | AH84: -0.004 | AI84: 9
A85: V6-BC | B85: 30G | C85: B | D85: 400 | E85: BXRE | F85: =MasterTable[[#This Row],[Product Family]]&"-"&MasterTable[[#This Row],[CCT/CRI]] -> V6-BC-30G | G85: =MasterTable[[#This Row],[Generation]]&"-"&MasterTable[[#This Row],[CCT/CRI]]&IF(MasterTable[[#This Row],[Lumen Family]]<999,"0"&MasterTable[[#This Row],[Lumen Family]],MasterTable[[#This Row],[Lumen Family]])&"-"&MasterTable[[#This Row],[Arrangement]]&"-2x" -> BXRE-30G0400-B-2x | H85: 330 | I85: 1.25 | J85: 9 | K85: 350 | L85: 700 | M85: 6 | N85: -9.38169e-12 | O85: 1.68091e-08 | P85: -1.13906e-05 | Q85: 0.00571627 | R85: 7.71694 | S85: 4.91e-10 | T85: -1.4e-06 | U85: 0.003286 | V85: 0.003589 | AC85: -6.8073e-06 | AD85: -0.00116 | AE85: 1.031808734 | AH85: -0.004 | AI85: 9
A86: V6-BC | B86: 35E | C86: B | D86: 400 | E86: BXRE | F86: =MasterTable[[#This Row],[Product Family]]&"-"&MasterTable[[#This Row],[CCT/CRI]] -> V6-BC-35E | G86: =MasterTable[[#This Row],[Generation]]&"-"&MasterTable[[#This Row],[CCT/CRI]]&IF(MasterTable[[#This Row],[Lumen Family]]<999,"0"&MasterTable[[#This Row],[Lumen Family]],MasterTable[[#This Row],[Lumen Family]])&"-"&MasterTable[[#This Row],[Arrangement]]&"-2x" -> BXRE-35E0400-B-2x | H86: 403 | I86: 1.25 | J86: 9 | K86: 350 | L86: 700 | M86: 6 | N86: -9.38169e-12 | O86: 1.68091e-08 | P86: -1.13906e-05 | Q86: 0.00571627 | R86: 7.71694 | S86: 4.91e-10 | T86: -1.4e-06 | U86: 0.003286 | V86: 0.003589 | AC86: -6.8073e-06 | AD86: -0.00116 | AE86: 1.031808734 | AH86: -0.004 | AI86: 9
A87: V6-BC | B87: 35G | C87: B | D87: 400 | E87: BXRE | F87: =MasterTable[[#This Row],[Product Family]]&"-"&MasterTable[[#This Row],[CCT/CRI]] -> V6-BC-35G | G87: =MasterTable[[#This Row],[Generation]]&"-"&MasterTable[[#This Row],[CCT/CRI]]&IF(MasterTable[[#This Row],[Lumen Family]]<999,"0"&MasterTable[[#This Row],[Lumen Family]],MasterTable[[#This Row],[Lumen Family]])&"-"&MasterTable[[#This Row],[Arrangement]]&"-2x" -> BXRE-35G0400-B-2x | H87: 344 | I87: 1.25 | J87: 9 | K87: 350 | L87: 700 | M87: 6 | N87: -9.38169e-12 | O87: 1.68091e-08 | P87: -1.13906e-05 | Q87: 0.00571627 | R87: 7.71694 | S87: 4.91e-10 | T87: -1.4e-06 | U87: 0.003286 | V87: 0.003589 | AC87: -6.8073e-06 | AD87: -0.00116 | AE87: 1.031808734 | AH87: -0.004 | AI87: 9
A88: V6-BC | B88: 40E | C88: B | D88: 400 | E88: BXRE | F88: =MasterTable[[#This Row],[Product Family]]&"-"&MasterTable[[#This Row],[CCT/CRI]] -> V6-BC-40E | G88: =MasterTable[[#This Row],[Generation]]&"-"&MasterTable[[#This Row],[CCT/CRI]]&IF(MasterTable[[#This Row],[Lumen Family]]<999,"0"&MasterTable[[#This Row],[Lumen Family]],MasterTable[[#This Row],[Lumen Family]])&"-"&MasterTable[[#This Row],[Arrangement]]&"-2x" -> BXRE-40E0400-B-2x | H88: 409 | I88: 1.25 | J88: 9 | K88: 350 | L88: 700 | M88: 6 | N88: -9.38169e-12 | O88: 1.68091e-08 | P88: -1.13906e-05 | Q88: 0.00571627 | R88: 7.71694 | S88: 4.91e-10 | T88: -1.4e-06 | U88: 0.003286 | V88: 0.003589 | AC88: -6.1e-06 | AD88: -0.00112 | AE88: 1.031425 | AH88: -0.004 | AI88: 9
A89: V6-BC | B89: 50C | C89: B | D89: 400 | E89: BXRE | F89: =MasterTable[[#This Row],[Product Family]]&"-"&MasterTable[[#This Row],[CCT/CRI]] -> V6-BC-50C | G89: =MasterTable[[#This Row],[Generation]]&"-"&MasterTable[[#This Row],[CCT/CRI]]&IF(MasterTable[[#This Row],[Lumen Family]]<999,"0"&MasterTable[[#This Row],[Lumen Family]],MasterTable[[#This Row],[Lumen Family]])&"-"&MasterTable[[#This Row],[Arrangement]]&"-2x" -> BXRE-50C0400-B-2x | H89: 439 | I89: 1.25 | J89: 9 | K89: 350 | L89: 700 | M89: 6 | N89: -9.38169e-12 | O89: 1.68091e-08 | P89: -1.13906e-05 | Q89: 0.00571627 | R89: 7.71694 | S89: 4.91e-10 | T89: -1.4e-06 | U89: 0.003286 | V89: 0.003589 | AC89: -3.65e-06 | AD89: -0.00181 | AE89: 1.05 | AH89: -0.004 | AI89: 9
A90: V6-BC | B90: 50E | C90: B | D90: 400 | E90: BXRE | F90: =MasterTable[[#This Row],[Product Family]]&"-"&MasterTable[[#This Row],[CCT/CRI]] -> V6-BC-50E | G90: =MasterTable[[#This Row],[Generation]]&"-"&MasterTable[[#This Row],[CCT/CRI]]&IF(MasterTable[[#This Row],[Lumen Family]]<999,"0"&MasterTable[[#This Row],[Lumen Family]],MasterTable[[#This Row],[Lumen Family]])&"-"&MasterTable[[#This Row],[Arrangement]]&"-2x" -> BXRE-50E0400-B-2x | H90: 412 | I90: 1.25 | J90: 9 | K90: 350 | L90: 700 | M90: 6 | N90: -9.38169e-12 | O90: 1.68091e-08 | P90: -1.13906e-05 | Q90: 0.00571627 | R90: 7.71694 | S90: 4.91e-10 | T90: -1.4e-06 | U90: 0.003286 | V90: 0.003589 | AC90: -3.65e-06 | AD90: -0.00181 | AE90: 1.05 | AH90: -0.004 | AI90: 9
A91: V8-AH | B91: 30E | C91: A | D91: 500 | E91: BXRE | F91: =MasterTable[[#This Row],[Product Family]]&"-"&MasterTable[[#This Row],[CCT/CRI]] -> V8-AH-30E | G91: =MasterTable[[#This Row],[Generation]]&"-"&MasterTable[[#This Row],[CCT/CRI]]&IF(MasterTable[[#This Row],[Lumen Family]]<999,"0"&MasterTable[[#This Row],[Lumen Family]],MasterTable[[#This Row],[Lumen Family]])&"-"&MasterTable[[#This Row],[Arrangement]]&"-2x" -> BXRE-30E0500-A-2x | H91: 485 | I91: 0.74 | J91: 23.7 | K91: 175 | L91: 350 | M91: 8 | N91: -5.60869e-10 | O91: 5.07863e-07 | P91: -0.000172747 | Q91: 0.0422803 | R91: 30.7663 | T91: -3.30035e-06 | U91: 0.00625537 | V91: 0.00676193 | AC91: -3.39203e-06 | AD91: -0.00141498 | AE91: 1.03703 | AH91: -0.024 | AI91: 36.2
A92: V8-AH | B92: 30G | C92: A | D92: 500 | E92: BXRE | F92: =MasterTable[[#This Row],[Product Family]]&"-"&MasterTable[[#This Row],[CCT/CRI]] -> V8-AH-30G | G92: =MasterTable[[#This Row],[Generation]]&"-"&MasterTable[[#This Row],[CCT/CRI]]&IF(MasterTable[[#This Row],[Lumen Family]]<999,"0"&MasterTable[[#This Row],[Lumen Family]],MasterTable[[#This Row],[Lumen Family]])&"-"&MasterTable[[#This Row],[Arrangement]]&"-2x" -> BXRE-30G0500-A-2x | H92: 415 | I92: 0.74 | J92: 23.7 | K92: 175 | L92: 350 | M92: 8 | N92: -5.60869e-10 | O92: 5.07863e-07 | P92: -0.000172747 | Q92: 0.0422803 | R92: 30.7663 | T92: -3.30035e-06 | U92: 0.00625537 | V92: 0.00676193 | AC92: -3.39203e-06 | AD92: -0.00141498 | AE92: 1.03703 | AH92: -0.024 | AI92: 36.2
A93: V8-AH | B93: 40E | C93: A | D93: 500 | E93: BXRE | F93: =MasterTable[[#This Row],[Product Family]]&"-"&MasterTable[[#This Row],[CCT/CRI]] -> V8-AH-40E | G93: =MasterTable[[#This Row],[Generation]]&"-"&MasterTable[[#This Row],[CCT/CRI]]&IF(MasterTable[[#This Row],[Lumen Family]]<999,"0"&MasterTable[[#This Row],[Lumen Family]],MasterTable[[#This Row],[Lumen Family]])&"-"&MasterTable[[#This Row],[Arrangement]]&"-2x" -> BXRE-40E0500-A-2x | H93: 520 | I93: 0.74 | J93: 23.7 | K93: 175 | L93: 350 | M93: 8 | N93: -5.60869e-10 | O93: 5.07863e-07 | P93: -0.000172747 | Q93: 0.0422803 | R93: 30.7663 | T93: -3.30035e-06 | U93: 0.00625537 | V93: 0.00676193 | AC93: -4.10748e-06 | AD93: -0.00141216 | AE93: 1.03751 | AH93: -0.024 | AI93: 36.2
A94: V8-AH | B94: 50C | C94: A | D94: 500 | E94: BXRE | F94: =MasterTable[[#This Row],[Product Family]]&"-"&MasterTable[[#This Row],[CCT/CRI]] -> V8-AH-50C | G94: =MasterTable[[#This Row],[Generation]]&"-"&MasterTable[[#This Row],[CCT/CRI]]&IF(MasterTable[[#This Row],[Lumen Family]]<999,"0"&MasterTable[[#This Row],[Lumen Family]],MasterTable[[#This Row],[Lumen Family]])&"-"&MasterTable[[#This Row],[Arrangement]]&"-2x" -> BXRE-50C0500-A-2x | H94: 570 | I94: 0.74 | J94: 23.7 | K94: 175 | L94: 350 | M94: 8 | N94: -5.60869e-10 | O94: 5.07863e-07 | P94: -0.000172747 | Q94: 0.0422803 | R94: 30.7663 | T94: -3.30035e-06 | U94: 0.00625537 | V94: 0.00676193 | AC94: -3.14472e-06 | AD94: -0.00187102 | AE94: 1.04899 | AH94: -0.024 | AI94: 36.2
A95: V8-AL | B95: 27E | C95: A | D95: 800 | E95: BXRE | F95: =MasterTable[[#This Row],[Product Family]]&"-"&MasterTable[[#This Row],[CCT/CRI]] -> V8-AL-27E | G95: =MasterTable[[#This Row],[Generation]]&"-"&MasterTable[[#This Row],[CCT/CRI]]&IF(MasterTable[[#This Row],[Lumen Family]]<999,"0"&MasterTable[[#This Row],[Lumen Family]],MasterTable[[#This Row],[Lumen Family]])&"-"&MasterTable[[#This Row],[Arrangement]]&"-2x" -> BXRE-27E0800-A-2x | H95: 740 | I95: 0.71 | J95: 35.6 | K95: 175 | L95: 350 | M95: 12 | N95: -1e-09 | O95: 8.66e-07 | P95: -0.000271 | Q95: 0.0549 | R95: 30.6 | T95: -4.104724498e-06 | U95: 0.006375931247 | V95: 0.007264776006 | X95: -4.297732518e-06 | Y95: 0.0064097279 | Z95: 0.009909092516 | AC95: -4.645792711e-06 | AD95: -0.001411401741 | AE95: 1.03739622 | AH95: -0.017 | AI95: 36.025
A96: V8-AL | B96: 27G | C96: A | D96: 800 | E96: BXRE | F96: =MasterTable[[#This Row],[Product Family]]&"-"&MasterTable[[#This Row],[CCT/CRI]] -> V8-AL-27G | G96: =MasterTable[[#This Row],[Generation]]&"-"&MasterTable[[#This Row],[CCT/CRI]]&IF(MasterTable[[#This Row],[Lumen Family]]<999,"0"&MasterTable[[#This Row],[Lumen Family]],MasterTable[[#This Row],[Lumen Family]])&"-"&MasterTable[[#This Row],[Arrangement]]&"-2x" -> BXRE-27G0800-A-2x | H96: 629 | I96: 0.71 | J96: 35.6 | K96: 175 | L96: 350 | M96: 12 | N96: -1e-09 | O96: 8.66e-07 | P96: -0.000271 | Q96: 0.0549 | R96: 30.6 | T96: -4.104724498e-06 | U96: 0.006375931247 | V96: 0.007264776006 | X96: -4.297732518e-06 | Y96: 0.0064097279 | Z96: 0.009909092516 | AC96: -4.645792711e-06 | AD96: -0.001411401741 | AE96: 1.03739622 | AH96: -0.017 | AI96: 36.025
A97: V8-AL | B97: 30E | C97: A | D97: 800 | E97: BXRE | F97: =MasterTable[[#This Row],[Product Family]]&"-"&MasterTable[[#This Row],[CCT/CRI]] -> V8-AL-30E | G97: =MasterTable[[#This Row],[Generation]]&"-"&MasterTable[[#This Row],[CCT/CRI]]&IF(MasterTable[[#This Row],[Lumen Family]]<999,"0"&MasterTable[[#This Row],[Lumen Family]],MasterTable[[#This Row],[Lumen Family]])&"-"&MasterTable[[#This Row],[Arrangement]]&"-2x" -> BXRE-30E0800-A-2x | H97: 785 | I97: 0.71 | J97: 35.6 | K97: 175 | L97: 350 | M97: 12 | N97: -1e-09 | O97: 8.66e-07 | P97: -0.000271 | Q97: 0.0549 | R97: 30.6 | T97: -4.104724498e-06 | U97: 0.006375931247 | V97: 0.007264776006 | X97: -4.297732518e-06 | Y97: 0.0064097279 | Z97: 0.009909092516 | AC97: -4.645792711e-06 | AD97: -0.001411401741 | AE97: 1.03739622 | AH97: -0.017 | AI97: 36.025
A98: V8-AL | B98: 30G | C98: A | D98: 800 | E98: BXRE | F98: =MasterTable[[#This Row],[Product Family]]&"-"&MasterTable[[#This Row],[CCT/CRI]] -> V8-AL-30G | G98: =MasterTable[[#This Row],[Generation]]&"-"&MasterTable[[#This Row],[CCT/CRI]]&IF(MasterTable[[#This Row],[Lumen Family]]<999,"0"&MasterTable[[#This Row],[Lumen Family]],MasterTable[[#This Row],[Lumen Family]])&"-"&MasterTable[[#This Row],[Arrangement]]&"-2x" -> BXRE-30G0800-A-2x | H98: 654 | I98: 0.71 | J98: 35.6 | K98: 175 | L98: 350 | M98: 12 | N98: -1e-09 | O98: 8.66e-07 | P98: -0.000271 | Q98: 0.0549 | R98: 30.6 | T98: -4.104724498e-06 | U98: 0.006375931247 | V98: 0.007264776006 | X98: -4.297732518e-06 | Y98: 0.0064097279 | Z98: 0.009909092516 | AC98: -4.645792711e-06 | AD98: -0.001411401741 | AE98: 1.03739622 | AH98: -0.017 | AI98: 36.025
A99: V8-AL | B99: 35E | C99: A | D99: 800 | E99: BXRE | F99: =MasterTable[[#This Row],[Product Family]]&"-"&MasterTable[[#This Row],[CCT/CRI]] -> V8-AL-35E | G99: =MasterTable[[#This Row],[Generation]]&"-"&MasterTable[[#This Row],[CCT/CRI]]&IF(MasterTable[[#This Row],[Lumen Family]]<999,"0"&MasterTable[[#This Row],[Lumen Family]],MasterTable[[#This Row],[Lumen Family]])&"-"&MasterTable[[#This Row],[Arrangement]]&"-2x" -> BXRE-35E0800-A-2x | H99: 803 | I99: 0.71 | J99: 35.6 | K99: 175 | L99: 350 | M99: 12 | N99: -1e-09 | O99: 8.66e-07 | P99: -0.000271 | Q99: 0.0549 | R99: 30.6 | T99: -4.104724498e-06 | U99: 0.006375931247 | V99: 0.007264776006 | X99: -4.297732518e-06 | Y99: 0.0064097279 | Z99: 0.009909092516 | AC99: -4.645792711e-06 | AD99: -0.001411401741 | AE99: 1.03739622 | AH99: -0.017 | AI99: 36.025
A100: V8-AL | B100: 35G | C100: A | D100: 800 | E100: BXRE | F100: =MasterTable[[#This Row],[Product Family]]&"-"&MasterTable[[#This Row],[CCT/CRI]] -> V8-AL-35G | G100: =MasterTable[[#This Row],[Generation]]&"-"&MasterTable[[#This Row],[CCT/CRI]]&IF(MasterTable[[#This Row],[Lumen Family]]<999,"0"&MasterTable[[#This Row],[Lumen Family]],MasterTable[[#This Row],[Lumen Family]])&"-"&MasterTable[[#This Row],[Arrangement]]&"-2x" -> BXRE-35G0800-A-2x | H100: 679 | I100: 0.71 | J100: 35.6 | K100: 175 | L100: 350 | M100: 12 | N100: -1e-09 | O100: 8.66e-07 | P100: -0.000271 | Q100: 0.0549 | R100: 30.6 | T100: -4.104724498e-06 | U100: 0.006375931247 | V100: 0.007264776006 | X100: -4.297732518e-06 | Y100: 0.0064097279 | Z100: 0.009909092516 | AC100: -4.645792711e-06 | AD100: -0.001411401741 | AE100: 1.03739622 | AH100: -0.017 | AI100: 36.025
A101: V8-AL | B101: 40E | C101: A | D101: 800 | E101: BXRE | F101: =MasterTable[[#This Row],[Product Family]]&"-"&MasterTable[[#This Row],[CCT/CRI]] -> V8-AL-40E | G101: =MasterTable[[#This Row],[Generation]]&"-"&MasterTable[[#This Row],[CCT/CRI]]&IF(MasterTable[[#This Row],[Lumen Family]]<999,"0"&MasterTable[[#This Row],[Lumen Family]],MasterTable[[#This Row],[Lumen Family]])&"-"&MasterTable[[#This Row],[Arrangement]]&"-2x" -> BXRE-40E0800-A-2x | H101: 829 | I101: 0.71 | J101: 35.6 | K101: 175 | L101: 350 | M101: 12 | N101: -1e-09 | O101: 8.66e-07 | P101: -0.000271 | Q101: 0.0549 | R101: 30.6 | T101: -4.104724498e-06 | U101: 0.006375931247 | V101: 0.007264776006 | X101: -4.297732518e-06 | Y101: 0.0064097279 | Z101: 0.009909092516 | AC101: -6.624324439e-06 | AD101: -0.001127836986 | AE101: 1.030977057 | AH101: -0.017 | AI101: 36.025
A102: V8-AL | B102: 40G | C102: A | D102: 800 | E102: BXRE | F102: =MasterTable[[#This Row],[Product Family]]&"-"&MasterTable[[#This Row],[CCT/CRI]] -> V8-AL-40G | G102: =MasterTable[[#This Row],[Generation]]&"-"&MasterTable[[#This Row],[CCT/CRI]]&IF(MasterTable[[#This Row],[Lumen Family]]<999,"0"&MasterTable[[#This Row],[Lumen Family]],MasterTable[[#This Row],[Lumen Family]])&"-"&MasterTable[[#This Row],[Arrangement]]&"-2x" -> BXRE-40G0800-A-2x | H102: 716 | I102: 0.71 | J102: 35.6 | K102: 175 | L102: 350 | M102: 12 | N102: -1e-09 | O102: 8.66e-07 | P102: -0.000271 | Q102: 0.0549 | R102: 30.6 | T102: -4.104724498e-06 | U102: 0.006375931247 | V102: 0.007264776006 | X102: -4.297732518e-06 | Y102: 0.0064097279 | Z102: 0.009909092516 | AC102: -6.624324439e-06 | AD102: -0.001127836986 | AE102: 1.030977057 | AH102: -0.017 | AI102: 36.025
A103: V8-AL | B103: 50C | C103: A | D103: 800 | E103: BXRE | F103: =MasterTable[[#This Row],[Product Family]]&"-"&MasterTable[[#This Row],[CCT/CRI]] -> V8-AL-50C | G103: =MasterTable[[#This Row],[Generation]]&"-"&MasterTable[[#This Row],[CCT/CRI]]&IF(MasterTable[[#This Row],[Lumen Family]]<999,"0"&MasterTable[[#This Row],[Lumen Family]],MasterTable[[#This Row],[Lumen Family]])&"-"&MasterTable[[#This Row],[Arrangement]]&"-2x" -> BXRE-50C0800-A-2x | H103: 885 | I103: 0.71 | J103: 35.6 | K103: 175 | L103: 350 | M103: 12 | N103: -1e-09 | O103: 8.66e-07 | P103: -0.000271 | Q103: 0.0549 | R103: 30.6 | T103: -4.104724498e-06 | U103: 0.006375931247 | V103: 0.007264776006 | X103: -4.297732518e-06 | Y103: 0.0064097279 | Z103: 0.009909092516 | AC103: -3.094737491e-06 | AD103: -0.001626249571 | AE103: 1.040045269 | AH103: -0.017 | AI103: 36.025
A104: V8-AL | B104: 50E | C104: A | D104: 800 | E104: BXRE | F104: =MasterTable[[#This Row],[Product Family]]&"-"&MasterTable[[#This Row],[CCT/CRI]] -> V8-AL-50E | G104: =MasterTable[[#This Row],[Generation]]&"-"&MasterTable[[#This Row],[CCT/CRI]]&IF(MasterTable[[#This Row],[Lumen Family]]<999,"0"&MasterTable[[#This Row],[Lumen Family]],MasterTable[[#This Row],[Lumen Family]])&"-"&MasterTable[[#This Row],[Arrangement]]&"-2x" -> BXRE-50E0800-A-2x | H104: 829 | I104: 0.71 | J104: 35.6 | K104: 175 | L104: 350 | M104: 12 | N104: -1e-09 | O104: 8.66e-07 | P104: -0.000271 | Q104: 0.0549 | R104: 30.6 | T104: -4.104724498e-06 | U104: 0.006375931247 | V104: 0.007264776006 | X104: -4.297732518e-06 | Y104: 0.0064097279 | Z104: 0.009909092516 | AC104: -3.094737491e-06 | AD104: -0.001626249571 | AE104: 1.040045269 | AH104: -0.017 | AI104: 36.025
A105: V8-BF | B105: 27E | C105: B | D105: 800 | E105: BXRE | F105: =MasterTable[[#This Row],[Product Family]]&"-"&MasterTable[[#This Row],[CCT/CRI]] -> V8-BF-27E | G105: =MasterTable[[#This Row],[Generation]]&"-"&MasterTable[[#This Row],[CCT/CRI]]&IF(MasterTable[[#This Row],[Lumen Family]]<999,"0"&MasterTable[[#This Row],[Lumen Family]],MasterTable[[#This Row],[Lumen Family]])&"-"&MasterTable[[#This Row],[Arrangement]]&"-2x" -> BXRE-27E0800-B-2x | H105: 740 | I105: 0.71 | J105: 17.8 | K105: 350 | L105: 700 | M105: 12 | N105: -7.438265024e-11 | O105: 9.436062914e-08 | P105: -4.439420342e-05 | Q105: 0.01425199524 | R105: 15.3243187 | T105: -1.026181124e-06 | U105: 0.003187965624 | V105: 0.007264776006 | X105: -1.074433129e-06 | Y105: 0.00320486395 | Z105: 0.009909092516 | AC105: -4.645792711e-06 | AD105: -0.001411401741 | AE105: 1.03739622 | AH105: -0.007 | AI105: 17.975
A106: V8-BF | B106: 27G | C106: B | D106: 800 | E106: BXRE | F106: =MasterTable[[#This Row],[Product Family]]&"-"&MasterTable[[#This Row],[CCT/CRI]] -> V8-BF-27G | G106: =MasterTable[[#This Row],[Generation]]&"-"&MasterTable[[#This Row],[CCT/CRI]]&IF(MasterTable[[#This Row],[Lumen Family]]<999,"0"&MasterTable[[#This Row],[Lumen Family]],MasterTable[[#This Row],[Lumen Family]])&"-"&MasterTable[[#This Row],[Arrangement]]&"-2x" -> BXRE-27G0800-B-2x | H106: 629 | I106: 0.71 | J106: 17.8 | K106: 350 | L106: 700 | M106: 12 | N106: -7.438265024e-11 | O106: 9.436062914e-08 | P106: -4.439420342e-05 | Q106: 0.01425199524 | R106: 15.3243187 | T106: -1.026181124e-06 | U106: 0.003187965624 | V106: 0.007264776006 | X106: -1.074433129e-06 | Y106: 0.00320486395 | Z106: 0.009909092516 | AC106: -4.645792711e-06 | AD106: -0.001411401741 | AE106: 1.03739622 | AH106: -0.007 | AI106: 17.975
A107: V8-BF | B107: 30E | C107: B | D107: 800 | E107: BXRE | F107: =MasterTable[[#This Row],[Product Family]]&"-"&MasterTable[[#This Row],[CCT/CRI]] -> V8-BF-30E | G107: =MasterTable[[#This Row],[Generation]]&"-"&MasterTable[[#This Row],[CCT/CRI]]&IF(MasterTable[[#This Row],[Lumen Family]]<999,"0"&MasterTable[[#This Row],[Lumen Family]],MasterTable[[#This Row],[Lumen Family]])&"-"&MasterTable[[#This Row],[Arrangement]]&"-2x" -> BXRE-30E0800-B-2x | H107: 785 | I107: 0.71 | J107: 17.8 | K107: 350 | L107: 700 | M107: 12 | N107: -7.438265024e-11 | O107: 9.436062914e-08 | P107: -4.439420342e-05 | Q107: 0.01425199524 | R107: 15.3243187 | T107: -1.026181124e-06 | U107: 0.003187965624 | V107: 0.007264776006 | X107: -1.074433129e-06 | Y107: 0.00320486395 | Z107: 0.009909092516 | AC107: -4.645792711e-06 | AD107: -0.001411401741 | AE107: 1.03739622 | AH107: -0.007 | AI107: 17.975
A108: V8-BF | B108: 30G | C108: B | D108: 800 | E108: BXRE | F108: =MasterTable[[#This Row],[Product Family]]&"-"&MasterTable[[#This Row],[CCT/CRI]] -> V8-BF-30G | G108: =MasterTable[[#This Row],[Generation]]&"-"&MasterTable[[#This Row],[CCT/CRI]]&IF(MasterTable[[#This Row],[Lumen Family]]<999,"0"&MasterTable[[#This Row],[Lumen Family]],MasterTable[[#This Row],[Lumen Family]])&"-"&MasterTable[[#This Row],[Arrangement]]&"-2x" -> BXRE-30G0800-B-2x | H108: 654 | I108: 0.71 | J108: 17.8 | K108: 350 | L108: 700 | M108: 12 | N108: -7.438265024e-11 | O108: 9.436062914e-08 | P108: -4.439420342e-05 | Q108: 0.01425199524 | R108: 15.3243187 | T108: -1.026181124e-06 | U108: 0.003187965624 | V108: 0.007264776006 | X108: -1.074433129e-06 | Y108: 0.00320486395 | Z108: 0.009909092516 | AC108: -4.645792711e-06 | AD108: -0.001411401741 | AE108: 1.03739622 | AH108: -0.007 | AI108: 17.975
A109: V8-BF | B109: 35E | C109: B | D109: 800 | E109: BXRE | F109: =MasterTable[[#This Row],[Product Family]]&"-"&MasterTable[[#This Row],[CCT/CRI]] -> V8-BF-35E | G109: =MasterTable[[#This Row],[Generation]]&"-"&MasterTable[[#This Row],[CCT/CRI]]&IF(MasterTable[[#This Row],[Lumen Family]]<999,"0"&MasterTable[[#This Row],[Lumen Family]],MasterTable[[#This Row],[Lumen Family]])&"-"&MasterTable[[#This Row],[Arrangement]]&"-2x" -> BXRE-35E0800-B-2x | H109: 803 | I109: 0.71 | J109: 17.8 | K109: 350 | L109: 700 | M109: 12 | N109: -7.438265024e-11 | O109: 9.436062914e-08 | P109: -4.439420342e-05 | Q109: 0.01425199524 | R109: 15.3243187 | T109: -1.026181124e-06 | U109: 0.003187965624 | V109: 0.007264776006 | X109: -1.074433129e-06 | Y109: 0.00320486395 | Z109: 0.009909092516 | AC109: -4.645792711e-06 | AD109: -0.001411401741 | AE109: 1.03739622 | AH109: -0.007 | AI109: 17.975
A110: V8-BF | B110: 35G | C110: B | D110: 800 | E110: BXRE | F110: =MasterTable[[#This Row],[Product Family]]&"-"&MasterTable[[#This Row],[CCT/CRI]] -> V8-BF-35G | G110: =MasterTable[[#This Row],[Generation]]&"-"&MasterTable[[#This Row],[CCT/CRI]]&IF(MasterTable[[#This Row],[Lumen Family]]<999,"0"&MasterTable[[#This Row],[Lumen Family]],MasterTable[[#This Row],[Lumen Family]])&"-"&MasterTable[[#This Row],[Arrangement]]&"-2x" -> BXRE-35G0800-B-2x | H110: 679 | I110: 0.71 | J110: 17.8 | K110: 350 | L110: 700 | M110: 12 | N110: -7.438265024e-11 | O110: 9.436062914e-08 | P110: -4.439420342e-05 | Q110: 0.01425199524 | R110: 15.3243187 | T110: -1.026181124e-06 | U110: 0.003187965624 | V110: 0.007264776006 | X110: -1.074433129e-06 | Y110: 0.00320486395 | Z110: 0.009909092516 | AC110: -4.645792711e-06 | AD110: -0.001411401741 | AE110: 1.03739622 | AH110: -0.007 | AI110: 17.975
A111: V8-BF | B111: 40E | C111: B | D111: 800 | E111: BXRE | F111: =MasterTable[[#This Row],[Product Family]]&"-"&MasterTable[[#This Row],[CCT/CRI]] -> V8-BF-40E | G111: =MasterTable[[#This Row],[Generation]]&"-"&MasterTable[[#This Row],[CCT/CRI]]&IF(MasterTable[[#This Row],[Lumen Family]]<999,"0"&MasterTable[[#This Row],[Lumen Family]],MasterTable[[#This Row],[Lumen Family]])&"-"&MasterTable[[#This Row],[Arrangement]]&"-2x" -> BXRE-40E0800-B-2x | H111: 829 | I111: 0.71 | J111: 17.8 | K111: 350 | L111: 700 | M111: 12 | N111: -7.438265024e-11 | O111: 9.436062914e-08 | P111: -4.439420342e-05 | Q111: 0.01425199524 | R111: 15.3243187 | T111: -1.026181124e-06 | U111: 0.003187965624 | V111: 0.007264776006 | X111: -1.074433129e-06 | Y111: 0.00320486395 | Z111: 0.009909092516 | AC111: -6.624324439e-06 | AD111: -0.001127836986 | AE111: 1.030977057 | AH111: -0.007 | AI111: 17.975
A112: V8-BF | B112: 40G | C112: B | D112: 800 | E112: BXRE | F112: =MasterTable[[#This Row],[Product Family]]&"-"&MasterTable[[#This Row],[CCT/CRI]] -> V8-BF-40G | G112: =MasterTable[[#This Row],[Generation]]&"-"&MasterTable[[#This Row],[CCT/CRI]]&IF(MasterTable[[#This Row],[Lumen Family]]<999,"0"&MasterTable[[#This Row],[Lumen Family]],MasterTable[[#This Row],[Lumen Family]])&"-"&MasterTable[[#This Row],[Arrangement]]&"-2x" -> BXRE-40G0800-B-2x | H112: 716 | I112: 0.71 | J112: 17.8 | K112: 350 | L112: 700 | M112: 12 | N112: -7.438265024e-11 | O112: 9.436062914e-08 | P112: -4.439420342e-05 | Q112: 0.01425199524 | R112: 15.3243187 | T112: -1.026181124e-06 | U112: 0.003187965624 | V112: 0.007264776006 | X112: -1.074433129e-06 | Y112: 0.00320486395 | Z112: 0.009909092516 | AC112: -6.624324439e-06 | AD112: -0.001127836986 | AE112: 1.030977057 | AH112: -0.007 | AI112: 17.975
A113: V8-BF | B113: 50C | C113: B | D113: 800 | E113: BXRE | F113: =MasterTable[[#This Row],[Product Family]]&"-"&MasterTable[[#This Row],[CCT/CRI]] -> V8-BF-50C | G113: =MasterTable[[#This Row],[Generation]]&"-"&MasterTable[[#This Row],[CCT/CRI]]&IF(MasterTable[[#This Row],[Lumen Family]]<999,"0"&MasterTable[[#This Row],[Lumen Family]],MasterTable[[#This Row],[Lumen Family]])&"-"&MasterTable[[#This Row],[Arrangement]]&"-2x" -> BXRE-50C0800-B-2x | H113: 885 | I113: 0.71 | J113: 17.8 | K113: 350 | L113: 700 | M113: 12 | N113: -7.438265024e-11 | O113: 9.436062914e-08 | P113: -4.439420342e-05 | Q113: 0.01425199524 | R113: 15.3243187 | T113: -1.026181124e-06 | U113: 0.003187965624 | V113: 0.007264776006 | X113: -1.074433129e-06 | Y113: 0.00320486395 | Z113: 0.009909092516 | AC113: -3.094737491e-06 | AD113: -0.001626249571 | AE113: 1.040045269 | AH113: -0.007 | AI113: 17.975
A114: V8-BF | B114: 50E | C114: B | D114: 800 | E114: BXRE | F114: =MasterTable[[#This Row],[Product Family]]&"-"&MasterTable[[#This Row],[CCT/CRI]] -> V8-BF-50E | G114: =MasterTable[[#This Row],[Generation]]&"-"&MasterTable[[#This Row],[CCT/CRI]]&IF(MasterTable[[#This Row],[Lumen Family]]<999,"0"&MasterTable[[#This Row],[Lumen Family]],MasterTable[[#This Row],[Lumen Family]])&"-"&MasterTable[[#This Row],[Arrangement]]&"-2x" -> BXRE-50E0800-B-2x | H114: 829 | I114: 0.71 | J114: 17.8 | K114: 350 | L114: 700 | M114: 12 | N114: -7.438265024e-11 | O114: 9.436062914e-08 | P114: -4.439420342e-05 | Q114: 0.01425199524 | R114: 15.3243187 | T114: -1.026181124e-06 | U114: 0.003187965624 | V114: 0.007264776006 | X114: -1.074433129e-06 | Y114: 0.00320486395 | Z114: 0.009909092516 | AC114: -3.094737491e-06 | AD114: -0.001626249571 | AE114: 1.040045269 | AH114: -0.007 | AI114: 17.975
A115: V10-BI | B115: 27E | C115: B | D115: 1000 | E115: BXRE | F115: =MasterTable[[#This Row],[Product Family]]&"-"&MasterTable[[#This Row],[CCT/CRI]] -> V10-BI-27E | G115: =MasterTable[[#This Row],[Generation]]&"-"&MasterTable[[#This Row],[CCT/CRI]]&IF(MasterTable[[#This Row],[Lumen Family]]<999,"0"&MasterTable[[#This Row],[Lumen Family]],MasterTable[[#This Row],[Lumen Family]])&"-"&MasterTable[[#This Row],[Arrangement]]&"-2x" -> BXRE-27E1000-B-2x | H115: 1150 | I115: 0.47 | J115: 26.5 | K115: 350 | L115: 700 | M115: 18 | N115: -3.21e-11 | O115: 5.48e-08 | P115: -3.52e-05 | Q115: 0.0178 | R115: 22.7 | T115: -8.239e-07 | U115: 0.003154621 | V115: 0 | X115: -9.082e-07 | Y115: 0.0028630102 | Z115: 0 | AC115: -5.7894e-06 | AD115: -0.0011976858 | AE115: 1.032363997 | AH115: -0.014 | AI115: 26.85
A116: V10-BI | B116: 27G | C116: B | D116: 1000 | E116: BXRE | F116: =MasterTable[[#This Row],[Product Family]]&"-"&MasterTable[[#This Row],[CCT/CRI]] -> V10-BI-27G | G116: =MasterTable[[#This Row],[Generation]]&"-"&MasterTable[[#This Row],[CCT/CRI]]&IF(MasterTable[[#This Row],[Lumen Family]]<999,"0"&MasterTable[[#This Row],[Lumen Family]],MasterTable[[#This Row],[Lumen Family]])&"-"&MasterTable[[#This Row],[Arrangement]]&"-2x" -> BXRE-27G1000-B-2x | H116: 946 | I116: 0.47 | J116: 26.5 | K116: 350 | L116: 700 | M116: 18 | N116: -3.21e-11 | O116: 5.48e-08 | P116: -3.52e-05 | Q116: 0.0178 | R116: 22.7 | T116: -8.239e-07 | U116: 0.003154621 | V116: 0 | X116: -9.082e-07 | Y116: 0.0028630102 | Z116: 0 | AC116: -5.7894e-06 | AD116: -0.0011976858 | AE116: 1.032363997 | AH116: -0.014 | AI116: 26.85
A117: V10-BI | B117: 30E | C117: B | D117: 1000 | E117: BXRE | F117: =MasterTable[[#This Row],[Product Family]]&"-"&MasterTable[[#This Row],[CCT/CRI]] -> V10-BI-30E | G117: =MasterTable[[#This Row],[Generation]]&"-"&MasterTable[[#This Row],[CCT/CRI]]&IF(MasterTable[[#This Row],[Lumen Family]]<999,"0"&MasterTable[[#This Row],[Lumen Family]],MasterTable[[#This Row],[Lumen Family]])&"-"&MasterTable[[#This Row],[Arrangement]]&"-2x" -> BXRE-30E1000-B-2x | H117: 1200 | I117: 0.47 | J117: 26.5 | K117: 350 | L117: 700 | M117: 18 | N117: -3.21e-11 | O117: 5.48e-08 | P117: -3.52e-05 | Q117: 0.0178 | R117: 22.7 | T117: -8.239e-07 | U117: 0.003154621 | V117: 0 | X117: -9.082e-07 | Y117: 0.0028630102 | Z117: 0 | AC117: -5.5416e-06 | AD117: -0.001107058 | AE117: 1.029790741 | AH117: -0.014 | AI117: 26.85
A118: V10-BI | B118: 30G | C118: B | D118: 1000 | E118: BXRE | F118: =MasterTable[[#This Row],[Product Family]]&"-"&MasterTable[[#This Row],[CCT/CRI]] -> V10-BI-30G | G118: =MasterTable[[#This Row],[Generation]]&"-"&MasterTable[[#This Row],[CCT/CRI]]&IF(MasterTable[[#This Row],[Lumen Family]]<999,"0"&MasterTable[[#This Row],[Lumen Family]],MasterTable[[#This Row],[Lumen Family]])&"-"&MasterTable[[#This Row],[Arrangement]]&"-2x" -> BXRE-30G1000-B-2x | H118: 983 | I118: 0.47 | J118: 26.5 | K118: 350 | L118: 700 | M118: 18 | N118: -3.21e-11 | O118: 5.48e-08 | P118: -3.52e-05 | Q118: 0.0178 | R118: 22.7 | T118: -8.239e-07 | U118: 0.003154621 | V118: 0 | X118: -9.082e-07 | Y118: 0.0028630102 | Z118: 0 | AC118: -5.5416e-06 | AD118: -0.001107058 | AE118: 1.029790741 | AH118: -0.014 | AI118: 26.85
A119: V10-BI | B119: 35E | C119: B | D119: 1000 | E119: BXRE | F119: =MasterTable[[#This Row],[Product Family]]&"-"&MasterTable[[#This Row],[CCT/CRI]] -> V10-BI-35E | G119: =MasterTable[[#This Row],[Generation]]&"-"&MasterTable[[#This Row],[CCT/CRI]]&IF(MasterTable[[#This Row],[Lumen Family]]<999,"0"&MasterTable[[#This Row],[Lumen Family]],MasterTable[[#This Row],[Lumen Family]])&"-"&MasterTable[[#This Row],[Arrangement]]&"-2x" -> BXRE-35E1000-B-2x | H119: 1229 | I119: 0.47 | J119: 26.5 | K119: 350 | L119: 700 | M119: 18 | N119: -3.21e-11 | O119: 5.48e-08 | P119: -3.52e-05 | Q119: 0.0178 | R119: 22.7 | T119: -8.239e-07 | U119: 0.003154621 | V119: 0 | X119: -9.082e-07 | Y119: 0.0028630102 | Z119: 0 | AC119: -5.5416e-06 | AD119: -0.001107058 | AE119: 1.029790741 | AH119: -0.014 | AI119: 26.85
A120: V10-BI | B120: 35G | C120: B | D120: 1000 | E120: BXRE | F120: =MasterTable[[#This Row],[Product Family]]&"-"&MasterTable[[#This Row],[CCT/CRI]] -> V10-BI-35G | G120: =MasterTable[[#This Row],[Generation]]&"-"&MasterTable[[#This Row],[CCT/CRI]]&IF(MasterTable[[#This Row],[Lumen Family]]<999,"0"&MasterTable[[#This Row],[Lumen Family]],MasterTable[[#This Row],[Lumen Family]])&"-"&MasterTable[[#This Row],[Arrangement]]&"-2x" -> BXRE-35G1000-B-2x | H120: 1039 | I120: 0.47 | J120: 26.5 | K120: 350 | L120: 700 | M120: 18 | N120: -3.21e-11 | O120: 5.48e-08 | P120: -3.52e-05 | Q120: 0.0178 | R120: 22.7 | T120: -8.239e-07 | U120: 0.003154621 | V120: 0 | X120: -9.082e-07 | Y120: 0.0028630102 | Z120: 0 | AC120: -5.5416e-06 | AD120: -0.001107058 | AE120: 1.029790741 | AH120: -0.014 | AI120: 26.85
A121: V10-BI | B121: 40E | C121: B | D121: 1000 | E121: BXRE | F121: =MasterTable[[#This Row],[Product Family]]&"-"&MasterTable[[#This Row],[CCT/CRI]] -> V10-BI-40E | G121: =MasterTable[[#This Row],[Generation]]&"-"&MasterTable[[#This Row],[CCT/CRI]]&IF(MasterTable[[#This Row],[Lumen Family]]<999,"0"&MasterTable[[#This Row],[Lumen Family]],MasterTable[[#This Row],[Lumen Family]])&"-"&MasterTable[[#This Row],[Arrangement]]&"-2x" -> BXRE-40E1000-B-2x | H121: 1252 | I121: 0.47 | J121: 26.5 | K121: 350 | L121: 700 | M121: 18 | N121: -3.21e-11 | O121: 5.48e-08 | P121: -3.52e-05 | Q121: 0.0178 | R121: 22.7 | T121: -8.239e-07 | U121: 0.003154621 | V121: 0 | X121: -9.082e-07 | Y121: 0.0028630102 | Z121: 0 | AC121: -4.8575e-06 | AD121: -0.0011899887 | AE121: 1.032271572 | AH121: -0.014 | AI121: 26.85
A122: V10-BI | B122: 40G | C122: B | D122: 1000 | E122: BXRE | F122: =MasterTable[[#This Row],[Product Family]]&"-"&MasterTable[[#This Row],[CCT/CRI]] -> V10-BI-40G | G122: =MasterTable[[#This Row],[Generation]]&"-"&MasterTable[[#This Row],[CCT/CRI]]&IF(MasterTable[[#This Row],[Lumen Family]]<999,"0"&MasterTable[[#This Row],[Lumen Family]],MasterTable[[#This Row],[Lumen Family]])&"-"&MasterTable[[#This Row],[Arrangement]]&"-2x" -> BXRE-40G1000-B-2x | H122: 1076 | I122: 0.47 | J122: 26.5 | K122: 350 | L122: 700 | M122: 18 | N122: -3.21e-11 | O122: 5.48e-08 | P122: -3.52e-05 | Q122: 0.0178 | R122: 22.7 | T122: -8.239e-07 | U122: 0.003154621 | V122: 0 | X122: -9.082e-07 | Y122: 0.0028630102 | Z122: 0 | AC122: -4.8575e-06 | AD122: -0.0011899887 | AE122: 1.032271572 | AH122: -0.014 | AI122: 26.85
A123: V10-BI | B123: 50C | C123: B | D123: 1000 | E123: BXRE | F123: =MasterTable[[#This Row],[Product Family]]&"-"&MasterTable[[#This Row],[CCT/CRI]] -> V10-BI-50C | G123: =MasterTable[[#This Row],[Generation]]&"-"&MasterTable[[#This Row],[CCT/CRI]]&IF(MasterTable[[#This Row],[Lumen Family]]<999,"0"&MasterTable[[#This Row],[Lumen Family]],MasterTable[[#This Row],[Lumen Family]])&"-"&MasterTable[[#This Row],[Arrangement]]&"-2x" -> BXRE-50C1000-B-2x | H123: 1330 | I123: 0.47 | J123: 26.5 | K123: 350 | L123: 700 | M123: 18 | N123: -3.21e-11 | O123: 5.48e-08 | P123: -3.52e-05 | Q123: 0.0178 | R123: 22.7 | T123: -8.239e-07 | U123: 0.003154621 | V123: 0 | X123: -9.082e-07 | Y123: 0.0028630102 | Z123: 0 | AC123: -3.0728e-06 | AD123: -0.0018775263 | AE123: 1.049094661 | AH123: -0.014 | AI123: 26.85
A124: V10-BI | B124: 50E | C124: B | D124: 1000 | E124: BXRE | F124: =MasterTable[[#This Row],[Product Family]]&"-"&MasterTable[[#This Row],[CCT/CRI]] -> V10-BI-50E | G124: =MasterTable[[#This Row],[Generation]]&"-"&MasterTable[[#This Row],[CCT/CRI]]&IF(MasterTable[[#This Row],[Lumen Family]]<999,"0"&MasterTable[[#This Row],[Lumen Family]],MasterTable[[#This Row],[Lumen Family]])&"-"&MasterTable[[#This Row],[Arrangement]]&"-2x" -> BXRE-50E1000-B-2x | H124: 1257 | I124: 0.47 | J124: 26.5 | K124: 350 | L124: 700 | M124: 18 | N124: -3.21e-11 | O124: 5.48e-08 | P124: -3.52e-05 | Q124: 0.0178 | R124: 22.7 | T124: -8.239e-07 | U124: 0.003154621 | V124: 0 | X124: -9.082e-07 | Y124: 0.0028630102 | Z124: 0 | AC124: -3.0728e-06 | AD124: -0.0018775263 | AE124: 1.049094661 | AH124: -0.014 | AI124: 26.85
A125: V10-BI | B125: 50G | C125: B | D125: 1000 | E125: BXRE | F125: =MasterTable[[#This Row],[Product Family]]&"-"&MasterTable[[#This Row],[CCT/CRI]] -> V10-BI-50G | G125: =MasterTable[[#This Row],[Generation]]&"-"&MasterTable[[#This Row],[CCT/CRI]]&IF(MasterTable[[#This Row],[Lumen Family]]<999,"0"&MasterTable[[#This Row],[Lumen Family]],MasterTable[[#This Row],[Lumen Family]])&"-"&MasterTable[[#This Row],[Arrangement]]&"-2x" -> BXRE-50G1000-B-2x | H125: 1106 | I125: 0.47 | J125: 26.5 | K125: 350 | L125: 700 | M125: 18 | N125: -3.21e-11 | O125: 5.48e-08 | P125: -3.52e-05 | Q125: 0.0178 | R125: 22.7 | T125: -8.239e-07 | U125: 0.003154621 | V125: 0 | X125: -9.082e-07 | Y125: 0.0028630102 | Z125: 0 | AC125: -3.0728e-06 | AD125: -0.0018775263 | AE125: 1.049094661 | AH125: -0.014 | AI125: 26.85
A126: V13-C | B126: 27E | C126: C | D126: 2000 | E126: BXRE | F126: =MasterTable[[#This Row],[Product Family]]&"-"&MasterTable[[#This Row],[CCT/CRI]] -> V13-C-27E | G126: =MasterTable[[#This Row],[Generation]]&"-"&MasterTable[[#This Row],[CCT/CRI]]&IF(MasterTable[[#This Row],[Lumen Family]]<999,"0"&MasterTable[[#This Row],[Lumen Family]],MasterTable[[#This Row],[Lumen Family]])&"-"&MasterTable[[#This Row],[Arrangement]]&"-2x" -> BXRE-27E2000-C-2x | H126: 2019 | I126: 0.22 | J126: 32.3 | K126: 500 | L126: 1050 | M126: 33 | N126: -9.507660402e-12 | O126: 2.442828661e-08 | P126: -2.316924658e-05 | Q126: 0.01497049422 | R126: 28.11666927 | T126: -5.205657701e-07 | U126: 0.002252976347 | V126: 0.004831192823 | X126: -4.920036195e-07 | Y126: 0.002235027916 | Z126: 0.006889179501 | AA126: -3.29e-09 | AB126: 5.25e-07 | AC126: -2.52e-05 | AD126: -0.00124 | AE126: 1.04 | AH126: -0.017 | AI126: 32.725
A127: V13-C | B127: 27G | C127: C | D127: 2000 | E127: BXRE | F127: =MasterTable[[#This Row],[Product Family]]&"-"&MasterTable[[#This Row],[CCT/CRI]] -> V13-C-27G | G127: =MasterTable[[#This Row],[Generation]]&"-"&MasterTable[[#This Row],[CCT/CRI]]&IF(MasterTable[[#This Row],[Lumen Family]]<999,"0"&MasterTable[[#This Row],[Lumen Family]],MasterTable[[#This Row],[Lumen Family]])&"-"&MasterTable[[#This Row],[Arrangement]]&"-2x" -> BXRE-27G2000-C-2x | H127: 1680 | I127: 0.22 | J127: 32.3 | K127: 500 | L127: 1050 | M127: 33 | N127: -9.507660402e-12 | O127: 2.442828661e-08 | P127: -2.316924658e-05 | Q127: 0.01497049422 | R127: 28.11666927 | T127: -5.205657701e-07 | U127: 0.002252976347 | V127: 0.004831192823 | X127: -4.920036195e-07 | Y127: 0.002235027916 | Z127: 0.006889179501 | AA127: -3.29e-09 | AB127: 5.25e-07 | AC127: -2.52e-05 | AD127: -0.00124 | AE127: 1.04 | AH127: -0.017 | AI127: 32.725
A128: V13-C | B128: 30E | C128: C | D128: 2000 | E128: BXRE | F128: =MasterTable[[#This Row],[Product Family]]&"-"&MasterTable[[#This Row],[CCT/CRI]] -> V13-C-30E | G128: =MasterTable[[#This Row],[Generation]]&"-"&MasterTable[[#This Row],[CCT/CRI]]&IF(MasterTable[[#This Row],[Lumen Family]]<999,"0"&MasterTable[[#This Row],[Lumen Family]],MasterTable[[#This Row],[Lumen Family]])&"-"&MasterTable[[#This Row],[Arrangement]]&"-2x" -> BXRE-30E2000-C-2x | H128: 2120 | I128: 0.22 | J128: 32.3 | K128: 500 | L128: 1050 | M128: 33 | N128: -9.507660402e-12 | O128: 2.442828661e-08 | P128: -2.316924658e-05 | Q128: 0.01497049422 | R128: 28.11666927 | T128: -5.205657701e-07 | U128: 0.002252976347 | V128: 0.004831192823 | X128: -4.920036195e-07 | Y128: 0.002235027916 | Z128: 0.006889179501 | AA128: -3.29e-09 | AB128: 5.25e-07 | AC128: -2.52e-05 | AD128: -0.00124 | AE128: 1.04 | AH128: -0.017 | AI128: 32.725
A129: V13-C | B129: 30G | C129: C | D129: 2000 | E129: BXRE | F129: =MasterTable[[#This Row],[Product Family]]&"-"&MasterTable[[#This Row],[CCT/CRI]] -> V13-C-30G | G129: =MasterTable[[#This Row],[Generation]]&"-"&MasterTable[[#This Row],[CCT/CRI]]&IF(MasterTable[[#This Row],[Lumen Family]]<999,"0"&MasterTable[[#This Row],[Lumen Family]],MasterTable[[#This Row],[Lumen Family]])&"-"&MasterTable[[#This Row],[Arrangement]]&"-2x" -> BXRE-30G2000-C-2x | H129: 1760 | I129: 0.22 | J129: 32.3 | K129: 500 | L129: 1050 | M129: 33 | N129: -9.507660402e-12 | O129: 2.442828661e-08 | P129: -2.316924658e-05 | Q129: 0.01497049422 | R129: 28.11666927 | T129: -5.205657701e-07 | U129: 0.002252976347 | V129: 0.004831192823 | X129: -4.920036195e-07 | Y129: 0.002235027916 | Z129: 0.006889179501 | AA129: -3.29e-09 | AB129: 5.25e-07 | AC129: -2.52e-05 | AD129: -0.00124 | AE129: 1.04 | AH129: -0.017 | AI129: 32.725
A130: V13-C | B130: 35E | C130: C | D130: 2000 | E130: BXRE | F130: =MasterTable[[#This Row],[Product Family]]&"-"&MasterTable[[#This Row],[CCT/CRI]] -> V13-C-35E | G130: =MasterTable[[#This Row],[Generation]]&"-"&MasterTable[[#This Row],[CCT/CRI]]&IF(MasterTable[[#This Row],[Lumen Family]]<999,"0"&MasterTable[[#This Row],[Lumen Family]],MasterTable[[#This Row],[Lumen Family]])&"-"&MasterTable[[#This Row],[Arrangement]]&"-2x" -> BXRE-35E2000-C-2x | H130: 2150 | I130: 0.22 | J130: 32.3 | K130: 500 | L130: 1050 | M130: 33 | N130: -9.507660402e-12 | O130: 2.442828661e-08 | P130: -2.316924658e-05 | Q130: 0.01497049422 | R130: 28.11666927 | T130: -5.205657701e-07 | U130: 0.002252976347 | V130: 0.004831192823 | X130: -4.920036195e-07 | Y130: 0.002235027916 | Z130: 0.006889179501 | AA130: -3.29e-09 | AB130: 5.25e-07 | AC130: -2.52e-05 | AD130: -0.00124 | AE130: 1.04 | AH130: -0.017 | AI130: 32.725
A131: V13-C | B131: 35G | C131: C | D131: 2000 | E131: BXRE | F131: =MasterTable[[#This Row],[Product Family]]&"-"&MasterTable[[#This Row],[CCT/CRI]] -> V13-C-35G | G131: =MasterTable[[#This Row],[Generation]]&"-"&MasterTable[[#This Row],[CCT/CRI]]&IF(MasterTable[[#This Row],[Lumen Family]]<999,"0"&MasterTable[[#This Row],[Lumen Family]],MasterTable[[#This Row],[Lumen Family]])&"-"&MasterTable[[#This Row],[Arrangement]]&"-2x" -> BXRE-35G2000-C-2x | H131: 1841 | I131: 0.22 | J131: 32.3 | K131: 500 | L131: 1050 | M131: 33 | N131: -9.507660402e-12 | O131: 2.442828661e-08 | P131: -2.316924658e-05 | Q131: 0.01497049422 | R131: 28.11666927 | T131: -5.205657701e-07 | U131: 0.002252976347 | V131: 0.004831192823 | X131: -4.920036195e-07 | Y131: 0.002235027916 | Z131: 0.006889179501 | AA131: -3.29e-09 | AB131: 5.25e-07 | AC131: -2.52e-05 | AD131: -0.00124 | AE131: 1.04 | AH131: -0.017 | AI131: 32.725
A132: V13-C | B132: 40E | C132: C | D132: 2000 | E132: BXRE | F132: =MasterTable[[#This Row],[Product Family]]&"-"&MasterTable[[#This Row],[CCT/CRI]] -> V13-C-40E | G132: =MasterTable[[#This Row],[Generation]]&"-"&MasterTable[[#This Row],[CCT/CRI]]&IF(MasterTable[[#This Row],[Lumen Family]]<999,"0"&MasterTable[[#This Row],[Lumen Family]],MasterTable[[#This Row],[Lumen Family]])&"-"&MasterTable[[#This Row],[Arrangement]]&"-2x" -> BXRE-40E2000-C-2x | H132: 2213 | I132: 0.22 | J132: 32.3 | K132: 500 | L132: 1050 | M132: 33 | N132: -9.507660402e-12 | O132: 2.442828661e-08 | P132: -2.316924658e-05 | Q132: 0.01497049422 | R132: 28.11666927 | T132: -5.205657701e-07 | U132: 0.002252976347 | V132: 0.004831192823 | X132: -4.920036195e-07 | Y132: 0.002235027916 | Z132: 0.006889179501 | AB132: -1.02e-07 | AC132: 1.27e-05 | AD132: -0.00202 | AE132: 1.04 | AH132: -0.017 | AI132: 32.725
A133: V13-C | B133: 40G | C133: C | D133: 2000 | E133: BXRE | F133: =MasterTable[[#This Row],[Product Family]]&"-"&MasterTable[[#This Row],[CCT/CRI]] -> V13-C-40G | G133: =MasterTable[[#This Row],[Generation]]&"-"&MasterTable[[#This Row],[CCT/CRI]]&IF(MasterTable[[#This Row],[Lumen Family]]<999,"0"&MasterTable[[#This Row],[Lumen Family]],MasterTable[[#This Row],[Lumen Family]])&"-"&MasterTable[[#This Row],[Arrangement]]&"-2x" -> BXRE-40G2000-C-2x | H133: 1900 | I133: 0.22 | J133: 32.3 | K133: 500 | L133: 1050 | M133: 33 | N133: -9.507660402e-12 | O133: 2.442828661e-08 | P133: -2.316924658e-05 | Q133: 0.01497049422 | R133: 28.11666927 | T133: -5.205657701e-07 | U133: 0.002252976347 | V133: 0.004831192823 | X133: -4.920036195e-07 | Y133: 0.002235027916 | Z133: 0.006889179501 | AB133: -1.02e-07 | AC133: 1.27e-05 | AD133: -0.00202 | AE133: 1.04 | AH133: -0.017 | AI133: 32.725
A134: V13-C | B134: 50C | C134: C | D134: 2000 | E134: BXRE | F134: =MasterTable[[#This Row],[Product Family]]&"-"&MasterTable[[#This Row],[CCT/CRI]] -> V13-C-50C | G134: =MasterTable[[#This Row],[Generation]]&"-"&MasterTable[[#This Row],[CCT/CRI]]&IF(MasterTable[[#This Row],[Lumen Family]]<999,"0"&MasterTable[[#This Row],[Lumen Family]],MasterTable[[#This Row],[Lumen Family]])&"-"&MasterTable[[#This Row],[Arrangement]]&"-2x" -> BXRE-50C2000-C-2x | H134: 2342 | I134: 0.22 | J134: 32.3 | K134: 500 | L134: 1050 | M134: 33 | N134: -9.507660402e-12 | O134: 2.442828661e-08 | P134: -2.316924658e-05 | Q134: 0.01497049422 | R134: 28.11666927 | T134: -5.205657701e-07 | U134: 0.002252976347 | V134: 0.004831192823 | X134: -4.920036195e-07 | Y134: 0.002235027916 | Z134: 0.006889179501 | AC134: -4e-06 | AD134: -0.0016 | AE134: 1.0421 | AH134: -0.017 | AI134: 32.725
A135: V13-C | B135: 50E | C135: C | D135: 2000 | E135: BXRE | F135: =MasterTable[[#This Row],[Product Family]]&"-"&MasterTable[[#This Row],[CCT/CRI]] -> V13-C-50E | G135: =MasterTable[[#This Row],[Generation]]&"-"&MasterTable[[#This Row],[CCT/CRI]]&IF(MasterTable[[#This Row],[Lumen Family]]<999,"0"&MasterTable[[#This Row],[Lumen Family]],MasterTable[[#This Row],[Lumen Family]])&"-"&MasterTable[[#This Row],[Arrangement]]&"-2x" -> BXRE-50E2000-C-2x | H135: 2245 | I135: 0.22 | J135: 32.3 | K135: 500 | L135: 1050 | M135: 33 | N135: -9.507660402e-12 | O135: 2.442828661e-08 | P135: -2.316924658e-05 | Q135: 0.01497049422 | R135: 28.11666927 | T135: -5.205657701e-07 | U135: 0.002252976347 | V135: 0.004831192823 | X135: -4.920036195e-07 | Y135: 0.002235027916 | Z135: 0.006889179501 | AC135: -4e-06 | AD135: -0.0016 | AE135: 1.0421 | AH135: -0.017 | AI135: 32.725
A136: V13-C | B136: 50G | C136: C | D136: 2000 | E136: BXRE | F136: =MasterTable[[#This Row],[Product Family]]&"-"&MasterTable[[#This Row],[CCT/CRI]] -> V13-C-50G | G136: =MasterTable[[#This Row],[Generation]]&"-"&MasterTable[[#This Row],[CCT/CRI]]&IF(MasterTable[[#This Row],[Lumen Family]]<999,"0"&MasterTable[[#This Row],[Lumen Family]],MasterTable[[#This Row],[Lumen Family]])&"-"&MasterTable[[#This Row],[Arrangement]]&"-2x" -> BXRE-50G2000-C-2x | H136: 2015 | I136: 0.22 | J136: 32.3 | K136: 500 | L136: 1050 | M136: 33 | N136: -9.507660402e-12 | O136: 2.442828661e-08 | P136: -2.316924658e-05 | Q136: 0.01497049422 | R136: 28.11666927 | T136: -5.205657701e-07 | U136: 0.002252976347 | V136: 0.004831192823 | X136: -4.920036195e-07 | Y136: 0.002235027916 | Z136: 0.006889179501 | AC136: -4e-06 | AD136: -0.0016 | AE136: 1.0421 | AH136: -0.017 | AI136: 32.725
A137: V15-DL | B137: 27E | C137: D | D137: 3001 | E137: BXRE | F137: =MasterTable[[#This Row],[Product Family]]&"-"&MasterTable[[#This Row],[CCT/CRI]] -> V15-DL-27E | G137: =MasterTable[[#This Row],[Generation]]&"-"&MasterTable[[#This Row],[CCT/CRI]]&IF(MasterTable[[#This Row],[Lumen Family]]<999,"0"&MasterTable[[#This Row],[Lumen Family]],MasterTable[[#This Row],[Lumen Family]])&"-"&MasterTable[[#This Row],[Arrangement]]&"-2x" -> BXRE-27E3001-D-2x | H137: 2994 | I137: 0.16 | J137: 36 | K137: 700 | L137: 1400 | M137: 48 | N137: -2.7e-12 | O137: 9.54e-09 | P137: -1.25e-05 | Q137: 0.0119 | R137: 31.2 | T137: -2.826e-07 | U137: 0.0016303876 | V137: 0 | X137: -2.483e-07 | Y137: 0.0014695573 | Z137: 0 | AC137: -7.4086e-06 | AD137: -0.0009432231 | AE137: 1.027410132 | AH137: -0.017 | AI137: 36.425
A138: V15-DL | B138: 27G | C138: D | D138: 3001 | E138: BXRE | F138: =MasterTable[[#This Row],[Product Family]]&"-"&MasterTable[[#This Row],[CCT/CRI]] -> V15-DL-27G | G138: =MasterTable[[#This Row],[Generation]]&"-"&MasterTable[[#This Row],[CCT/CRI]]&IF(MasterTable[[#This Row],[Lumen Family]]<999,"0"&MasterTable[[#This Row],[Lumen Family]],MasterTable[[#This Row],[Lumen Family]])&"-"&MasterTable[[#This Row],[Arrangement]]&"-2x" -> BXRE-27G3001-D-2x | H138: 2520 | I138: 0.16 | J138: 36 | K138: 700 | L138: 1400 | M138: 48 | N138: -2.7e-12 | O138: 9.54e-09 | P138: -1.25e-05 | Q138: 0.0119 | R138: 31.2 | T138: -2.826e-07 | U138: 0.0016303876 | V138: 0 | X138: -2.483e-07 | Y138: 0.0014695573 | Z138: 0 | AC138: -7.4086e-06 | AD138: -0.0009432231 | AE138: 1.027410132 | AH138: -0.017 | AI138: 36.425
A139: V15-DL | B139: 30E | C139: D | D139: 3001 | E139: BXRE | F139: =MasterTable[[#This Row],[Product Family]]&"-"&MasterTable[[#This Row],[CCT/CRI]] -> V15-DL-30E | G139: =MasterTable[[#This Row],[Generation]]&"-"&MasterTable[[#This Row],[CCT/CRI]]&IF(MasterTable[[#This Row],[Lumen Family]]<999,"0"&MasterTable[[#This Row],[Lumen Family]],MasterTable[[#This Row],[Lumen Family]])&"-"&MasterTable[[#This Row],[Arrangement]]&"-2x" -> BXRE-30E3001-D-2x | H139: 3178 | I139: 0.16 | J139: 36 | K139: 700 | L139: 1400 | M139: 48 | N139: -2.7e-12 | O139: 9.54e-09 | P139: -1.25e-05 | Q139: 0.0119 | R139: 31.2 | T139: -2.826e-07 | U139: 0.0016303876 | V139: 0 | X139: -2.483e-07 | Y139: 0.0014695573 | Z139: 0 | AC139: -7.4086e-06 | AD139: -0.0009432231 | AE139: 1.027410132 | AH139: -0.017 | AI139: 36.425
A140: V15-DL | B140: 30G | C140: D | D140: 3001 | E140: BXRE | F140: =MasterTable[[#This Row],[Product Family]]&"-"&MasterTable[[#This Row],[CCT/CRI]] -> V15-DL-30G | G140: =MasterTable[[#This Row],[Generation]]&"-"&MasterTable[[#This Row],[CCT/CRI]]&IF(MasterTable[[#This Row],[Lumen Family]]<999,"0"&MasterTable[[#This Row],[Lumen Family]],MasterTable[[#This Row],[Lumen Family]])&"-"&MasterTable[[#This Row],[Arrangement]]&"-2x" -> BXRE-30G3001-D-2x | H140: 2596 | I140: 0.16 | J140: 36 | K140: 700 | L140: 1400 | M140: 48 | N140: -2.7e-12 | O140: 9.54e-09 | P140: -1.25e-05 | Q140: 0.0119 | R140: 31.2 | T140: -2.826e-07 | U140: 0.0016303876 | V140: 0 | X140: -2.483e-07 | Y140: 0.0014695573 | Z140: 0 | AC140: -7.4086e-06 | AD140: -0.0009432231 | AE140: 1.027410132 | AH140: -0.017 | AI140: 36.425
A141: V15-DL | B141: 35E | C141: D | D141: 3001 | E141: BXRE | F141: =MasterTable[[#This Row],[Product Family]]&"-"&MasterTable[[#This Row],[CCT/CRI]] -> V15-DL-35E | G141: =MasterTable[[#This Row],[Generation]]&"-"&MasterTable[[#This Row],[CCT/CRI]]&IF(MasterTable[[#This Row],[Lumen Family]]<999,"0"&MasterTable[[#This Row],[Lumen Family]],MasterTable[[#This Row],[Lumen Family]])&"-"&MasterTable[[#This Row],[Arrangement]]&"-2x" -> BXRE-35E3001-D-2x | H141: 3284 | I141: 0.16 | J141: 36 | K141: 700 | L141: 1400 | M141: 48 | N141: -2.7e-12 | O141: 9.54e-09 | P141: -1.25e-05 | Q141: 0.0119 | R141: 31.2 | T141: -2.826e-07 | U141: 0.0016303876 | V141: 0 | X141: -2.483e-07 | Y141: 0.0014695573 | Z141: 0 | AC141: -7.4086e-06 | AD141: -0.0009432231 | AE141: 1.027410132 | AH141: -0.017 | AI141: 36.425
A142: V15-DL | B142: 35G | C142: D | D142: 3001 | E142: BXRE | F142: =MasterTable[[#This Row],[Product Family]]&"-"&MasterTable[[#This Row],[CCT/CRI]] -> V15-DL-35G | G142: =MasterTable[[#This Row],[Generation]]&"-"&MasterTable[[#This Row],[CCT/CRI]]&IF(MasterTable[[#This Row],[Lumen Family]]<999,"0"&MasterTable[[#This Row],[Lumen Family]],MasterTable[[#This Row],[Lumen Family]])&"-"&MasterTable[[#This Row],[Arrangement]]&"-2x" -> BXRE-35G3001-D-2x | H142: 2671 | I142: 0.16 | J142: 36 | K142: 700 | L142: 1400 | M142: 48 | N142: -2.7e-12 | O142: 9.54e-09 | P142: -1.25e-05 | Q142: 0.0119 | R142: 31.2 | T142: -2.826e-07 | U142: 0.0016303876 | V142: 0 | X142: -2.483e-07 | Y142: 0.0014695573 | Z142: 0 | AC142: -7.4086e-06 | AD142: -0.0009432231 | AE142: 1.027410132 | AH142: -0.017 | AI142: 36.425
A143: V15-DL | B143: 40E | C143: D | D143: 3001 | E143: BXRE | F143: =MasterTable[[#This Row],[Product Family]]&"-"&MasterTable[[#This Row],[CCT/CRI]] -> V15-DL-40E | G143: =MasterTable[[#This Row],[Generation]]&"-"&MasterTable[[#This Row],[CCT/CRI]]&IF(MasterTable[[#This Row],[Lumen Family]]<999,"0"&MasterTable[[#This Row],[Lumen Family]],MasterTable[[#This Row],[Lumen Family]])&"-"&MasterTable[[#This Row],[Arrangement]]&"-2x" -> BXRE-40E3001-D-2x | H143: 3350 | I143: 0.16 | J143: 36 | K143: 700 | L143: 1400 | M143: 48 | N143: -2.7e-12 | O143: 9.54e-09 | P143: -1.25e-05 | Q143: 0.0119 | R143: 31.2 | T143: -2.826e-07 | U143: 0.0016303876 | V143: 0 | X143: -2.483e-07 | Y143: 0.0014695573 | Z143: 0 | AC143: -5.261e-06 | AD143: -0.0011508107 | AE143: 1.029404649 | AH143: -0.017 | AI143: 36.425
A144: V15-DL | B144: 40G | C144: D | D144: 3001 | E144: BXRE | F144: =MasterTable[[#This Row],[Product Family]]&"-"&MasterTable[[#This Row],[CCT/CRI]] -> V15-DL-40G | G144: =MasterTable[[#This Row],[Generation]]&"-"&MasterTable[[#This Row],[CCT/CRI]]&IF(MasterTable[[#This Row],[Lumen Family]]<999,"0"&MasterTable[[#This Row],[Lumen Family]],MasterTable[[#This Row],[Lumen Family]])&"-"&MasterTable[[#This Row],[Arrangement]]&"-2x" -> BXRE-40G3001-D-2x | H144: 2822 | I144: 0.16 | J144: 36 | K144: 700 | L144: 1400 | M144: 48 | N144: -2.7e-12 | O144: 9.54e-09 | P144: -1.25e-05 | Q144: 0.0119 | R144: 31.2 | T144: -2.826e-07 | U144: 0.0016303876 | V144: 0 | X144: -2.483e-07 | Y144: 0.0014695573 | Z144: 0 | AC144: -5.261e-06 | AD144: -0.0011508107 | AE144: 1.029404649 | AH144: -0.017 | AI144: 36.425
A145: V15-DL | B145: 50C | C145: D | D145: 3001 | E145: BXRE | F145: =MasterTable[[#This Row],[Product Family]]&"-"&MasterTable[[#This Row],[CCT/CRI]] -> V15-DL-50C | G145: =MasterTable[[#This Row],[Generation]]&"-"&MasterTable[[#This Row],[CCT/CRI]]&IF(MasterTable[[#This Row],[Lumen Family]]<999,"0"&MasterTable[[#This Row],[Lumen Family]],MasterTable[[#This Row],[Lumen Family]])&"-"&MasterTable[[#This Row],[Arrangement]]&"-2x" -> BXRE-50C3001-D-2x | H145: 3654 | I145: 0.16 | J145: 36 | K145: 700 | L145: 1400 | M145: 48 | N145: -2.7e-12 | O145: 9.54e-09 | P145: -1.25e-05 | Q145: 0.0119 | R145: 31.2 | T145: -2.826e-07 | U145: 0.0016303876 | V145: 0 | X145: -2.483e-07 | Y145: 0.0014695573 | Z145: 0 | AC145: -3.0728e-06 | AD145: -0.0018775263 | AE145: 1.049094661 | AH145: -0.017 | AI145: 36.425
A146: V15-DL | B146: 50E | C146: D | D146: 3001 | E146: BXRE | F146: =MasterTable[[#This Row],[Product Family]]&"-"&MasterTable[[#This Row],[CCT/CRI]] -> V15-DL-50E | G146: =MasterTable[[#This Row],[Generation]]&"-"&MasterTable[[#This Row],[CCT/CRI]]&IF(MasterTable[[#This Row],[Lumen Family]]<999,"0"&MasterTable[[#This Row],[Lumen Family]],MasterTable[[#This Row],[Lumen Family]])&"-"&MasterTable[[#This Row],[Arrangement]]&"-2x" -> BXRE-50E3001-D-2x | H146: 3260 | I146: 0.16 | J146: 36 | K146: 700 | L146: 1400 | M146: 48 | N146: -2.7e-12 | O146: 9.54e-09 | P146: -1.25e-05 | Q146: 0.0119 | R146: 31.2 | T146: -2.826e-07 | U146: 0.0016303876 | V146: 0 | X146: -2.483e-07 | Y146: 0.0014695573 | Z146: 0 | AC146: -3.0728e-06 | AD146: -0.0018775263 | AE146: 1.049094661 | AH146: -0.017 | AI146: 36.425
A147: V15-DL | B147: 50G | C147: D | D147: 3001 | E147: BXRE | F147: =MasterTable[[#This Row],[Product Family]]&"-"&MasterTable[[#This Row],[CCT/CRI]] -> V15-DL-50G | G147: =MasterTable[[#This Row],[Generation]]&"-"&MasterTable[[#This Row],[CCT/CRI]]&IF(MasterTable[[#This Row],[Lumen Family]]<999,"0"&MasterTable[[#This Row],[Lumen Family]],MasterTable[[#This Row],[Lumen Family]])&"-"&MasterTable[[#This Row],[Arrangement]]&"-2x" -> BXRE-50G3001-D-2x | H147: 2898 | I147: 0.16 | J147: 36 | K147: 700 | L147: 1400 | M147: 48 | N147: -2.7e-12 | O147: 9.54e-09 | P147: -1.25e-05 | Q147: 0.0119 | R147: 31.2 | T147: -2.826e-07 | U147: 0.0016303876 | V147: 0 | X147: -2.483e-07 | Y147: 0.0014695573 | Z147: 0 | AC147: -3.0728e-06 | AD147: -0.0018775263 | AE147: 1.049094661 | AH147: -0.017 | AI147: 36.425
A148: V18-F | B148: 27E | C148: F | D148: 4000 | E148: BXRE | F148: =MasterTable[[#This Row],[Product Family]]&"-"&MasterTable[[#This Row],[CCT/CRI]] -> V18-F-27E | G148: =MasterTable[[#This Row],[Generation]]&"-"&MasterTable[[#This Row],[CCT/CRI]]&IF(MasterTable[[#This Row],[Lumen Family]]<999,"0"&MasterTable[[#This Row],[Lumen Family]],MasterTable[[#This Row],[Lumen Family]])&"-"&MasterTable[[#This Row],[Arrangement]]&"-2x" -> BXRE-27E4000-F-2x | H148: 3872 | I148: 0.13 | J148: 29.5 | K148: 1050 | L148: 2100 | M148: 60 | N148: -4.329614168e-13 | O148: 2.421013102e-09 | P148: -5.02931617e-06 | Q148: 0.006888452614 | R148: 25.52318402 | T148: -1.310602506e-07 | U148: 0.001087869998 | V148: 0.004288345554 | X148: -1.211637044e-07 | Y148: 0.00107446893 | Z148: 0.006880972982 | AA148: 6.64269e-09 | AB148: -1.4332e-06 | AC148: 0.000101154 | AD148: -0.00412184 | AE148: 1.0607 | AH148: -0.015 | AI148: 29.875
A149: V18-F | B149: 27G | C149: F | D149: 4000 | E149: BXRE | F149: =MasterTable[[#This Row],[Product Family]]&"-"&MasterTable[[#This Row],[CCT/CRI]] -> V18-F-27G | G149: =MasterTable[[#This Row],[Generation]]&"-"&MasterTable[[#This Row],[CCT/CRI]]&IF(MasterTable[[#This Row],[Lumen Family]]<999,"0"&MasterTable[[#This Row],[Lumen Family]],MasterTable[[#This Row],[Lumen Family]])&"-"&MasterTable[[#This Row],[Arrangement]]&"-2x" -> BXRE-27G4000-F-2x | H149: 3221 | I149: 0.13 | J149: 29.5 | K149: 1050 | L149: 2100 | M149: 60 | N149: -4.329614168e-13 | O149: 2.421013102e-09 | P149: -5.02931617e-06 | Q149: 0.006888452614 | R149: 25.52318402 | T149: -1.310602506e-07 | U149: 0.001087869998 | V149: 0.004288345554 | X149: -1.211637044e-07 | Y149: 0.00107446893 | Z149: 0.006880972982 | AA149: 6.64269e-09 | AB149: -1.4332e-06 | AC149: 0.000101154 | AD149: -0.00412184 | AE149: 1.0607 | AH149: -0.015 | AI149: 29.875
A150: V18-F | B150: 30E | C150: F | D150: 4000 | E150: BXRE | F150: =MasterTable[[#This Row],[Product Family]]&"-"&MasterTable[[#This Row],[CCT/CRI]] -> V18-F-30E | G150: =MasterTable[[#This Row],[Generation]]&"-"&MasterTable[[#This Row],[CCT/CRI]]&IF(MasterTable[[#This Row],[Lumen Family]]<999,"0"&MasterTable[[#This Row],[Lumen Family]],MasterTable[[#This Row],[Lumen Family]])&"-"&MasterTable[[#This Row],[Arrangement]]&"-2x" -> BXRE-30E4000-F-2x | H150: 4050 | I150: 0.13 | J150: 29.5 | K150: 1050 | L150: 2100 | M150: 60 | N150: -4.329614168e-13 | O150: 2.421013102e-09 | P150: -5.02931617e-06 | Q150: 0.006888452614 | R150: 25.52318402 | T150: -1.310602506e-07 | U150: 0.001087869998 | V150: 0.004288345554 | X150: -1.211637044e-07 | Y150: 0.00107446893 | Z150: 0.006880972982 | AA150: 6.64269e-09 | AB150: -1.4332e-06 | AC150: 0.000101154 | AD150: -0.00412184 | AE150: 1.0607 | AH150: -0.015 | AI150: 29.875
A151: V18-F | B151: 30G | C151: F | D151: 4000 | E151: BXRE | F151: =MasterTable[[#This Row],[Product Family]]&"-"&MasterTable[[#This Row],[CCT/CRI]] -> V18-F-30G | G151: =MasterTable[[#This Row],[Generation]]&"-"&MasterTable[[#This Row],[CCT/CRI]]&IF(MasterTable[[#This Row],[Lumen Family]]<999,"0"&MasterTable[[#This Row],[Lumen Family]],MasterTable[[#This Row],[Lumen Family]])&"-"&MasterTable[[#This Row],[Arrangement]]&"-2x" -> BXRE-30G4000-F-2x | H151: 3376 | I151: 0.13 | J151: 29.5 | K151: 1050 | L151: 2100 | M151: 60 | N151: -4.329614168e-13 | O151: 2.421013102e-09 | P151: -5.02931617e-06 | Q151: 0.006888452614 | R151: 25.52318402 | T151: -1.310602506e-07 | U151: 0.001087869998 | V151: 0.004288345554 | X151: -1.211637044e-07 | Y151: 0.00107446893 | Z151: 0.006880972982 | AA151: 6.64269e-09 | AB151: -1.4332e-06 | AC151: 0.000101154 | AD151: -0.00412184 | AE151: 1.0607 | AH151: -0.015 | AI151: 29.875
A152: V18-F | B152: 35E | C152: F | D152: 4000 | E152: BXRE | F152: =MasterTable[[#This Row],[Product Family]]&"-"&MasterTable[[#This Row],[CCT/CRI]] -> V18-F-35E | G152: =MasterTable[[#This Row],[Generation]]&"-"&MasterTable[[#This Row],[CCT/CRI]]&IF(MasterTable[[#This Row],[Lumen Family]]<999,"0"&MasterTable[[#This Row],[Lumen Family]],MasterTable[[#This Row],[Lumen Family]])&"-"&MasterTable[[#This Row],[Arrangement]]&"-2x" -> BXRE-35E4000-F-2x | H152: 4150 | I152: 0.13 | J152: 29.5 | K152: 1050 | L152: 2100 | M152: 60 | N152: -4.329614168e-13 | O152: 2.421013102e-09 | P152: -5.02931617e-06 | Q152: 0.006888452614 | R152: 25.52318402 | T152: -1.310602506e-07 | U152: 0.001087869998 | V152: 0.004288345554 | X152: -1.211637044e-07 | Y152: 0.00107446893 | Z152: 0.006880972982 | AA152: 6.64269e-09 | AB152: -1.4332e-06 | AC152: 0.000101154 | AD152: -0.00412184 | AE152: 1.0607 | AH152: -0.015 | AI152: 29.875
A153: V18-F | B153: 35G | C153: F | D153: 4000 | E153: BXRE | F153: =MasterTable[[#This Row],[Product Family]]&"-"&MasterTable[[#This Row],[CCT/CRI]] -> V18-F-35G | G153: =MasterTable[[#This Row],[Generation]]&"-"&MasterTable[[#This Row],[CCT/CRI]]&IF(MasterTable[[#This Row],[Lumen Family]]<999,"0"&MasterTable[[#This Row],[Lumen Family]],MasterTable[[#This Row],[Lumen Family]])&"-"&MasterTable[[#This Row],[Arrangement]]&"-2x" -> BXRE-35G4000-F-2x | H153: 3655 | I153: 0.13 | J153: 29.5 | K153: 1050 | L153: 2100 | M153: 60 | N153: -4.329614168e-13 | O153: 2.421013102e-09 | P153: -5.02931617e-06 | Q153: 0.006888452614 | R153: 25.52318402 | T153: -1.310602506e-07 | U153: 0.001087869998 | V153: 0.004288345554 | X153: -1.211637044e-07 | Y153: 0.00107446893 | Z153: 0.006880972982 | AA153: 6.64269e-09 | AB153: -1.4332e-06 | AC153: 0.000101154 | AD153: -0.00412184 | AE153: 1.0607 | AH153: -0.015 | AI153: 29.875
A154: V18-F | B154: 40E | C154: F | D154: 4000 | E154: BXRE | F154: =MasterTable[[#This Row],[Product Family]]&"-"&MasterTable[[#This Row],[CCT/CRI]] -> V18-F-40E | G154: =MasterTable[[#This Row],[Generation]]&"-"&MasterTable[[#This Row],[CCT/CRI]]&IF(MasterTable[[#This Row],[Lumen Family]]<999,"0"&MasterTable[[#This Row],[Lumen Family]],MasterTable[[#This Row],[Lumen Family]])&"-"&MasterTable[[#This Row],[Arrangement]]&"-2x" -> BXRE-40E4000-F-2x | H154: 4244 | I154: 0.13 | J154: 29.5 | K154: 1050 | L154: 2100 | M154: 60 | N154: -4.329614168e-13 | O154: 2.421013102e-09 | P154: -5.02931617e-06 | Q154: 0.006888452614 | R154: 25.52318402 | T154: -1.310602506e-07 | U154: 0.001087869998 | V154: 0.004288345554 | X154: -1.211637044e-07 | Y154: 0.00107446893 | Z154: 0.006880972982 | AB154: -1.84258e-07 | AC154: 2.50682e-05 | AD154: -0.00259015 | AE154: 1.05063 | AH154: -0.015 | AI154: 29.875
A155: V18-F | B155: 40G | C155: F | D155: 4000 | E155: BXRE | F155: =MasterTable[[#This Row],[Product Family]]&"-"&MasterTable[[#This Row],[CCT/CRI]] -> V18-F-40G | G155: =MasterTable[[#This Row],[Generation]]&"-"&MasterTable[[#This Row],[CCT/CRI]]&IF(MasterTable[[#This Row],[Lumen Family]]<999,"0"&MasterTable[[#This Row],[Lumen Family]],MasterTable[[#This Row],[Lumen Family]])&"-"&MasterTable[[#This Row],[Arrangement]]&"-2x" -> BXRE-40G4000-F-2x | H155: 3670 | I155: 0.13 | J155: 29.5 | K155: 1050 | L155: 2100 | M155: 60 | N155: -4.329614168e-13 | O155: 2.421013102e-09 | P155: -5.02931617e-06 | Q155: 0.006888452614 | R155: 25.52318402 | T155: -1.310602506e-07 | U155: 0.001087869998 | V155: 0.004288345554 | X155: -1.211637044e-07 | Y155: 0.00107446893 | Z155: 0.006880972982 | AB155: -1.84258e-07 | AC155: 2.50682e-05 | AD155: -0.00259015 | AE155: 1.05063 | AH155: -0.015 | AI155: 29.875
A156: V18-F | B156: 50C | C156: F | D156: 4000 | E156: BXRE | F156: =MasterTable[[#This Row],[Product Family]]&"-"&MasterTable[[#This Row],[CCT/CRI]] -> V18-F-50C | G156: =MasterTable[[#This Row],[Generation]]&"-"&MasterTable[[#This Row],[CCT/CRI]]&IF(MasterTable[[#This Row],[Lumen Family]]<999,"0"&MasterTable[[#This Row],[Lumen Family]],MasterTable[[#This Row],[Lumen Family]])&"-"&MasterTable[[#This Row],[Arrangement]]&"-2x" -> BXRE-50C4000-F-2x | H156: 4491 | I156: 0.13 | J156: 29.5 | K156: 1050 | L156: 2100 | M156: 60 | N156: -4.329614168e-13 | O156: 2.421013102e-09 | P156: -5.02931617e-06 | Q156: 0.006888452614 | R156: 25.52318402 | T156: -1.310602506e-07 | U156: 0.001087869998 | V156: 0.004288345554 | X156: -1.211637044e-07 | Y156: 0.00107446893 | Z156: 0.006880972982 | AC156: -4e-06 | AD156: -0.0016 | AE156: 1.0421 | AH156: -0.015 | AI156: 29.875
A157: V18-F | B157: 50E | C157: F | D157: 4000 | E157: BXRE | F157: =MasterTable[[#This Row],[Product Family]]&"-"&MasterTable[[#This Row],[CCT/CRI]] -> V18-F-50E | G157: =MasterTable[[#This Row],[Generation]]&"-"&MasterTable[[#This Row],[CCT/CRI]]&IF(MasterTable[[#This Row],[Lumen Family]]<999,"0"&MasterTable[[#This Row],[Lumen Family]],MasterTable[[#This Row],[Lumen Family]])&"-"&MasterTable[[#This Row],[Arrangement]]&"-2x" -> BXRE-50E4000-F-2x | H157: 4275 | I157: 0.13 | J157: 29.5 | K157: 1050 | L157: 2100 | M157: 60 | N157: -4.329614168e-13 | O157: 2.421013102e-09 | P157: -5.02931617e-06 | Q157: 0.006888452614 | R157: 25.52318402 | T157: -1.310602506e-07 | U157: 0.001087869998 | V157: 0.004288345554 | X157: -1.211637044e-07 | Y157: 0.00107446893 | Z157: 0.006880972982 | AC157: -4e-06 | AD157: -0.0016 | AE157: 1.0421 | AH157: -0.015 | AI157: 29.875
A158: V18-F | B158: 50G | C158: F | D158: 4000 | E158: BXRE | F158: =MasterTable[[#This Row],[Product Family]]&"-"&MasterTable[[#This Row],[CCT/CRI]] -> V18-F-50G | G158: =MasterTable[[#This Row],[Generation]]&"-"&MasterTable[[#This Row],[CCT/CRI]]&IF(MasterTable[[#This Row],[Lumen Family]]<999,"0"&MasterTable[[#This Row],[Lumen Family]],MasterTable[[#This Row],[Lumen Family]])&"-"&MasterTable[[#This Row],[Arrangement]]&"-2x" -> BXRE-50G4000-F-2x | H158: 3885 | I158: 0.13 | J158: 29.5 | K158: 1050 | L158: 2100 | M158: 60 | N158: -4.329614168e-13 | O158: 2.421013102e-09 | P158: -5.02931617e-06 | Q158: 0.006888452614 | R158: 25.52318402 | T158: -1.310602506e-07 | U158: 0.001087869998 | V158: 0.004288345554 | X158: -1.211637044e-07 | Y158: 0.00107446893 | Z158: 0.006880972982 | AC158: -4e-06 | AD158: -0.0016 | AE158: 1.0421 | AH158: -0.015 | AI158: 29.875
A159: V22-G | B159: 27E | C159: G | D159: 6500 | E159: BXRE | F159: =MasterTable[[#This Row],[Product Family]]&"-"&MasterTable[[#This Row],[CCT/CRI]] -> V22-G-27E | G159: =MasterTable[[#This Row],[Generation]]&"-"&MasterTable[[#This Row],[CCT/CRI]]&IF(MasterTable[[#This Row],[Lumen Family]]<999,"0"&MasterTable[[#This Row],[Lumen Family]],MasterTable[[#This Row],[Lumen Family]])&"-"&MasterTable[[#This Row],[Arrangement]]&"-2x" -> BXRE-27E6500-G-2x | H159: 6100 | I159: 0.09 | J159: 35.9 | K159: 1400 | L159: 2800 | M159: 96 | N159: -4.773529e-14 | O159: 3.948166524e-10 | P159: -1.37893877e-06 | Q159: 0.00478211934 | R159: 30.96295733 | T159: -4.67e-08 | U159: 0.0007798112 | V159: 0.0070641762 | X159: -1.211637044e-07 | Y159: 0.00107446893 | Z159: 0.006880972982 | AC159: -4.6531e-06 | AD159: -0.0010859076 | AE159: 1.024239882 | AH159: -0.02 | AI159: 36.4
A160: V22-G | B160: 30E | C160: G | D160: 6500 | E160: BXRE | F160: =MasterTable[[#This Row],[Product Family]]&"-"&MasterTable[[#This Row],[CCT/CRI]] -> V22-G-30E | G160: =MasterTable[[#This Row],[Generation]]&"-"&MasterTable[[#This Row],[CCT/CRI]]&IF(MasterTable[[#This Row],[Lumen Family]]<999,"0"&MasterTable[[#This Row],[Lumen Family]],MasterTable[[#This Row],[Lumen Family]])&"-"&MasterTable[[#This Row],[Arrangement]]&"-2x" -> BXRE-30E6500-G-2x | H160: 6500 | I160: 0.09 | J160: 35.9 | K160: 1400 | L160: 2800 | M160: 96 | N160: -4.773529e-14 | O160: 3.948166524e-10 | P160: -1.37893877e-06 | Q160: 0.00478211934 | R160: 30.96295733 | T160: -4.67e-08 | U160: 0.0007798112 | V160: 0.0070641762 | X160: -1.211637044e-07 | Y160: 0.00107446893 | Z160: 0.006880972982 | AC160: -4.6531e-06 | AD160: -0.0010859076 | AE160: 1.024239882 | AH160: -0.02 | AI160: 36.4
A161: V22-G | B161: 40E | C161: G | D161: 6500 | E161: BXRE | F161: =MasterTable[[#This Row],[Product Family]]&"-"&MasterTable[[#This Row],[CCT/CRI]] -> V22-G-40E | G161: =MasterTable[[#This Row],[Generation]]&"-"&MasterTable[[#This Row],[CCT/CRI]]&IF(MasterTable[[#This Row],[Lumen Family]]<999,"0"&MasterTable[[#This Row],[Lumen Family]],MasterTable[[#This Row],[Lumen Family]])&"-"&MasterTable[[#This Row],[Arrangement]]&"-2x" -> BXRE-40E6500-G-2x | H161: 7000 | I161: 0.09 | J161: 35.9 | K161: 1400 | L161: 2800 | M161: 96 | N161: -4.773529e-14 | O161: 3.948166524e-10 | P161: -1.37893877e-06 | Q161: 0.00478211934 | R161: 30.96295733 | T161: -4.67e-08 | U161: 0.0007798112 | V161: 0.0070641762 | X161: -1.211637044e-07 | Y161: 0.00107446893 | Z161: 0.006880972982 | AC161: -5.6487e-06 | AD161: -0.0010440246 | AE161: 1.019719269 | AH161: -0.02 | AI161: 36.4
A162: V22-G | B162: 50C | C162: G | D162: 6500 | E162: BXRE | F162: =MasterTable[[#This Row],[Product Family]]&"-"&MasterTable[[#This Row],[CCT/CRI]] -> V22-G-50C | G162: =MasterTable[[#This Row],[Generation]]&"-"&MasterTable[[#This Row],[CCT/CRI]]&IF(MasterTable[[#This Row],[Lumen Family]]<999,"0"&MasterTable[[#This Row],[Lumen Family]],MasterTable[[#This Row],[Lumen Family]])&"-"&MasterTable[[#This Row],[Arrangement]]&"-2x" -> BXRE-50C6500-G-2x | H162: 7400 | I162: 0.09 | J162: 35.9 | K162: 1400 | L162: 2800 | M162: 96 | N162: -4.773529e-14 | O162: 3.948166524e-10 | P162: -1.37893877e-06 | Q162: 0.00478211934 | R162: 30.96295733 | T162: -4.67e-08 | U162: 0.0007798112 | V162: 0.0070641762 | X162: -1.211637044e-07 | Y162: 0.00107446893 | Z162: 0.006880972982 | AC162: -6.9965e-06 | AD162: -0.0009603864 | AE162: 1.015564096 | AH162: -0.02 | AI162: 36.4
A163: Vero 10 | B163: 27E | C163: B | D163: 1000 | E163: BXRC | F163: =MasterTable[[#This Row],[Product Family]]&"-"&MasterTable[[#This Row],[CCT/CRI]]&MasterTable[[#This Row],[Arrangement]] -> Vero 10-27EB | G163: =MasterTable[[#This Row],[Generation]]&"-"&MasterTable[[#This Row],[CCT/CRI]]&IF(MasterTable[[#This Row],[Lumen Family]]<999,"0"&MasterTable[[#This Row],[Lumen Family]],MasterTable[[#This Row],[Lumen Family]])&"-"&MasterTable[[#This Row],[Arrangement]]&"-2x" -> BXRC-27E1000-B-2x | H163: 1150 | I163: 0.47 | J163: 26.5 | K163: 350 | L163: 700 | M163: 12 | N163: -3.21e-11 | O163: 5.48e-08 | P163: -3.52e-05 | Q163: 0.0178 | R163: 22.7 | T163: -9.024e-07 | U163: 0.003184179 | V163: 0 | X163: -9.892e-07 | Y163: 0.0029291148 | Z163: 0 | AC163: -5.9659e-06 | AD163: -0.0011600921 | AE163: 1.031037576 | AH163: -0.014 | AI163: 26.85
A164: Vero 10 | B164: 27G | C164: B | D164: 1000 | E164: BXRC | F164: =MasterTable[[#This Row],[Product Family]]&"-"&MasterTable[[#This Row],[CCT/CRI]]&MasterTable[[#This Row],[Arrangement]] -> Vero 10-27GB | G164: =MasterTable[[#This Row],[Generation]]&"-"&MasterTable[[#This Row],[CCT/CRI]]&IF(MasterTable[[#This Row],[Lumen Family]]<999,"0"&MasterTable[[#This Row],[Lumen Family]],MasterTable[[#This Row],[Lumen Family]])&"-"&MasterTable[[#This Row],[Arrangement]]&"-2x" -> BXRC-27G1000-B-2x | H164: 965 | I164: 0.47 | J164: 26.5 | K164: 350 | L164: 700 | M164: 12 | N164: -3.21e-11 | O164: 5.48e-08 | P164: -3.52e-05 | Q164: 0.0178 | R164: 22.7 | T164: -9.024e-07 | U164: 0.003184179 | V164: 0 | X164: -9.892e-07 | Y164: 0.0029291148 | Z164: 0 | AC164: -5.9659e-06 | AD164: -0.0011600921 | AE164: 1.031037576 | AH164: -0.014 | AI164: 26.85
A165: Vero 10 | B165: 27H | C165: B | D165: 1000 | E165: BXRC | F165: =MasterTable[[#This Row],[Product Family]]&"-"&MasterTable[[#This Row],[CCT/CRI]]&MasterTable[[#This Row],[Arrangement]] -> Vero 10-27HB | G165: =MasterTable[[#This Row],[Generation]]&"-"&MasterTable[[#This Row],[CCT/CRI]]&IF(MasterTable[[#This Row],[Lumen Family]]<999,"0"&MasterTable[[#This Row],[Lumen Family]],MasterTable[[#This Row],[Lumen Family]])&"-"&MasterTable[[#This Row],[Arrangement]]&"-xx" -> BXRC-27H1000-B-xx | H165: 766 | I165: 0.47 | J165: 26.5 | K165: 350 | L165: 700 | M165: 12 | N165: -3.21e-11 | O165: 5.48e-08 | P165: -3.52e-05 | Q165: 0.0178 | R165: 22.7 | T165: -9.247e-07 | U165: 0.0031667774 | V165: 0.004130624 | X165: -9.892e-07 | Y165: 0.0029291148 | Z165: 0 | AC165: -5.8794e-06 | AD165: -0.0020447553 | AE165: 1.041963425 | AH165: -0.011 | AI165: 26.775
A166: Vero 10 | B166: 30A | C166: B | D166: 1001 | E166: BXRC | F166: =MasterTable[[#This Row],[Product Family]]&"-"&MasterTable[[#This Row],[CCT/CRI]]&MasterTable[[#This Row],[Arrangement]] -> Vero 10-30AB | G166: =MasterTable[[#This Row],[Generation]]&"-"&MasterTable[[#This Row],[CCT/CRI]]&IF(MasterTable[[#This Row],[Lumen Family]]<999,"0"&MasterTable[[#This Row],[Lumen Family]],MasterTable[[#This Row],[Lumen Family]])&"-"&MasterTable[[#This Row],[Arrangement]]&"-23" -> BXRC-30A1001-B-23 | H166: 820 | I166: 0.47 | J166: 26.5 | K166: 350 | L166: =INDEX(FF_stats31333[],MATCH(A166,FF_stats31333[Form Factor],0),2) -> 700 | M166: 12 | N166: -2.96e-11 | O166: 5.41e-08 | P166: -3.72e-05 | Q166: 0.0187 | R166: 22.6 | T166: -9.467e-07 | U166: 0.0031961206 | V166: 0 | X166: -9.672e-07 | Y166: 0.0028497371 | Z166: 0 | AC166: -3.1489e-06 | AD166: -0.0015189406 | AE166: 1.039001687 | AH166: -0.014 | AI166: 26.85
A167: Vero 10 | B167: 30E | C167: B | D167: 1000 | E167: BXRC | F167: =MasterTable[[#This Row],[Product Family]]&"-"&MasterTable[[#This Row],[CCT/CRI]]&MasterTable[[#This Row],[Arrangement]] -> Vero 10-30EB | G167: =MasterTable[[#This Row],[Generation]]&"-"&MasterTable[[#This Row],[CCT/CRI]]&IF(MasterTable[[#This Row],[Lumen Family]]<999,"0"&MasterTable[[#This Row],[Lumen Family]],MasterTable[[#This Row],[Lumen Family]])&"-"&MasterTable[[#This Row],[Arrangement]]&"-2x" -> BXRC-30E1000-B-2x | H167: 1207 | I167: 0.47 | J167: 26.5 | K167: 350 | L167: 700 | M167: 12 | N167: -3.21e-11 | O167: 5.48e-08 | P167: -3.52e-05 | Q167: 0.0178 | R167: 22.7 | T167: -9.024e-07 | U167: 0.003184179 | V167: 0 | X167: -9.892e-07 | Y167: 0.0029291148 | Z167: 0 | AC167: -5.9659e-06 | AD167: -0.0011600921 | AE167: 1.031037576 | AH167: -0.014 | AI167: 26.85
A168: Vero 10 | B168: 30G | C168: B | D168: 1000 | E168: BXRC | F168: =MasterTable[[#This Row],[Product Family]]&"-"&MasterTable[[#This Row],[CCT/CRI]]&MasterTable[[#This Row],[Arrangement]] -> Vero 10-30GB | G168: =MasterTable[[#This Row],[Generation]]&"-"&MasterTable[[#This Row],[CCT/CRI]]&IF(MasterTable[[#This Row],[Lumen Family]]<999,"0"&MasterTable[[#This Row],[Lumen Family]],MasterTable[[#This Row],[Lumen Family]])&"-"&MasterTable[[#This Row],[Arrangement]]&"-2x" -> BXRC-30G1000-B-2x | H168: 1002 | I168: 0.47 | J168: 26.5 | K168: 350 | L168: 700 | M168: 12 | N168: -3.21e-11 | O168: 5.48e-08 | P168: -3.52e-05 | Q168: 0.0178 | R168: 22.7 | T168: -9.024e-07 | U168: 0.003184179 | V168: 0 | X168: -9.892e-07 | Y168: 0.0029291148 | Z168: 0 | AC168: -5.9659e-06 | AD168: -0.0011600921 | AE168: 1.031037576 | AH168: -0.014 | AI168: 26.85
A169: Vero 10 | B169: 30H | C169: B | D169: 1000 | E169: BXRC | F169: =MasterTable[[#This Row],[Product Family]]&"-"&MasterTable[[#This Row],[CCT/CRI]]&MasterTable[[#This Row],[Arrangement]] -> Vero 10-30HB | G169: =MasterTable[[#This Row],[Generation]]&"-"&MasterTable[[#This Row],[CCT/CRI]]&IF(MasterTable[[#This Row],[Lumen Family]]<999,"0"&MasterTable[[#This Row],[Lumen Family]],MasterTable[[#This Row],[Lumen Family]])&"-"&MasterTable[[#This Row],[Arrangement]]&"-xx" -> BXRC-30H1000-B-xx | H169: 799 | I169: 0.47 | J169: 26.5 | K169: 350 | L169: 700 | M169: 12 | N169: -3.21e-11 | O169: 5.48e-08 | P169: -3.52e-05 | Q169: 0.0178 | R169: 22.7 | T169: -9.247e-07 | U169: 0.0031667774 | V169: 0.004130624 | X169: -9.892e-07 | Y169: 0.0029291148 | Z169: 0 | AC169: -6.8209e-06 | AD169: -0.0017597719 | AE169: 1.036435953 | AH169: -0.011 | AI169: 26.775
A170: Vero 10 | B170: 35A | C170: B | D170: 1000 | E170: BXRC | F170: =MasterTable[[#This Row],[Product Family]]&"-"&MasterTable[[#This Row],[CCT/CRI]]&MasterTable[[#This Row],[Arrangement]] -> Vero 10-35AB | G170: =MasterTable[[#This Row],[Generation]]&"-"&MasterTable[[#This Row],[CCT/CRI]]&IF(MasterTable[[#This Row],[Lumen Family]]<999,"0"&MasterTable[[#This Row],[Lumen Family]],MasterTable[[#This Row],[Lumen Family]])&"-"&MasterTable[[#This Row],[Arrangement]]&"-23" -> BXRC-35A1000-B-23 | H170: 909 | I170: 0.47 | J170: 26.5 | K170: 350 | L170: 700 | M170: 12 | N170: -2.96e-11 | O170: 5.41e-08 | P170: -3.72e-05 | Q170: 0.0187 | R170: 22.6 | T170: -9.467e-07 | U170: 0.0031961206 | V170: 0 | X170: -9.892e-07 | Y170: 0.0029291148 | Z170: 0 | AC170: -3.1489e-06 | AD170: -0.0015189406 | AE170: 1.039001687 | AH170: -0.014 | AI170: 26.85
A171: Vero 10 | B171: 35E | C171: B | D171: 1000 | E171: BXRC | F171: =MasterTable[[#This Row],[Product Family]]&"-"&MasterTable[[#This Row],[CCT/CRI]]&MasterTable[[#This Row],[Arrangement]] -> Vero 10-35EB | G171: =MasterTable[[#This Row],[Generation]]&"-"&MasterTable[[#This Row],[CCT/CRI]]&IF(MasterTable[[#This Row],[Lumen Family]]<999,"0"&MasterTable[[#This Row],[Lumen Family]],MasterTable[[#This Row],[Lumen Family]])&"-"&MasterTable[[#This Row],[Arrangement]]&"-23" -> BXRC-35E1000-B-23 | H171: 1208 | I171: 0.47 | J171: 26.5 | K171: 350 | L171: 700 | M171: 12 | N171: -2.768355856e-11 | O171: 4.992120001e-08 | P171: -3.36667635e-05 | Q171: 0.01575818837 | R171: 23.37884141 | T171: -7.50847e-07 | U171: 0.00307302 | V171: 0.0166313 | X171: -9.892e-07 | Y171: 0.0029291148 | Z171: 0 | AC171: -6.5181e-06 | AD171: -0.001079437 | AE171: 1.028172778 | AH171: -0.011 | AI171: 26.775
A172: Vero 10 | B172: 35G | C172: B | D172: 1000 | E172: BXRC | F172: =MasterTable[[#This Row],[Product Family]]&"-"&MasterTable[[#This Row],[CCT/CRI]]&MasterTable[[#This Row],[Arrangement]] -> Vero 10-35GB | G172: =MasterTable[[#This Row],[Generation]]&"-"&MasterTable[[#This Row],[CCT/CRI]]&IF(MasterTable[[#This Row],[Lumen Family]]<999,"0"&MasterTable[[#This Row],[Lumen Family]],MasterTable[[#This Row],[Lumen Family]])&"-"&MasterTable[[#This Row],[Arrangement]]&"-23" -> BXRC-35G1000-B-23 | H172: 1048 | I172: 0.47 | J172: 26.5 | K172: 350 | L172: 700 | M172: 12 | N172: -2.768355856e-11 | O172: 4.992120001e-08 | P172: -3.36667635e-05 | Q172: 0.01575818837 | R172: 23.37884141 | T172: -7.50847e-07 | U172: 0.00307302 | V172: 0.0166313 | X172: -9.892e-07 | Y172: 0.0029291148 | Z172: 0 | AC172: -6.5181e-06 | AD172: -0.001079437 | AE172: 1.028172778 | AH172: -0.011 | AI172: 26.775
A173: Vero 10 | B173: 40A | C173: B | D173: 1001 | E173: BXRC | F173: =MasterTable[[#This Row],[Product Family]]&"-"&MasterTable[[#This Row],[CCT/CRI]]&MasterTable[[#This Row],[Arrangement]] -> Vero 10-40AB | G173: =MasterTable[[#This Row],[Generation]]&"-"&MasterTable[[#This Row],[CCT/CRI]]&IF(MasterTable[[#This Row],[Lumen Family]]<999,"0"&MasterTable[[#This Row],[Lumen Family]],MasterTable[[#This Row],[Lumen Family]])&"-"&MasterTable[[#This Row],[Arrangement]]&"-2x" -> BXRC-40A1001-B-2x | H173: 970 | I173: 0.47 | J173: 26.5 | K173: 350 | L173: =INDEX(FF_stats31333[],MATCH(A173,FF_stats31333[Form Factor],0),2) -> 700 | M173: 12 | N173: -2.96e-11 | O173: 5.41e-08 | P173: -3.72e-05 | Q173: 0.0187 | R173: 22.6 | T173: -9.467e-07 | U173: 0.0031961206 | V173: 0 | X173: -9.672e-07 | Y173: 0.0028497371 | Z173: 0 | AC173: -3.6754e-06 | AD173: -0.0014946821 | AE173: 1.038517197 | AH173: -0.014 | AI173: 26.85
A174: Vero 10 | B174: 40E | C174: B | D174: 1000 | E174: BXRC | F174: =MasterTable[[#This Row],[Product Family]]&"-"&MasterTable[[#This Row],[CCT/CRI]]&MasterTable[[#This Row],[Arrangement]] -> Vero 10-40EB | G174: =MasterTable[[#This Row],[Generation]]&"-"&MasterTable[[#This Row],[CCT/CRI]]&IF(MasterTable[[#This Row],[Lumen Family]]<999,"0"&MasterTable[[#This Row],[Lumen Family]],MasterTable[[#This Row],[Lumen Family]])&"-"&MasterTable[[#This Row],[Arrangement]]&"-2x" -> BXRC-40E1000-B-2x | H174: 1274 | I174: 0.47 | J174: 26.5 | K174: 350 | L174: 700 | M174: 12 | N174: -3.21e-11 | O174: 5.48e-08 | P174: -3.52e-05 | Q174: 0.0178 | R174: 22.7 | T174: -9.024e-07 | U174: 0.003184179 | V174: 0 | X174: -9.892e-07 | Y174: 0.0029291148 | Z174: 0 | AC174: -6.2594e-06 | AD174: -0.001184453 | AE174: 1.031552371 | AH174: -0.014 | AI174: 26.85
A175: Vero 10 | B175: 40G | C175: B | D175: 1000 | E175: BXRC | F175: =MasterTable[[#This Row],[Product Family]]&"-"&MasterTable[[#This Row],[CCT/CRI]]&MasterTable[[#This Row],[Arrangement]] -> Vero 10-40GB | G175: =MasterTable[[#This Row],[Generation]]&"-"&MasterTable[[#This Row],[CCT/CRI]]&IF(MasterTable[[#This Row],[Lumen Family]]<999,"0"&MasterTable[[#This Row],[Lumen Family]],MasterTable[[#This Row],[Lumen Family]])&"-"&MasterTable[[#This Row],[Arrangement]]&"-2x" -> BXRC-40G1000-B-2x | H175: 1076 | I175: 0.47 | J175: 26.5 | K175: 350 | L175: 700 | M175: 12 | N175: -3.21e-11 | O175: 5.48e-08 | P175: -3.52e-05 | Q175: 0.0178 | R175: 22.7 | T175: -9.024e-07 | U175: 0.003184179 | V175: 0 | X175: -9.892e-07 | Y175: 0.0029291148 | Z175: 0 | AC175: -6.2594e-06 | AD175: -0.001184453 | AE175: 1.031552371 | AH175: -0.014 | AI175: 26.85
A176: Vero 10 | B176: 50C | C176: B | D176: 1000 | E176: BXRC | F176: =MasterTable[[#This Row],[Product Family]]&"-"&MasterTable[[#This Row],[CCT/CRI]]&MasterTable[[#This Row],[Arrangement]] -> Vero 10-50CB | G176: =MasterTable[[#This Row],[Generation]]&"-"&MasterTable[[#This Row],[CCT/CRI]]&IF(MasterTable[[#This Row],[Lumen Family]]<999,"0"&MasterTable[[#This Row],[Lumen Family]],MasterTable[[#This Row],[Lumen Family]])&"-"&MasterTable[[#This Row],[Arrangement]]&"-2x" -> BXRC-50C1000-B-2x | H176: 1330 | I176: 0.47 | J176: 26.5 | K176: 350 | L176: =INDEX(FF_stats31333[],MATCH(A176,FF_stats31333[Form Factor],0),2) -> 700 | M176: 12 | N176: -3.21e-11 | O176: 5.48e-08 | P176: -3.52e-05 | Q176: 0.0178 | R176: 22.7 | T176: -9.024e-07 | U176: 0.003184179 | V176: 0 | X176: -9.892e-07 | Y176: 0.0029291148 | Z176: 0 | AC176: -3.4916e-06 | AD176: -0.0016345621 | AE176: 1.043349788 | AH176: -0.014 | AI176: 26.85
A177: Vero 10 | B177: 50E | C177: B | D177: 1000 | E177: BXRC | F177: =MasterTable[[#This Row],[Product Family]]&"-"&MasterTable[[#This Row],[CCT/CRI]]&MasterTable[[#This Row],[Arrangement]] -> Vero 10-50EB | G177: =MasterTable[[#This Row],[Generation]]&"-"&MasterTable[[#This Row],[CCT/CRI]]&IF(MasterTable[[#This Row],[Lumen Family]]<999,"0"&MasterTable[[#This Row],[Lumen Family]],MasterTable[[#This Row],[Lumen Family]])&"-"&MasterTable[[#This Row],[Arrangement]]&"-2x" -> BXRC-50E1000-B-2x | H177: 1274 | I177: 0.47 | J177: 26.5 | K177: 350 | L177: =INDEX(FF_stats31333[],MATCH(A177,FF_stats31333[Form Factor],0),2) -> 700 | M177: 12 | N177: -3.21e-11 | O177: 5.48e-08 | P177: -3.52e-05 | Q177: 0.0178 | R177: 22.7 | T177: -9.024e-07 | U177: 0.003184179 | V177: 0 | X177: -9.892e-07 | Y177: 0.0029291148 | Z177: 0 | AC177: -3.4916e-06 | AD177: -0.0016345621 | AE177: 1.043349788 | AH177: -0.014 | AI177: 26.85
A178: Vero 10 | B178: 50G | C178: B | D178: 1000 | E178: BXRC | F178: =MasterTable[[#This Row],[Product Family]]&"-"&MasterTable[[#This Row],[CCT/CRI]]&MasterTable[[#This Row],[Arrangement]] -> Vero 10-50GB | G178: =MasterTable[[#This Row],[Generation]]&"-"&MasterTable[[#This Row],[CCT/CRI]]&IF(MasterTable[[#This Row],[Lumen Family]]<999,"0"&MasterTable[[#This Row],[Lumen Family]],MasterTable[[#This Row],[Lumen Family]])&"-"&MasterTable[[#This Row],[Arrangement]]&"-2x" -> BXRC-50G1000-B-2x | H178: 1106 | I178: 0.47 | J178: 26.5 | K178: 350 | L178: =INDEX(FF_stats31333[],MATCH(A178,FF_stats31333[Form Factor],0),2) -> 700 | M178: 12 | N178: -3.21e-11 | O178: 5.48e-08 | P178: -3.52e-05 | Q178: 0.0178 | R178: 22.7 | T178: -9.024e-07 | U178: 0.003184179 | V178: 0 | X178: -9.892e-07 | Y178: 0.0029291148 | Z178: 0 | AC178: -3.4916e-06 | AD178: -0.0016345621 | AE178: 1.043349788 | AH178: -0.014 | AI178: 26.85
A179: Vero 13 | B179: 27E | C179: C | D179: 2000 | E179: BXRC | F179: =MasterTable[[#This Row],[Product Family]]&"-"&MasterTable[[#This Row],[CCT/CRI]]&MasterTable[[#This Row],[Arrangement]] -> Vero 13-27EC | G179: =MasterTable[[#This Row],[Generation]]&"-"&MasterTable[[#This Row],[CCT/CRI]]&IF(MasterTable[[#This Row],[Lumen Family]]<999,"0"&MasterTable[[#This Row],[Lumen Family]],MasterTable[[#This Row],[Lumen Family]])&"-"&MasterTable[[#This Row],[Arrangement]]&"-2x" -> BXRC-27E2000-C-2x | H179: 2019 | I179: 0.22 | J179: 32.3 | K179: 500 | L179: 1050 | M179: 33 | N179: -9.507660402e-12 | O179: 2.442828661e-08 | P179: -2.316924658e-05 | Q179: 0.01497049422 | R179: 28.11666927 | T179: -5.205657701e-07 | U179: 0.002252976347 | V179: 0.004831192823 | X179: -4.920036195e-07 | Y179: 0.002235027916 | Z179: 0.006889179501 | AA179: -3.29e-09 | AB179: 5.25e-07 | AC179: -2.52e-05 | AD179: -0.00124 | AE179: 1.04 | AH179: -0.017 | AI179: 32.725
A180: Vero 13 | B180: 27G | C180: C | D180: 2000 | E180: BXRC | F180: =MasterTable[[#This Row],[Product Family]]&"-"&MasterTable[[#This Row],[CCT/CRI]]&MasterTable[[#This Row],[Arrangement]] -> Vero 13-27GC | G180: =MasterTable[[#This Row],[Generation]]&"-"&MasterTable[[#This Row],[CCT/CRI]]&IF(MasterTable[[#This Row],[Lumen Family]]<999,"0"&MasterTable[[#This Row],[Lumen Family]],MasterTable[[#This Row],[Lumen Family]])&"-"&MasterTable[[#This Row],[Arrangement]]&"-2x" -> BXRC-27G2000-C-2x | H180: 1680 | I180: 0.22 | J180: 32.3 | K180: 500 | L180: 1050 | M180: 33 | N180: -9.507660402e-12 | O180: 2.442828661e-08 | P180: -2.316924658e-05 | Q180: 0.01497049422 | R180: 28.11666927 | T180: -5.205657701e-07 | U180: 0.002252976347 | V180: 0.004831192823 | X180: -4.920036195e-07 | Y180: 0.002235027916 | Z180: 0.006889179501 | AA180: -3.29e-09 | AB180: 5.25e-07 | AC180: -2.52e-05 | AD180: -0.00124 | AE180: 1.04 | AH180: -0.017 | AI180: 32.725
A181: Vero 13 | B181: 27H | C181: C | D181: 2000 | E181: BXRC | F181: =MasterTable[[#This Row],[Product Family]]&"-"&MasterTable[[#This Row],[CCT/CRI]]&MasterTable[[#This Row],[Arrangement]] -> Vero 13-27HC | G181: =MasterTable[[#This Row],[Generation]]&"-"&MasterTable[[#This Row],[CCT/CRI]]&IF(MasterTable[[#This Row],[Lumen Family]]<999,"0"&MasterTable[[#This Row],[Lumen Family]],MasterTable[[#This Row],[Lumen Family]])&"-"&MasterTable[[#This Row],[Arrangement]]&"-xx" -> BXRC-27H2000-C-xx | H181: 1331 | I181: 0.22 | J181: 32.3 | K181: 500 | L181: 1050 | M181: 33 | N181: -9.507660402e-12 | O181: 2.442828661e-08 | P181: -2.316924658e-05 | Q181: 0.01497049422 | R181: 28.11666927 | T181: -4.232e-07 | U181: 0.0022028993 | V181: 0.0051414702 | X181: -4.920036195e-07 | Y181: 0.002235027916 | Z181: 0.006889179501 | AC181: -8.261e-06 | AD181: -0.0015923074 | AE181: 1.025379747 | AH181: -0.017 | AI181: 32.725
A182: Vero 13 | B182: 30A | C182: C | D182: 2001 | E182: BXRC | F182: =MasterTable[[#This Row],[Product Family]]&"-"&MasterTable[[#This Row],[CCT/CRI]]&MasterTable[[#This Row],[Arrangement]] -> Vero 13-30AC | G182: =MasterTable[[#This Row],[Generation]]&"-"&MasterTable[[#This Row],[CCT/CRI]]&IF(MasterTable[[#This Row],[Lumen Family]]<999,"0"&MasterTable[[#This Row],[Lumen Family]],MasterTable[[#This Row],[Lumen Family]])&"-"&MasterTable[[#This Row],[Arrangement]]&"-23" -> BXRC-30A2001-C-23 | H182: 1500 | I182: 0.22 | J182: 32.3 | K182: 500 | L182: =INDEX(FF_stats31333[],MATCH(A182,FF_stats31333[Form Factor],0),2) -> 1050 | M182: 33 | N182: -9.82e-12 | O182: 2.54e-08 | P182: -2.46e-05 | Q182: 0.0153 | R182: 28.2 | T182: -5.277e-07 | U182: 0.0022695978 | V182: 0 | X182: -4.414e-07 | Y182: 0.0020207807 | Z182: 0 | AC182: -3.3727e-06 | AD182: -0.001485708 | AE182: 1.038777552 | AH182: -0.017 | AI182: 32.725
A183: Vero 13 | B183: 30E | C183: C | D183: 2000 | E183: BXRC | F183: =MasterTable[[#This Row],[Product Family]]&"-"&MasterTable[[#This Row],[CCT/CRI]]&MasterTable[[#This Row],[Arrangement]] -> Vero 13-30EC | G183: =MasterTable[[#This Row],[Generation]]&"-"&MasterTable[[#This Row],[CCT/CRI]]&IF(MasterTable[[#This Row],[Lumen Family]]<999,"0"&MasterTable[[#This Row],[Lumen Family]],MasterTable[[#This Row],[Lumen Family]])&"-"&MasterTable[[#This Row],[Arrangement]]&"-2x" -> BXRC-30E2000-C-2x | H183: 2120 | I183: 0.22 | J183: 32.3 | K183: 500 | L183: 1050 | M183: 33 | N183: -9.507660402e-12 | O183: 2.442828661e-08 | P183: -2.316924658e-05 | Q183: 0.01497049422 | R183: 28.11666927 | T183: -5.205657701e-07 | U183: 0.002252976347 | V183: 0.004831192823 | X183: -4.920036195e-07 | Y183: 0.002235027916 | Z183: 0.006889179501 | AA183: -3.29e-09 | AB183: 5.25e-07 | AC183: -2.52e-05 | AD183: -0.00124 | AE183: 1.04 | AH183: -0.017 | AI183: 32.725
A184: Vero 13 | B184: 30G | C184: C | D184: 2000 | E184: BXRC | F184: =MasterTable[[#This Row],[Product Family]]&"-"&MasterTable[[#This Row],[CCT/CRI]]&MasterTable[[#This Row],[Arrangement]] -> Vero 13-30GC | G184: =MasterTable[[#This Row],[Generation]]&"-"&MasterTable[[#This Row],[CCT/CRI]]&IF(MasterTable[[#This Row],[Lumen Family]]<999,"0"&MasterTable[[#This Row],[Lumen Family]],MasterTable[[#This Row],[Lumen Family]])&"-"&MasterTable[[#This Row],[Arrangement]]&"-2x" -> BXRC-30G2000-C-2x | H184: 1760 | I184: 0.22 | J184: 32.3 | K184: 500 | L184: 1050 | M184: 33 | N184: -9.507660402e-12 | O184: 2.442828661e-08 | P184: -2.316924658e-05 | Q184: 0.01497049422 | R184: 28.11666927 | T184: -5.205657701e-07 | U184: 0.002252976347 | V184: 0.004831192823 | X184: -4.920036195e-07 | Y184: 0.002235027916 | Z184: 0.006889179501 | AA184: -3.29e-09 | AB184: 5.25e-07 | AC184: -2.52e-05 | AD184: -0.00124 | AE184: 1.04 | AH184: -0.017 | AI184: 32.725
A185: Vero 13 | B185: 30H | C185: C | D185: 2000 | E185: BXRC | F185: =MasterTable[[#This Row],[Product Family]]&"-"&MasterTable[[#This Row],[CCT/CRI]]&MasterTable[[#This Row],[Arrangement]] -> Vero 13-30HC | G185: =MasterTable[[#This Row],[Generation]]&"-"&MasterTable[[#This Row],[CCT/CRI]]&IF(MasterTable[[#This Row],[Lumen Family]]<999,"0"&MasterTable[[#This Row],[Lumen Family]],MasterTable[[#This Row],[Lumen Family]])&"-"&MasterTable[[#This Row],[Arrangement]]&"-xx" -> BXRC-30H2000-C-xx | H185: 1435 | I185: 0.22 | J185: 32.3 | K185: 500 | L185: 1050 | M185: 33 | N185: -9.507660402e-12 | O185: 2.442828661e-08 | P185: -2.316924658e-05 | Q185: 0.01497049422 | R185: 28.11666927 | T185: -4.232e-07 | U185: 0.0022028993 | V185: 0.0051414702 | X185: -4.920036195e-07 | Y185: 0.002235027916 | Z185: 0.006889179501 | AC185: -7.0491e-06 | AD185: -0.0017714645 | AE185: 1.030070491 | AH185: -0.017 | AI185: 32.725
A186: Vero 13 | B186: 35A | C186: C | D186: 2001 | E186: BXRC | F186: =MasterTable[[#This Row],[Product Family]]&"-"&MasterTable[[#This Row],[CCT/CRI]]&MasterTable[[#This Row],[Arrangement]] -> Vero 13-35AC | G186: =MasterTable[[#This Row],[Generation]]&"-"&MasterTable[[#This Row],[CCT/CRI]]&IF(MasterTable[[#This Row],[Lumen Family]]<999,"0"&MasterTable[[#This Row],[Lumen Family]],MasterTable[[#This Row],[Lumen Family]])&"-"&MasterTable[[#This Row],[Arrangement]]&"-23" -> BXRC-35A2001-C-23 | H186: 1628 | I186: 0.22 | J186: 32.3 | K186: 500 | L186: =INDEX(FF_stats31333[],MATCH(A186,FF_stats31333[Form Factor],0),2) -> 1050 | M186: 33 | N186: -9.82e-12 | O186: 2.54e-08 | P186: -2.46e-05 | Q186: 0.0153 | R186: 28.2 | T186: -5.277e-07 | U186: 0.0022695978 | V186: 0 | X186: -4.414e-07 | Y186: 0.0020207807 | Z186: 0 | AC186: -3.3727e-06 | AD186: -0.001485708 | AE186: 1.038777552 | AH186: -0.017 | AI186: 32.725
A187: Vero 13 | B187: 35E | C187: C | D187: 2000 | E187: BXRC | F187: =MasterTable[[#This Row],[Product Family]]&"-"&MasterTable[[#This Row],[CCT/CRI]]&MasterTable[[#This Row],[Arrangement]] -> Vero 13-35EC | G187: =MasterTable[[#This Row],[Generation]]&"-"&MasterTable[[#This Row],[CCT/CRI]]&IF(MasterTable[[#This Row],[Lumen Family]]<999,"0"&MasterTable[[#This Row],[Lumen Family]],MasterTable[[#This Row],[Lumen Family]])&"-"&MasterTable[[#This Row],[Arrangement]]&"-2x" -> BXRC-35E2000-C-2x | H187: 2150 | I187: 0.22 | J187: 32.3 | K187: 500 | L187: 1050 | M187: 33 | N187: -9.507660402e-12 | O187: 2.442828661e-08 | P187: -2.316924658e-05 | Q187: 0.01497049422 | R187: 28.11666927 | T187: -5.205657701e-07 | U187: 0.002252976347 | V187: 0.004831192823 | X187: -4.920036195e-07 | Y187: 0.002235027916 | Z187: 0.006889179501 | AA187: -3.29e-09 | AB187: 5.25e-07 | AC187: -2.52e-05 | AD187: -0.00124 | AE187: 1.04 | AH187: -0.017 | AI187: 32.725
A188: Vero 13 | B188: 35G | C188: C | D188: 2000 | E188: BXRC | F188: =MasterTable[[#This Row],[Product Family]]&"-"&MasterTable[[#This Row],[CCT/CRI]]&MasterTable[[#This Row],[Arrangement]] -> Vero 13-35GC | G188: =MasterTable[[#This Row],[Generation]]&"-"&MasterTable[[#This Row],[CCT/CRI]]&IF(MasterTable[[#This Row],[Lumen Family]]<999,"0"&MasterTable[[#This Row],[Lumen Family]],MasterTable[[#This Row],[Lumen Family]])&"-"&MasterTable[[#This Row],[Arrangement]]&"-2x" -> BXRC-35G2000-C-2x | H188: 1841 | I188: 0.22 | J188: 32.3 | K188: 500 | L188: 1050 | M188: 33 | N188: -9.507660402e-12 | O188: 2.442828661e-08 | P188: -2.316924658e-05 | Q188: 0.01497049422 | R188: 28.11666927 | T188: -5.205657701e-07 | U188: 0.002252976347 | V188: 0.004831192823 | X188: -4.920036195e-07 | Y188: 0.002235027916 | Z188: 0.006889179501 | AA188: -3.29e-09 | AB188: 5.25e-07 | AC188: -2.52e-05 | AD188: -0.00124 | AE188: 1.04 | AH188: -0.017 | AI188: 32.725
A189: Vero 13 | B189: 40A | C189: C | D189: 2001 | E189: BXRC | F189: =MasterTable[[#This Row],[Product Family]]&"-"&MasterTable[[#This Row],[CCT/CRI]]&MasterTable[[#This Row],[Arrangement]] -> Vero 13-40AC | G189: =MasterTable[[#This Row],[Generation]]&"-"&MasterTable[[#This Row],[CCT/CRI]]&IF(MasterTable[[#This Row],[Lumen Family]]<999,"0"&MasterTable[[#This Row],[Lumen Family]],MasterTable[[#This Row],[Lumen Family]])&"-"&MasterTable[[#This Row],[Arrangement]]&"-23" -> BXRC-40A2001-C-23 | H189: 1740 | I189: 0.22 | J189: 32.3 | K189: 500 | L189: =INDEX(FF_stats31333[],MATCH(A189,FF_stats31333[Form Factor],0),2) -> 1050 | M189: 33 | N189: -9.82e-12 | O189: 2.54e-08 | P189: -2.46e-05 | Q189: 0.0153 | R189: 28.2 | T189: -5.277e-07 | U189: 0.0022695978 | V189: 0 | X189: -4.414e-07 | Y189: 0.0020207807 | Z189: 0 | AC189: -3.018e-06 | AD189: -0.001518859 | AE189: 1.038778507 | AH189: -0.017 | AI189: 32.725
A190: Vero 13 | B190: 40E | C190: C | D190: 2000 | E190: BXRC | F190: =MasterTable[[#This Row],[Product Family]]&"-"&MasterTable[[#This Row],[CCT/CRI]]&MasterTable[[#This Row],[Arrangement]] -> Vero 13-40EC | G190: =MasterTable[[#This Row],[Generation]]&"-"&MasterTable[[#This Row],[CCT/CRI]]&IF(MasterTable[[#This Row],[Lumen Family]]<999,"0"&MasterTable[[#This Row],[Lumen Family]],MasterTable[[#This Row],[Lumen Family]])&"-"&MasterTable[[#This Row],[Arrangement]]&"-2x" -> BXRC-40E2000-C-2x | H190: 2213 | I190: 0.22 | J190: 32.3 | K190: 500 | L190: 1050 | M190: 33 | N190: -9.507660402e-12 | O190: 2.442828661e-08 | P190: -2.316924658e-05 | Q190: 0.01497049422 | R190: 28.11666927 | T190: -5.205657701e-07 | U190: 0.002252976347 | V190: 0.004831192823 | X190: -4.920036195e-07 | Y190: 0.002235027916 | Z190: 0.006889179501 | AB190: -1.02e-07 | AC190: 1.27e-05 | AD190: -0.00202 | AE190: 1.04 | AH190: -0.017 | AI190: 32.725
A191: Vero 13 | B191: 40G | C191: C | D191: 2000 | E191: BXRC | F191: =MasterTable[[#This Row],[Product Family]]&"-"&MasterTable[[#This Row],[CCT/CRI]]&MasterTable[[#This Row],[Arrangement]] -> Vero 13-40GC | G191: =MasterTable[[#This Row],[Generation]]&"-"&MasterTable[[#This Row],[CCT/CRI]]&IF(MasterTable[[#This Row],[Lumen Family]]<999,"0"&MasterTable[[#This Row],[Lumen Family]],MasterTable[[#This Row],[Lumen Family]])&"-"&MasterTable[[#This Row],[Arrangement]]&"-2x" -> BXRC-40G2000-C-2x | H191: 1900 | I191: 0.22 | J191: 32.3 | K191: 500 | L191: 1050 | M191: 33 | N191: -9.507660402e-12 | O191: 2.442828661e-08 | P191: -2.316924658e-05 | Q191: 0.01497049422 | R191: 28.11666927 | T191: -5.205657701e-07 | U191: 0.002252976347 | V191: 0.004831192823 | X191: -4.920036195e-07 | Y191: 0.002235027916 | Z191: 0.006889179501 | AB191: -1.02e-07 | AC191: 1.27e-05 | AD191: -0.00202 | AE191: 1.04 | AH191: -0.017 | AI191: 32.725
A192: Vero 13 | B192: 50C | C192: C | D192: 2000 | E192: BXRC | F192: =MasterTable[[#This Row],[Product Family]]&"-"&MasterTable[[#This Row],[CCT/CRI]]&MasterTable[[#This Row],[Arrangement]] -> Vero 13-50CC | G192: =MasterTable[[#This Row],[Generation]]&"-"&MasterTable[[#This Row],[CCT/CRI]]&IF(MasterTable[[#This Row],[Lumen Family]]<999,"0"&MasterTable[[#This Row],[Lumen Family]],MasterTable[[#This Row],[Lumen Family]])&"-"&MasterTable[[#This Row],[Arrangement]]&"-2x" -> BXRC-50C2000-C-2x | H192: 2342 | I192: 0.22 | J192: 32.3 | K192: 500 | L192: 1050 | M192: 33 | N192: -9.507660402e-12 | O192: 2.442828661e-08 | P192: -2.316924658e-05 | Q192: 0.01497049422 | R192: 28.11666927 | T192: -5.205657701e-07 | U192: 0.002252976347 | V192: 0.004831192823 | X192: -4.920036195e-07 | Y192: 0.002235027916 | Z192: 0.006889179501 | AC192: -4e-06 | AD192: -0.0016 | AE192: 1.0421 | AH192: -0.017 | AI192: 32.725
A193: Vero 13 | B193: 50E | C193: C | D193: 2000 | E193: BXRC | F193: =MasterTable[[#This Row],[Product Family]]&"-"&MasterTable[[#This Row],[CCT/CRI]]&MasterTable[[#This Row],[Arrangement]] -> Vero 13-50EC | G193: =MasterTable[[#This Row],[Generation]]&"-"&MasterTable[[#This Row],[CCT/CRI]]&IF(MasterTable[[#This Row],[Lumen Family]]<999,"0"&MasterTable[[#This Row],[Lumen Family]],MasterTable[[#This Row],[Lumen Family]])&"-"&MasterTable[[#This Row],[Arrangement]]&"-2x" -> BXRC-50E2000-C-2x | H193: 2245 | I193: 0.22 | J193: 32.3 | K193: 500 | L193: 1050 | M193: 33 | N193: -9.507660402e-12 | O193: 2.442828661e-08 | P193: -2.316924658e-05 | Q193: 0.01497049422 | R193: 28.11666927 | T193: -5.205657701e-07 | U193: 0.002252976347 | V193: 0.004831192823 | X193: -4.920036195e-07 | Y193: 0.002235027916 | Z193: 0.006889179501 | AC193: -4e-06 | AD193: -0.0016 | AE193: 1.0421 | AH193: -0.017 | AI193: 32.725
A194: Vero 13 | B194: 50G | C194: C | D194: 2000 | E194: BXRC | F194: =MasterTable[[#This Row],[Product Family]]&"-"&MasterTable[[#This Row],[CCT/CRI]]&MasterTable[[#This Row],[Arrangement]] -> Vero 13-50GC | G194: =MasterTable[[#This Row],[Generation]]&"-"&MasterTable[[#This Row],[CCT/CRI]]&IF(MasterTable[[#This Row],[Lumen Family]]<999,"0"&MasterTable[[#This Row],[Lumen Family]],MasterTable[[#This Row],[Lumen Family]])&"-"&MasterTable[[#This Row],[Arrangement]]&"-2x" -> BXRC-50G2000-C-2x | H194: 2015 | I194: 0.22 | J194: 32.3 | K194: 500 | L194: 1050 | M194: 33 | N194: -9.507660402e-12 | O194: 2.442828661e-08 | P194: -2.316924658e-05 | Q194: 0.01497049422 | R194: 28.11666927 | T194: -5.205657701e-07 | U194: 0.002252976347 | V194: 0.004831192823 | X194: -4.920036195e-07 | Y194: 0.002235027916 | Z194: 0.006889179501 | AC194: -4e-06 | AD194: -0.0016 | AE194: 1.0421 | AH194: -0.017 | AI194: 32.725
A195: Vero 18 | B195: 17E | C195: F | D195: 4000 | E195: BXRC | F195: =MasterTable[[#This Row],[Product Family]]&"-"&MasterTable[[#This Row],[CCT/CRI]]&MasterTable[[#This Row],[Arrangement]] -> Vero 18-17EF | G195: =MasterTable[[#This Row],[Generation]]&"-"&MasterTable[[#This Row],[CCT/CRI]]&IF(MasterTable[[#This Row],[Lumen Family]]<999,"0"&MasterTable[[#This Row],[Lumen Family]],MasterTable[[#This Row],[Lumen Family]])&"-"&MasterTable[[#This Row],[Arrangement]]&"-xx" -> BXRC-17E4000-F-xx | H195: 2254 | I195: 0.13 | J195: 29.5 | K195: 1050 | L195: =INDEX(FF_stats31333[],MATCH(A195,FF_stats31333[Form Factor],0),2) -> 2100 | M195: 60 | N195: -4.329614168e-13 | O195: 2.421013102e-09 | P195: -5.02931617e-06 | Q195: 0.006888452614 | R195: 25.52318402 | T195: -9.73e-08 | U195: 0.0010486146 | V195: 0.0066521281 | X195: -1.211637044e-07 | Y195: 0.00107446893 | Z195: 0.006880972982 | AC195: -7.1757e-06 | AD195: -0.0009305781 | AE195: 1.019863579 | AH195: -0.015 | AI195: 29.875
A196: Vero 18 | B196: 25E | C196: F | D196: 4000 | E196: BXRC | F196: =MasterTable[[#This Row],[Product Family]]&"-"&MasterTable[[#This Row],[CCT/CRI]]&MasterTable[[#This Row],[Arrangement]] -> Vero 18-25EF | G196: =MasterTable[[#This Row],[Generation]]&"-"&MasterTable[[#This Row],[CCT/CRI]]&IF(MasterTable[[#This Row],[Lumen Family]]<999,"0"&MasterTable[[#This Row],[Lumen Family]],MasterTable[[#This Row],[Lumen Family]])&"-"&MasterTable[[#This Row],[Arrangement]]&"-xx" -> BXRC-25E4000-F-xx | H196: 3651 | I196: 0.13 | J196: 29.5 | K196: 1050 | L196: =INDEX(FF_stats31333[],MATCH(A196,FF_stats31333[Form Factor],0),2) -> 2100 | M196: 60 | N196: -4.329614168e-13 | O196: 2.421013102e-09 | P196: -5.02931617e-06 | Q196: 0.006888452614 | R196: 25.52318402 | T196: -9.73e-08 | U196: 0.0010486146 | V196: 0.0066521281 | X196: -1.211637044e-07 | Y196: 0.00107446893 | Z196: 0.006880972982 | AC196: -6.472e-06 | AD196: -0.0010156564 | AE196: 1.021141633 | AH196: -0.015 | AI196: 29.875
A197: Vero 18 | B197: 27E | C197: F | D197: 4000 | E197: BXRC | F197: =MasterTable[[#This Row],[Product Family]]&"-"&MasterTable[[#This Row],[CCT/CRI]]&MasterTable[[#This Row],[Arrangement]] -> Vero 18-27EF | G197: =MasterTable[[#This Row],[Generation]]&"-"&MasterTable[[#This Row],[CCT/CRI]]&IF(MasterTable[[#This Row],[Lumen Family]]<999,"0"&MasterTable[[#This Row],[Lumen Family]],MasterTable[[#This Row],[Lumen Family]])&"-"&MasterTable[[#This Row],[Arrangement]]&"-2x" -> BXRC-27E4000-F-2x | H197: 3872 | I197: 0.13 | J197: 29.5 | K197: 1050 | L197: 2100 | M197: 60 | N197: -4.329614168e-13 | O197: 2.421013102e-09 | P197: -5.02931617e-06 | Q197: 0.006888452614 | R197: 25.52318402 | T197: -1.310602506e-07 | U197: 0.001087869998 | V197: 0.004288345554 | X197: -1.211637044e-07 | Y197: 0.00107446893 | Z197: 0.006880972982 | AA197: 6.64269e-09 | AB197: -1.4332e-06 | AC197: 0.000101154 | AD197: -0.00412184 | AE197: 1.0607 | AH197: -0.015 | AI197: 29.875
A198: Vero 18 | B198: 27G | C198: F | D198: 4000 | E198: BXRC | F198: =MasterTable[[#This Row],[Product Family]]&"-"&MasterTable[[#This Row],[CCT/CRI]]&MasterTable[[#This Row],[Arrangement]] -> Vero 18-27GF | G198: =MasterTable[[#This Row],[Generation]]&"-"&MasterTable[[#This Row],[CCT/CRI]]&IF(MasterTable[[#This Row],[Lumen Family]]<999,"0"&MasterTable[[#This Row],[Lumen Family]],MasterTable[[#This Row],[Lumen Family]])&"-"&MasterTable[[#This Row],[Arrangement]]&"-2x" -> BXRC-27G4000-F-2x | H198: 3221 | I198: 0.13 | J198: 29.5 | K198: 1050 | L198: 2100 | M198: 60 | N198: -4.329614168e-13 | O198: 2.421013102e-09 | P198: -5.02931617e-06 | Q198: 0.006888452614 | R198: 25.52318402 | T198: -1.310602506e-07 | U198: 0.001087869998 | V198: 0.004288345554 | X198: -1.211637044e-07 | Y198: 0.00107446893 | Z198: 0.006880972982 | AA198: 6.64269e-09 | AB198: -1.4332e-06 | AC198: 0.000101154 | AD198: -0.00412184 | AE198: 1.0607 | AH198: -0.015 | AI198: 29.875
A199: Vero 18 | B199: 27H | C199: F | D199: 4000 | E199: BXRC | F199: =MasterTable[[#This Row],[Product Family]]&"-"&MasterTable[[#This Row],[CCT/CRI]]&MasterTable[[#This Row],[Arrangement]] -> Vero 18-27HF | G199: =MasterTable[[#This Row],[Generation]]&"-"&MasterTable[[#This Row],[CCT/CRI]]&IF(MasterTable[[#This Row],[Lumen Family]]<999,"0"&MasterTable[[#This Row],[Lumen Family]],MasterTable[[#This Row],[Lumen Family]])&"-"&MasterTable[[#This Row],[Arrangement]]&"-xx" -> BXRC-27H4000-F-xx | H199: 2534 | I199: 0.13 | J199: 29.5 | K199: 1050 | L199: 2100 | M199: 60 | N199: -4.329614168e-13 | O199: 2.421013102e-09 | P199: -5.02931617e-06 | Q199: 0.006888452614 | R199: 25.52318402 | T199: -9.73e-08 | U199: 0.0010486146 | V199: 0.0066521281 | X199: -1.211637044e-07 | Y199: 0.00107446893 | Z199: 0.006880972982 | AC199: -6.7352e-06 | AD199: -0.0019298129 | AE199: 1.038583751 | AH199: -0.015 | AI199: 29.875
A200: Vero 18 | B200: 30A | C200: F | D200: 4001 | E200: BXRC | F200: =MasterTable[[#This Row],[Product Family]]&"-"&MasterTable[[#This Row],[CCT/CRI]]&MasterTable[[#This Row],[Arrangement]] -> Vero 18-30AF | G200: =MasterTable[[#This Row],[Generation]]&"-"&MasterTable[[#This Row],[CCT/CRI]]&IF(MasterTable[[#This Row],[Lumen Family]]<999,"0"&MasterTable[[#This Row],[Lumen Family]],MasterTable[[#This Row],[Lumen Family]])&"-"&MasterTable[[#This Row],[Arrangement]]&"-23" -> BXRC-30A4001-F-23 | H200: 2897 | I200: 0.13 | J200: 29.5 | K200: 1050 | L200: =INDEX(FF_stats31333[],MATCH(A200,FF_stats31333[Form Factor],0),2) -> 2100 | M200: 60 | N200: -6.07e-13 | O200: 3.12e-09 | P200: -5.86e-06 | Q200: 0.00683 | R200: 25.9 | T200: -1.257e-07 | U200: 0.0010863931 | V200: 0 | X200: -1.036e-07 | Y200: 0.0009698337 | Z200: 0 | AC200: -4.2018e-06 | AD200: -0.001324185 | AE200: 1.034662589 | AH200: -0.015 | AI200: 29.875
A201: Vero 18 | B201: 30E | C201: F | D201: 4000 | E201: BXRC | F201: =MasterTable[[#This Row],[Product Family]]&"-"&MasterTable[[#This Row],[CCT/CRI]]&MasterTable[[#This Row],[Arrangement]] -> Vero 18-30EF | G201: =MasterTable[[#This Row],[Generation]]&"-"&MasterTable[[#This Row],[CCT/CRI]]&IF(MasterTable[[#This Row],[Lumen Family]]<999,"0"&MasterTable[[#This Row],[Lumen Family]],MasterTable[[#This Row],[Lumen Family]])&"-"&MasterTable[[#This Row],[Arrangement]]&"-2x" -> BXRC-30E4000-F-2x | H201: 4050 | I201: 0.13 | J201: 29.5 | K201: 1050 | L201: 2100 | M201: 60 | N201: -4.329614168e-13 | O201: 2.421013102e-09 | P201: -5.02931617e-06 | Q201: 0.006888452614 | R201: 25.52318402 | T201: -1.310602506e-07 | U201: 0.001087869998 | V201: 0.004288345554 | X201: -1.211637044e-07 | Y201: 0.00107446893 | Z201: 0.006880972982 | AA201: 6.64269e-09 | AB201: -1.4332e-06 | AC201: 0.000101154 | AD201: -0.00412184 | AE201: 1.0607 | AH201: -0.015 | AI201: 29.875
A202: Vero 18 | B202: 30G | C202: F | D202: 4000 | E202: BXRC | F202: =MasterTable[[#This Row],[Product Family]]&"-"&MasterTable[[#This Row],[CCT/CRI]]&MasterTable[[#This Row],[Arrangement]] -> Vero 18-30GF | G202: =MasterTable[[#This Row],[Generation]]&"-"&MasterTable[[#This Row],[CCT/CRI]]&IF(MasterTable[[#This Row],[Lumen Family]]<999,"0"&MasterTable[[#This Row],[Lumen Family]],MasterTable[[#This Row],[Lumen Family]])&"-"&MasterTable[[#This Row],[Arrangement]]&"-2x" -> BXRC-30G4000-F-2x | H202: 3376 | I202: 0.13 | J202: 29.5 | K202: 1050 | L202: 2100 | M202: 60 | N202: -4.329614168e-13 | O202: 2.421013102e-09 | P202: -5.02931617e-06 | Q202: 0.006888452614 | R202: 25.52318402 | T202: -1.310602506e-07 | U202: 0.001087869998 | V202: 0.004288345554 | X202: -1.211637044e-07 | Y202: 0.00107446893 | Z202: 0.006880972982 | AA202: 6.64269e-09 | AB202: -1.4332e-06 | AC202: 0.000101154 | AD202: -0.00412184 | AE202: 1.0607 | AH202: -0.015 | AI202: 29.875
A203: Vero 18 | B203: 30H | C203: F | D203: 4000 | E203: BXRC | F203: =MasterTable[[#This Row],[Product Family]]&"-"&MasterTable[[#This Row],[CCT/CRI]]&MasterTable[[#This Row],[Arrangement]] -> Vero 18-30HF | G203: =MasterTable[[#This Row],[Generation]]&"-"&MasterTable[[#This Row],[CCT/CRI]]&IF(MasterTable[[#This Row],[Lumen Family]]<999,"0"&MasterTable[[#This Row],[Lumen Family]],MasterTable[[#This Row],[Lumen Family]])&"-"&MasterTable[[#This Row],[Arrangement]]&"-xx" -> BXRC-30H4000-F-xx | H203: 2724 | I203: 0.13 | J203: 29.5 | K203: 1050 | L203: 2100 | M203: 60 | N203: -4.329614168e-13 | O203: 2.421013102e-09 | P203: -5.02931617e-06 | Q203: 0.006888452614 | R203: 25.52318402 | T203: -9.73e-08 | U203: 0.0010486146 | V203: 0.0066521281 | X203: -1.211637044e-07 | Y203: 0.00107446893 | Z203: 0.006880972982 | AC203: -7.3562e-06 | AD203: -0.0015915528 | AE203: 1.028282555 | AH203: -0.015 | AI203: 29.875
... 51 more rows
